Workbook

Sheet INFO-NEW
A1: INFORMASI ( MOHON UNTUK DIBACA DULU )
A2: PETUNJUK PENGELOLAAN ENTRY NILAI (VERSI EXCEL)
A3: UJIAN NASIONAL TAHUN PELAJARAN 2012/2013
A4: -----------------------------------------------------
B6: A. Petunjuk Umum.
B7: Aplikasi ini dipersiapkan sebagai format pendukung / bantuan yang dipergunakan untuk menginput / memasukkan Nilai Raport semester 3 s.d. 5 serta
B8: Nilai Ujian Sekolah semua bidang studi pada SMA yang mana sesuai dengan POS kedua nilai tersebut (0,4 Nilai Rata-Rata Raport+0,6 Nilai Ujian Sekolah)
B9: menjadi Nilai Sekolah. Dengan program entry nilai ini didesain sedemikian rupa yang pada outputnya dapat dihasilkan Nilai Sekolah (pada sheet Print-Nilai Sekolah)
B10: sebagai acuan maupun transfer nilai sesuai dengan "Program Nilai Sekolah 2013" yang akan dikirim oleh sekolah ke Puspendik Balitbang Kemendiknas.
B11: Selain hal tersebut dengan Entry-Nilai dapat pula dihasilkan format DKN-LULUSAN (pada sheet PRINT DKN-LULUS-New) , format SKHUN / bahan acuan untuk
B12: penulisan Ijasah SMA IPA/IPS/BHS kurikulum KTSP; Format Statistik (merupakan "special menu" dari kami) berisi 10 siswa dengan nilai terbaik per mapel dan
B13: per program, serta nilai ujian nasional per siswa dalam menu pengumuman berikut lebel amplop. (untuk diberikan pada Orang Tua Siswa)
B15: SEMUA PENGISIAN NILAI HANYA PADA SHEET "ENTRY-NILAI"
B17: B. Sumber Data dan Spesifikasi Format
B18: 1. File biodata UN (dbf) yang sdh di ubah menjadi format csv ( convert )
B19: 2. File Nilai raport ( sudah disetorkan ) berbentuk excel (RAPOR-TAHUN_MASUK_2010-0527015U-SMA SUNAN KALIJOGO JABUNG, KABUPATEN MALANG)
B20: Langkah - Langkah yang kami lakukan adalah :
B21: 1. Buka Aplikasi nilai jangan lupa enable macro security
B22: 2. Pilih menu ambil data siswa csv kemudian cari letak file biodata yang sudah berbentuk csv tunggu sampai proses selesai
B23: 3. Dalam Master nilai pilih menu ambil nilai (menu ini untuk memindahkan nilai yang sudah dientri dan disetorkan ke aplikasi ini) cari lokasi file nilai dan tunggu proses sampai selesai
B24: 4. Cek kebenaran data nilai
B26: Perhatian (Penting)
B27: * menu ambil nilai ini hanya sebagai pembantu agar tidak copy/paste manual sehingga bila ada kesalahan mohon di entry manual saja
B28: * Nilai yang diambil adalah hasil rata-rata teori dan praktek
B29: * disarankan untuk entry manual nilai hasil pengumuman dari pusat karena kemungkinan proses perhitungan antara excel dan foxpro tidak sama ( terutama US, UN,dan NA bidang studi nasional
B30: * Nilai Ujian Nasional sengaja kami isi dengan nilai 4 untuk prediksi saja
B34: OUTPUT YANG DIHARAPKAN
B36: 1. NILAI SEKOLAH UNTUK DIISIKAN SESUAI DENGAN SOFWARE "NILAI SEKOLAH 2013"
B37: Setelah kita selesai mengisi Nilai Raport maupun Nilai Ujian Sekolah dengan lengkap buka/klik sheet "PRINT-NILAI SEKOLAH"
B38: Format telah disesuaikan dengan Sofware Nilai Sekolah 2013.
B40: 2. DKN PENGESAHAN LULUSAN NEW
B41: Setelah kita selesai mengisi Nilai Raport (NR) maupun Nilai Ujian Sekolah (NUS) dengan lengkap, Maka akan diperoleh Nilai Sekolah (NS).
B42: Pada Bulan Mei 2013 , setelah kita menerima hasil Ujian Nasional , isikan nilainya pada kolom yang telah disediakan (NUN)
B43: Apabila NS dan NUN semua telah terisi maka Nilai Akhir (NA) juga akan terisi pula yang semuanya terangkum pada sheet "PRINT-DKN-LULUS-NEW"
B44: Format disesuaikan dengan contoh blanko Ijasah SMA Tahun 2013 Kurikulum KTSP untuk semua program.
B46: 3. PRINT DATA UNTUK KONSEP PENULISAN IJASAH
B47: Setelah semua nilai terisi dengan sempurna baik Nilai Rata-Rata Raport (NR) , Nilai Ujian Sekolah (NUS) , Nilai Sekolah (NS) , Nilai Ujian Nasional
B48: (NUN) serta Nilai Akhir (NA) , dapat dicetak SKHUN maupun konsep penulisan ijasah dengan langkah-langkah sebagai berikut :
B50: Memilih Data Yang Akan Dicetak
B51: Klik comand button kiri/kanan pilih sesuai nomor urut DKN yang akan dicetak
B52: disarankan untuk pertama kali mencetak set dulu print dan margin halaman dengan memilih print di layar/print preview (hanya dilakukan sekali saja)
B53: defaultkan printer yang digunakan start --> printer and fax ---> pilih printer aktif ---> klik kanan ---> set default printer
B54: Mencetak Data
B55: Setelah selesai setting margin dan output printernya baru centang option print printer lalu klik tombol print
B56: Memilih Data Yang Akan Dicetak berikutnya
B57: klik spinbutton kiri/kanan untuk memilih nomor urut DKN yang akan dicetak kemudian baru klik tombol print ( harap memilih output printer )
B58: 4. PRINT DATA UNTUK KONSEP PENULISAN IJASAH
B59: Setelah semua nilai terisi dengan sempurna baik Nilai Rata-Rata Raport (NR) , Nilai Ujian Sekolah (NUS) , Nilai Sekolah (NS) serta Nilai Ujian Nasional
B60: (NUN) serta Nilai Akhir (NA)
B61: Lakukan langkah-langkah sebagaimana mencetak Ijasah Bahasa
B62: Memilih Data Yang Akan Dicetak
B63: 1. pilih data yang akan dicetak
B64: 2. cetak
B65: 5. STATISTIK (10 SISWA TERBAIK)
B66: "SPECIAL MENU" dari data yang telah ada kami rangkum sepuluh siswa terbaik per mata pelajaran Unas pada masing-masing program
B67: semoga dapat membantu sekolah (KS, Guru, Operator serta pihak-pihak yang relevan) dalam menganalisis hasil Ujian Nasional siswa-siswinya.
B69: Memilih Data Yang Akan Dicetak
B70: Pilih salah satu Program/Jurusan : IPA, IPS atau Bahasa yang telah tersedia. Secara otomatis akan ditampilkan 10 siswa terbaik per mata pelajaran
B71: Mencetak Data
B72: Pada menu Page Layout --> Blok data yang dikehendaki untuk dicetak --> pilih set print area --> silahkan cetak.
B73: Memilih Data Yang Akan Dicetak berikutnya
B74: Lakukan seperti langkah diatas.
B76: 6. PENGUMUMAN
B77: Setiap sekolah dalam mengumumkan kelulusan siswa mempunyai cara serta tradisi yang berbeda-beda , bagi sekolah yang biasanya memberikan
B78: pengumuman dengan mengundang orang tua ke sekolah maupun dikirim via pos, berikut kami siapkan nilai ujian nasional dari masing-masing siswa
B79: untuk dimasukkan dalam amplop tertutup yang nantinya diberikan kepada orang tua.
B81: Mencetak Data
B82: Setting layout orientation kertas landscape, dengan cara mencetak sama dengan mencetak ijasah/SKHUN.(1 lembar berisi 6 siswa)
B84: 7. AMPLOP
B85: Berkaitan dengan pengumuman diatas, kami siapkan pula label untuk ditempelkan pada amplop pengumuman.
B87: Mencetak Data
B88: Setting layout orientation kertas potrait, sedangkan cara mencetak sama dengan mencetak ijasah/SKHUN.(1 lembar berisi 33 siswa)
B93: DEMIKIAN , SEMOGA BERMANFAAT.

Sheet ENTRY-NILAI
A1: ENTRI NILAI
A4: 1 | B4: =A4+1 -> 2 | C4: =B4+1 -> 3 | D4: 4 | E4: 5 | F4: 6 | G4: 7 | H4: 8 | I4: 9 | J4: 10 | K4: 11 | L4: 12 | M4: 13 | N4: 14 | O4: 15 | P4: 16 | Q4: 17 | R4: 18 | S4: 19 | T4: 20 | U4: 21 | V4: 22 | W4: 23 | X4: 24 | Y4: 25 | Z4: 26 | AA4: 27 | AB4: 28 | AC4: 29 | AD4: 30 | AE4: 31 | AF4: 32 | AG4: 33 | AH4: 34 | AI4: 35 | AJ4: 36 | AK4: 37 | AL4: 38 | AM4: 39 | AN4: 40 | AO4: 41 | AP4: 42 | AQ4: 43 | AR4: 44 | AS4: 45 | AT4: 46 | AU4: 47 | AV4: 48 | AW4: 49 | AX4: 50 | AY4: 51 | AZ4: 52 | BA4: 53 | BB4: 54 | BC4: 55 | BD4: 56 | BE4: 57 | BF4: 58 | BG4: 59 | BH4: 60 | BI4: 61 | BJ4: 62 | BK4: 63 | BL4: 64 | BM4: 65 | BN4: 66 | BO4: =BN4+1 -> 67 | BP4: 68 | BQ4: 69 | BR4: 70 | BS4: 71 | BT4: 72 | BU4: 73 | BV4: 74 | BW4: 75 | BX4: 76 | BY4: 77 | BZ4: 78 | CA4: 79 | CB4: 80 | CC4: 81 | CD4: 82 | CE4: 83 | CF4: 84 | CG4: 85 | CH4: 86 | CI4: 87 | CJ4: 88 | CK4: 89 | CL4: 90 | CM4: 91 | CN4: 92 | CO4: 93 | CP4: 94 | CQ4: 95 | CR4: 96 | CS4: 97 | CT4: 98 | CU4: 99 | CV4: 100 | CW4: 101 | CX4: 102 | CY4: 103 | CZ4: 104 | DA4: 105 | DB4: 106 | DC4: 107 | DD4: 108 | DE4: 109 | DF4: 110 | DG4: 111 | DH4: 112 | DI4: 113 | DJ4: 114 | DK4: 115 | DL4: 116 | DM4: 117 | DN4: 118 | DO4: 119 | DP4: 120 | DQ4: 121 | DR4: 122 | DS4: 123 | DT4: 124 | DU4: 125 | DV4: 126 | DW4: 127 | DX4: 128 | DY4: 129 | DZ4: 130 | EA4: =DZ4+1 -> 131 | EB4: 132 | EC4: 133 | ED4: 134 | EE4: 135 | EF4: 136 | EG4: 137 | EH4: 138 | EI4: 139 | EJ4: 140 | EK4: 141 | EL4: 142 | EM4: 143 | EN4: 144 | EO4: 145 | EP4: 146 | EQ4: 147 | ER4: 148 | ES4: 149 | ET4: 150 | EU4: 151 | EV4: 152 | EW4: 153 | EX4: 154 | EY4: 155 | EZ4: 156 | FA4: 157 | FB4: 158 | FC4: 159 | FD4: 160 | FE4: 161 | FF4: 162 | FG4: 163
A5: NO. | B5: kd_prop | C5: kd_rayon | D5: kd_sek | E5: paralel | F5: absen | G5: kd_pes | H5: cek_kd_pes | I5: NOMOR PESERTA | J5: nisn | K5: NOMOR INDUK | L5: KODE | M5: kd_bhs | N5: NAMA PESERTA | O5: TMP_LHR | P5: TGL_LHR | Q5: TGL_LONG | R5: SEX | S5: NM_ORTU | T5: IPA | U5: BAHASA INDONESIA | AD5: BAHASA INGGRIS | AN5: MATEMATIKA | AV5: FISIKA | BF5: KIMIA | BP5: BIOLOGI | BZ5: AQIDAH AKHLAK | CH5: PKN | CN5: SEJARAH | CT5: SENI BUDAYA | CZ5: PEND. JASMANI, ORKES | DH5: TIK | DP5: KETRAMPILAN | DX5: SKI | ED5: BAHASA ARAB | EL5: HADIST | ET5: FIKIH | FB5: RATA-RATA NA | FC5: RATA-RATA NS | FD5: KEPRIBADIAN | FE5: KRITERIA LULUS SATUAN PENDIDIKAN
T6: IPS | U6: BAHASA INDONESIA | AD6: BAHASA INGGRIS | AN6: MATEMATIKA | AV6: EKONOMI | BF6: SOSIOLOGI | BP6: GEOGRAFI | BZ6: AQIDAH AKHLAK | CH6: PKN | CN6: SEJARAH | CT6: SENI BUDAYA | CZ6: PEND. JASMANI, ORKES | DH6: TIK | DP6: KETRAMPILAN | DX6: SKI | ED6: BAHASA ARAB | EL6: HADIST | ET6: FIKIH
T7: BHS | U7: BAHASA INDONESIA | AD7: BAHASA INGGRIS | AN7: MATEMATIKA | AV7: SASTRA | BF7: SEJBUD/ANTROPOLOGI | BP7: B.ASING | BZ7: AQIDAH AKHLAK | CH7: PKN | CN7: SEJARAH | CT7: SENI BUDAYA | CZ7: PEND. JASMANI, ORKES | DH7: TIK | DP7: KETRAMPILAN | DX7: SKI | ED7: BAHASA ARAB | EL7: HADIST | ET7: FIKIH
T8: AGM | U8: BAHASA INDONESIA | AD8: BAHASA INGGRIS | AN8: MATEMATIKA | AV8: TAFSIR | BF8: HADIST | BP8: FIKIH | BZ8: AQIDAH AKHLAK | CH8: PKN | CN8: ILMU KALAM | CT8: SENI BUDAYA | CZ8: PEND. JASMANI, ORKES | DH8: TIK | DP8: KETRAMPILAN | DX8: SKI | ED8: BAHASA ARAB | EL8: KHUSUS IPA, IPS, BHS | ET8: KHUSUS IPA, IPS, BHS
T9: NILAI SEKOLAH | AB9: NILAI UN | AC9: NA (0,4 NS+0,6 NUN) | AD9: NILAI SEKOLAH | AL9: NILAI UN | AM9: NA (0,4 NS+0,6 NUN) | AN9: NILAI SEKOLAH | AT9: NILAI UN | AU9: NA (0,4 NS+0,6 NUN) | AV9: NILAI SEKOLAH | BD9: NILAI UN | BE9: NA (0,4 NS+0,6 NUN) | BF9: NILAI SEKOLAH | BN9: NILAI UN | BO9: NA (0,4 NS+0,6 NUN) | BP9: NILAI SEKOLAH | BX9: NILAI UN | BY9: NA (0,4 NS+0,6 NUN) | BZ9: NILAI SEKOLAH | CH9: NILAI SEKOLAH | CN9: NILAI SEKOLAH | CT9: NILAI SEKOLAH | CZ9: NILAI SEKOLAH | DH9: NILAI SEKOLAH | DP9: NILAI SEKOLAH | DX9: NILAI SEKOLAH | ED9: NILAI SEKOLAH | EL9: NILAI SEKOLAH | ET9: NILAI SEKOLAH
T10: R3 | U10: R4 | V10: R5 | W10: NR | X10: NUS | AA10: NS (0,4 NR + 0,6 NUS) | AD10: R3 | AE10: R4 | AF10: R5 | AG10: NR | AH10: NUS | AK10: NS (0,4 NR + 0,6 NUS) | AN10: R3 | AO10: R4 | AP10: R5 | AQ10: NR | AR10: NUS | AS10: NS (0,4 NR + 0,6 NUS) | AV10: R3 | AW10: R4 | AX10: R5 | AY10: NR | AZ10: NUS | BC10: NS (0,4 NR + 0,6 NUS) | BF10: R3 | BG10: R4 | BH10: R5 | BI10: NR | BJ10: NUS | BM10: NS (0,4 NR + 0,6 NUS) | BP10: R3 | BQ10: R4 | BR10: R5 | BS10: NR | BT10: NUS | BW10: NS (0,4 NR + 0,6 NUS) | BZ10: R3 | CA10: R4 | CB10: R5 | CC10: NR | CD10: NUS | CG10: NS (0,4 NR + 0,6 NUS) | CH10: R3 | CI10: R4 | CJ10: R5 | CK10: NR | CL10: NUS | CM10: NS (0,4 NR + 0,6 NUS) | CN10: R3 | CO10: R4 | CP10: R5 | CQ10: NR | CR10: NUS | CS10: NS (0,4 NR + 0,6 NUS) | CT10: R3 | CU10: R4 | CV10: R5 | CW10: NR | CX10: NUS | CY10: NS (0,4 NR + 0,6 NUS) | CZ10: R3 | DA10: R4 | DB10: R5 | DC10: NR | DD10: NUS | DG10: NS (0,4 NR + 0,6 NUS) | DH10: R3 | DI10: R4 | DJ10: R5 | DK10: NR | DL10: NUS | DO10: NS (0,4 NR + 0,6 NUS) | DP10: R3 | DQ10: R4 | DR10: R5 | DS10: NR | DT10: NUS | DW10: NS (0,4 NR + 0,6 NUS) | DX10: R3 | DY10: R4 | DZ10: R5 | EA10: NR | EB10: NUS | EC10: NS (0,4 NR + 0,6 NUS) | ED10: R3 | EE10: R4 | EF10: R5 | EG10: NR | EH10: NUS | EK10: NS (0,4 NR + 0,6 NUS) | EL10: R3 | EM10: R4 | EN10: R5 | EO10: NR | EP10: NUS | ES10: NS (0,4 NR + 0,6 NUS) | ET10: R3 | EU10: R4 | EV10: R5 | EW10: NR | EX10: NUS | FA10: NS (0,4 NR + 0,6 NUS) | FE10: LULUS UN (min: 4 rata2 :5,5) | FF10: LULUS US (NS min: 6 Kepribadian : Baik) | FG10: LULUS/ TL
X12: T | Y12: P | Z12: NUS | AH12: T | AI12: P | AJ12: NUS | AZ12: T | BA12: P | BB12: NUS | BJ12: T | BK12: P | BL12: NUS | BT12: T | BU12: P | BV12: NUS | CD12: T | CE12: P | CF12: NUS | DD12: T | DE12: P | DF12: NUS | DL12: T | DM12: P | DN12: NUS | DT12: T | DU12: P | DV12: NUS | EH12: T | EI12: P | EJ12: NUS | EP12: T | EQ12: P | ER12: NUS | EX12: T | EY12: P | EZ12: NUS
A13: NO. | B13: PROP | C13: RAYON | D13: KD-SEK | E13: PRL | F13: absen | G13: kd_pes | H13: cek_kd_pes | I13: NOPES | J13: PROP | K13: INDUK | L13: PROG | M13: kd_bhs | N13: NAMA | T13: BIN | U13: BIN | V13: BIN | W13: BIN | X13: BIN | Y13: BIN | Z13: BIN | AA13: BIN | AB13: BIN | AC13: BIN | AD13: BIG | AE13: BIG | AF13: BIG | AG13: BIG | AH13: BIG | AI13: BIG | AJ13: BIG | AK13: BIG | AL13: BIG | AM13: BIG | AN13: MAT | AO13: MAT | AP13: MAT | AQ13: MAT | AR13: MAT | AS13: MAT | AT13: MAT | AU13: MAT | AV13: F/E/S/T | AW13: F/E/S/T | AX13: F/E/S/T | AY13: F/E/S/T | AZ13: F/E/S/T | BA13: F/E/S/T | BB13: F/E/S/T | BC13: F/E/S/T | BD13: F/E/S | BE13: F/E/S | BF13: K/S/SJ/H | BG13: K/S/SJ/H | BH13: K/S/SJ/H | BI13: K/S/SJ/H | BJ13: K/S/SEJ | BK13: K/S/SEJ | BL13: K/S/SEJ | BM13: K/S/SJ/H | BN13: K/S/SEJ | BO13: K/S/SEJ | BP13: B/G/B/F | BQ13: B/G/B/F | BR13: B/G/B/F | BS13: B/G/B/F | BT13: B/G/B | BU13: B/G/B | BV13: B/G/B | BW13: BIO/G/B | BX13: BIO/G/B | BY13: BIO/G/B | BZ13: AQIDAH | CA13: AQIDAH | CB13: AQIDAH | CC13: AQIDAH | CD13: AQIDAH | CE13: AQIDAH | CF13: AQIDAH | CG13: AGAMA | CH13: PKN | CI13: PKN | CJ13: PKN | CK13: PKN | CL13: PKN | CM13: PKN | CN13: SJRAH | CO13: SJRAH | CP13: SJRAH | CQ13: SJRAH | CR13: SJRAH | CS13: SJRAH | CT13: S-BUD | CU13: S-BUD | CV13: S-BUD | CW13: S-BUD | CX13: S-BUD | CY13: S-BUD | CZ13: ORKES | DA13: ORKES | DB13: ORKES | DC13: ORKES | DD13: ORKES | DE13: ORKES | DF13: ORKES | DG13: ORKES | DH13: TIK | DI13: TIK | DJ13: TIK | DK13: TIK | DL13: TIK | DM13: TIK | DN13: TIK | DO13: TIK | DP13: KET | DQ13: KET | DR13: KET | DS13: KET | DT13: KET | DU13: KET | DV13: KET | DW13: KET | DX13: SKI | DY13: SKI | DZ13: SKI | EA13: SKI | EB13: SKI | EC13: SKI | ED13: B.ARAB | EE13: B.ARAB | EF13: B.ARAB | EG13: B.ARAB | EH13: B.ARAB | EI13: B.ARAB | EJ13: B.ARAB | EK13: B.ARAB | EL13: HADIST | EM13: HADIST | EN13: HADIST | EO13: HADIST | EP13: HADIST | EQ13: HADIST | ER13: HADIST | ES13: HADIST | ET13: FIKIH | EU13: FIKIH | EV13: FIKIH | EW13: FIKIH | EX13: FIKIH | EY13: FIKIH | EZ13: FIKIH | FA13: FIKIH | FB13: R-NA | FC13: R-NS | FE13: UN | FF13: US | FG13: L/TL
A14: =IF(N14="","",Sheet3!J2) -> 1 | B14: 5 | C14: 27 | D14: 506 | E14: 1 | F14: 1 | G14: 1 | H14: 8 | I14: 27-506-001-8 | J14: 9942105288 | K14: 464 | L14: A | N14: AHMAD SAIFUDIN | O14: Malang | P14: 180394 | Q14: 18 Maret 1994 | R14: L | S14: YATENO | T14: 76.50 | U14: 75.50 | V14: 76.00 | W14: =IFERROR(AVERAGE(T14:V14),0) -> 76.00 | X14: 94.00 | Y14: 85.00 | Z14: =IFERROR(AVERAGE(X14:Y14),0) -> 89.50 | AA14: =IFERROR(ROUND(ROUND(0.04*W14+0.06*Z14,3),2),0) -> 8.41 | AB14: 4.00 | AC14: =ROUND(ROUND(0.4*AA14+0.6*AB14,2),1) -> 5.8 | AD14: 75.50 | AE14: 87.50 | AF14: 78.50 | AG14: =IFERROR(AVERAGE(AD14:AF14),0) -> 80.50 | AH14: 96.00 | AI14: 95.00 | AJ14: =IFERROR(AVERAGE(AH14:AI14),0) -> 95.50 | AK14: =IFERROR(ROUND(ROUND(0.04*AG14+0.06*AJ14,3),2),0) -> 8.95 | AL14: 4.00 | AM14: =ROUND(ROUND(0.4*AK14+0.6*AL14,2),1) -> 6.0 | AN14: 75.00 | AO14: 86.00 | AP14: 76.00 | AQ14: =IFERROR(AVERAGE(AN14:AP14),0) -> 79.00 | AR14: 95.00 | AS14: =IFERROR(ROUND(ROUND(0.04*AQ14+0.06*AR14,3),2),0) -> 8.86 | AT14: 4.00 | AU14: =ROUND(ROUND(0.4*AS14+0.6*AT14,2),1) -> 5.9 | AV14: 76.50 | AW14: 82.00 | AX14: 87.00 | AY14: =IFERROR(AVERAGE(AV14:AX14),0) -> 81.83 | AZ14: 90.00 | BA14: 90.00 | BB14: =IFERROR(AVERAGE(AZ14:BA14),0) -> 90.00 | BC14: =IFERROR(ROUND(ROUND(0.04*AY14+0.06*BB14,3),2),0) -> 8.67 | BD14: 4.00 | BE14: =ROUND(ROUND(0.4*BC14+0.6*BD14,2),1) -> 5.9 | BF14: 77.00 | BG14: 83.00 | BH14: 81.00 | BI14: =IFERROR(AVERAGE(BF14:BH14),0) -> 80.33 | BJ14: 90.00 | BK14: 86.00 | BL14: =IFERROR(AVERAGE(BJ14:BK14),0) -> 88.00 | BM14: =IFERROR(ROUND(ROUND(0.04*BI14+0.06*BL14,3),2),0) -> 8.49 | BN14: 4.00 | BO14: =ROUND(ROUND(0.4*BM14+0.6*BN14,2),1) -> 5.8 | BP14: 75.00 | BQ14: 75.00 | BR14: 76.00 | BS14: =IFERROR(AVERAGE(BP14:BR14),0) -> 75.33 | BT14: 92.50 | BU14: 92.50 | BV14: =IFERROR(AVERAGE(BT14:BU14),0) -> 92.50 | BW14: =IFERROR(ROUND(ROUND(0.04*BS14+0.06*BV14,3),2),0) -> 8.56 | BX14: 4.00 | BY14: =ROUND(ROUND(0.4*BW14+0.6*BX14,2),1) -> 5.8 | BZ14: 78.50 | CA14: 79.50 | CC14: =IFERROR(AVERAGE(BZ14:CB14),0) -> 79.00 | CD14: 90.00 | CF14: =IFERROR(AVERAGE(CD14:CE14),0) -> 90.00 | CG14: =IFERROR(ROUND(ROUND(0.04*CC14+0.06*CF14,3),2),0) -> 8.56 | CH14: 74.00 | CI14: 75.00 | CJ14: 83.00 | CK14: =IFERROR(AVERAGE(CH14:CJ14),0) -> 77.33 | CL14: 92.00 | CM14: =IFERROR(ROUND(ROUND(0.04*CK14+0.06*CL14,3),2),0) -> 8.61 | CN14: 78.50 | CO14: 85.00 | CP14: 80.00 | CQ14: =IFERROR(AVERAGE(CN14:CP14),0) -> 81.17 | CR14: 92.00 | CS14: =IFERROR(ROUND(ROUND(0.04*CQ14+0.06*CR14,3),2),0) -> 8.77 | CT14: 76.00 | CU14: 84.50 | CV14: 76.00 | CW14: =IFERROR(AVERAGE(CT14:CV14),0) -> 78.83 | CX14: 86.50 | CY14: =IFERROR(ROUND(ROUND(0.04*CW14+0.06*CX14,3),2),0) -> 8.34 | CZ14: 80.00 | DA14: 80.00 | DB14: 79.00 | DC14: =IFERROR(AVERAGE(CZ14:DB14),0) -> 79.67 | DD14: 94.00 | DE14: 87.00 | DF14: =IFERROR(AVERAGE(DD14:DE14),0) -> 90.50 | DG14: =IFERROR(ROUND(ROUND(0.04*DC14+0.06*DF14,3),2),0) -> 8.62 | DH14: 80.00 | DI14: 81.00 | DJ14: 78.50 | DK14: =IFERROR(AVERAGE(DH14:DJ14),0) -> 79.83 | DL14: 88.00 | DM14: 92.50 | DN14: =IFERROR(AVERAGE(DL14:DM14),0) -> 90.25 | DO14: =IFERROR(ROUND(ROUND(0.04*DK14+0.06*DN14,3),2),0) -> 8.61 | DS14: =IFERROR(AVERAGE(DP14:DR14),0) -> 0.00 | DV14: =IFERROR(AVERAGE(DT14:DU14),0) -> 0.00 | DW14: =IFERROR(ROUND(ROUND(0.04*DS14+0.06*DV14,3),2),0) -> 0.00 | DZ14: 80.00 | EA14: =IFERROR(AVERAGE(DX14:DZ14),0) -> 80.00 | EB14: 88.00 | EC14: =IFERROR(ROUND(ROUND(0.04*EA14+0.06*EB14,3),2),0) -> 8.48 | ED14: 74.50 | EE14: 77.50 | EF14: 77.00 | EG14: =IFERROR(AVERAGE(ED14:EF14),0) -> 76.33 | EH14: 94.00 | EI14: 83.00 | EJ14: =IFERROR(AVERAGE(EH14:EI14),0) -> 88.50 | EK14: =IFERROR(ROUND(ROUND(0.04*EG14+0.06*EJ14,3),2),0) -> 8.36 | EL14: 85.00 | EM14: 85.50 | EN14: 83.00 | EO14: =IFERROR(AVERAGE(EL14:EN14),0) -> 84.50 | EP14: 90.00 | EQ14: 92.00 | ER14: =IFERROR(AVERAGE(EP14:EQ14),0) -> 91.00 | ES14: =IFERROR(ROUND(ROUND(0.04*EO14+0.06*ER14,3),2),0) -> 8.84 | ET14: 80.00 | EU14: 79.50 | EV14: 82.50 | EW14: =IFERROR(AVERAGE(ET14:EV14),0) -> 80.67 | EX14: 88.00 | EY14: 84.00 | EZ14: =IFERROR(AVERAGE(EX14:EY14),0) -> 86.00 | FA14: =IFERROR(ROUND(ROUND(0.04*EW14+0.06*EZ14,3),2),0) -> 8.39 | FB14: =IFERROR(AVERAGE(AC14,AM14,AU14,BE14,BO14,BY14),0) -> 5.9 | FC14: =IF(L14<>"G",AVERAGE(CG14,CM14,CS14,CY14,DG14,DO14,DW14,EC14,EK14,ES14,FA14),AVERAGE(CG14,CM14,CS14,CY14,DG14,DO14,DW14,EC14,EK14)) -> 7.8 | FD14: BAIK | FE14: =IF(OR(AND(AC14>=4,AM14>=4,AU14>=4,BE14>=4,BO14>=4,BY14>=4,FB14>=5.45)),"LULUS","TL") -> LULUS | FF14: =IF(L14="G",IF(OR(AND(CG14>=6,CM14>=6,CS14>=6,CY14>=6,DG14>=6,DO14>=6,DW14>=6,EC14,EK14>=6,FD14="BAIK")),"LULUS","TL"),IF(OR(AND(CG14>=6,CM14>=6,CS14>=6,CY14>=6,DG14>=6,DO14>=6,DW14>=6,EC14,EK14>=6,ES14>=6,FA14>=6,FD14="BAIK")),"LULUS","TL")) -> TL | FG14: =IF(OR(AND(FE14="LULUS",FF14="LULUS")),"LULUS","TL") -> TL

Sheet PROSES IPA (hidden)
A1: SMAL | B1: IPA
B2: BHS INDONESIA | P2: BHS INGGRIS | AB2: MATEMATIKA | AN2: FISIKA | AZ2: KIMIA | BL2: BIOLOGI | BZ2: BIN | CA2: BIG | CB2: MAT | CC2: FISIKA | CD2: KIMIA | CE2: BIOLOGI | CG2: JML | CI2: RANK
B3: NO | C3: ABSEN | D3: NILAI | F3: asli | G3: balik | I3: olah | K3: gabung | L3: rank | N3: urut | P3: NILAI | R3: asli | S3: balik | U3: olah | W3: gabung | X3: rank | Z3: urut | AB3: NILAI | AD3: asli | AE3: balik | AG3: olah | AI3: gabung | AJ3: rank | AL3: urut | AN3: NILAI | AP3: asli | AQ3: balik | AS3: olah | AU3: gabung | AV3: rank | AX3: urut | AZ3: NILAI | BB3: asli | BC3: balik | BE3: olah | BG3: gabung | BH3: rank | BJ3: urut | BL3: NILAI | BN3: asli | BO3: balik | BQ3: olah | BS3: gabung | BT3: rank | BV3: urut | BZ3: NA | CA3: NA | CB3: NA | CC3: NA | CD3: NA | CE3: NA | CG3: UN | CH3: NS | CI3: ASLI | CL3: olah | CN3: gabung | CO3: rank | CQ3: urut
D4: UN | E4: NS | G4: UN | H4: NS | I4: UN | J4: NS | M4: absen 10 | N4: rank | O4: ABSEN | P4: UN | Q4: NS | S4: UN | T4: NS | U4: UN | V4: NS | Y4: absen 10 | Z4: rank | AA4: ABSEN | AB4: UN | AC4: NS | AE4: UN | AF4: NS | AG4: UN | AH4: NS | AK4: absen 10 | AL4: rank | AM4: ABSEN | AN4: UN | AO4: NS | AQ4: UN | AR4: NS | AS4: UN | AT4: NS | AW4: absen 10 | AX4: rank | AY4: ABSEN | AZ4: UN | BA4: NS | BC4: UN | BD4: NS | BE4: UN | BF4: NS | BI4: absen 10 | BJ4: rank | BK4: ABSEN | BL4: UN | BM4: NS | BO4: UN | BP4: NS | BQ4: UN | BR4: NS | BU4: absen 10 | BV4: rank | BW4: ABSEN | BY4: LULUS | CJ4: UN | CK4: NS | CL4: UN | CM4: NS | CP4: absen 10 | CQ4: rank | CR4: ABSEN
A5: 1 | B5: 1 | C5: =IF('ENTRY-NILAI'!$L14="A",'ENTRY-NILAI'!$A14,"") -> 1 | D5: =IF('ENTRY-NILAI'!$L14="A",'ENTRY-NILAI'!$AB14,"") -> 4.00 | E5: =IF('ENTRY-NILAI'!$L14="A",'ENTRY-NILAI'!$AA14,"") -> 8.41 | F5: =IF(D5="","",RANK(D5,$D$5:$D$604,0)) -> 1 | G5: =IF(D5="","",RANK(D5,$D$5:$D$604,1)) -> 1 | H5: =IF(E5="","",RANK(E5,$E$5:$E$604,1)) -> 1 | I5: =IF(G5="","",RIGHT("0"&G5,2)) -> 01 | J5: =IF(H5="","",RIGHT("0"&H5,2)) -> 01 | K5: =IF(G5="","",VALUE(G5&I5&J5)) -> 10101 | L5: =IF(K5="","",RANK(K5,K$5:K$604,0)+COUNTIF(K$5:K5,K5)-1) -> 1 | M5: =IF($C5="","",IF(L5<11,B5,"")) -> 1 | N5: =SMALL($L$5:$L$604,$A5) -> 1 | O5: =IFERROR(VLOOKUP(N5,$L$5:$M$604,2,FALSE),"") -> 1 | P5: =IF('ENTRY-NILAI'!$L14="A",'ENTRY-NILAI'!$AL14,"") -> 4.00 | Q5: =IF('ENTRY-NILAI'!$L14="A",'ENTRY-NILAI'!$AK14,"") -> 8.95 | R5: =IF(P5="","",RANK(P5,$P$5:$P$604,0)) -> 1 | S5: =IF(P5="","",RANK(P5,$P$5:$P$604,1)) -> 1 | T5: =IF(Q5="","",RANK(Q5,$Q$5:$Q$604,1)) -> 1 | U5: =IF(S5="","",RIGHT("0"&S5,2)) -> 01 | V5: =IF(T5="","",RIGHT("0"&T5,2)) -> 01 | W5: =IF(S5="","",VALUE(S5&U5&V5)) -> 10101 | X5: =IF(W5="","",RANK(W5,W$5:W$604,0)+COUNTIF(W$5:W5,W5)-1) -> 1 | Y5: =IF($C5="","",IF(X5<11,B5,"")) -> 1 | Z5: =SMALL($X$5:$X$604,$A5) -> 1 | AA5: =IFERROR(VLOOKUP(Z5,$X$5:$Y$604,2,FALSE),"") -> 1 | AB5: =IF('ENTRY-NILAI'!$L14="A",'ENTRY-NILAI'!$AT14,"") -> 4.00 | AC5: =IF('ENTRY-NILAI'!$L14="A",'ENTRY-NILAI'!$AS14,"") -> 8.86 | AD5: =IF(AB5="","",RANK(AB5,AB$5:AB$604,0)) -> 1 | AE5: =IF(AB5="","",RANK(AB5,AB$5:AB$604,1)) -> 1 | AF5: =IF(AC5="","",RANK(AC5,AC$5:AC$604,1)) -> 1 | AG5: =IF(AE5="","",RIGHT("0"&AE5,2)) -> 01 | AH5: =IF(AF5="","",RIGHT("0"&AF5,2)) -> 01 | AI5: =IF(AE5="","",VALUE(AE5&AG5&AH5)) -> 10101 | AJ5: =IF(AI5="","",RANK(AI5,AI$5:AI$604,0)+COUNTIF(AI$5:AI5,AI5)-1) -> 1 | AK5: =IF($C5="","",IF(AJ5<11,$B5,"")) -> 1 | AL5: =SMALL(AJ$5:AJ$604,$A5) -> 1 | AM5: =IFERROR(VLOOKUP(AL5,AJ$5:AK$604,2,FALSE),"") -> 1 | AN5: =IF('ENTRY-NILAI'!$L14="A",'ENTRY-NILAI'!$BD14,"") -> 4.00 | AO5: =IF('ENTRY-NILAI'!$L14="A",'ENTRY-NILAI'!$BC14,"") -> 8.67 | AP5: =IF(AN5="","",RANK(AN5,AN$5:AN$604,0)) -> 1 | AQ5: =IF(AN5="","",RANK(AN5,AN$5:AN$604,1)) -> 1 | AR5: =IF(AO5="","",RANK(AO5,AO$5:AO$604,1)) -> 1 | AS5: =IF(AQ5="","",RIGHT("0"&AQ5,2)) -> 01 | AT5: =IF(AR5="","",RIGHT("0"&AR5,2)) -> 01 | AU5: =IF(AQ5="","",VALUE(AQ5&AS5&AT5)) -> 10101 | AV5: =IF(AU5="","",RANK(AU5,AU$5:AU$604,0)+COUNTIF(AU$5:AU5,AU5)-1) -> 1 | AW5: =IF($C5="","",IF(AV5<11,$B5,"")) -> 1 | AX5: =SMALL(AV$5:AV$604,$A5) -> 1 | AY5: =IFERROR(VLOOKUP(AX5,AV$5:AW$604,2,FALSE),"") -> 1 | AZ5: =IF('ENTRY-NILAI'!$L14="A",'ENTRY-NILAI'!$BN14,"") -> 4.00 | BA5: =IF('ENTRY-NILAI'!$L14="A",'ENTRY-NILAI'!$BM14,"") -> 8.49 | BB5: =IF(AZ5="","",RANK(AZ5,AZ$5:AZ$604,0)) -> 1 | BC5: =IF(AZ5="","",RANK(AZ5,AZ$5:AZ$604,1)) -> 1 | BD5: =IF(BA5="","",RANK(BA5,BA$5:BA$604,1)) -> 1 | BE5: =IF(BC5="","",RIGHT("0"&BC5,2)) -> 01 | BF5: =IF(BD5="","",RIGHT("0"&BD5,2)) -> 01 | BG5: =IF(BC5="","",VALUE(BC5&BE5&BF5)) -> 10101 | BH5: =IF(BG5="","",RANK(BG5,BG$5:BG$604,0)+COUNTIF(BG$5:BG5,BG5)-1) -> 1 | BI5: =IF($C5="","",IF(BH5<11,$B5,"")) -> 1 | BJ5: =SMALL(BH$5:BH$604,$A5) -> 1 | BK5: =IFERROR(VLOOKUP(BJ5,BH$5:BI$604,2,FALSE),"") -> 1 | BL5: =IF('ENTRY-NILAI'!$L14="A",'ENTRY-NILAI'!$BX14,"") -> 4.00 | BM5: =IF('ENTRY-NILAI'!$L14="A",'ENTRY-NILAI'!$BW14,"") -> 8.56 | BN5: =IF(BL5="","",RANK(BL5,BL$5:BL$604,0)) -> 1 | BO5: =IF(BL5="","",RANK(BL5,BL$5:BL$604,1)) -> 1 | BP5: =IF(BM5="","",RANK(BM5,BM$5:BM$604,1)) -> 1 | BQ5: =IF(BO5="","",RIGHT("0"&BO5,2)) -> 01 | BR5: =IF(BP5="","",RIGHT("0"&BP5,2)) -> 01 | BS5: =IF(BO5="","",VALUE(BO5&BQ5&BR5)) -> 10101 | BT5: =IF(BS5="","",RANK(BS5,BS$5:BS$604,0)+COUNTIF(BS$5:BS5,BS5)-1) -> 1 | BU5: =IF($C5="","",IF(BT5<11,$B5,"")) -> 1 | BV5: =SMALL(BT$5:BT$604,$A5) -> 1 | BW5: =IFERROR(VLOOKUP(BV5,BT$5:BU$604,2,FALSE),"") -> 1 | BY5: =IF('ENTRY-NILAI'!$L14="a",'ENTRY-NILAI'!FG14,"") -> TL | BZ5: =IF('ENTRY-NILAI'!$L14="a",'ENTRY-NILAI'!AC14,"") -> 5.8 | CA5: =IF('ENTRY-NILAI'!$L14="a",'ENTRY-NILAI'!AM14,"") -> 6 | CB5: =IF('ENTRY-NILAI'!$L14="a",'ENTRY-NILAI'!AU14,"") -> 5.9 | CC5: =IF('ENTRY-NILAI'!$L14="a",'ENTRY-NILAI'!BE14,"") -> 5.9 | CD5: =IF('ENTRY-NILAI'!$L14="a",'ENTRY-NILAI'!BO14,"") -> 5.8 | CE5: =IF('ENTRY-NILAI'!$L14="a",'ENTRY-NILAI'!BY14,"") -> 5.8 | CF5: 1 | CG5: =IF('ENTRY-NILAI'!$L14="a",'ENTRY-NILAI'!AB14+'ENTRY-NILAI'!AL14+'ENTRY-NILAI'!AT14+'ENTRY-NILAI'!BD14+'ENTRY-NILAI'!BN14+'ENTRY-NILAI'!BX14,"") -> 24 | CH5: =IF(C5="","",E5+Q5+AC5+AO5+BA5+BM5) -> 51.94 | CI5: =IF($CG5="","",RANK(CG5,$CG$5:$CG$604,0)) -> 1 | CJ5: =IF(CG5="","",RANK(CG5,$CG$5:$CG$604,1)) -> 1 | CK5: =IF(CH5="","",RANK(CH5,$CH$5:$CH$604,1)) -> 1 | CL5: =IF(CJ5="","",RIGHT("0"&CJ5,2)) -> 01 | CM5: =IF(CK5="","",RIGHT("0"&CK5,2)) -> 01 | CN5: =IF(CJ5="","",VALUE(CJ5&CL5&CM5)) -> 10101 | CO5: =IF(CN5="","",RANK(CN5,CN$5:CN$604,0)+COUNTIF(CN$5:CN5,CN5)-1) -> 1 | CP5: =IF($C5="","",IF(CO5<11,$B5,"")) -> 1 | CQ5: =SMALL(CO$5:CO$604,$A5) -> 1 | CR5: =IFERROR(VLOOKUP(CQ5,CO$5:CP$604,2,FALSE),"") -> 1
A6: 2 | B6: 2 | C6: =IF('ENTRY-NILAI'!L15="A",'ENTRY-NILAI'!A15,"") ->  | D6: =IF('ENTRY-NILAI'!$L15="A",'ENTRY-NILAI'!AB15,"") ->  | E6: =IF('ENTRY-NILAI'!$L15="A",'ENTRY-NILAI'!AA15,"") ->  | F6: =IF(D6="","",RANK(D6,$D$5:$D$604,0)) ->  | G6: =IF(D6="","",RANK(D6,$D$5:$D$604,1)) ->  | H6: =IF(E6="","",RANK(E6,$E$5:$E$604,1)) ->  | I6: =IF(G6="","",RIGHT("0"&G6,2)) ->  | J6: =IF(H6="","",RIGHT("0"&H6,2)) ->  | K6: =IF(G6="","",VALUE(G6&I6&J6)) ->  | L6: =IF(K6="","",RANK(K6,K$5:K$604,0)+COUNTIF(K$5:K6,K6)-1) ->  | N6: =SMALL($L$5:$L$604,A6) ->  | O6: =IFERROR(VLOOKUP(N6,$L$5:$M$604,2,FALSE),"") ->  | P6: =IF('ENTRY-NILAI'!$L15="A",'ENTRY-NILAI'!$AL15,"") ->  | Q6: =IF('ENTRY-NILAI'!$L15="A",'ENTRY-NILAI'!$AK15,"") ->  | R6: =IF(P6="","",RANK(P6,$P$5:$P$604,0)) ->  | S6: =IF(P6="","",RANK(P6,$P$5:$P$604,1)) ->  | T6: =IF(Q6="","",RANK(Q6,$Q$5:$Q$604,1)) ->  | U6: =IF(S6="","",RIGHT("0"&S6,2)) ->  | V6: =IF(T6="","",RIGHT("0"&T6,2)) ->  | W6: =IF(S6="","",VALUE(S6&U6&V6)) ->  | X6: =IF(W6="","",RANK(W6,W$5:W$604,0)+COUNTIF(W$5:W6,W6)-1) ->  | Y6: =IF($C6="","",IF(X6<11,B6,"")) ->  | Z6: =SMALL($X$5:$X$604,$A6) ->  | AA6: =IFERROR(VLOOKUP(Z6,$X$5:$Y$604,2,FALSE),"") ->  | AB6: =IF('ENTRY-NILAI'!$L15="A",'ENTRY-NILAI'!$AT15,"") ->  | AC6: =IF('ENTRY-NILAI'!$L15="A",'ENTRY-NILAI'!$AS15,"") ->  | AD6: =IF(AB6="","",RANK(AB6,$AB$5:$AB$604,0)) ->  | AJ6: =IF(AI6="","",RANK(AI6,AI$5:AI$604,0)+COUNTIF(AI$5:AI6,AI6)-1) ->  | AK6: =IF($C6="","",IF(AJ6<11,$B6,"")) ->  | AM6: =IFERROR(VLOOKUP(AL6,AJ$5:AK$604,2,FALSE),"") ->  | AN6: =IF('ENTRY-NILAI'!$L15="A",'ENTRY-NILAI'!$BD15,"") ->  | AO6: =IF('ENTRY-NILAI'!$L15="A",'ENTRY-NILAI'!$BC15,"") ->  | AP6: =IF(AN6="","",RANK(AN6,AN$5:AN$604,0)) ->  | AQ6: =IF(AN6="","",RANK(AN6,AN$5:AN$604,1)) ->  | AR6: =IF(AO6="","",RANK(AO6,AO$5:AO$604,1)) ->  | AS6: =IF(AQ6="","",RIGHT("0"&AQ6,2)) ->  | AT6: =IF(AR6="","",RIGHT("0"&AR6,2)) ->  | AU6: =IF(AQ6="","",VALUE(AQ6&AS6&AT6)) ->  | AV6: =IF(AU6="","",RANK(AU6,AU$5:AU$604,0)+COUNTIF(AU$5:AU6,AU6)-1) ->  | AW6: =IF($C6="","",IF(AV6<11,$B6,"")) ->  | AX6: =SMALL(AV$5:AV$604,$A6) ->  | AY6: =IFERROR(VLOOKUP(AX6,AV$5:AW$604,2,FALSE),"") ->  | AZ6: =IF('ENTRY-NILAI'!$L15="A",'ENTRY-NILAI'!$BN15,"") ->  | BA6: =IF('ENTRY-NILAI'!$L15="A",'ENTRY-NILAI'!$BM15,"") ->  | BB6: =IF(AZ6="","",RANK(AZ6,AZ$5:AZ$604,0)) ->  | BC6: =IF(AZ6="","",RANK(AZ6,AZ$5:AZ$604,1)) ->  | BD6: =IF(BA6="","",RANK(BA6,BA$5:BA$604,1)) ->  | BE6: =IF(BC6="","",RIGHT("0"&BC6,2)) ->  | BF6: =IF(BD6="","",RIGHT("0"&BD6,2)) ->  | BG6: =IF(BC6="","",VALUE(BC6&BE6&BF6)) ->  | BH6: =IF(BG6="","",RANK(BG6,BG$5:BG$604,0)+COUNTIF(BG$5:BG6,BG6)-1) ->  | BI6: =IF($C6="","",IF(BH6<11,$B6,"")) ->  | BJ6: =SMALL(BH$5:BH$604,$A6) ->  | BK6: =IFERROR(VLOOKUP(BJ6,BH$5:BI$604,2,FALSE),"") ->  | BL6: =IF('ENTRY-NILAI'!$L15="A",'ENTRY-NILAI'!$BX15,"") ->  | BM6: =IF('ENTRY-NILAI'!$L15="A",'ENTRY-NILAI'!$BW15,"") ->  | BN6: =IF(BL6="","",RANK(BL6,BL$5:BL$604,0)) ->  | BO6: =IF(BL6="","",RANK(BL6,BL$5:BL$604,1)) ->  | BP6: =IF(BM6="","",RANK(BM6,BM$5:BM$604,1)) ->  | BQ6: =IF(BO6="","",RIGHT("0"&BO6,2)) ->  | BR6: =IF(BP6="","",RIGHT("0"&BP6,2)) ->  | BS6: =IF(BO6="","",VALUE(BO6&BQ6&BR6)) ->  | BT6: =IF(BS6="","",RANK(BS6,BS$5:BS$604,0)+COUNTIF(BS$5:BS6,BS6)-1) ->  | BU6: =IF($C6="","",IF(BT6<11,$B6,"")) ->  | BV6: =SMALL(BT$5:BT$604,$A6) ->  | BW6: =IFERROR(VLOOKUP(BV6,BT$5:BU$604,2,FALSE),"") ->  | BY6: =IF('ENTRY-NILAI'!$L15="a",'ENTRY-NILAI'!FG15,"") ->  | BZ6: =IF('ENTRY-NILAI'!$L15="a",'ENTRY-NILAI'!AC15,"") ->  | CA6: =IF('ENTRY-NILAI'!$L15="a",'ENTRY-NILAI'!AM15,"") ->  | CB6: =IF('ENTRY-NILAI'!$L15="a",'ENTRY-NILAI'!AU15,"") ->  | CC6: =IF('ENTRY-NILAI'!$L15="a",'ENTRY-NILAI'!BE15,"") ->  | CD6: =IF('ENTRY-NILAI'!$L15="a",'ENTRY-NILAI'!BO15,"") ->  | CE6: =IF('ENTRY-NILAI'!$L15="a",'ENTRY-NILAI'!BY15,"") ->  | CF6: 2 | CG6: =IF('ENTRY-NILAI'!$L15="a",'ENTRY-NILAI'!AB15+'ENTRY-NILAI'!AL15+'ENTRY-NILAI'!AT15+'ENTRY-NILAI'!BD15+'ENTRY-NILAI'!BN15+'ENTRY-NILAI'!BX15,"") ->  | CI6: =IF(CG6="","",RANK(CG6,$CG$5:$CG$604,0)) ->  | CK6: =IF(CH6="","",RANK(CH6,$CH$5:$CH$604,1)) ->  | CL6: =IF(CJ6="","",RIGHT("0"&CJ6,2)) ->  | CM6: =IF(CK6="","",RIGHT("0"&CK6,2)) ->  | CO6: =IF(CN6="","",RANK(CN6,CN$5:CN$604,0)+COUNTIF(CN$5:CN6,CN6)-1) ->  | CP6: =IF($C6="","",IF(CO6<11,$B6,"")) ->  | CR6: =IFERROR(VLOOKUP(CQ6,CO$5:CP$604,2,FALSE),"") -> 
A7: 3 | B7: 3 | C7: =IF('ENTRY-NILAI'!L16="A",'ENTRY-NILAI'!A16,"") ->  | D7: =IF('ENTRY-NILAI'!$L16="A",'ENTRY-NILAI'!AB16,"") ->  | E7: =IF('ENTRY-NILAI'!$L16="A",'ENTRY-NILAI'!AA16,"") ->  | G7: =IF(D7="","",RANK(D7,$D$5:$D$604,1)) ->  | L7: =IF(K7="","",RANK(K7,K$5:K$604,0)+COUNTIF(K$5:K7,K7)-1) ->  | P7: =IF('ENTRY-NILAI'!$L16="A",'ENTRY-NILAI'!$AL16,"") ->  | Q7: =IF('ENTRY-NILAI'!$L16="A",'ENTRY-NILAI'!$AK16,"") ->  | X7: =IF(W7="","",RANK(W7,W$5:W$604,0)+COUNTIF(W$5:W7,W7)-1) ->  | AB7: =IF('ENTRY-NILAI'!$L16="A",'ENTRY-NILAI'!$AT16,"") ->  | AC7: =IF('ENTRY-NILAI'!$L16="A",'ENTRY-NILAI'!$AS16,"") ->  | AJ7: =IF(AI7="","",RANK(AI7,AI$5:AI$604,0)+COUNTIF(AI$5:AI7,AI7)-1) ->  | AN7: =IF('ENTRY-NILAI'!$L16="A",'ENTRY-NILAI'!$BD16,"") ->  | AO7: =IF('ENTRY-NILAI'!$L16="A",'ENTRY-NILAI'!$BC16,"") ->  | AV7: =IF(AU7="","",RANK(AU7,AU$5:AU$604,0)+COUNTIF(AU$5:AU7,AU7)-1) ->  | AZ7: =IF('ENTRY-NILAI'!$L16="A",'ENTRY-NILAI'!$BN16,"") ->  | BA7: =IF('ENTRY-NILAI'!$L16="A",'ENTRY-NILAI'!$BM16,"") ->  | BH7: =IF(BG7="","",RANK(BG7,BG$5:BG$604,0)+COUNTIF(BG$5:BG7,BG7)-1) ->  | BL7: =IF('ENTRY-NILAI'!$L16="A",'ENTRY-NILAI'!$BX16,"") ->  | BM7: =IF('ENTRY-NILAI'!$L16="A",'ENTRY-NILAI'!$BW16,"") ->  | BT7: =IF(BS7="","",RANK(BS7,BS$5:BS$604,0)+COUNTIF(BS$5:BS7,BS7)-1) ->  | BY7: =IF('ENTRY-NILAI'!$L16="a",'ENTRY-NILAI'!FG16,"") ->  | BZ7: =IF('ENTRY-NILAI'!$L16="a",'ENTRY-NILAI'!AC16,"") ->  | CA7: =IF('ENTRY-NILAI'!$L16="a",'ENTRY-NILAI'!AM16,"") ->  | CB7: =IF('ENTRY-NILAI'!$L16="a",'ENTRY-NILAI'!AU16,"") ->  | CC7: =IF('ENTRY-NILAI'!$L16="a",'ENTRY-NILAI'!BE16,"") ->  | CD7: =IF('ENTRY-NILAI'!$L16="a",'ENTRY-NILAI'!BO16,"") ->  | CE7: =IF('ENTRY-NILAI'!$L16="a",'ENTRY-NILAI'!BY16,"") ->  | CF7: 3 | CG7: =IF('ENTRY-NILAI'!$L16="a",'ENTRY-NILAI'!AB16+'ENTRY-NILAI'!AL16+'ENTRY-NILAI'!AT16+'ENTRY-NILAI'!BD16+'ENTRY-NILAI'!BN16+'ENTRY-NILAI'!BX16,"") ->  | CO7: =IF(CN7="","",RANK(CN7,CN$5:CN$604,0)+COUNTIF(CN$5:CN7,CN7)-1) -> 
A8: 4 | B8: 4 | C8: =IF('ENTRY-NILAI'!L17="A",'ENTRY-NILAI'!A17,"") ->  | D8: =IF('ENTRY-NILAI'!$L17="A",'ENTRY-NILAI'!AB17,"") ->  | E8: =IF('ENTRY-NILAI'!$L17="A",'ENTRY-NILAI'!AA17,"") ->  | G8: =IF(D8="","",RANK(D8,$D$5:$D$604,1)) ->  | L8: =IF(K8="","",RANK(K8,K$5:K$604,0)+COUNTIF(K$5:K8,K8)-1) ->  | P8: =IF('ENTRY-NILAI'!$L17="A",'ENTRY-NILAI'!$AL17,"") ->  | Q8: =IF('ENTRY-NILAI'!$L17="A",'ENTRY-NILAI'!$AK17,"") ->  | X8: =IF(W8="","",RANK(W8,W$5:W$604,0)+COUNTIF(W$5:W8,W8)-1) ->  | AB8: =IF('ENTRY-NILAI'!$L17="A",'ENTRY-NILAI'!$AT17,"") ->  | AC8: =IF('ENTRY-NILAI'!$L17="A",'ENTRY-NILAI'!$AS17,"") ->  | AJ8: =IF(AI8="","",RANK(AI8,AI$5:AI$604,0)+COUNTIF(AI$5:AI8,AI8)-1) ->  | AN8: =IF('ENTRY-NILAI'!$L17="A",'ENTRY-NILAI'!$BD17,"") ->  | AO8: =IF('ENTRY-NILAI'!$L17="A",'ENTRY-NILAI'!$BC17,"") ->  | AV8: =IF(AU8="","",RANK(AU8,AU$5:AU$604,0)+COUNTIF(AU$5:AU8,AU8)-1) ->  | AZ8: =IF('ENTRY-NILAI'!$L17="A",'ENTRY-NILAI'!$BN17,"") ->  | BA8: =IF('ENTRY-NILAI'!$L17="A",'ENTRY-NILAI'!$BM17,"") ->  | BH8: =IF(BG8="","",RANK(BG8,BG$5:BG$604,0)+COUNTIF(BG$5:BG8,BG8)-1) ->  | BL8: =IF('ENTRY-NILAI'!$L17="A",'ENTRY-NILAI'!$BX17,"") ->  | BM8: =IF('ENTRY-NILAI'!$L17="A",'ENTRY-NILAI'!$BW17,"") ->  | BT8: =IF(BS8="","",RANK(BS8,BS$5:BS$604,0)+COUNTIF(BS$5:BS8,BS8)-1) ->  | BY8: =IF('ENTRY-NILAI'!$L17="a",'ENTRY-NILAI'!FG17,"") ->  | BZ8: =IF('ENTRY-NILAI'!$L17="a",'ENTRY-NILAI'!AC17,"") ->  | CA8: =IF('ENTRY-NILAI'!$L17="a",'ENTRY-NILAI'!AM17,"") ->  | CB8: =IF('ENTRY-NILAI'!$L17="a",'ENTRY-NILAI'!AU17,"") ->  | CC8: =IF('ENTRY-NILAI'!$L17="a",'ENTRY-NILAI'!BE17,"") ->  | CD8: =IF('ENTRY-NILAI'!$L17="a",'ENTRY-NILAI'!BO17,"") ->  | CE8: =IF('ENTRY-NILAI'!$L17="a",'ENTRY-NILAI'!BY17,"") ->  | CF8: 4 | CG8: =IF('ENTRY-NILAI'!$L17="a",'ENTRY-NILAI'!AB17+'ENTRY-NILAI'!AL17+'ENTRY-NILAI'!AT17+'ENTRY-NILAI'!BD17+'ENTRY-NILAI'!BN17+'ENTRY-NILAI'!BX17,"") ->  | CO8: =IF(CN8="","",RANK(CN8,CN$5:CN$604,0)+COUNTIF(CN$5:CN8,CN8)-1) -> 
A9: 5 | B9: 5 | C9: =IF('ENTRY-NILAI'!L18="A",'ENTRY-NILAI'!A18,"") ->  | D9: =IF('ENTRY-NILAI'!$L18="A",'ENTRY-NILAI'!AB18,"") ->  | E9: =IF('ENTRY-NILAI'!$L18="A",'ENTRY-NILAI'!AA18,"") ->  | L9: =IF(K9="","",RANK(K9,K$5:K$604,0)+COUNTIF(K$5:K9,K9)-1) ->  | P9: =IF('ENTRY-NILAI'!$L18="A",'ENTRY-NILAI'!$AL18,"") ->  | Q9: =IF('ENTRY-NILAI'!$L18="A",'ENTRY-NILAI'!$AK18,"") ->  | X9: =IF(W9="","",RANK(W9,W$5:W$604,0)+COUNTIF(W$5:W9,W9)-1) ->  | AB9: =IF('ENTRY-NILAI'!$L18="A",'ENTRY-NILAI'!$AT18,"") ->  | AC9: =IF('ENTRY-NILAI'!$L18="A",'ENTRY-NILAI'!$AS18,"") ->  | AJ9: =IF(AI9="","",RANK(AI9,AI$5:AI$604,0)+COUNTIF(AI$5:AI9,AI9)-1) ->  | AN9: =IF('ENTRY-NILAI'!$L18="A",'ENTRY-NILAI'!$BD18,"") ->  | AO9: =IF('ENTRY-NILAI'!$L18="A",'ENTRY-NILAI'!$BC18,"") ->  | AV9: =IF(AU9="","",RANK(AU9,AU$5:AU$604,0)+COUNTIF(AU$5:AU9,AU9)-1) ->  | AZ9: =IF('ENTRY-NILAI'!$L18="A",'ENTRY-NILAI'!$BN18,"") ->  | BA9: =IF('ENTRY-NILAI'!$L18="A",'ENTRY-NILAI'!$BM18,"") ->  | BH9: =IF(BG9="","",RANK(BG9,BG$5:BG$604,0)+COUNTIF(BG$5:BG9,BG9)-1) ->  | BL9: =IF('ENTRY-NILAI'!$L18="A",'ENTRY-NILAI'!$BX18,"") ->  | BM9: =IF('ENTRY-NILAI'!$L18="A",'ENTRY-NILAI'!$BW18,"") ->  | BT9: =IF(BS9="","",RANK(BS9,BS$5:BS$604,0)+COUNTIF(BS$5:BS9,BS9)-1) ->  | BY9: =IF('ENTRY-NILAI'!$L18="a",'ENTRY-NILAI'!FG18,"") ->  | BZ9: =IF('ENTRY-NILAI'!$L18="a",'ENTRY-NILAI'!AC18,"") ->  | CA9: =IF('ENTRY-NILAI'!$L18="a",'ENTRY-NILAI'!AM18,"") ->  | CB9: =IF('ENTRY-NILAI'!$L18="a",'ENTRY-NILAI'!AU18,"") ->  | CC9: =IF('ENTRY-NILAI'!$L18="a",'ENTRY-NILAI'!BE18,"") ->  | CD9: =IF('ENTRY-NILAI'!$L18="a",'ENTRY-NILAI'!BO18,"") ->  | CE9: =IF('ENTRY-NILAI'!$L18="a",'ENTRY-NILAI'!BY18,"") ->  | CF9: 5 | CG9: =IF('ENTRY-NILAI'!$L18="a",'ENTRY-NILAI'!AB18+'ENTRY-NILAI'!AL18+'ENTRY-NILAI'!AT18+'ENTRY-NILAI'!BD18+'ENTRY-NILAI'!BN18+'ENTRY-NILAI'!BX18,"") ->  | CO9: =IF(CN9="","",RANK(CN9,CN$5:CN$604,0)+COUNTIF(CN$5:CN9,CN9)-1) -> 
A10: 6 | B10: 6 | C10: =IF('ENTRY-NILAI'!L19="A",'ENTRY-NILAI'!A19,"") ->  | D10: =IF('ENTRY-NILAI'!$L19="A",'ENTRY-NILAI'!AB19,"") ->  | E10: =IF('ENTRY-NILAI'!$L19="A",'ENTRY-NILAI'!AA19,"") ->  | L10: =IF(K10="","",RANK(K10,K$5:K$604,0)+COUNTIF(K$5:K10,K10)-1) ->  | P10: =IF('ENTRY-NILAI'!$L19="A",'ENTRY-NILAI'!$AL19,"") ->  | Q10: =IF('ENTRY-NILAI'!$L19="A",'ENTRY-NILAI'!$AK19,"") ->  | X10: =IF(W10="","",RANK(W10,W$5:W$604,0)+COUNTIF(W$5:W10,W10)-1) ->  | AB10: =IF('ENTRY-NILAI'!$L19="A",'ENTRY-NILAI'!$AT19,"") ->  | AC10: =IF('ENTRY-NILAI'!$L19="A",'ENTRY-NILAI'!$AS19,"") ->  | AJ10: =IF(AI10="","",RANK(AI10,AI$5:AI$604,0)+COUNTIF(AI$5:AI10,AI10)-1) ->  | AN10: =IF('ENTRY-NILAI'!$L19="A",'ENTRY-NILAI'!$BD19,"") ->  | AO10: =IF('ENTRY-NILAI'!$L19="A",'ENTRY-NILAI'!$BC19,"") ->  | AV10: =IF(AU10="","",RANK(AU10,AU$5:AU$604,0)+COUNTIF(AU$5:AU10,AU10)-1) ->  | AZ10: =IF('ENTRY-NILAI'!$L19="A",'ENTRY-NILAI'!$BN19,"") ->  | BA10: =IF('ENTRY-NILAI'!$L19="A",'ENTRY-NILAI'!$BM19,"") ->  | BH10: =IF(BG10="","",RANK(BG10,BG$5:BG$604,0)+COUNTIF(BG$5:BG10,BG10)-1) ->  | BL10: =IF('ENTRY-NILAI'!$L19="A",'ENTRY-NILAI'!$BX19,"") ->  | BM10: =IF('ENTRY-NILAI'!$L19="A",'ENTRY-NILAI'!$BW19,"") ->  | BT10: =IF(BS10="","",RANK(BS10,BS$5:BS$604,0)+COUNTIF(BS$5:BS10,BS10)-1) ->  | BY10: =IF('ENTRY-NILAI'!$L19="a",'ENTRY-NILAI'!FG19,"") ->  | BZ10: =IF('ENTRY-NILAI'!$L19="a",'ENTRY-NILAI'!AC19,"") ->  | CA10: =IF('ENTRY-NILAI'!$L19="a",'ENTRY-NILAI'!AM19,"") ->  | CB10: =IF('ENTRY-NILAI'!$L19="a",'ENTRY-NILAI'!AU19,"") ->  | CC10: =IF('ENTRY-NILAI'!$L19="a",'ENTRY-NILAI'!BE19,"") ->  | CD10: =IF('ENTRY-NILAI'!$L19="a",'ENTRY-NILAI'!BO19,"") ->  | CE10: =IF('ENTRY-NILAI'!$L19="a",'ENTRY-NILAI'!BY19,"") ->  | CF10: 6 | CG10: =IF('ENTRY-NILAI'!$L19="a",'ENTRY-NILAI'!AB19+'ENTRY-NILAI'!AL19+'ENTRY-NILAI'!AT19+'ENTRY-NILAI'!BD19+'ENTRY-NILAI'!BN19+'ENTRY-NILAI'!BX19,"") ->  | CO10: =IF(CN10="","",RANK(CN10,CN$5:CN$604,0)+COUNTIF(CN$5:CN10,CN10)-1) -> 
A11: 7 | B11: 7 | C11: =IF('ENTRY-NILAI'!L20="A",'ENTRY-NILAI'!A20,"") ->  | D11: =IF('ENTRY-NILAI'!$L20="A",'ENTRY-NILAI'!AB20,"") ->  | E11: =IF('ENTRY-NILAI'!$L20="A",'ENTRY-NILAI'!AA20,"") ->  | L11: =IF(K11="","",RANK(K11,K$5:K$604,0)+COUNTIF(K$5:K11,K11)-1) ->  | P11: =IF('ENTRY-NILAI'!$L20="A",'ENTRY-NILAI'!$AL20,"") ->  | Q11: =IF('ENTRY-NILAI'!$L20="A",'ENTRY-NILAI'!$AK20,"") ->  | X11: =IF(W11="","",RANK(W11,W$5:W$604,0)+COUNTIF(W$5:W11,W11)-1) ->  | AB11: =IF('ENTRY-NILAI'!$L20="A",'ENTRY-NILAI'!$AT20,"") ->  | AC11: =IF('ENTRY-NILAI'!$L20="A",'ENTRY-NILAI'!$AS20,"") ->  | AJ11: =IF(AI11="","",RANK(AI11,AI$5:AI$604,0)+COUNTIF(AI$5:AI11,AI11)-1) ->  | AN11: =IF('ENTRY-NILAI'!$L20="A",'ENTRY-NILAI'!$BD20,"") ->  | AO11: =IF('ENTRY-NILAI'!$L20="A",'ENTRY-NILAI'!$BC20,"") ->  | AV11: =IF(AU11="","",RANK(AU11,AU$5:AU$604,0)+COUNTIF(AU$5:AU11,AU11)-1) ->  | AZ11: =IF('ENTRY-NILAI'!$L20="A",'ENTRY-NILAI'!$BN20,"") ->  | BA11: =IF('ENTRY-NILAI'!$L20="A",'ENTRY-NILAI'!$BM20,"") ->  | BH11: =IF(BG11="","",RANK(BG11,BG$5:BG$604,0)+COUNTIF(BG$5:BG11,BG11)-1) ->  | BL11: =IF('ENTRY-NILAI'!$L20="A",'ENTRY-NILAI'!$BX20,"") ->  | BM11: =IF('ENTRY-NILAI'!$L20="A",'ENTRY-NILAI'!$BW20,"") ->  | BT11: =IF(BS11="","",RANK(BS11,BS$5:BS$604,0)+COUNTIF(BS$5:BS11,BS11)-1) ->  | BY11: =IF('ENTRY-NILAI'!$L20="a",'ENTRY-NILAI'!FG20,"") ->  | BZ11: =IF('ENTRY-NILAI'!$L20="a",'ENTRY-NILAI'!AC20,"") ->  | CA11: =IF('ENTRY-NILAI'!$L20="a",'ENTRY-NILAI'!AM20,"") ->  | CB11: =IF('ENTRY-NILAI'!$L20="a",'ENTRY-NILAI'!AU20,"") ->  | CC11: =IF('ENTRY-NILAI'!$L20="a",'ENTRY-NILAI'!BE20,"") ->  | CD11: =IF('ENTRY-NILAI'!$L20="a",'ENTRY-NILAI'!BO20,"") ->  | CE11: =IF('ENTRY-NILAI'!$L20="a",'ENTRY-NILAI'!BY20,"") ->  | CF11: 7 | CG11: =IF('ENTRY-NILAI'!$L20="a",'ENTRY-NILAI'!AB20+'ENTRY-NILAI'!AL20+'ENTRY-NILAI'!AT20+'ENTRY-NILAI'!BD20+'ENTRY-NILAI'!BN20+'ENTRY-NILAI'!BX20,"") ->  | CO11: =IF(CN11="","",RANK(CN11,CN$5:CN$604,0)+COUNTIF(CN$5:CN11,CN11)-1) -> 
A12: 8 | B12: 8 | C12: =IF('ENTRY-NILAI'!L21="A",'ENTRY-NILAI'!A21,"") ->  | D12: =IF('ENTRY-NILAI'!$L21="A",'ENTRY-NILAI'!AB21,"") ->  | E12: =IF('ENTRY-NILAI'!$L21="A",'ENTRY-NILAI'!AA21,"") ->  | L12: =IF(K12="","",RANK(K12,K$5:K$604,0)+COUNTIF(K$5:K12,K12)-1) ->  | P12: =IF('ENTRY-NILAI'!$L21="A",'ENTRY-NILAI'!$AL21,"") ->  | Q12: =IF('ENTRY-NILAI'!$L21="A",'ENTRY-NILAI'!$AK21,"") ->  | X12: =IF(W12="","",RANK(W12,W$5:W$604,0)+COUNTIF(W$5:W12,W12)-1) ->  | AB12: =IF('ENTRY-NILAI'!$L21="A",'ENTRY-NILAI'!$AT21,"") ->  | AC12: =IF('ENTRY-NILAI'!$L21="A",'ENTRY-NILAI'!$AS21,"") ->  | AJ12: =IF(AI12="","",RANK(AI12,AI$5:AI$604,0)+COUNTIF(AI$5:AI12,AI12)-1) ->  | AN12: =IF('ENTRY-NILAI'!$L21="A",'ENTRY-NILAI'!$BD21,"") ->  | AO12: =IF('ENTRY-NILAI'!$L21="A",'ENTRY-NILAI'!$BC21,"") ->  | AV12: =IF(AU12="","",RANK(AU12,AU$5:AU$604,0)+COUNTIF(AU$5:AU12,AU12)-1) ->  | AZ12: =IF('ENTRY-NILAI'!$L21="A",'ENTRY-NILAI'!$BN21,"") ->  | BA12: =IF('ENTRY-NILAI'!$L21="A",'ENTRY-NILAI'!$BM21,"") ->  | BH12: =IF(BG12="","",RANK(BG12,BG$5:BG$604,0)+COUNTIF(BG$5:BG12,BG12)-1) ->  | BL12: =IF('ENTRY-NILAI'!$L21="A",'ENTRY-NILAI'!$BX21,"") ->  | BM12: =IF('ENTRY-NILAI'!$L21="A",'ENTRY-NILAI'!$BW21,"") ->  | BT12: =IF(BS12="","",RANK(BS12,BS$5:BS$604,0)+COUNTIF(BS$5:BS12,BS12)-1) ->  | BY12: =IF('ENTRY-NILAI'!$L21="a",'ENTRY-NILAI'!FG21,"") ->  | BZ12: =IF('ENTRY-NILAI'!$L21="a",'ENTRY-NILAI'!AC21,"") ->  | CA12: =IF('ENTRY-NILAI'!$L21="a",'ENTRY-NILAI'!AM21,"") ->  | CB12: =IF('ENTRY-NILAI'!$L21="a",'ENTRY-NILAI'!AU21,"") ->  | CC12: =IF('ENTRY-NILAI'!$L21="a",'ENTRY-NILAI'!BE21,"") ->  | CD12: =IF('ENTRY-NILAI'!$L21="a",'ENTRY-NILAI'!BO21,"") ->  | CE12: =IF('ENTRY-NILAI'!$L21="a",'ENTRY-NILAI'!BY21,"") ->  | CF12: 8 | CG12: =IF('ENTRY-NILAI'!$L21="a",'ENTRY-NILAI'!AB21+'ENTRY-NILAI'!AL21+'ENTRY-NILAI'!AT21+'ENTRY-NILAI'!BD21+'ENTRY-NILAI'!BN21+'ENTRY-NILAI'!BX21,"") ->  | CO12: =IF(CN12="","",RANK(CN12,CN$5:CN$604,0)+COUNTIF(CN$5:CN12,CN12)-1) -> 
A13: 9 | B13: 9 | C13: =IF('ENTRY-NILAI'!L22="A",'ENTRY-NILAI'!A22,"") ->  | D13: =IF('ENTRY-NILAI'!$L22="A",'ENTRY-NILAI'!AB22,"") ->  | E13: =IF('ENTRY-NILAI'!$L22="A",'ENTRY-NILAI'!AA22,"") ->  | L13: =IF(K13="","",RANK(K13,K$5:K$604,0)+COUNTIF(K$5:K13,K13)-1) ->  | P13: =IF('ENTRY-NILAI'!$L22="A",'ENTRY-NILAI'!$AL22,"") ->  | Q13: =IF('ENTRY-NILAI'!$L22="A",'ENTRY-NILAI'!$AK22,"") ->  | X13: =IF(W13="","",RANK(W13,W$5:W$604,0)+COUNTIF(W$5:W13,W13)-1) ->  | AB13: =IF('ENTRY-NILAI'!$L22="A",'ENTRY-NILAI'!$AT22,"") ->  | AC13: =IF('ENTRY-NILAI'!$L22="A",'ENTRY-NILAI'!$AS22,"") ->  | AJ13: =IF(AI13="","",RANK(AI13,AI$5:AI$604,0)+COUNTIF(AI$5:AI13,AI13)-1) ->  | AN13: =IF('ENTRY-NILAI'!$L22="A",'ENTRY-NILAI'!$BD22,"") ->  | AO13: =IF('ENTRY-NILAI'!$L22="A",'ENTRY-NILAI'!$BC22,"") ->  | AV13: =IF(AU13="","",RANK(AU13,AU$5:AU$604,0)+COUNTIF(AU$5:AU13,AU13)-1) ->  | AZ13: =IF('ENTRY-NILAI'!$L22="A",'ENTRY-NILAI'!$BN22,"") ->  | BA13: =IF('ENTRY-NILAI'!$L22="A",'ENTRY-NILAI'!$BM22,"") ->  | BH13: =IF(BG13="","",RANK(BG13,BG$5:BG$604,0)+COUNTIF(BG$5:BG13,BG13)-1) ->  | BL13: =IF('ENTRY-NILAI'!$L22="A",'ENTRY-NILAI'!$BX22,"") ->  | BM13: =IF('ENTRY-NILAI'!$L22="A",'ENTRY-NILAI'!$BW22,"") ->  | BT13: =IF(BS13="","",RANK(BS13,BS$5:BS$604,0)+COUNTIF(BS$5:BS13,BS13)-1) ->  | BY13: =IF('ENTRY-NILAI'!$L22="a",'ENTRY-NILAI'!FG22,"") ->  | BZ13: =IF('ENTRY-NILAI'!$L22="a",'ENTRY-NILAI'!AC22,"") ->  | CA13: =IF('ENTRY-NILAI'!$L22="a",'ENTRY-NILAI'!AM22,"") ->  | CB13: =IF('ENTRY-NILAI'!$L22="a",'ENTRY-NILAI'!AU22,"") ->  | CC13: =IF('ENTRY-NILAI'!$L22="a",'ENTRY-NILAI'!BE22,"") ->  | CD13: =IF('ENTRY-NILAI'!$L22="a",'ENTRY-NILAI'!BO22,"") ->  | CE13: =IF('ENTRY-NILAI'!$L22="a",'ENTRY-NILAI'!BY22,"") ->  | CF13: 9 | CG13: =IF('ENTRY-NILAI'!$L22="a",'ENTRY-NILAI'!AB22+'ENTRY-NILAI'!AL22+'ENTRY-NILAI'!AT22+'ENTRY-NILAI'!BD22+'ENTRY-NILAI'!BN22+'ENTRY-NILAI'!BX22,"") ->  | CO13: =IF(CN13="","",RANK(CN13,CN$5:CN$604,0)+COUNTIF(CN$5:CN13,CN13)-1) -> 
A14: 10 | B14: 10 | C14: =IF('ENTRY-NILAI'!L23="A",'ENTRY-NILAI'!A23,"") ->  | D14: =IF('ENTRY-NILAI'!$L23="A",'ENTRY-NILAI'!AB23,"") ->  | E14: =IF('ENTRY-NILAI'!$L23="A",'ENTRY-NILAI'!AA23,"") ->  | L14: =IF(K14="","",RANK(K14,K$5:K$604,0)+COUNTIF(K$5:K14,K14)-1) ->  | P14: =IF('ENTRY-NILAI'!$L23="A",'ENTRY-NILAI'!$AL23,"") ->  | Q14: =IF('ENTRY-NILAI'!$L23="A",'ENTRY-NILAI'!$AK23,"") ->  | X14: =IF(W14="","",RANK(W14,W$5:W$604,0)+COUNTIF(W$5:W14,W14)-1) ->  | AB14: =IF('ENTRY-NILAI'!$L23="A",'ENTRY-NILAI'!$AT23,"") ->  | AC14: =IF('ENTRY-NILAI'!$L23="A",'ENTRY-NILAI'!$AS23,"") ->  | AJ14: =IF(AI14="","",RANK(AI14,AI$5:AI$604,0)+COUNTIF(AI$5:AI14,AI14)-1) ->  | AN14: =IF('ENTRY-NILAI'!$L23="A",'ENTRY-NILAI'!$BD23,"") ->  | AO14: =IF('ENTRY-NILAI'!$L23="A",'ENTRY-NILAI'!$BC23,"") ->  | AV14: =IF(AU14="","",RANK(AU14,AU$5:AU$604,0)+COUNTIF(AU$5:AU14,AU14)-1) ->  | AZ14: =IF('ENTRY-NILAI'!$L23="A",'ENTRY-NILAI'!$BN23,"") ->  | BA14: =IF('ENTRY-NILAI'!$L23="A",'ENTRY-NILAI'!$BM23,"") ->  | BH14: =IF(BG14="","",RANK(BG14,BG$5:BG$604,0)+COUNTIF(BG$5:BG14,BG14)-1) ->  | BL14: =IF('ENTRY-NILAI'!$L23="A",'ENTRY-NILAI'!$BX23,"") ->  | BM14: =IF('ENTRY-NILAI'!$L23="A",'ENTRY-NILAI'!$BW23,"") ->  | BT14: =IF(BS14="","",RANK(BS14,BS$5:BS$604,0)+COUNTIF(BS$5:BS14,BS14)-1) ->  | BY14: =IF('ENTRY-NILAI'!$L23="a",'ENTRY-NILAI'!FG23,"") ->  | BZ14: =IF('ENTRY-NILAI'!$L23="a",'ENTRY-NILAI'!AC23,"") ->  | CA14: =IF('ENTRY-NILAI'!$L23="a",'ENTRY-NILAI'!AM23,"") ->  | CB14: =IF('ENTRY-NILAI'!$L23="a",'ENTRY-NILAI'!AU23,"") ->  | CC14: =IF('ENTRY-NILAI'!$L23="a",'ENTRY-NILAI'!BE23,"") ->  | CD14: =IF('ENTRY-NILAI'!$L23="a",'ENTRY-NILAI'!BO23,"") ->  | CE14: =IF('ENTRY-NILAI'!$L23="a",'ENTRY-NILAI'!BY23,"") ->  | CF14: 10 | CG14: =IF('ENTRY-NILAI'!$L23="a",'ENTRY-NILAI'!AB23+'ENTRY-NILAI'!AL23+'ENTRY-NILAI'!AT23+'ENTRY-NILAI'!BD23+'ENTRY-NILAI'!BN23+'ENTRY-NILAI'!BX23,"") ->  | CO14: =IF(CN14="","",RANK(CN14,CN$5:CN$604,0)+COUNTIF(CN$5:CN14,CN14)-1) -> 
B15: 11 | C15: =IF('ENTRY-NILAI'!L24="A",'ENTRY-NILAI'!A24,"") ->  | D15: =IF('ENTRY-NILAI'!$L24="A",'ENTRY-NILAI'!AB24,"") ->  | E15: =IF('ENTRY-NILAI'!$L24="A",'ENTRY-NILAI'!AA24,"") ->  | F15: =IF(D15="","",RANK(D15,$D$5:$D$604,0)) ->  | L15: =IF(K15="","",RANK(K15,K$5:K$604,0)+COUNTIF(K$5:K15,K15)-1) ->  | P15: =IF('ENTRY-NILAI'!$L24="A",'ENTRY-NILAI'!$AL24,"") ->  | Q15: =IF('ENTRY-NILAI'!$L24="A",'ENTRY-NILAI'!$AK24,"") ->  | X15: =IF(W15="","",RANK(W15,W$5:W$604,0)+COUNTIF(W$5:W15,W15)-1) ->  | AB15: =IF('ENTRY-NILAI'!$L24="A",'ENTRY-NILAI'!$AT24,"") ->  | AC15: =IF('ENTRY-NILAI'!$L24="A",'ENTRY-NILAI'!$AS24,"") ->  | AJ15: =IF(AI15="","",RANK(AI15,AI$5:AI$604,0)+COUNTIF(AI$5:AI15,AI15)-1) ->  | AN15: =IF('ENTRY-NILAI'!$L24="A",'ENTRY-NILAI'!$BD24,"") ->  | AO15: =IF('ENTRY-NILAI'!$L24="A",'ENTRY-NILAI'!$BC24,"") ->  | AV15: =IF(AU15="","",RANK(AU15,AU$5:AU$604,0)+COUNTIF(AU$5:AU15,AU15)-1) ->  | AZ15: =IF('ENTRY-NILAI'!$L24="A",'ENTRY-NILAI'!$BN24,"") ->  | BA15: =IF('ENTRY-NILAI'!$L24="A",'ENTRY-NILAI'!$BM24,"") ->  | BH15: =IF(BG15="","",RANK(BG15,BG$5:BG$604,0)+COUNTIF(BG$5:BG15,BG15)-1) ->  | BL15: =IF('ENTRY-NILAI'!$L24="A",'ENTRY-NILAI'!$BX24,"") ->  | BM15: =IF('ENTRY-NILAI'!$L24="A",'ENTRY-NILAI'!$BW24,"") ->  | BT15: =IF(BS15="","",RANK(BS15,BS$5:BS$604,0)+COUNTIF(BS$5:BS15,BS15)-1) ->  | BY15: =IF('ENTRY-NILAI'!$L24="a",'ENTRY-NILAI'!FG24,"") ->  | BZ15: =IF('ENTRY-NILAI'!$L24="a",'ENTRY-NILAI'!AC24,"") ->  | CA15: =IF('ENTRY-NILAI'!$L24="a",'ENTRY-NILAI'!AM24,"") ->  | CB15: =IF('ENTRY-NILAI'!$L24="a",'ENTRY-NILAI'!AU24,"") ->  | CC15: =IF('ENTRY-NILAI'!$L24="a",'ENTRY-NILAI'!BE24,"") ->  | CD15: =IF('ENTRY-NILAI'!$L24="a",'ENTRY-NILAI'!BO24,"") ->  | CE15: =IF('ENTRY-NILAI'!$L24="a",'ENTRY-NILAI'!BY24,"") ->  | CF15: 11 | CG15: =IF('ENTRY-NILAI'!$L24="a",'ENTRY-NILAI'!AB24+'ENTRY-NILAI'!AL24+'ENTRY-NILAI'!AT24+'ENTRY-NILAI'!BD24+'ENTRY-NILAI'!BN24+'ENTRY-NILAI'!BX24,"") ->  | CH15: =IF(C15="","",E15+Q15+AC15+AO15+BA15+BM15) ->  | CI15: =IF(CG15="","",RANK(CG15,$CG$5:$CG$604,0)) ->  | CJ15: =IF(CG15="","",RANK(CG15,$CG$5:$CG$604,1)) ->  | CK15: =IF(CH15="","",RANK(CH15,$CH$5:$CH$604,1)) ->  | CL15: =IF(CJ15="","",RIGHT("0"&CJ15,2)) ->  | CM15: =IF(CK15="","",RIGHT("0"&CK15,2)) ->  | CN15: =IF(CJ15="","",VALUE(CJ15&CL15&CM15)) ->  | CO15: =IF(CN15="","",RANK(CN15,CN$5:CN$604,0)+COUNTIF(CN$5:CN15,CN15)-1) ->  | CQ15: =SMALL(CO$5:CO$604,$A15) -> 
B16: 12 | C16: =IF('ENTRY-NILAI'!L25="A",'ENTRY-NILAI'!A25,"") ->  | D16: =IF('ENTRY-NILAI'!$L25="A",'ENTRY-NILAI'!AB25,"") ->  | E16: =IF('ENTRY-NILAI'!$L25="A",'ENTRY-NILAI'!AA25,"") ->  | L16: =IF(K16="","",RANK(K16,K$5:K$604,0)+COUNTIF(K$5:K16,K16)-1) ->  | P16: =IF('ENTRY-NILAI'!$L25="A",'ENTRY-NILAI'!$AL25,"") ->  | Q16: =IF('ENTRY-NILAI'!$L25="A",'ENTRY-NILAI'!$AK25,"") ->  | X16: =IF(W16="","",RANK(W16,W$5:W$604,0)+COUNTIF(W$5:W16,W16)-1) ->  | AB16: =IF('ENTRY-NILAI'!$L25="A",'ENTRY-NILAI'!$AT25,"") ->  | AC16: =IF('ENTRY-NILAI'!$L25="A",'ENTRY-NILAI'!$AS25,"") ->  | AJ16: =IF(AI16="","",RANK(AI16,AI$5:AI$604,0)+COUNTIF(AI$5:AI16,AI16)-1) ->  | AN16: =IF('ENTRY-NILAI'!$L25="A",'ENTRY-NILAI'!$BD25,"") ->  | AO16: =IF('ENTRY-NILAI'!$L25="A",'ENTRY-NILAI'!$BC25,"") ->  | AV16: =IF(AU16="","",RANK(AU16,AU$5:AU$604,0)+COUNTIF(AU$5:AU16,AU16)-1) ->  | AZ16: =IF('ENTRY-NILAI'!$L25="A",'ENTRY-NILAI'!$BN25,"") ->  | BA16: =IF('ENTRY-NILAI'!$L25="A",'ENTRY-NILAI'!$BM25,"") ->  | BH16: =IF(BG16="","",RANK(BG16,BG$5:BG$604,0)+COUNTIF(BG$5:BG16,BG16)-1) ->  | BL16: =IF('ENTRY-NILAI'!$L25="A",'ENTRY-NILAI'!$BX25,"") ->  | BM16: =IF('ENTRY-NILAI'!$L25="A",'ENTRY-NILAI'!$BW25,"") ->  | BT16: =IF(BS16="","",RANK(BS16,BS$5:BS$604,0)+COUNTIF(BS$5:BS16,BS16)-1) ->  | BY16: =IF('ENTRY-NILAI'!$L25="a",'ENTRY-NILAI'!FG25,"") ->  | BZ16: =IF('ENTRY-NILAI'!$L25="a",'ENTRY-NILAI'!AC25,"") ->  | CA16: =IF('ENTRY-NILAI'!$L25="a",'ENTRY-NILAI'!AM25,"") ->  | CB16: =IF('ENTRY-NILAI'!$L25="a",'ENTRY-NILAI'!AU25,"") ->  | CC16: =IF('ENTRY-NILAI'!$L25="a",'ENTRY-NILAI'!BE25,"") ->  | CD16: =IF('ENTRY-NILAI'!$L25="a",'ENTRY-NILAI'!BO25,"") ->  | CE16: =IF('ENTRY-NILAI'!$L25="a",'ENTRY-NILAI'!BY25,"") ->  | CF16: 12 | CG16: =IF('ENTRY-NILAI'!$L25="a",'ENTRY-NILAI'!AB25+'ENTRY-NILAI'!AL25+'ENTRY-NILAI'!AT25+'ENTRY-NILAI'!BD25+'ENTRY-NILAI'!BN25+'ENTRY-NILAI'!BX25,"") ->  | CO16: =IF(CN16="","",RANK(CN16,CN$5:CN$604,0)+COUNTIF(CN$5:CN16,CN16)-1) -> 
B17: 13 | C17: =IF('ENTRY-NILAI'!L26="A",'ENTRY-NILAI'!A26,"") ->  | D17: =IF('ENTRY-NILAI'!$L26="A",'ENTRY-NILAI'!AB26,"") ->  | E17: =IF('ENTRY-NILAI'!$L26="A",'ENTRY-NILAI'!AA26,"") ->  | L17: =IF(K17="","",RANK(K17,K$5:K$604,0)+COUNTIF(K$5:K17,K17)-1) ->  | P17: =IF('ENTRY-NILAI'!$L26="A",'ENTRY-NILAI'!$AL26,"") ->  | Q17: =IF('ENTRY-NILAI'!$L26="A",'ENTRY-NILAI'!$AK26,"") ->  | X17: =IF(W17="","",RANK(W17,W$5:W$604,0)+COUNTIF(W$5:W17,W17)-1) ->  | AB17: =IF('ENTRY-NILAI'!$L26="A",'ENTRY-NILAI'!$AT26,"") ->  | AC17: =IF('ENTRY-NILAI'!$L26="A",'ENTRY-NILAI'!$AS26,"") ->  | AJ17: =IF(AI17="","",RANK(AI17,AI$5:AI$604,0)+COUNTIF(AI$5:AI17,AI17)-1) ->  | AN17: =IF('ENTRY-NILAI'!$L26="A",'ENTRY-NILAI'!$BD26,"") ->  | AO17: =IF('ENTRY-NILAI'!$L26="A",'ENTRY-NILAI'!$BC26,"") ->  | AV17: =IF(AU17="","",RANK(AU17,AU$5:AU$604,0)+COUNTIF(AU$5:AU17,AU17)-1) ->  | AZ17: =IF('ENTRY-NILAI'!$L26="A",'ENTRY-NILAI'!$BN26,"") ->  | BA17: =IF('ENTRY-NILAI'!$L26="A",'ENTRY-NILAI'!$BM26,"") ->  | BH17: =IF(BG17="","",RANK(BG17,BG$5:BG$604,0)+COUNTIF(BG$5:BG17,BG17)-1) ->  | BL17: =IF('ENTRY-NILAI'!$L26="A",'ENTRY-NILAI'!$BX26,"") ->  | BM17: =IF('ENTRY-NILAI'!$L26="A",'ENTRY-NILAI'!$BW26,"") ->  | BT17: =IF(BS17="","",RANK(BS17,BS$5:BS$604,0)+COUNTIF(BS$5:BS17,BS17)-1) ->  | BY17: =IF('ENTRY-NILAI'!$L26="a",'ENTRY-NILAI'!FG26,"") ->  | BZ17: =IF('ENTRY-NILAI'!$L26="a",'ENTRY-NILAI'!AC26,"") ->  | CA17: =IF('ENTRY-NILAI'!$L26="a",'ENTRY-NILAI'!AM26,"") ->  | CB17: =IF('ENTRY-NILAI'!$L26="a",'ENTRY-NILAI'!AU26,"") ->  | CC17: =IF('ENTRY-NILAI'!$L26="a",'ENTRY-NILAI'!BE26,"") ->  | CD17: =IF('ENTRY-NILAI'!$L26="a",'ENTRY-NILAI'!BO26,"") ->  | CE17: =IF('ENTRY-NILAI'!$L26="a",'ENTRY-NILAI'!BY26,"") ->  | CF17: 13 | CG17: =IF('ENTRY-NILAI'!$L26="a",'ENTRY-NILAI'!AB26+'ENTRY-NILAI'!AL26+'ENTRY-NILAI'!AT26+'ENTRY-NILAI'!BD26+'ENTRY-NILAI'!BN26+'ENTRY-NILAI'!BX26,"") ->  | CO17: =IF(CN17="","",RANK(CN17,CN$5:CN$604,0)+COUNTIF(CN$5:CN17,CN17)-1) -> 
B18: 14 | C18: =IF('ENTRY-NILAI'!L27="A",'ENTRY-NILAI'!A27,"") ->  | D18: =IF('ENTRY-NILAI'!$L27="A",'ENTRY-NILAI'!AB27,"") ->  | E18: =IF('ENTRY-NILAI'!$L27="A",'ENTRY-NILAI'!AA27,"") ->  | L18: =IF(K18="","",RANK(K18,K$5:K$604,0)+COUNTIF(K$5:K18,K18)-1) ->  | P18: =IF('ENTRY-NILAI'!$L27="A",'ENTRY-NILAI'!$AL27,"") ->  | Q18: =IF('ENTRY-NILAI'!$L27="A",'ENTRY-NILAI'!$AK27,"") ->  | X18: =IF(W18="","",RANK(W18,W$5:W$604,0)+COUNTIF(W$5:W18,W18)-1) ->  | AB18: =IF('ENTRY-NILAI'!$L27="A",'ENTRY-NILAI'!$AT27,"") ->  | AC18: =IF('ENTRY-NILAI'!$L27="A",'ENTRY-NILAI'!$AS27,"") ->  | AJ18: =IF(AI18="","",RANK(AI18,AI$5:AI$604,0)+COUNTIF(AI$5:AI18,AI18)-1) ->  | AN18: =IF('ENTRY-NILAI'!$L27="A",'ENTRY-NILAI'!$BD27,"") ->  | AO18: =IF('ENTRY-NILAI'!$L27="A",'ENTRY-NILAI'!$BC27,"") ->  | AV18: =IF(AU18="","",RANK(AU18,AU$5:AU$604,0)+COUNTIF(AU$5:AU18,AU18)-1) ->  | AZ18: =IF('ENTRY-NILAI'!$L27="A",'ENTRY-NILAI'!$BN27,"") ->  | BA18: =IF('ENTRY-NILAI'!$L27="A",'ENTRY-NILAI'!$BM27,"") ->  | BH18: =IF(BG18="","",RANK(BG18,BG$5:BG$604,0)+COUNTIF(BG$5:BG18,BG18)-1) ->  | BL18: =IF('ENTRY-NILAI'!$L27="A",'ENTRY-NILAI'!$BX27,"") ->  | BM18: =IF('ENTRY-NILAI'!$L27="A",'ENTRY-NILAI'!$BW27,"") ->  | BT18: =IF(BS18="","",RANK(BS18,BS$5:BS$604,0)+COUNTIF(BS$5:BS18,BS18)-1) ->  | BY18: =IF('ENTRY-NILAI'!$L27="a",'ENTRY-NILAI'!FG27,"") ->  | BZ18: =IF('ENTRY-NILAI'!$L27="a",'ENTRY-NILAI'!AC27,"") ->  | CA18: =IF('ENTRY-NILAI'!$L27="a",'ENTRY-NILAI'!AM27,"") ->  | CB18: =IF('ENTRY-NILAI'!$L27="a",'ENTRY-NILAI'!AU27,"") ->  | CC18: =IF('ENTRY-NILAI'!$L27="a",'ENTRY-NILAI'!BE27,"") ->  | CD18: =IF('ENTRY-NILAI'!$L27="a",'ENTRY-NILAI'!BO27,"") ->  | CE18: =IF('ENTRY-NILAI'!$L27="a",'ENTRY-NILAI'!BY27,"") ->  | CF18: 14 | CG18: =IF('ENTRY-NILAI'!$L27="a",'ENTRY-NILAI'!AB27+'ENTRY-NILAI'!AL27+'ENTRY-NILAI'!AT27+'ENTRY-NILAI'!BD27+'ENTRY-NILAI'!BN27+'ENTRY-NILAI'!BX27,"") ->  | CO18: =IF(CN18="","",RANK(CN18,CN$5:CN$604,0)+COUNTIF(CN$5:CN18,CN18)-1) -> 
B19: 15 | C19: =IF('ENTRY-NILAI'!L28="A",'ENTRY-NILAI'!A28,"") ->  | D19: =IF('ENTRY-NILAI'!$L28="A",'ENTRY-NILAI'!AB28,"") ->  | E19: =IF('ENTRY-NILAI'!$L28="A",'ENTRY-NILAI'!AA28,"") ->  | L19: =IF(K19="","",RANK(K19,K$5:K$604,0)+COUNTIF(K$5:K19,K19)-1) ->  | P19: =IF('ENTRY-NILAI'!$L28="A",'ENTRY-NILAI'!$AL28,"") ->  | Q19: =IF('ENTRY-NILAI'!$L28="A",'ENTRY-NILAI'!$AK28,"") ->  | X19: =IF(W19="","",RANK(W19,W$5:W$604,0)+COUNTIF(W$5:W19,W19)-1) ->  | AB19: =IF('ENTRY-NILAI'!$L28="A",'ENTRY-NILAI'!$AT28,"") ->  | AC19: =IF('ENTRY-NILAI'!$L28="A",'ENTRY-NILAI'!$AS28,"") ->  | AJ19: =IF(AI19="","",RANK(AI19,AI$5:AI$604,0)+COUNTIF(AI$5:AI19,AI19)-1) ->  | AN19: =IF('ENTRY-NILAI'!$L28="A",'ENTRY-NILAI'!$BD28,"") ->  | AO19: =IF('ENTRY-NILAI'!$L28="A",'ENTRY-NILAI'!$BC28,"") ->  | AV19: =IF(AU19="","",RANK(AU19,AU$5:AU$604,0)+COUNTIF(AU$5:AU19,AU19)-1) ->  | AZ19: =IF('ENTRY-NILAI'!$L28="A",'ENTRY-NILAI'!$BN28,"") ->  | BA19: =IF('ENTRY-NILAI'!$L28="A",'ENTRY-NILAI'!$BM28,"") ->  | BH19: =IF(BG19="","",RANK(BG19,BG$5:BG$604,0)+COUNTIF(BG$5:BG19,BG19)-1) ->  | BL19: =IF('ENTRY-NILAI'!$L28="A",'ENTRY-NILAI'!$BX28,"") ->  | BM19: =IF('ENTRY-NILAI'!$L28="A",'ENTRY-NILAI'!$BW28,"") ->  | BT19: =IF(BS19="","",RANK(BS19,BS$5:BS$604,0)+COUNTIF(BS$5:BS19,BS19)-1) ->  | BY19: =IF('ENTRY-NILAI'!$L28="a",'ENTRY-NILAI'!FG28,"") ->  | BZ19: =IF('ENTRY-NILAI'!$L28="a",'ENTRY-NILAI'!AC28,"") ->  | CA19: =IF('ENTRY-NILAI'!$L28="a",'ENTRY-NILAI'!AM28,"") ->  | CB19: =IF('ENTRY-NILAI'!$L28="a",'ENTRY-NILAI'!AU28,"") ->  | CC19: =IF('ENTRY-NILAI'!$L28="a",'ENTRY-NILAI'!BE28,"") ->  | CD19: =IF('ENTRY-NILAI'!$L28="a",'ENTRY-NILAI'!BO28,"") ->  | CE19: =IF('ENTRY-NILAI'!$L28="a",'ENTRY-NILAI'!BY28,"") ->  | CF19: 15 | CG19: =IF('ENTRY-NILAI'!$L28="a",'ENTRY-NILAI'!AB28+'ENTRY-NILAI'!AL28+'ENTRY-NILAI'!AT28+'ENTRY-NILAI'!BD28+'ENTRY-NILAI'!BN28+'ENTRY-NILAI'!BX28,"") ->  | CO19: =IF(CN19="","",RANK(CN19,CN$5:CN$604,0)+COUNTIF(CN$5:CN19,CN19)-1) -> 
B20: 16 | C20: =IF('ENTRY-NILAI'!L29="A",'ENTRY-NILAI'!A29,"") ->  | D20: =IF('ENTRY-NILAI'!$L29="A",'ENTRY-NILAI'!AB29,"") ->  | E20: =IF('ENTRY-NILAI'!$L29="A",'ENTRY-NILAI'!AA29,"") ->  | L20: =IF(K20="","",RANK(K20,K$5:K$604,0)+COUNTIF(K$5:K20,K20)-1) ->  | P20: =IF('ENTRY-NILAI'!$L29="A",'ENTRY-NILAI'!$AL29,"") ->  | Q20: =IF('ENTRY-NILAI'!$L29="A",'ENTRY-NILAI'!$AK29,"") ->  | X20: =IF(W20="","",RANK(W20,W$5:W$604,0)+COUNTIF(W$5:W20,W20)-1) ->  | AB20: =IF('ENTRY-NILAI'!$L29="A",'ENTRY-NILAI'!$AT29,"") ->  | AC20: =IF('ENTRY-NILAI'!$L29="A",'ENTRY-NILAI'!$AS29,"") ->  | AJ20: =IF(AI20="","",RANK(AI20,AI$5:AI$604,0)+COUNTIF(AI$5:AI20,AI20)-1) ->  | AN20: =IF('ENTRY-NILAI'!$L29="A",'ENTRY-NILAI'!$BD29,"") ->  | AO20: =IF('ENTRY-NILAI'!$L29="A",'ENTRY-NILAI'!$BC29,"") ->  | AV20: =IF(AU20="","",RANK(AU20,AU$5:AU$604,0)+COUNTIF(AU$5:AU20,AU20)-1) ->  | AZ20: =IF('ENTRY-NILAI'!$L29="A",'ENTRY-NILAI'!$BN29,"") ->  | BA20: =IF('ENTRY-NILAI'!$L29="A",'ENTRY-NILAI'!$BM29,"") ->  | BH20: =IF(BG20="","",RANK(BG20,BG$5:BG$604,0)+COUNTIF(BG$5:BG20,BG20)-1) ->  | BL20: =IF('ENTRY-NILAI'!$L29="A",'ENTRY-NILAI'!$BX29,"") ->  | BM20: =IF('ENTRY-NILAI'!$L29="A",'ENTRY-NILAI'!$BW29,"") ->  | BT20: =IF(BS20="","",RANK(BS20,BS$5:BS$604,0)+COUNTIF(BS$5:BS20,BS20)-1) ->  | BY20: =IF('ENTRY-NILAI'!$L29="a",'ENTRY-NILAI'!FG29,"") ->  | BZ20: =IF('ENTRY-NILAI'!$L29="a",'ENTRY-NILAI'!AC29,"") ->  | CA20: =IF('ENTRY-NILAI'!$L29="a",'ENTRY-NILAI'!AM29,"") ->  | CB20: =IF('ENTRY-NILAI'!$L29="a",'ENTRY-NILAI'!AU29,"") ->  | CC20: =IF('ENTRY-NILAI'!$L29="a",'ENTRY-NILAI'!BE29,"") ->  | CD20: =IF('ENTRY-NILAI'!$L29="a",'ENTRY-NILAI'!BO29,"") ->  | CE20: =IF('ENTRY-NILAI'!$L29="a",'ENTRY-NILAI'!BY29,"") ->  | CF20: 16 | CG20: =IF('ENTRY-NILAI'!$L29="a",'ENTRY-NILAI'!AB29+'ENTRY-NILAI'!AL29+'ENTRY-NILAI'!AT29+'ENTRY-NILAI'!BD29+'ENTRY-NILAI'!BN29+'ENTRY-NILAI'!BX29,"") ->  | CO20: =IF(CN20="","",RANK(CN20,CN$5:CN$604,0)+COUNTIF(CN$5:CN20,CN20)-1) -> 
B21: 17 | C21: =IF('ENTRY-NILAI'!L30="A",'ENTRY-NILAI'!A30,"") ->  | D21: =IF('ENTRY-NILAI'!$L30="A",'ENTRY-NILAI'!AB30,"") ->  | E21: =IF('ENTRY-NILAI'!$L30="A",'ENTRY-NILAI'!AA30,"") ->  | L21: =IF(K21="","",RANK(K21,K$5:K$604,0)+COUNTIF(K$5:K21,K21)-1) ->  | P21: =IF('ENTRY-NILAI'!$L30="A",'ENTRY-NILAI'!$AL30,"") ->  | Q21: =IF('ENTRY-NILAI'!$L30="A",'ENTRY-NILAI'!$AK30,"") ->  | X21: =IF(W21="","",RANK(W21,W$5:W$604,0)+COUNTIF(W$5:W21,W21)-1) ->  | AB21: =IF('ENTRY-NILAI'!$L30="A",'ENTRY-NILAI'!$AT30,"") ->  | AC21: =IF('ENTRY-NILAI'!$L30="A",'ENTRY-NILAI'!$AS30,"") ->  | AJ21: =IF(AI21="","",RANK(AI21,AI$5:AI$604,0)+COUNTIF(AI$5:AI21,AI21)-1) ->  | AN21: =IF('ENTRY-NILAI'!$L30="A",'ENTRY-NILAI'!$BD30,"") ->  | AO21: =IF('ENTRY-NILAI'!$L30="A",'ENTRY-NILAI'!$BC30,"") ->  | AV21: =IF(AU21="","",RANK(AU21,AU$5:AU$604,0)+COUNTIF(AU$5:AU21,AU21)-1) ->  | AZ21: =IF('ENTRY-NILAI'!$L30="A",'ENTRY-NILAI'!$BN30,"") ->  | BA21: =IF('ENTRY-NILAI'!$L30="A",'ENTRY-NILAI'!$BM30,"") ->  | BH21: =IF(BG21="","",RANK(BG21,BG$5:BG$604,0)+COUNTIF(BG$5:BG21,BG21)-1) ->  | BL21: =IF('ENTRY-NILAI'!$L30="A",'ENTRY-NILAI'!$BX30,"") ->  | BM21: =IF('ENTRY-NILAI'!$L30="A",'ENTRY-NILAI'!$BW30,"") ->  | BT21: =IF(BS21="","",RANK(BS21,BS$5:BS$604,0)+COUNTIF(BS$5:BS21,BS21)-1) ->  | BY21: =IF('ENTRY-NILAI'!$L30="a",'ENTRY-NILAI'!FG30,"") ->  | BZ21: =IF('ENTRY-NILAI'!$L30="a",'ENTRY-NILAI'!AC30,"") ->  | CA21: =IF('ENTRY-NILAI'!$L30="a",'ENTRY-NILAI'!AM30,"") ->  | CB21: =IF('ENTRY-NILAI'!$L30="a",'ENTRY-NILAI'!AU30,"") ->  | CC21: =IF('ENTRY-NILAI'!$L30="a",'ENTRY-NILAI'!BE30,"") ->  | CD21: =IF('ENTRY-NILAI'!$L30="a",'ENTRY-NILAI'!BO30,"") ->  | CE21: =IF('ENTRY-NILAI'!$L30="a",'ENTRY-NILAI'!BY30,"") ->  | CF21: 17 | CG21: =IF('ENTRY-NILAI'!$L30="a",'ENTRY-NILAI'!AB30+'ENTRY-NILAI'!AL30+'ENTRY-NILAI'!AT30+'ENTRY-NILAI'!BD30+'ENTRY-NILAI'!BN30+'ENTRY-NILAI'!BX30,"") ->  | CO21: =IF(CN21="","",RANK(CN21,CN$5:CN$604,0)+COUNTIF(CN$5:CN21,CN21)-1) -> 
B22: 18 | C22: =IF('ENTRY-NILAI'!L31="A",'ENTRY-NILAI'!A31,"") ->  | D22: =IF('ENTRY-NILAI'!$L31="A",'ENTRY-NILAI'!AB31,"") ->  | E22: =IF('ENTRY-NILAI'!$L31="A",'ENTRY-NILAI'!AA31,"") ->  | L22: =IF(K22="","",RANK(K22,K$5:K$604,0)+COUNTIF(K$5:K22,K22)-1) ->  | P22: =IF('ENTRY-NILAI'!$L31="A",'ENTRY-NILAI'!$AL31,"") ->  | Q22: =IF('ENTRY-NILAI'!$L31="A",'ENTRY-NILAI'!$AK31,"") ->  | X22: =IF(W22="","",RANK(W22,W$5:W$604,0)+COUNTIF(W$5:W22,W22)-1) ->  | AB22: =IF('ENTRY-NILAI'!$L31="A",'ENTRY-NILAI'!$AT31,"") ->  | AC22: =IF('ENTRY-NILAI'!$L31="A",'ENTRY-NILAI'!$AS31,"") ->  | AJ22: =IF(AI22="","",RANK(AI22,AI$5:AI$604,0)+COUNTIF(AI$5:AI22,AI22)-1) ->  | AN22: =IF('ENTRY-NILAI'!$L31="A",'ENTRY-NILAI'!$BD31,"") ->  | AO22: =IF('ENTRY-NILAI'!$L31="A",'ENTRY-NILAI'!$BC31,"") ->  | AV22: =IF(AU22="","",RANK(AU22,AU$5:AU$604,0)+COUNTIF(AU$5:AU22,AU22)-1) ->  | AZ22: =IF('ENTRY-NILAI'!$L31="A",'ENTRY-NILAI'!$BN31,"") ->  | BA22: =IF('ENTRY-NILAI'!$L31="A",'ENTRY-NILAI'!$BM31,"") ->  | BH22: =IF(BG22="","",RANK(BG22,BG$5:BG$604,0)+COUNTIF(BG$5:BG22,BG22)-1) ->  | BL22: =IF('ENTRY-NILAI'!$L31="A",'ENTRY-NILAI'!$BX31,"") ->  | BM22: =IF('ENTRY-NILAI'!$L31="A",'ENTRY-NILAI'!$BW31,"") ->  | BT22: =IF(BS22="","",RANK(BS22,BS$5:BS$604,0)+COUNTIF(BS$5:BS22,BS22)-1) ->  | BY22: =IF('ENTRY-NILAI'!$L31="a",'ENTRY-NILAI'!FG31,"") ->  | BZ22: =IF('ENTRY-NILAI'!$L31="a",'ENTRY-NILAI'!AC31,"") ->  | CA22: =IF('ENTRY-NILAI'!$L31="a",'ENTRY-NILAI'!AM31,"") ->  | CB22: =IF('ENTRY-NILAI'!$L31="a",'ENTRY-NILAI'!AU31,"") ->  | CC22: =IF('ENTRY-NILAI'!$L31="a",'ENTRY-NILAI'!BE31,"") ->  | CD22: =IF('ENTRY-NILAI'!$L31="a",'ENTRY-NILAI'!BO31,"") ->  | CE22: =IF('ENTRY-NILAI'!$L31="a",'ENTRY-NILAI'!BY31,"") ->  | CF22: 18 | CG22: =IF('ENTRY-NILAI'!$L31="a",'ENTRY-NILAI'!AB31+'ENTRY-NILAI'!AL31+'ENTRY-NILAI'!AT31+'ENTRY-NILAI'!BD31+'ENTRY-NILAI'!BN31+'ENTRY-NILAI'!BX31,"") ->  | CO22: =IF(CN22="","",RANK(CN22,CN$5:CN$604,0)+COUNTIF(CN$5:CN22,CN22)-1) -> 
B23: 19 | C23: =IF('ENTRY-NILAI'!L32="A",'ENTRY-NILAI'!A32,"") ->  | D23: =IF('ENTRY-NILAI'!$L32="A",'ENTRY-NILAI'!AB32,"") ->  | E23: =IF('ENTRY-NILAI'!$L32="A",'ENTRY-NILAI'!AA32,"") ->  | L23: =IF(K23="","",RANK(K23,K$5:K$604,0)+COUNTIF(K$5:K23,K23)-1) ->  | P23: =IF('ENTRY-NILAI'!$L32="A",'ENTRY-NILAI'!$AL32,"") ->  | Q23: =IF('ENTRY-NILAI'!$L32="A",'ENTRY-NILAI'!$AK32,"") ->  | X23: =IF(W23="","",RANK(W23,W$5:W$604,0)+COUNTIF(W$5:W23,W23)-1) ->  | AB23: =IF('ENTRY-NILAI'!$L32="A",'ENTRY-NILAI'!$AT32,"") ->  | AC23: =IF('ENTRY-NILAI'!$L32="A",'ENTRY-NILAI'!$AS32,"") ->  | AJ23: =IF(AI23="","",RANK(AI23,AI$5:AI$604,0)+COUNTIF(AI$5:AI23,AI23)-1) ->  | AN23: =IF('ENTRY-NILAI'!$L32="A",'ENTRY-NILAI'!$BD32,"") ->  | AO23: =IF('ENTRY-NILAI'!$L32="A",'ENTRY-NILAI'!$BC32,"") ->  | AV23: =IF(AU23="","",RANK(AU23,AU$5:AU$604,0)+COUNTIF(AU$5:AU23,AU23)-1) ->  | AZ23: =IF('ENTRY-NILAI'!$L32="A",'ENTRY-NILAI'!$BN32,"") ->  | BA23: =IF('ENTRY-NILAI'!$L32="A",'ENTRY-NILAI'!$BM32,"") ->  | BH23: =IF(BG23="","",RANK(BG23,BG$5:BG$604,0)+COUNTIF(BG$5:BG23,BG23)-1) ->  | BL23: =IF('ENTRY-NILAI'!$L32="A",'ENTRY-NILAI'!$BX32,"") ->  | BM23: =IF('ENTRY-NILAI'!$L32="A",'ENTRY-NILAI'!$BW32,"") ->  | BT23: =IF(BS23="","",RANK(BS23,BS$5:BS$604,0)+COUNTIF(BS$5:BS23,BS23)-1) ->  | BY23: =IF('ENTRY-NILAI'!$L32="a",'ENTRY-NILAI'!FG32,"") ->  | BZ23: =IF('ENTRY-NILAI'!$L32="a",'ENTRY-NILAI'!AC32,"") ->  | CA23: =IF('ENTRY-NILAI'!$L32="a",'ENTRY-NILAI'!AM32,"") ->  | CB23: =IF('ENTRY-NILAI'!$L32="a",'ENTRY-NILAI'!AU32,"") ->  | CC23: =IF('ENTRY-NILAI'!$L32="a",'ENTRY-NILAI'!BE32,"") ->  | CD23: =IF('ENTRY-NILAI'!$L32="a",'ENTRY-NILAI'!BO32,"") ->  | CE23: =IF('ENTRY-NILAI'!$L32="a",'ENTRY-NILAI'!BY32,"") ->  | CF23: 19 | CG23: =IF('ENTRY-NILAI'!$L32="a",'ENTRY-NILAI'!AB32+'ENTRY-NILAI'!AL32+'ENTRY-NILAI'!AT32+'ENTRY-NILAI'!BD32+'ENTRY-NILAI'!BN32+'ENTRY-NILAI'!BX32,"") ->  | CO23: =IF(CN23="","",RANK(CN23,CN$5:CN$604,0)+COUNTIF(CN$5:CN23,CN23)-1) -> 
B24: 20 | C24: =IF('ENTRY-NILAI'!L33="A",'ENTRY-NILAI'!A33,"") ->  | D24: =IF('ENTRY-NILAI'!$L33="A",'ENTRY-NILAI'!AB33,"") ->  | E24: =IF('ENTRY-NILAI'!$L33="A",'ENTRY-NILAI'!AA33,"") ->  | L24: =IF(K24="","",RANK(K24,K$5:K$604,0)+COUNTIF(K$5:K24,K24)-1) ->  | P24: =IF('ENTRY-NILAI'!$L33="A",'ENTRY-NILAI'!$AL33,"") ->  | Q24: =IF('ENTRY-NILAI'!$L33="A",'ENTRY-NILAI'!$AK33,"") ->  | X24: =IF(W24="","",RANK(W24,W$5:W$604,0)+COUNTIF(W$5:W24,W24)-1) ->  | AB24: =IF('ENTRY-NILAI'!$L33="A",'ENTRY-NILAI'!$AT33,"") ->  | AC24: =IF('ENTRY-NILAI'!$L33="A",'ENTRY-NILAI'!$AS33,"") ->  | AJ24: =IF(AI24="","",RANK(AI24,AI$5:AI$604,0)+COUNTIF(AI$5:AI24,AI24)-1) ->  | AN24: =IF('ENTRY-NILAI'!$L33="A",'ENTRY-NILAI'!$BD33,"") ->  | AO24: =IF('ENTRY-NILAI'!$L33="A",'ENTRY-NILAI'!$BC33,"") ->  | AV24: =IF(AU24="","",RANK(AU24,AU$5:AU$604,0)+COUNTIF(AU$5:AU24,AU24)-1) ->  | AZ24: =IF('ENTRY-NILAI'!$L33="A",'ENTRY-NILAI'!$BN33,"") ->  | BA24: =IF('ENTRY-NILAI'!$L33="A",'ENTRY-NILAI'!$BM33,"") ->  | BH24: =IF(BG24="","",RANK(BG24,BG$5:BG$604,0)+COUNTIF(BG$5:BG24,BG24)-1) ->  | BL24: =IF('ENTRY-NILAI'!$L33="A",'ENTRY-NILAI'!$BX33,"") ->  | BM24: =IF('ENTRY-NILAI'!$L33="A",'ENTRY-NILAI'!$BW33,"") ->  | BT24: =IF(BS24="","",RANK(BS24,BS$5:BS$604,0)+COUNTIF(BS$5:BS24,BS24)-1) ->  | BY24: =IF('ENTRY-NILAI'!$L33="a",'ENTRY-NILAI'!FG33,"") ->  | BZ24: =IF('ENTRY-NILAI'!$L33="a",'ENTRY-NILAI'!AC33,"") ->  | CA24: =IF('ENTRY-NILAI'!$L33="a",'ENTRY-NILAI'!AM33,"") ->  | CB24: =IF('ENTRY-NILAI'!$L33="a",'ENTRY-NILAI'!AU33,"") ->  | CC24: =IF('ENTRY-NILAI'!$L33="a",'ENTRY-NILAI'!BE33,"") ->  | CD24: =IF('ENTRY-NILAI'!$L33="a",'ENTRY-NILAI'!BO33,"") ->  | CE24: =IF('ENTRY-NILAI'!$L33="a",'ENTRY-NILAI'!BY33,"") ->  | CF24: 20 | CG24: =IF('ENTRY-NILAI'!$L33="a",'ENTRY-NILAI'!AB33+'ENTRY-NILAI'!AL33+'ENTRY-NILAI'!AT33+'ENTRY-NILAI'!BD33+'ENTRY-NILAI'!BN33+'ENTRY-NILAI'!BX33,"") ->  | CO24: =IF(CN24="","",RANK(CN24,CN$5:CN$604,0)+COUNTIF(CN$5:CN24,CN24)-1) -> 
B25: 21 | C25: =IF('ENTRY-NILAI'!L34="A",'ENTRY-NILAI'!A34,"") ->  | D25: =IF('ENTRY-NILAI'!$L34="A",'ENTRY-NILAI'!AB34,"") ->  | E25: =IF('ENTRY-NILAI'!$L34="A",'ENTRY-NILAI'!AA34,"") ->  | F25: =IF(D25="","",RANK(D25,$D$5:$D$604,0)) ->  | G25: =IF(D25="","",RANK(D25,$D$5:$D$604,1)) ->  | H25: =IF(E25="","",RANK(E25,$E$5:$E$604,1)) ->  | I25: =IF(G25="","",RIGHT("0"&G25,2)) ->  | J25: =IF(H25="","",RIGHT("0"&H25,2)) ->  | K25: =IF(G25="","",VALUE(G25&I25&J25)) ->  | L25: =IF(K25="","",RANK(K25,K$5:K$604,0)+COUNTIF(K$5:K25,K25)-1) ->  | M25: =IF($C25="","",IF(L25<11,B25,"")) ->  | N25: =SMALL($L$5:$L$604,A25) ->  | P25: =IF('ENTRY-NILAI'!$L34="A",'ENTRY-NILAI'!$AL34,"") ->  | Q25: =IF('ENTRY-NILAI'!$L34="A",'ENTRY-NILAI'!$AK34,"") ->  | R25: =IF(P25="","",RANK(P25,$P$5:$P$604,0)) ->  | S25: =IF(P25="","",RANK(P25,$P$5:$P$604,1)) ->  | T25: =IF(Q25="","",RANK(Q25,$Q$5:$Q$604,1)) ->  | U25: =IF(S25="","",RIGHT("0"&S25,2)) ->  | V25: =IF(T25="","",RIGHT("0"&T25,2)) ->  | W25: =IF(S25="","",VALUE(S25&U25&V25)) ->  | X25: =IF(W25="","",RANK(W25,W$5:W$604,0)+COUNTIF(W$5:W25,W25)-1) ->  | Y25: =IF($C25="","",IF(X25<11,B25,"")) ->  | AB25: =IF('ENTRY-NILAI'!$L34="A",'ENTRY-NILAI'!$AT34,"") ->  | AC25: =IF('ENTRY-NILAI'!$L34="A",'ENTRY-NILAI'!$AS34,"") ->  | AD25: =IF(AB25="","",RANK(AB25,$AB$5:$AB$604,0)) ->  | AE25: =IF(AB25="","",RANK(AB25,AB$5:AB$604,1)) ->  | AF25: =IF(AC25="","",RANK(AC25,AC$5:AC$604,1)) ->  | AG25: =IF(AE25="","",RIGHT("0"&AE25,2)) ->  | AH25: =IF(AF25="","",RIGHT("0"&AF25,2)) ->  | AI25: =IF(AE25="","",VALUE(AE25&AG25&AH25)) ->  | AJ25: =IF(AI25="","",RANK(AI25,AI$5:AI$604,0)+COUNTIF(AI$5:AI25,AI25)-1) ->  | AL25: =SMALL(AJ$5:AJ$604,$A25) ->  | AN25: =IF('ENTRY-NILAI'!$L34="A",'ENTRY-NILAI'!$BD34,"") ->  | AO25: =IF('ENTRY-NILAI'!$L34="A",'ENTRY-NILAI'!$BC34,"") ->  | AP25: =IF(AN25="","",RANK(AN25,AN$5:AN$604,0)) ->  | AQ25: =IF(AN25="","",RANK(AN25,AN$5:AN$604,1)) ->  | AR25: =IF(AO25="","",RANK(AO25,AO$5:AO$604,1)) ->  | AS25: =IF(AQ25="","",RIGHT("0"&AQ25,2)) ->  | AT25: =IF(AR25="","",RIGHT("0"&AR25,2)) ->  | AU25: =IF(AQ25="","",VALUE(AQ25&AS25&AT25)) ->  | AV25: =IF(AU25="","",RANK(AU25,AU$5:AU$604,0)+COUNTIF(AU$5:AU25,AU25)-1) ->  | AX25: =SMALL(AV$5:AV$604,$A25) ->  | AZ25: =IF('ENTRY-NILAI'!$L34="A",'ENTRY-NILAI'!$BN34,"") ->  | BA25: =IF('ENTRY-NILAI'!$L34="A",'ENTRY-NILAI'!$BM34,"") ->  | BB25: =IF(AZ25="","",RANK(AZ25,AZ$5:AZ$604,0)) ->  | BC25: =IF(AZ25="","",RANK(AZ25,AZ$5:AZ$604,1)) ->  | BD25: =IF(BA25="","",RANK(BA25,BA$5:BA$604,1)) ->  | BE25: =IF(BC25="","",RIGHT("0"&BC25,2)) ->  | BF25: =IF(BD25="","",RIGHT("0"&BD25,2)) ->  | BG25: =IF(BC25="","",VALUE(BC25&BE25&BF25)) ->  | BH25: =IF(BG25="","",RANK(BG25,BG$5:BG$604,0)+COUNTIF(BG$5:BG25,BG25)-1) ->  | BJ25: =SMALL(BH$5:BH$604,$A25) ->  | BL25: =IF('ENTRY-NILAI'!$L34="A",'ENTRY-NILAI'!$BX34,"") ->  | BM25: =IF('ENTRY-NILAI'!$L34="A",'ENTRY-NILAI'!$BW34,"") ->  | BN25: =IF(BL25="","",RANK(BL25,BL$5:BL$604,0)) ->  | BO25: =IF(BL25="","",RANK(BL25,BL$5:BL$604,1)) ->  | BP25: =IF(BM25="","",RANK(BM25,BM$5:BM$604,1)) ->  | BQ25: =IF(BO25="","",RIGHT("0"&BO25,2)) ->  | BR25: =IF(BP25="","",RIGHT("0"&BP25,2)) ->  | BS25: =IF(BO25="","",VALUE(BO25&BQ25&BR25)) ->  | BT25: =IF(BS25="","",RANK(BS25,BS$5:BS$604,0)+COUNTIF(BS$5:BS25,BS25)-1) ->  | BV25: =SMALL(BT$5:BT$604,$A25) ->  | BY25: =IF('ENTRY-NILAI'!$L34="a",'ENTRY-NILAI'!FG34,"") ->  | BZ25: =IF('ENTRY-NILAI'!$L34="a",'ENTRY-NILAI'!AC34,"") ->  | CA25: =IF('ENTRY-NILAI'!$L34="a",'ENTRY-NILAI'!AM34,"") ->  | CB25: =IF('ENTRY-NILAI'!$L34="a",'ENTRY-NILAI'!AU34,"") ->  | CC25: =IF('ENTRY-NILAI'!$L34="a",'ENTRY-NILAI'!BE34,"") ->  | CD25: =IF('ENTRY-NILAI'!$L34="a",'ENTRY-NILAI'!BO34,"") ->  | CE25: =IF('ENTRY-NILAI'!$L34="a",'ENTRY-NILAI'!BY34,"") ->  | CF25: 21 | CG25: =IF('ENTRY-NILAI'!$L34="a",'ENTRY-NILAI'!AB34+'ENTRY-NILAI'!AL34+'ENTRY-NILAI'!AT34+'ENTRY-NILAI'!BD34+'ENTRY-NILAI'!BN34+'ENTRY-NILAI'!BX34,"") ->  | CO25: =IF(CN25="","",RANK(CN25,CN$5:CN$604,0)+COUNTIF(CN$5:CN25,CN25)-1) -> 
B26: 22 | C26: =IF('ENTRY-NILAI'!L35="A",'ENTRY-NILAI'!A35,"") ->  | D26: =IF('ENTRY-NILAI'!$L35="A",'ENTRY-NILAI'!AB35,"") ->  | E26: =IF('ENTRY-NILAI'!$L35="A",'ENTRY-NILAI'!AA35,"") ->  | L26: =IF(K26="","",RANK(K26,K$5:K$604,0)+COUNTIF(K$5:K26,K26)-1) ->  | P26: =IF('ENTRY-NILAI'!$L35="A",'ENTRY-NILAI'!$AL35,"") ->  | Q26: =IF('ENTRY-NILAI'!$L35="A",'ENTRY-NILAI'!$AK35,"") ->  | X26: =IF(W26="","",RANK(W26,W$5:W$604,0)+COUNTIF(W$5:W26,W26)-1) ->  | AB26: =IF('ENTRY-NILAI'!$L35="A",'ENTRY-NILAI'!$AT35,"") ->  | AC26: =IF('ENTRY-NILAI'!$L35="A",'ENTRY-NILAI'!$AS35,"") ->  | AJ26: =IF(AI26="","",RANK(AI26,AI$5:AI$604,0)+COUNTIF(AI$5:AI26,AI26)-1) ->  | AN26: =IF('ENTRY-NILAI'!$L35="A",'ENTRY-NILAI'!$BD35,"") ->  | AO26: =IF('ENTRY-NILAI'!$L35="A",'ENTRY-NILAI'!$BC35,"") ->  | AV26: =IF(AU26="","",RANK(AU26,AU$5:AU$604,0)+COUNTIF(AU$5:AU26,AU26)-1) ->  | AZ26: =IF('ENTRY-NILAI'!$L35="A",'ENTRY-NILAI'!$BN35,"") ->  | BA26: =IF('ENTRY-NILAI'!$L35="A",'ENTRY-NILAI'!$BM35,"") ->  | BH26: =IF(BG26="","",RANK(BG26,BG$5:BG$604,0)+COUNTIF(BG$5:BG26,BG26)-1) ->  | BL26: =IF('ENTRY-NILAI'!$L35="A",'ENTRY-NILAI'!$BX35,"") ->  | BM26: =IF('ENTRY-NILAI'!$L35="A",'ENTRY-NILAI'!$BW35,"") ->  | BT26: =IF(BS26="","",RANK(BS26,BS$5:BS$604,0)+COUNTIF(BS$5:BS26,BS26)-1) ->  | BY26: =IF('ENTRY-NILAI'!$L35="a",'ENTRY-NILAI'!FG35,"") ->  | BZ26: =IF('ENTRY-NILAI'!$L35="a",'ENTRY-NILAI'!AC35,"") ->  | CA26: =IF('ENTRY-NILAI'!$L35="a",'ENTRY-NILAI'!AM35,"") ->  | CB26: =IF('ENTRY-NILAI'!$L35="a",'ENTRY-NILAI'!AU35,"") ->  | CC26: =IF('ENTRY-NILAI'!$L35="a",'ENTRY-NILAI'!BE35,"") ->  | CD26: =IF('ENTRY-NILAI'!$L35="a",'ENTRY-NILAI'!BO35,"") ->  | CE26: =IF('ENTRY-NILAI'!$L35="a",'ENTRY-NILAI'!BY35,"") ->  | CF26: 22 | CG26: =IF('ENTRY-NILAI'!$L35="a",'ENTRY-NILAI'!AB35+'ENTRY-NILAI'!AL35+'ENTRY-NILAI'!AT35+'ENTRY-NILAI'!BD35+'ENTRY-NILAI'!BN35+'ENTRY-NILAI'!BX35,"") ->  | CO26: =IF(CN26="","",RANK(CN26,CN$5:CN$604,0)+COUNTIF(CN$5:CN26,CN26)-1) -> 
B27: 23 | C27: =IF('ENTRY-NILAI'!L36="A",'ENTRY-NILAI'!A36,"") ->  | D27: =IF('ENTRY-NILAI'!$L36="A",'ENTRY-NILAI'!AB36,"") ->  | E27: =IF('ENTRY-NILAI'!$L36="A",'ENTRY-NILAI'!AA36,"") ->  | L27: =IF(K27="","",RANK(K27,K$5:K$604,0)+COUNTIF(K$5:K27,K27)-1) ->  | P27: =IF('ENTRY-NILAI'!$L36="A",'ENTRY-NILAI'!$AL36,"") ->  | Q27: =IF('ENTRY-NILAI'!$L36="A",'ENTRY-NILAI'!$AK36,"") ->  | X27: =IF(W27="","",RANK(W27,W$5:W$604,0)+COUNTIF(W$5:W27,W27)-1) ->  | AB27: =IF('ENTRY-NILAI'!$L36="A",'ENTRY-NILAI'!$AT36,"") ->  | AC27: =IF('ENTRY-NILAI'!$L36="A",'ENTRY-NILAI'!$AS36,"") ->  | AJ27: =IF(AI27="","",RANK(AI27,AI$5:AI$604,0)+COUNTIF(AI$5:AI27,AI27)-1) ->  | AN27: =IF('ENTRY-NILAI'!$L36="A",'ENTRY-NILAI'!$BD36,"") ->  | AO27: =IF('ENTRY-NILAI'!$L36="A",'ENTRY-NILAI'!$BC36,"") ->  | AV27: =IF(AU27="","",RANK(AU27,AU$5:AU$604,0)+COUNTIF(AU$5:AU27,AU27)-1) ->  | AZ27: =IF('ENTRY-NILAI'!$L36="A",'ENTRY-NILAI'!$BN36,"") ->  | BA27: =IF('ENTRY-NILAI'!$L36="A",'ENTRY-NILAI'!$BM36,"") ->  | BH27: =IF(BG27="","",RANK(BG27,BG$5:BG$604,0)+COUNTIF(BG$5:BG27,BG27)-1) ->  | BL27: =IF('ENTRY-NILAI'!$L36="A",'ENTRY-NILAI'!$BX36,"") ->  | BM27: =IF('ENTRY-NILAI'!$L36="A",'ENTRY-NILAI'!$BW36,"") ->  | BT27: =IF(BS27="","",RANK(BS27,BS$5:BS$604,0)+COUNTIF(BS$5:BS27,BS27)-1) ->  | BY27: =IF('ENTRY-NILAI'!$L36="a",'ENTRY-NILAI'!FG36,"") ->  | BZ27: =IF('ENTRY-NILAI'!$L36="a",'ENTRY-NILAI'!AC36,"") ->  | CA27: =IF('ENTRY-NILAI'!$L36="a",'ENTRY-NILAI'!AM36,"") ->  | CB27: =IF('ENTRY-NILAI'!$L36="a",'ENTRY-NILAI'!AU36,"") ->  | CC27: =IF('ENTRY-NILAI'!$L36="a",'ENTRY-NILAI'!BE36,"") ->  | CD27: =IF('ENTRY-NILAI'!$L36="a",'ENTRY-NILAI'!BO36,"") ->  | CE27: =IF('ENTRY-NILAI'!$L36="a",'ENTRY-NILAI'!BY36,"") ->  | CF27: 23 | CG27: =IF('ENTRY-NILAI'!$L36="a",'ENTRY-NILAI'!AB36+'ENTRY-NILAI'!AL36+'ENTRY-NILAI'!AT36+'ENTRY-NILAI'!BD36+'ENTRY-NILAI'!BN36+'ENTRY-NILAI'!BX36,"") ->  | CO27: =IF(CN27="","",RANK(CN27,CN$5:CN$604,0)+COUNTIF(CN$5:CN27,CN27)-1) -> 
B28: 24 | C28: =IF('ENTRY-NILAI'!L37="A",'ENTRY-NILAI'!A37,"") ->  | D28: =IF('ENTRY-NILAI'!$L37="A",'ENTRY-NILAI'!AB37,"") ->  | E28: =IF('ENTRY-NILAI'!$L37="A",'ENTRY-NILAI'!AA37,"") ->  | L28: =IF(K28="","",RANK(K28,K$5:K$604,0)+COUNTIF(K$5:K28,K28)-1) ->  | P28: =IF('ENTRY-NILAI'!$L37="A",'ENTRY-NILAI'!$AL37,"") ->  | Q28: =IF('ENTRY-NILAI'!$L37="A",'ENTRY-NILAI'!$AK37,"") ->  | X28: =IF(W28="","",RANK(W28,W$5:W$604,0)+COUNTIF(W$5:W28,W28)-1) ->  | AB28: =IF('ENTRY-NILAI'!$L37="A",'ENTRY-NILAI'!$AT37,"") ->  | AC28: =IF('ENTRY-NILAI'!$L37="A",'ENTRY-NILAI'!$AS37,"") ->  | AJ28: =IF(AI28="","",RANK(AI28,AI$5:AI$604,0)+COUNTIF(AI$5:AI28,AI28)-1) ->  | AN28: =IF('ENTRY-NILAI'!$L37="A",'ENTRY-NILAI'!$BD37,"") ->  | AO28: =IF('ENTRY-NILAI'!$L37="A",'ENTRY-NILAI'!$BC37,"") ->  | AV28: =IF(AU28="","",RANK(AU28,AU$5:AU$604,0)+COUNTIF(AU$5:AU28,AU28)-1) ->  | AZ28: =IF('ENTRY-NILAI'!$L37="A",'ENTRY-NILAI'!$BN37,"") ->  | BA28: =IF('ENTRY-NILAI'!$L37="A",'ENTRY-NILAI'!$BM37,"") ->  | BH28: =IF(BG28="","",RANK(BG28,BG$5:BG$604,0)+COUNTIF(BG$5:BG28,BG28)-1) ->  | BL28: =IF('ENTRY-NILAI'!$L37="A",'ENTRY-NILAI'!$BX37,"") ->  | BM28: =IF('ENTRY-NILAI'!$L37="A",'ENTRY-NILAI'!$BW37,"") ->  | BT28: =IF(BS28="","",RANK(BS28,BS$5:BS$604,0)+COUNTIF(BS$5:BS28,BS28)-1) ->  | BY28: =IF('ENTRY-NILAI'!$L37="a",'ENTRY-NILAI'!FG37,"") ->  | BZ28: =IF('ENTRY-NILAI'!$L37="a",'ENTRY-NILAI'!AC37,"") ->  | CA28: =IF('ENTRY-NILAI'!$L37="a",'ENTRY-NILAI'!AM37,"") ->  | CB28: =IF('ENTRY-NILAI'!$L37="a",'ENTRY-NILAI'!AU37,"") ->  | CC28: =IF('ENTRY-NILAI'!$L37="a",'ENTRY-NILAI'!BE37,"") ->  | CD28: =IF('ENTRY-NILAI'!$L37="a",'ENTRY-NILAI'!BO37,"") ->  | CE28: =IF('ENTRY-NILAI'!$L37="a",'ENTRY-NILAI'!BY37,"") ->  | CF28: 24 | CG28: =IF('ENTRY-NILAI'!$L37="a",'ENTRY-NILAI'!AB37+'ENTRY-NILAI'!AL37+'ENTRY-NILAI'!AT37+'ENTRY-NILAI'!BD37+'ENTRY-NILAI'!BN37+'ENTRY-NILAI'!BX37,"") ->  | CO28: =IF(CN28="","",RANK(CN28,CN$5:CN$604,0)+COUNTIF(CN$5:CN28,CN28)-1) -> 
B29: 25 | C29: =IF('ENTRY-NILAI'!L38="A",'ENTRY-NILAI'!A38,"") ->  | D29: =IF('ENTRY-NILAI'!$L38="A",'ENTRY-NILAI'!AB38,"") ->  | E29: =IF('ENTRY-NILAI'!$L38="A",'ENTRY-NILAI'!AA38,"") ->  | L29: =IF(K29="","",RANK(K29,K$5:K$604,0)+COUNTIF(K$5:K29,K29)-1) ->  | P29: =IF('ENTRY-NILAI'!$L38="A",'ENTRY-NILAI'!$AL38,"") ->  | Q29: =IF('ENTRY-NILAI'!$L38="A",'ENTRY-NILAI'!$AK38,"") ->  | X29: =IF(W29="","",RANK(W29,W$5:W$604,0)+COUNTIF(W$5:W29,W29)-1) ->  | AB29: =IF('ENTRY-NILAI'!$L38="A",'ENTRY-NILAI'!$AT38,"") ->  | AC29: =IF('ENTRY-NILAI'!$L38="A",'ENTRY-NILAI'!$AS38,"") ->  | AJ29: =IF(AI29="","",RANK(AI29,AI$5:AI$604,0)+COUNTIF(AI$5:AI29,AI29)-1) ->  | AN29: =IF('ENTRY-NILAI'!$L38="A",'ENTRY-NILAI'!$BD38,"") ->  | AO29: =IF('ENTRY-NILAI'!$L38="A",'ENTRY-NILAI'!$BC38,"") ->  | AV29: =IF(AU29="","",RANK(AU29,AU$5:AU$604,0)+COUNTIF(AU$5:AU29,AU29)-1) ->  | AZ29: =IF('ENTRY-NILAI'!$L38="A",'ENTRY-NILAI'!$BN38,"") ->  | BA29: =IF('ENTRY-NILAI'!$L38="A",'ENTRY-NILAI'!$BM38,"") ->  | BH29: =IF(BG29="","",RANK(BG29,BG$5:BG$604,0)+COUNTIF(BG$5:BG29,BG29)-1) ->  | BL29: =IF('ENTRY-NILAI'!$L38="A",'ENTRY-NILAI'!$BX38,"") ->  | BM29: =IF('ENTRY-NILAI'!$L38="A",'ENTRY-NILAI'!$BW38,"") ->  | BT29: =IF(BS29="","",RANK(BS29,BS$5:BS$604,0)+COUNTIF(BS$5:BS29,BS29)-1) ->  | BY29: =IF('ENTRY-NILAI'!$L38="a",'ENTRY-NILAI'!FG38,"") ->  | BZ29: =IF('ENTRY-NILAI'!$L38="a",'ENTRY-NILAI'!AC38,"") ->  | CA29: =IF('ENTRY-NILAI'!$L38="a",'ENTRY-NILAI'!AM38,"") ->  | CB29: =IF('ENTRY-NILAI'!$L38="a",'ENTRY-NILAI'!AU38,"") ->  | CC29: =IF('ENTRY-NILAI'!$L38="a",'ENTRY-NILAI'!BE38,"") ->  | CD29: =IF('ENTRY-NILAI'!$L38="a",'ENTRY-NILAI'!BO38,"") ->  | CE29: =IF('ENTRY-NILAI'!$L38="a",'ENTRY-NILAI'!BY38,"") ->  | CF29: 25 | CG29: =IF('ENTRY-NILAI'!$L38="a",'ENTRY-NILAI'!AB38+'ENTRY-NILAI'!AL38+'ENTRY-NILAI'!AT38+'ENTRY-NILAI'!BD38+'ENTRY-NILAI'!BN38+'ENTRY-NILAI'!BX38,"") ->  | CO29: =IF(CN29="","",RANK(CN29,CN$5:CN$604,0)+COUNTIF(CN$5:CN29,CN29)-1) -> 
B30: 26 | C30: =IF('ENTRY-NILAI'!L39="A",'ENTRY-NILAI'!A39,"") ->  | D30: =IF('ENTRY-NILAI'!$L39="A",'ENTRY-NILAI'!AB39,"") ->  | E30: =IF('ENTRY-NILAI'!$L39="A",'ENTRY-NILAI'!AA39,"") ->  | L30: =IF(K30="","",RANK(K30,K$5:K$604,0)+COUNTIF(K$5:K30,K30)-1) ->  | P30: =IF('ENTRY-NILAI'!$L39="A",'ENTRY-NILAI'!$AL39,"") ->  | Q30: =IF('ENTRY-NILAI'!$L39="A",'ENTRY-NILAI'!$AK39,"") ->  | X30: =IF(W30="","",RANK(W30,W$5:W$604,0)+COUNTIF(W$5:W30,W30)-1) ->  | AB30: =IF('ENTRY-NILAI'!$L39="A",'ENTRY-NILAI'!$AT39,"") ->  | AC30: =IF('ENTRY-NILAI'!$L39="A",'ENTRY-NILAI'!$AS39,"") ->  | AJ30: =IF(AI30="","",RANK(AI30,AI$5:AI$604,0)+COUNTIF(AI$5:AI30,AI30)-1) ->  | AN30: =IF('ENTRY-NILAI'!$L39="A",'ENTRY-NILAI'!$BD39,"") ->  | AO30: =IF('ENTRY-NILAI'!$L39="A",'ENTRY-NILAI'!$BC39,"") ->  | AV30: =IF(AU30="","",RANK(AU30,AU$5:AU$604,0)+COUNTIF(AU$5:AU30,AU30)-1) ->  | AZ30: =IF('ENTRY-NILAI'!$L39="A",'ENTRY-NILAI'!$BN39,"") ->  | BA30: =IF('ENTRY-NILAI'!$L39="A",'ENTRY-NILAI'!$BM39,"") ->  | BH30: =IF(BG30="","",RANK(BG30,BG$5:BG$604,0)+COUNTIF(BG$5:BG30,BG30)-1) ->  | BL30: =IF('ENTRY-NILAI'!$L39="A",'ENTRY-NILAI'!$BX39,"") ->  | BM30: =IF('ENTRY-NILAI'!$L39="A",'ENTRY-NILAI'!$BW39,"") ->  | BT30: =IF(BS30="","",RANK(BS30,BS$5:BS$604,0)+COUNTIF(BS$5:BS30,BS30)-1) ->  | BY30: =IF('ENTRY-NILAI'!$L39="a",'ENTRY-NILAI'!FG39,"") ->  | BZ30: =IF('ENTRY-NILAI'!$L39="a",'ENTRY-NILAI'!AC39,"") ->  | CA30: =IF('ENTRY-NILAI'!$L39="a",'ENTRY-NILAI'!AM39,"") ->  | CB30: =IF('ENTRY-NILAI'!$L39="a",'ENTRY-NILAI'!AU39,"") ->  | CC30: =IF('ENTRY-NILAI'!$L39="a",'ENTRY-NILAI'!BE39,"") ->  | CD30: =IF('ENTRY-NILAI'!$L39="a",'ENTRY-NILAI'!BO39,"") ->  | CE30: =IF('ENTRY-NILAI'!$L39="a",'ENTRY-NILAI'!BY39,"") ->  | CF30: 26 | CG30: =IF('ENTRY-NILAI'!$L39="a",'ENTRY-NILAI'!AB39+'ENTRY-NILAI'!AL39+'ENTRY-NILAI'!AT39+'ENTRY-NILAI'!BD39+'ENTRY-NILAI'!BN39+'ENTRY-NILAI'!BX39,"") ->  | CO30: =IF(CN30="","",RANK(CN30,CN$5:CN$604,0)+COUNTIF(CN$5:CN30,CN30)-1) -> 
B31: 27 | C31: =IF('ENTRY-NILAI'!L40="A",'ENTRY-NILAI'!A40,"") ->  | D31: =IF('ENTRY-NILAI'!$L40="A",'ENTRY-NILAI'!AB40,"") ->  | E31: =IF('ENTRY-NILAI'!$L40="A",'ENTRY-NILAI'!AA40,"") ->  | L31: =IF(K31="","",RANK(K31,K$5:K$604,0)+COUNTIF(K$5:K31,K31)-1) ->  | P31: =IF('ENTRY-NILAI'!$L40="A",'ENTRY-NILAI'!$AL40,"") ->  | Q31: =IF('ENTRY-NILAI'!$L40="A",'ENTRY-NILAI'!$AK40,"") ->  | X31: =IF(W31="","",RANK(W31,W$5:W$604,0)+COUNTIF(W$5:W31,W31)-1) ->  | AB31: =IF('ENTRY-NILAI'!$L40="A",'ENTRY-NILAI'!$AT40,"") ->  | AC31: =IF('ENTRY-NILAI'!$L40="A",'ENTRY-NILAI'!$AS40,"") ->  | AJ31: =IF(AI31="","",RANK(AI31,AI$5:AI$604,0)+COUNTIF(AI$5:AI31,AI31)-1) ->  | AN31: =IF('ENTRY-NILAI'!$L40="A",'ENTRY-NILAI'!$BD40,"") ->  | AO31: =IF('ENTRY-NILAI'!$L40="A",'ENTRY-NILAI'!$BC40,"") ->  | AV31: =IF(AU31="","",RANK(AU31,AU$5:AU$604,0)+COUNTIF(AU$5:AU31,AU31)-1) ->  | AZ31: =IF('ENTRY-NILAI'!$L40="A",'ENTRY-NILAI'!$BN40,"") ->  | BA31: =IF('ENTRY-NILAI'!$L40="A",'ENTRY-NILAI'!$BM40,"") ->  | BH31: =IF(BG31="","",RANK(BG31,BG$5:BG$604,0)+COUNTIF(BG$5:BG31,BG31)-1) ->  | BL31: =IF('ENTRY-NILAI'!$L40="A",'ENTRY-NILAI'!$BX40,"") ->  | BM31: =IF('ENTRY-NILAI'!$L40="A",'ENTRY-NILAI'!$BW40,"") ->  | BT31: =IF(BS31="","",RANK(BS31,BS$5:BS$604,0)+COUNTIF(BS$5:BS31,BS31)-1) ->  | BY31: =IF('ENTRY-NILAI'!$L40="a",'ENTRY-NILAI'!FG40,"") ->  | BZ31: =IF('ENTRY-NILAI'!$L40="a",'ENTRY-NILAI'!AC40,"") ->  | CA31: =IF('ENTRY-NILAI'!$L40="a",'ENTRY-NILAI'!AM40,"") ->  | CB31: =IF('ENTRY-NILAI'!$L40="a",'ENTRY-NILAI'!AU40,"") ->  | CC31: =IF('ENTRY-NILAI'!$L40="a",'ENTRY-NILAI'!BE40,"") ->  | CD31: =IF('ENTRY-NILAI'!$L40="a",'ENTRY-NILAI'!BO40,"") ->  | CE31: =IF('ENTRY-NILAI'!$L40="a",'ENTRY-NILAI'!BY40,"") ->  | CF31: 27 | CG31: =IF('ENTRY-NILAI'!$L40="a",'ENTRY-NILAI'!AB40+'ENTRY-NILAI'!AL40+'ENTRY-NILAI'!AT40+'ENTRY-NILAI'!BD40+'ENTRY-NILAI'!BN40+'ENTRY-NILAI'!BX40,"") ->  | CO31: =IF(CN31="","",RANK(CN31,CN$5:CN$604,0)+COUNTIF(CN$5:CN31,CN31)-1) -> 
B32: 28 | C32: =IF('ENTRY-NILAI'!L41="A",'ENTRY-NILAI'!A41,"") ->  | D32: =IF('ENTRY-NILAI'!$L41="A",'ENTRY-NILAI'!AB41,"") ->  | E32: =IF('ENTRY-NILAI'!$L41="A",'ENTRY-NILAI'!AA41,"") ->  | L32: =IF(K32="","",RANK(K32,K$5:K$604,0)+COUNTIF(K$5:K32,K32)-1) ->  | P32: =IF('ENTRY-NILAI'!$L41="A",'ENTRY-NILAI'!$AL41,"") ->  | Q32: =IF('ENTRY-NILAI'!$L41="A",'ENTRY-NILAI'!$AK41,"") ->  | X32: =IF(W32="","",RANK(W32,W$5:W$604,0)+COUNTIF(W$5:W32,W32)-1) ->  | AB32: =IF('ENTRY-NILAI'!$L41="A",'ENTRY-NILAI'!$AT41,"") ->  | AC32: =IF('ENTRY-NILAI'!$L41="A",'ENTRY-NILAI'!$AS41,"") ->  | AJ32: =IF(AI32="","",RANK(AI32,AI$5:AI$604,0)+COUNTIF(AI$5:AI32,AI32)-1) ->  | AN32: =IF('ENTRY-NILAI'!$L41="A",'ENTRY-NILAI'!$BD41,"") ->  | AO32: =IF('ENTRY-NILAI'!$L41="A",'ENTRY-NILAI'!$BC41,"") ->  | AV32: =IF(AU32="","",RANK(AU32,AU$5:AU$604,0)+COUNTIF(AU$5:AU32,AU32)-1) ->  | AZ32: =IF('ENTRY-NILAI'!$L41="A",'ENTRY-NILAI'!$BN41,"") ->  | BA32: =IF('ENTRY-NILAI'!$L41="A",'ENTRY-NILAI'!$BM41,"") ->  | BH32: =IF(BG32="","",RANK(BG32,BG$5:BG$604,0)+COUNTIF(BG$5:BG32,BG32)-1) ->  | BL32: =IF('ENTRY-NILAI'!$L41="A",'ENTRY-NILAI'!$BX41,"") ->  | BM32: =IF('ENTRY-NILAI'!$L41="A",'ENTRY-NILAI'!$BW41,"") ->  | BT32: =IF(BS32="","",RANK(BS32,BS$5:BS$604,0)+COUNTIF(BS$5:BS32,BS32)-1) ->  | BY32: =IF('ENTRY-NILAI'!$L41="a",'ENTRY-NILAI'!FG41,"") ->  | BZ32: =IF('ENTRY-NILAI'!$L41="a",'ENTRY-NILAI'!AC41,"") ->  | CA32: =IF('ENTRY-NILAI'!$L41="a",'ENTRY-NILAI'!AM41,"") ->  | CB32: =IF('ENTRY-NILAI'!$L41="a",'ENTRY-NILAI'!AU41,"") ->  | CC32: =IF('ENTRY-NILAI'!$L41="a",'ENTRY-NILAI'!BE41,"") ->  | CD32: =IF('ENTRY-NILAI'!$L41="a",'ENTRY-NILAI'!BO41,"") ->  | CE32: =IF('ENTRY-NILAI'!$L41="a",'ENTRY-NILAI'!BY41,"") ->  | CF32: 28 | CG32: =IF('ENTRY-NILAI'!$L41="a",'ENTRY-NILAI'!AB41+'ENTRY-NILAI'!AL41+'ENTRY-NILAI'!AT41+'ENTRY-NILAI'!BD41+'ENTRY-NILAI'!BN41+'ENTRY-NILAI'!BX41,"") ->  | CO32: =IF(CN32="","",RANK(CN32,CN$5:CN$604,0)+COUNTIF(CN$5:CN32,CN32)-1) -> 
B33: 29 | C33: =IF('ENTRY-NILAI'!L42="A",'ENTRY-NILAI'!A42,"") ->  | D33: =IF('ENTRY-NILAI'!$L42="A",'ENTRY-NILAI'!AB42,"") ->  | E33: =IF('ENTRY-NILAI'!$L42="A",'ENTRY-NILAI'!AA42,"") ->  | L33: =IF(K33="","",RANK(K33,K$5:K$604,0)+COUNTIF(K$5:K33,K33)-1) ->  | P33: =IF('ENTRY-NILAI'!$L42="A",'ENTRY-NILAI'!$AL42,"") ->  | Q33: =IF('ENTRY-NILAI'!$L42="A",'ENTRY-NILAI'!$AK42,"") ->  | X33: =IF(W33="","",RANK(W33,W$5:W$604,0)+COUNTIF(W$5:W33,W33)-1) ->  | AB33: =IF('ENTRY-NILAI'!$L42="A",'ENTRY-NILAI'!$AT42,"") ->  | AC33: =IF('ENTRY-NILAI'!$L42="A",'ENTRY-NILAI'!$AS42,"") ->  | AJ33: =IF(AI33="","",RANK(AI33,AI$5:AI$604,0)+COUNTIF(AI$5:AI33,AI33)-1) ->  | AN33: =IF('ENTRY-NILAI'!$L42="A",'ENTRY-NILAI'!$BD42,"") ->  | AO33: =IF('ENTRY-NILAI'!$L42="A",'ENTRY-NILAI'!$BC42,"") ->  | AV33: =IF(AU33="","",RANK(AU33,AU$5:AU$604,0)+COUNTIF(AU$5:AU33,AU33)-1) ->  | AZ33: =IF('ENTRY-NILAI'!$L42="A",'ENTRY-NILAI'!$BN42,"") ->  | BA33: =IF('ENTRY-NILAI'!$L42="A",'ENTRY-NILAI'!$BM42,"") ->  | BH33: =IF(BG33="","",RANK(BG33,BG$5:BG$604,0)+COUNTIF(BG$5:BG33,BG33)-1) ->  | BL33: =IF('ENTRY-NILAI'!$L42="A",'ENTRY-NILAI'!$BX42,"") ->  | BM33: =IF('ENTRY-NILAI'!$L42="A",'ENTRY-NILAI'!$BW42,"") ->  | BT33: =IF(BS33="","",RANK(BS33,BS$5:BS$604,0)+COUNTIF(BS$5:BS33,BS33)-1) ->  | BY33: =IF('ENTRY-NILAI'!$L42="a",'ENTRY-NILAI'!FG42,"") ->  | BZ33: =IF('ENTRY-NILAI'!$L42="a",'ENTRY-NILAI'!AC42,"") ->  | CA33: =IF('ENTRY-NILAI'!$L42="a",'ENTRY-NILAI'!AM42,"") ->  | CB33: =IF('ENTRY-NILAI'!$L42="a",'ENTRY-NILAI'!AU42,"") ->  | CC33: =IF('ENTRY-NILAI'!$L42="a",'ENTRY-NILAI'!BE42,"") ->  | CD33: =IF('ENTRY-NILAI'!$L42="a",'ENTRY-NILAI'!BO42,"") ->  | CE33: =IF('ENTRY-NILAI'!$L42="a",'ENTRY-NILAI'!BY42,"") ->  | CF33: 29 | CG33: =IF('ENTRY-NILAI'!$L42="a",'ENTRY-NILAI'!AB42+'ENTRY-NILAI'!AL42+'ENTRY-NILAI'!AT42+'ENTRY-NILAI'!BD42+'ENTRY-NILAI'!BN42+'ENTRY-NILAI'!BX42,"") ->  | CO33: =IF(CN33="","",RANK(CN33,CN$5:CN$604,0)+COUNTIF(CN$5:CN33,CN33)-1) -> 
B34: 30 | C34: =IF('ENTRY-NILAI'!L43="A",'ENTRY-NILAI'!A43,"") ->  | D34: =IF('ENTRY-NILAI'!$L43="A",'ENTRY-NILAI'!AB43,"") ->  | E34: =IF('ENTRY-NILAI'!$L43="A",'ENTRY-NILAI'!AA43,"") ->  | L34: =IF(K34="","",RANK(K34,K$5:K$604,0)+COUNTIF(K$5:K34,K34)-1) ->  | P34: =IF('ENTRY-NILAI'!$L43="A",'ENTRY-NILAI'!$AL43,"") ->  | Q34: =IF('ENTRY-NILAI'!$L43="A",'ENTRY-NILAI'!$AK43,"") ->  | X34: =IF(W34="","",RANK(W34,W$5:W$604,0)+COUNTIF(W$5:W34,W34)-1) ->  | AB34: =IF('ENTRY-NILAI'!$L43="A",'ENTRY-NILAI'!$AT43,"") ->  | AC34: =IF('ENTRY-NILAI'!$L43="A",'ENTRY-NILAI'!$AS43,"") ->  | AJ34: =IF(AI34="","",RANK(AI34,AI$5:AI$604,0)+COUNTIF(AI$5:AI34,AI34)-1) ->  | AN34: =IF('ENTRY-NILAI'!$L43="A",'ENTRY-NILAI'!$BD43,"") ->  | AO34: =IF('ENTRY-NILAI'!$L43="A",'ENTRY-NILAI'!$BC43,"") ->  | AV34: =IF(AU34="","",RANK(AU34,AU$5:AU$604,0)+COUNTIF(AU$5:AU34,AU34)-1) ->  | AZ34: =IF('ENTRY-NILAI'!$L43="A",'ENTRY-NILAI'!$BN43,"") ->  | BA34: =IF('ENTRY-NILAI'!$L43="A",'ENTRY-NILAI'!$BM43,"") ->  | BH34: =IF(BG34="","",RANK(BG34,BG$5:BG$604,0)+COUNTIF(BG$5:BG34,BG34)-1) ->  | BL34: =IF('ENTRY-NILAI'!$L43="A",'ENTRY-NILAI'!$BX43,"") ->  | BM34: =IF('ENTRY-NILAI'!$L43="A",'ENTRY-NILAI'!$BW43,"") ->  | BT34: =IF(BS34="","",RANK(BS34,BS$5:BS$604,0)+COUNTIF(BS$5:BS34,BS34)-1) ->  | BY34: =IF('ENTRY-NILAI'!$L43="a",'ENTRY-NILAI'!FG43,"") ->  | BZ34: =IF('ENTRY-NILAI'!$L43="a",'ENTRY-NILAI'!AC43,"") ->  | CA34: =IF('ENTRY-NILAI'!$L43="a",'ENTRY-NILAI'!AM43,"") ->  | CB34: =IF('ENTRY-NILAI'!$L43="a",'ENTRY-NILAI'!AU43,"") ->  | CC34: =IF('ENTRY-NILAI'!$L43="a",'ENTRY-NILAI'!BE43,"") ->  | CD34: =IF('ENTRY-NILAI'!$L43="a",'ENTRY-NILAI'!BO43,"") ->  | CE34: =IF('ENTRY-NILAI'!$L43="a",'ENTRY-NILAI'!BY43,"") ->  | CF34: 30 | CG34: =IF('ENTRY-NILAI'!$L43="a",'ENTRY-NILAI'!AB43+'ENTRY-NILAI'!AL43+'ENTRY-NILAI'!AT43+'ENTRY-NILAI'!BD43+'ENTRY-NILAI'!BN43+'ENTRY-NILAI'!BX43,"") ->  | CO34: =IF(CN34="","",RANK(CN34,CN$5:CN$604,0)+COUNTIF(CN$5:CN34,CN34)-1) -> 
B35: 31 | C35: =IF('ENTRY-NILAI'!L44="A",'ENTRY-NILAI'!A44,"") ->  | D35: =IF('ENTRY-NILAI'!$L44="A",'ENTRY-NILAI'!AB44,"") ->  | E35: =IF('ENTRY-NILAI'!$L44="A",'ENTRY-NILAI'!AA44,"") ->  | L35: =IF(K35="","",RANK(K35,K$5:K$604,0)+COUNTIF(K$5:K35,K35)-1) ->  | P35: =IF('ENTRY-NILAI'!$L44="A",'ENTRY-NILAI'!$AL44,"") ->  | Q35: =IF('ENTRY-NILAI'!$L44="A",'ENTRY-NILAI'!$AK44,"") ->  | X35: =IF(W35="","",RANK(W35,W$5:W$604,0)+COUNTIF(W$5:W35,W35)-1) ->  | AB35: =IF('ENTRY-NILAI'!$L44="A",'ENTRY-NILAI'!$AT44,"") ->  | AC35: =IF('ENTRY-NILAI'!$L44="A",'ENTRY-NILAI'!$AS44,"") ->  | AJ35: =IF(AI35="","",RANK(AI35,AI$5:AI$604,0)+COUNTIF(AI$5:AI35,AI35)-1) ->  | AN35: =IF('ENTRY-NILAI'!$L44="A",'ENTRY-NILAI'!$BD44,"") ->  | AO35: =IF('ENTRY-NILAI'!$L44="A",'ENTRY-NILAI'!$BC44,"") ->  | AV35: =IF(AU35="","",RANK(AU35,AU$5:AU$604,0)+COUNTIF(AU$5:AU35,AU35)-1) ->  | AZ35: =IF('ENTRY-NILAI'!$L44="A",'ENTRY-NILAI'!$BN44,"") ->  | BA35: =IF('ENTRY-NILAI'!$L44="A",'ENTRY-NILAI'!$BM44,"") ->  | BH35: =IF(BG35="","",RANK(BG35,BG$5:BG$604,0)+COUNTIF(BG$5:BG35,BG35)-1) ->  | BL35: =IF('ENTRY-NILAI'!$L44="A",'ENTRY-NILAI'!$BX44,"") ->  | BM35: =IF('ENTRY-NILAI'!$L44="A",'ENTRY-NILAI'!$BW44,"") ->  | BT35: =IF(BS35="","",RANK(BS35,BS$5:BS$604,0)+COUNTIF(BS$5:BS35,BS35)-1) ->  | BY35: =IF('ENTRY-NILAI'!$L44="a",'ENTRY-NILAI'!FG44,"") ->  | BZ35: =IF('ENTRY-NILAI'!$L44="a",'ENTRY-NILAI'!AC44,"") ->  | CA35: =IF('ENTRY-NILAI'!$L44="a",'ENTRY-NILAI'!AM44,"") ->  | CB35: =IF('ENTRY-NILAI'!$L44="a",'ENTRY-NILAI'!AU44,"") ->  | CC35: =IF('ENTRY-NILAI'!$L44="a",'ENTRY-NILAI'!BE44,"") ->  | CD35: =IF('ENTRY-NILAI'!$L44="a",'ENTRY-NILAI'!BO44,"") ->  | CE35: =IF('ENTRY-NILAI'!$L44="a",'ENTRY-NILAI'!BY44,"") ->  | CF35: 31 | CG35: =IF('ENTRY-NILAI'!$L44="a",'ENTRY-NILAI'!AB44+'ENTRY-NILAI'!AL44+'ENTRY-NILAI'!AT44+'ENTRY-NILAI'!BD44+'ENTRY-NILAI'!BN44+'ENTRY-NILAI'!BX44,"") ->  | CO35: =IF(CN35="","",RANK(CN35,CN$5:CN$604,0)+COUNTIF(CN$5:CN35,CN35)-1) -> 
B36: 32 | C36: =IF('ENTRY-NILAI'!L45="A",'ENTRY-NILAI'!A45,"") ->  | D36: =IF('ENTRY-NILAI'!$L45="A",'ENTRY-NILAI'!AB45,"") ->  | E36: =IF('ENTRY-NILAI'!$L45="A",'ENTRY-NILAI'!AA45,"") ->  | L36: =IF(K36="","",RANK(K36,K$5:K$604,0)+COUNTIF(K$5:K36,K36)-1) ->  | P36: =IF('ENTRY-NILAI'!$L45="A",'ENTRY-NILAI'!$AL45,"") ->  | Q36: =IF('ENTRY-NILAI'!$L45="A",'ENTRY-NILAI'!$AK45,"") ->  | X36: =IF(W36="","",RANK(W36,W$5:W$604,0)+COUNTIF(W$5:W36,W36)-1) ->  | AB36: =IF('ENTRY-NILAI'!$L45="A",'ENTRY-NILAI'!$AT45,"") ->  | AC36: =IF('ENTRY-NILAI'!$L45="A",'ENTRY-NILAI'!$AS45,"") ->  | AJ36: =IF(AI36="","",RANK(AI36,AI$5:AI$604,0)+COUNTIF(AI$5:AI36,AI36)-1) ->  | AN36: =IF('ENTRY-NILAI'!$L45="A",'ENTRY-NILAI'!$BD45,"") ->  | AO36: =IF('ENTRY-NILAI'!$L45="A",'ENTRY-NILAI'!$BC45,"") ->  | AV36: =IF(AU36="","",RANK(AU36,AU$5:AU$604,0)+COUNTIF(AU$5:AU36,AU36)-1) ->  | AZ36: =IF('ENTRY-NILAI'!$L45="A",'ENTRY-NILAI'!$BN45,"") ->  | BA36: =IF('ENTRY-NILAI'!$L45="A",'ENTRY-NILAI'!$BM45,"") ->  | BH36: =IF(BG36="","",RANK(BG36,BG$5:BG$604,0)+COUNTIF(BG$5:BG36,BG36)-1) ->  | BL36: =IF('ENTRY-NILAI'!$L45="A",'ENTRY-NILAI'!$BX45,"") ->  | BM36: =IF('ENTRY-NILAI'!$L45="A",'ENTRY-NILAI'!$BW45,"") ->  | BT36: =IF(BS36="","",RANK(BS36,BS$5:BS$604,0)+COUNTIF(BS$5:BS36,BS36)-1) ->  | BY36: =IF('ENTRY-NILAI'!$L45="a",'ENTRY-NILAI'!FG45,"") ->  | BZ36: =IF('ENTRY-NILAI'!$L45="a",'ENTRY-NILAI'!AC45,"") ->  | CA36: =IF('ENTRY-NILAI'!$L45="a",'ENTRY-NILAI'!AM45,"") ->  | CB36: =IF('ENTRY-NILAI'!$L45="a",'ENTRY-NILAI'!AU45,"") ->  | CC36: =IF('ENTRY-NILAI'!$L45="a",'ENTRY-NILAI'!BE45,"") ->  | CD36: =IF('ENTRY-NILAI'!$L45="a",'ENTRY-NILAI'!BO45,"") ->  | CE36: =IF('ENTRY-NILAI'!$L45="a",'ENTRY-NILAI'!BY45,"") ->  | CF36: 32 | CG36: =IF('ENTRY-NILAI'!$L45="a",'ENTRY-NILAI'!AB45+'ENTRY-NILAI'!AL45+'ENTRY-NILAI'!AT45+'ENTRY-NILAI'!BD45+'ENTRY-NILAI'!BN45+'ENTRY-NILAI'!BX45,"") ->  | CO36: =IF(CN36="","",RANK(CN36,CN$5:CN$604,0)+COUNTIF(CN$5:CN36,CN36)-1) -> 
B37: 33 | C37: =IF('ENTRY-NILAI'!L46="A",'ENTRY-NILAI'!A46,"") ->  | D37: =IF('ENTRY-NILAI'!$L46="A",'ENTRY-NILAI'!AB46,"") ->  | E37: =IF('ENTRY-NILAI'!$L46="A",'ENTRY-NILAI'!AA46,"") ->  | L37: =IF(K37="","",RANK(K37,K$5:K$604,0)+COUNTIF(K$5:K37,K37)-1) ->  | P37: =IF('ENTRY-NILAI'!$L46="A",'ENTRY-NILAI'!$AL46,"") ->  | Q37: =IF('ENTRY-NILAI'!$L46="A",'ENTRY-NILAI'!$AK46,"") ->  | X37: =IF(W37="","",RANK(W37,W$5:W$604,0)+COUNTIF(W$5:W37,W37)-1) ->  | AB37: =IF('ENTRY-NILAI'!$L46="A",'ENTRY-NILAI'!$AT46,"") ->  | AC37: =IF('ENTRY-NILAI'!$L46="A",'ENTRY-NILAI'!$AS46,"") ->  | AJ37: =IF(AI37="","",RANK(AI37,AI$5:AI$604,0)+COUNTIF(AI$5:AI37,AI37)-1) ->  | AN37: =IF('ENTRY-NILAI'!$L46="A",'ENTRY-NILAI'!$BD46,"") ->  | AO37: =IF('ENTRY-NILAI'!$L46="A",'ENTRY-NILAI'!$BC46,"") ->  | AV37: =IF(AU37="","",RANK(AU37,AU$5:AU$604,0)+COUNTIF(AU$5:AU37,AU37)-1) ->  | AZ37: =IF('ENTRY-NILAI'!$L46="A",'ENTRY-NILAI'!$BN46,"") ->  | BA37: =IF('ENTRY-NILAI'!$L46="A",'ENTRY-NILAI'!$BM46,"") ->  | BH37: =IF(BG37="","",RANK(BG37,BG$5:BG$604,0)+COUNTIF(BG$5:BG37,BG37)-1) ->  | BL37: =IF('ENTRY-NILAI'!$L46="A",'ENTRY-NILAI'!$BX46,"") ->  | BM37: =IF('ENTRY-NILAI'!$L46="A",'ENTRY-NILAI'!$BW46,"") ->  | BT37: =IF(BS37="","",RANK(BS37,BS$5:BS$604,0)+COUNTIF(BS$5:BS37,BS37)-1) ->  | BY37: =IF('ENTRY-NILAI'!$L46="a",'ENTRY-NILAI'!FG46,"") ->  | BZ37: =IF('ENTRY-NILAI'!$L46="a",'ENTRY-NILAI'!AC46,"") ->  | CA37: =IF('ENTRY-NILAI'!$L46="a",'ENTRY-NILAI'!AM46,"") ->  | CB37: =IF('ENTRY-NILAI'!$L46="a",'ENTRY-NILAI'!AU46,"") ->  | CC37: =IF('ENTRY-NILAI'!$L46="a",'ENTRY-NILAI'!BE46,"") ->  | CD37: =IF('ENTRY-NILAI'!$L46="a",'ENTRY-NILAI'!BO46,"") ->  | CE37: =IF('ENTRY-NILAI'!$L46="a",'ENTRY-NILAI'!BY46,"") ->  | CF37: 33 | CG37: =IF('ENTRY-NILAI'!$L46="a",'ENTRY-NILAI'!AB46+'ENTRY-NILAI'!AL46+'ENTRY-NILAI'!AT46+'ENTRY-NILAI'!BD46+'ENTRY-NILAI'!BN46+'ENTRY-NILAI'!BX46,"") ->  | CO37: =IF(CN37="","",RANK(CN37,CN$5:CN$604,0)+COUNTIF(CN$5:CN37,CN37)-1) -> 
B38: 34 | C38: =IF('ENTRY-NILAI'!L47="A",'ENTRY-NILAI'!A47,"") ->  | D38: =IF('ENTRY-NILAI'!$L47="A",'ENTRY-NILAI'!AB47,"") ->  | E38: =IF('ENTRY-NILAI'!$L47="A",'ENTRY-NILAI'!AA47,"") ->  | L38: =IF(K38="","",RANK(K38,K$5:K$604,0)+COUNTIF(K$5:K38,K38)-1) ->  | P38: =IF('ENTRY-NILAI'!$L47="A",'ENTRY-NILAI'!$AL47,"") ->  | Q38: =IF('ENTRY-NILAI'!$L47="A",'ENTRY-NILAI'!$AK47,"") ->  | X38: =IF(W38="","",RANK(W38,W$5:W$604,0)+COUNTIF(W$5:W38,W38)-1) ->  | AB38: =IF('ENTRY-NILAI'!$L47="A",'ENTRY-NILAI'!$AT47,"") ->  | AC38: =IF('ENTRY-NILAI'!$L47="A",'ENTRY-NILAI'!$AS47,"") ->  | AJ38: =IF(AI38="","",RANK(AI38,AI$5:AI$604,0)+COUNTIF(AI$5:AI38,AI38)-1) ->  | AN38: =IF('ENTRY-NILAI'!$L47="A",'ENTRY-NILAI'!$BD47,"") ->  | AO38: =IF('ENTRY-NILAI'!$L47="A",'ENTRY-NILAI'!$BC47,"") ->  | AV38: =IF(AU38="","",RANK(AU38,AU$5:AU$604,0)+COUNTIF(AU$5:AU38,AU38)-1) ->  | AZ38: =IF('ENTRY-NILAI'!$L47="A",'ENTRY-NILAI'!$BN47,"") ->  | BA38: =IF('ENTRY-NILAI'!$L47="A",'ENTRY-NILAI'!$BM47,"") ->  | BH38: =IF(BG38="","",RANK(BG38,BG$5:BG$604,0)+COUNTIF(BG$5:BG38,BG38)-1) ->  | BL38: =IF('ENTRY-NILAI'!$L47="A",'ENTRY-NILAI'!$BX47,"") ->  | BM38: =IF('ENTRY-NILAI'!$L47="A",'ENTRY-NILAI'!$BW47,"") ->  | BT38: =IF(BS38="","",RANK(BS38,BS$5:BS$604,0)+COUNTIF(BS$5:BS38,BS38)-1) ->  | BY38: =IF('ENTRY-NILAI'!$L47="a",'ENTRY-NILAI'!FG47,"") ->  | BZ38: =IF('ENTRY-NILAI'!$L47="a",'ENTRY-NILAI'!AC47,"") ->  | CA38: =IF('ENTRY-NILAI'!$L47="a",'ENTRY-NILAI'!AM47,"") ->  | CB38: =IF('ENTRY-NILAI'!$L47="a",'ENTRY-NILAI'!AU47,"") ->  | CC38: =IF('ENTRY-NILAI'!$L47="a",'ENTRY-NILAI'!BE47,"") ->  | CD38: =IF('ENTRY-NILAI'!$L47="a",'ENTRY-NILAI'!BO47,"") ->  | CE38: =IF('ENTRY-NILAI'!$L47="a",'ENTRY-NILAI'!BY47,"") ->  | CF38: 34 | CG38: =IF('ENTRY-NILAI'!$L47="a",'ENTRY-NILAI'!AB47+'ENTRY-NILAI'!AL47+'ENTRY-NILAI'!AT47+'ENTRY-NILAI'!BD47+'ENTRY-NILAI'!BN47+'ENTRY-NILAI'!BX47,"") ->  | CO38: =IF(CN38="","",RANK(CN38,CN$5:CN$604,0)+COUNTIF(CN$5:CN38,CN38)-1) -> 
B39: 35 | C39: =IF('ENTRY-NILAI'!L48="A",'ENTRY-NILAI'!A48,"") ->  | D39: =IF('ENTRY-NILAI'!$L48="A",'ENTRY-NILAI'!AB48,"") ->  | E39: =IF('ENTRY-NILAI'!$L48="A",'ENTRY-NILAI'!AA48,"") ->  | L39: =IF(K39="","",RANK(K39,K$5:K$604,0)+COUNTIF(K$5:K39,K39)-1) ->  | P39: =IF('ENTRY-NILAI'!$L48="A",'ENTRY-NILAI'!$AL48,"") ->  | Q39: =IF('ENTRY-NILAI'!$L48="A",'ENTRY-NILAI'!$AK48,"") ->  | X39: =IF(W39="","",RANK(W39,W$5:W$604,0)+COUNTIF(W$5:W39,W39)-1) ->  | AB39: =IF('ENTRY-NILAI'!$L48="A",'ENTRY-NILAI'!$AT48,"") ->  | AC39: =IF('ENTRY-NILAI'!$L48="A",'ENTRY-NILAI'!$AS48,"") ->  | AJ39: =IF(AI39="","",RANK(AI39,AI$5:AI$604,0)+COUNTIF(AI$5:AI39,AI39)-1) ->  | AN39: =IF('ENTRY-NILAI'!$L48="A",'ENTRY-NILAI'!$BD48,"") ->  | AO39: =IF('ENTRY-NILAI'!$L48="A",'ENTRY-NILAI'!$BC48,"") ->  | AV39: =IF(AU39="","",RANK(AU39,AU$5:AU$604,0)+COUNTIF(AU$5:AU39,AU39)-1) ->  | AZ39: =IF('ENTRY-NILAI'!$L48="A",'ENTRY-NILAI'!$BN48,"") ->  | BA39: =IF('ENTRY-NILAI'!$L48="A",'ENTRY-NILAI'!$BM48,"") ->  | BH39: =IF(BG39="","",RANK(BG39,BG$5:BG$604,0)+COUNTIF(BG$5:BG39,BG39)-1) ->  | BL39: =IF('ENTRY-NILAI'!$L48="A",'ENTRY-NILAI'!$BX48,"") ->  | BM39: =IF('ENTRY-NILAI'!$L48="A",'ENTRY-NILAI'!$BW48,"") ->  | BT39: =IF(BS39="","",RANK(BS39,BS$5:BS$604,0)+COUNTIF(BS$5:BS39,BS39)-1) ->  | BY39: =IF('ENTRY-NILAI'!$L48="a",'ENTRY-NILAI'!FG48,"") ->  | BZ39: =IF('ENTRY-NILAI'!$L48="a",'ENTRY-NILAI'!AC48,"") ->  | CA39: =IF('ENTRY-NILAI'!$L48="a",'ENTRY-NILAI'!AM48,"") ->  | CB39: =IF('ENTRY-NILAI'!$L48="a",'ENTRY-NILAI'!AU48,"") ->  | CC39: =IF('ENTRY-NILAI'!$L48="a",'ENTRY-NILAI'!BE48,"") ->  | CD39: =IF('ENTRY-NILAI'!$L48="a",'ENTRY-NILAI'!BO48,"") ->  | CE39: =IF('ENTRY-NILAI'!$L48="a",'ENTRY-NILAI'!BY48,"") ->  | CF39: 35 | CG39: =IF('ENTRY-NILAI'!$L48="a",'ENTRY-NILAI'!AB48+'ENTRY-NILAI'!AL48+'ENTRY-NILAI'!AT48+'ENTRY-NILAI'!BD48+'ENTRY-NILAI'!BN48+'ENTRY-NILAI'!BX48,"") ->  | CO39: =IF(CN39="","",RANK(CN39,CN$5:CN$604,0)+COUNTIF(CN$5:CN39,CN39)-1) -> 
B40: 36 | C40: =IF('ENTRY-NILAI'!L49="A",'ENTRY-NILAI'!A49,"") ->  | D40: =IF('ENTRY-NILAI'!$L49="A",'ENTRY-NILAI'!AB49,"") ->  | E40: =IF('ENTRY-NILAI'!$L49="A",'ENTRY-NILAI'!AA49,"") ->  | L40: =IF(K40="","",RANK(K40,K$5:K$604,0)+COUNTIF(K$5:K40,K40)-1) ->  | P40: =IF('ENTRY-NILAI'!$L49="A",'ENTRY-NILAI'!$AL49,"") ->  | Q40: =IF('ENTRY-NILAI'!$L49="A",'ENTRY-NILAI'!$AK49,"") ->  | X40: =IF(W40="","",RANK(W40,W$5:W$604,0)+COUNTIF(W$5:W40,W40)-1) ->  | AB40: =IF('ENTRY-NILAI'!$L49="A",'ENTRY-NILAI'!$AT49,"") ->  | AC40: =IF('ENTRY-NILAI'!$L49="A",'ENTRY-NILAI'!$AS49,"") ->  | AJ40: =IF(AI40="","",RANK(AI40,AI$5:AI$604,0)+COUNTIF(AI$5:AI40,AI40)-1) ->  | AN40: =IF('ENTRY-NILAI'!$L49="A",'ENTRY-NILAI'!$BD49,"") ->  | AO40: =IF('ENTRY-NILAI'!$L49="A",'ENTRY-NILAI'!$BC49,"") ->  | AV40: =IF(AU40="","",RANK(AU40,AU$5:AU$604,0)+COUNTIF(AU$5:AU40,AU40)-1) ->  | AZ40: =IF('ENTRY-NILAI'!$L49="A",'ENTRY-NILAI'!$BN49,"") ->  | BA40: =IF('ENTRY-NILAI'!$L49="A",'ENTRY-NILAI'!$BM49,"") ->  | BH40: =IF(BG40="","",RANK(BG40,BG$5:BG$604,0)+COUNTIF(BG$5:BG40,BG40)-1) ->  | BL40: =IF('ENTRY-NILAI'!$L49="A",'ENTRY-NILAI'!$BX49,"") ->  | BM40: =IF('ENTRY-NILAI'!$L49="A",'ENTRY-NILAI'!$BW49,"") ->  | BT40: =IF(BS40="","",RANK(BS40,BS$5:BS$604,0)+COUNTIF(BS$5:BS40,BS40)-1) ->  | BY40: =IF('ENTRY-NILAI'!$L49="a",'ENTRY-NILAI'!FG49,"") ->  | BZ40: =IF('ENTRY-NILAI'!$L49="a",'ENTRY-NILAI'!AC49,"") ->  | CA40: =IF('ENTRY-NILAI'!$L49="a",'ENTRY-NILAI'!AM49,"") ->  | CB40: =IF('ENTRY-NILAI'!$L49="a",'ENTRY-NILAI'!AU49,"") ->  | CC40: =IF('ENTRY-NILAI'!$L49="a",'ENTRY-NILAI'!BE49,"") ->  | CD40: =IF('ENTRY-NILAI'!$L49="a",'ENTRY-NILAI'!BO49,"") ->  | CE40: =IF('ENTRY-NILAI'!$L49="a",'ENTRY-NILAI'!BY49,"") ->  | CF40: 36 | CG40: =IF('ENTRY-NILAI'!$L49="a",'ENTRY-NILAI'!AB49+'ENTRY-NILAI'!AL49+'ENTRY-NILAI'!AT49+'ENTRY-NILAI'!BD49+'ENTRY-NILAI'!BN49+'ENTRY-NILAI'!BX49,"") ->  | CO40: =IF(CN40="","",RANK(CN40,CN$5:CN$604,0)+COUNTIF(CN$5:CN40,CN40)-1) -> 
B41: 37 | C41: =IF('ENTRY-NILAI'!L50="A",'ENTRY-NILAI'!A50,"") ->  | D41: =IF('ENTRY-NILAI'!$L50="A",'ENTRY-NILAI'!AB50,"") ->  | E41: =IF('ENTRY-NILAI'!$L50="A",'ENTRY-NILAI'!AA50,"") ->  | L41: =IF(K41="","",RANK(K41,K$5:K$604,0)+COUNTIF(K$5:K41,K41)-1) ->  | P41: =IF('ENTRY-NILAI'!$L50="A",'ENTRY-NILAI'!$AL50,"") ->  | Q41: =IF('ENTRY-NILAI'!$L50="A",'ENTRY-NILAI'!$AK50,"") ->  | X41: =IF(W41="","",RANK(W41,W$5:W$604,0)+COUNTIF(W$5:W41,W41)-1) ->  | AB41: =IF('ENTRY-NILAI'!$L50="A",'ENTRY-NILAI'!$AT50,"") ->  | AC41: =IF('ENTRY-NILAI'!$L50="A",'ENTRY-NILAI'!$AS50,"") ->  | AJ41: =IF(AI41="","",RANK(AI41,AI$5:AI$604,0)+COUNTIF(AI$5:AI41,AI41)-1) ->  | AN41: =IF('ENTRY-NILAI'!$L50="A",'ENTRY-NILAI'!$BD50,"") ->  | AO41: =IF('ENTRY-NILAI'!$L50="A",'ENTRY-NILAI'!$BC50,"") ->  | AV41: =IF(AU41="","",RANK(AU41,AU$5:AU$604,0)+COUNTIF(AU$5:AU41,AU41)-1) ->  | AZ41: =IF('ENTRY-NILAI'!$L50="A",'ENTRY-NILAI'!$BN50,"") ->  | BA41: =IF('ENTRY-NILAI'!$L50="A",'ENTRY-NILAI'!$BM50,"") ->  | BH41: =IF(BG41="","",RANK(BG41,BG$5:BG$604,0)+COUNTIF(BG$5:BG41,BG41)-1) ->  | BL41: =IF('ENTRY-NILAI'!$L50="A",'ENTRY-NILAI'!$BX50,"") ->  | BM41: =IF('ENTRY-NILAI'!$L50="A",'ENTRY-NILAI'!$BW50,"") ->  | BT41: =IF(BS41="","",RANK(BS41,BS$5:BS$604,0)+COUNTIF(BS$5:BS41,BS41)-1) ->  | BY41: =IF('ENTRY-NILAI'!$L50="a",'ENTRY-NILAI'!FG50,"") ->  | BZ41: =IF('ENTRY-NILAI'!$L50="a",'ENTRY-NILAI'!AC50,"") ->  | CA41: =IF('ENTRY-NILAI'!$L50="a",'ENTRY-NILAI'!AM50,"") ->  | CB41: =IF('ENTRY-NILAI'!$L50="a",'ENTRY-NILAI'!AU50,"") ->  | CC41: =IF('ENTRY-NILAI'!$L50="a",'ENTRY-NILAI'!BE50,"") ->  | CD41: =IF('ENTRY-NILAI'!$L50="a",'ENTRY-NILAI'!BO50,"") ->  | CE41: =IF('ENTRY-NILAI'!$L50="a",'ENTRY-NILAI'!BY50,"") ->  | CF41: 37 | CG41: =IF('ENTRY-NILAI'!$L50="a",'ENTRY-NILAI'!AB50+'ENTRY-NILAI'!AL50+'ENTRY-NILAI'!AT50+'ENTRY-NILAI'!BD50+'ENTRY-NILAI'!BN50+'ENTRY-NILAI'!BX50,"") ->  | CO41: =IF(CN41="","",RANK(CN41,CN$5:CN$604,0)+COUNTIF(CN$5:CN41,CN41)-1) -> 
B42: 38 | C42: =IF('ENTRY-NILAI'!L51="A",'ENTRY-NILAI'!A51,"") ->  | D42: =IF('ENTRY-NILAI'!$L51="A",'ENTRY-NILAI'!AB51,"") ->  | E42: =IF('ENTRY-NILAI'!$L51="A",'ENTRY-NILAI'!AA51,"") ->  | L42: =IF(K42="","",RANK(K42,K$5:K$604,0)+COUNTIF(K$5:K42,K42)-1) ->  | P42: =IF('ENTRY-NILAI'!$L51="A",'ENTRY-NILAI'!$AL51,"") ->  | Q42: =IF('ENTRY-NILAI'!$L51="A",'ENTRY-NILAI'!$AK51,"") ->  | X42: =IF(W42="","",RANK(W42,W$5:W$604,0)+COUNTIF(W$5:W42,W42)-1) ->  | AB42: =IF('ENTRY-NILAI'!$L51="A",'ENTRY-NILAI'!$AT51,"") ->  | AC42: =IF('ENTRY-NILAI'!$L51="A",'ENTRY-NILAI'!$AS51,"") ->  | AJ42: =IF(AI42="","",RANK(AI42,AI$5:AI$604,0)+COUNTIF(AI$5:AI42,AI42)-1) ->  | AN42: =IF('ENTRY-NILAI'!$L51="A",'ENTRY-NILAI'!$BD51,"") ->  | AO42: =IF('ENTRY-NILAI'!$L51="A",'ENTRY-NILAI'!$BC51,"") ->  | AV42: =IF(AU42="","",RANK(AU42,AU$5:AU$604,0)+COUNTIF(AU$5:AU42,AU42)-1) ->  | AZ42: =IF('ENTRY-NILAI'!$L51="A",'ENTRY-NILAI'!$BN51,"") ->  | BA42: =IF('ENTRY-NILAI'!$L51="A",'ENTRY-NILAI'!$BM51,"") ->  | BH42: =IF(BG42="","",RANK(BG42,BG$5:BG$604,0)+COUNTIF(BG$5:BG42,BG42)-1) ->  | BL42: =IF('ENTRY-NILAI'!$L51="A",'ENTRY-NILAI'!$BX51,"") ->  | BM42: =IF('ENTRY-NILAI'!$L51="A",'ENTRY-NILAI'!$BW51,"") ->  | BT42: =IF(BS42="","",RANK(BS42,BS$5:BS$604,0)+COUNTIF(BS$5:BS42,BS42)-1) ->  | BY42: =IF('ENTRY-NILAI'!$L51="a",'ENTRY-NILAI'!FG51,"") ->  | BZ42: =IF('ENTRY-NILAI'!$L51="a",'ENTRY-NILAI'!AC51,"") ->  | CA42: =IF('ENTRY-NILAI'!$L51="a",'ENTRY-NILAI'!AM51,"") ->  | CB42: =IF('ENTRY-NILAI'!$L51="a",'ENTRY-NILAI'!AU51,"") ->  | CC42: =IF('ENTRY-NILAI'!$L51="a",'ENTRY-NILAI'!BE51,"") ->  | CD42: =IF('ENTRY-NILAI'!$L51="a",'ENTRY-NILAI'!BO51,"") ->  | CE42: =IF('ENTRY-NILAI'!$L51="a",'ENTRY-NILAI'!BY51,"") ->  | CF42: 38 | CG42: =IF('ENTRY-NILAI'!$L51="a",'ENTRY-NILAI'!AB51+'ENTRY-NILAI'!AL51+'ENTRY-NILAI'!AT51+'ENTRY-NILAI'!BD51+'ENTRY-NILAI'!BN51+'ENTRY-NILAI'!BX51,"") ->  | CO42: =IF(CN42="","",RANK(CN42,CN$5:CN$604,0)+COUNTIF(CN$5:CN42,CN42)-1) -> 
B43: 39 | C43: =IF('ENTRY-NILAI'!L52="A",'ENTRY-NILAI'!A52,"") ->  | D43: =IF('ENTRY-NILAI'!$L52="A",'ENTRY-NILAI'!AB52,"") ->  | E43: =IF('ENTRY-NILAI'!$L52="A",'ENTRY-NILAI'!AA52,"") ->  | L43: =IF(K43="","",RANK(K43,K$5:K$604,0)+COUNTIF(K$5:K43,K43)-1) ->  | P43: =IF('ENTRY-NILAI'!$L52="A",'ENTRY-NILAI'!$AL52,"") ->  | Q43: =IF('ENTRY-NILAI'!$L52="A",'ENTRY-NILAI'!$AK52,"") ->  | X43: =IF(W43="","",RANK(W43,W$5:W$604,0)+COUNTIF(W$5:W43,W43)-1) ->  | AB43: =IF('ENTRY-NILAI'!$L52="A",'ENTRY-NILAI'!$AT52,"") ->  | AC43: =IF('ENTRY-NILAI'!$L52="A",'ENTRY-NILAI'!$AS52,"") ->  | AJ43: =IF(AI43="","",RANK(AI43,AI$5:AI$604,0)+COUNTIF(AI$5:AI43,AI43)-1) ->  | AN43: =IF('ENTRY-NILAI'!$L52="A",'ENTRY-NILAI'!$BD52,"") ->  | AO43: =IF('ENTRY-NILAI'!$L52="A",'ENTRY-NILAI'!$BC52,"") ->  | AV43: =IF(AU43="","",RANK(AU43,AU$5:AU$604,0)+COUNTIF(AU$5:AU43,AU43)-1) ->  | AZ43: =IF('ENTRY-NILAI'!$L52="A",'ENTRY-NILAI'!$BN52,"") ->  | BA43: =IF('ENTRY-NILAI'!$L52="A",'ENTRY-NILAI'!$BM52,"") ->  | BH43: =IF(BG43="","",RANK(BG43,BG$5:BG$604,0)+COUNTIF(BG$5:BG43,BG43)-1) ->  | BL43: =IF('ENTRY-NILAI'!$L52="A",'ENTRY-NILAI'!$BX52,"") ->  | BM43: =IF('ENTRY-NILAI'!$L52="A",'ENTRY-NILAI'!$BW52,"") ->  | BT43: =IF(BS43="","",RANK(BS43,BS$5:BS$604,0)+COUNTIF(BS$5:BS43,BS43)-1) ->  | BY43: =IF('ENTRY-NILAI'!$L52="a",'ENTRY-NILAI'!FG52,"") ->  | BZ43: =IF('ENTRY-NILAI'!$L52="a",'ENTRY-NILAI'!AC52,"") ->  | CA43: =IF('ENTRY-NILAI'!$L52="a",'ENTRY-NILAI'!AM52,"") ->  | CB43: =IF('ENTRY-NILAI'!$L52="a",'ENTRY-NILAI'!AU52,"") ->  | CC43: =IF('ENTRY-NILAI'!$L52="a",'ENTRY-NILAI'!BE52,"") ->  | CD43: =IF('ENTRY-NILAI'!$L52="a",'ENTRY-NILAI'!BO52,"") ->  | CE43: =IF('ENTRY-NILAI'!$L52="a",'ENTRY-NILAI'!BY52,"") ->  | CF43: 39 | CG43: =IF('ENTRY-NILAI'!$L52="a",'ENTRY-NILAI'!AB52+'ENTRY-NILAI'!AL52+'ENTRY-NILAI'!AT52+'ENTRY-NILAI'!BD52+'ENTRY-NILAI'!BN52+'ENTRY-NILAI'!BX52,"") ->  | CO43: =IF(CN43="","",RANK(CN43,CN$5:CN$604,0)+COUNTIF(CN$5:CN43,CN43)-1) -> 
B44: 40 | C44: =IF('ENTRY-NILAI'!L53="A",'ENTRY-NILAI'!A53,"") ->  | D44: =IF('ENTRY-NILAI'!$L53="A",'ENTRY-NILAI'!AB53,"") ->  | E44: =IF('ENTRY-NILAI'!$L53="A",'ENTRY-NILAI'!AA53,"") ->  | L44: =IF(K44="","",RANK(K44,K$5:K$604,0)+COUNTIF(K$5:K44,K44)-1) ->  | P44: =IF('ENTRY-NILAI'!$L53="A",'ENTRY-NILAI'!$AL53,"") ->  | Q44: =IF('ENTRY-NILAI'!$L53="A",'ENTRY-NILAI'!$AK53,"") ->  | X44: =IF(W44="","",RANK(W44,W$5:W$604,0)+COUNTIF(W$5:W44,W44)-1) ->  | AB44: =IF('ENTRY-NILAI'!$L53="A",'ENTRY-NILAI'!$AT53,"") ->  | AC44: =IF('ENTRY-NILAI'!$L53="A",'ENTRY-NILAI'!$AS53,"") ->  | AJ44: =IF(AI44="","",RANK(AI44,AI$5:AI$604,0)+COUNTIF(AI$5:AI44,AI44)-1) ->  | AN44: =IF('ENTRY-NILAI'!$L53="A",'ENTRY-NILAI'!$BD53,"") ->  | AO44: =IF('ENTRY-NILAI'!$L53="A",'ENTRY-NILAI'!$BC53,"") ->  | AV44: =IF(AU44="","",RANK(AU44,AU$5:AU$604,0)+COUNTIF(AU$5:AU44,AU44)-1) ->  | AZ44: =IF('ENTRY-NILAI'!$L53="A",'ENTRY-NILAI'!$BN53,"") ->  | BA44: =IF('ENTRY-NILAI'!$L53="A",'ENTRY-NILAI'!$BM53,"") ->  | BH44: =IF(BG44="","",RANK(BG44,BG$5:BG$604,0)+COUNTIF(BG$5:BG44,BG44)-1) ->  | BL44: =IF('ENTRY-NILAI'!$L53="A",'ENTRY-NILAI'!$BX53,"") ->  | BM44: =IF('ENTRY-NILAI'!$L53="A",'ENTRY-NILAI'!$BW53,"") ->  | BT44: =IF(BS44="","",RANK(BS44,BS$5:BS$604,0)+COUNTIF(BS$5:BS44,BS44)-1) ->  | BY44: =IF('ENTRY-NILAI'!$L53="a",'ENTRY-NILAI'!FG53,"") ->  | BZ44: =IF('ENTRY-NILAI'!$L53="a",'ENTRY-NILAI'!AC53,"") ->  | CA44: =IF('ENTRY-NILAI'!$L53="a",'ENTRY-NILAI'!AM53,"") ->  | CB44: =IF('ENTRY-NILAI'!$L53="a",'ENTRY-NILAI'!AU53,"") ->  | CC44: =IF('ENTRY-NILAI'!$L53="a",'ENTRY-NILAI'!BE53,"") ->  | CD44: =IF('ENTRY-NILAI'!$L53="a",'ENTRY-NILAI'!BO53,"") ->  | CE44: =IF('ENTRY-NILAI'!$L53="a",'ENTRY-NILAI'!BY53,"") ->  | CF44: 40 | CG44: =IF('ENTRY-NILAI'!$L53="a",'ENTRY-NILAI'!AB53+'ENTRY-NILAI'!AL53+'ENTRY-NILAI'!AT53+'ENTRY-NILAI'!BD53+'ENTRY-NILAI'!BN53+'ENTRY-NILAI'!BX53,"") ->  | CO44: =IF(CN44="","",RANK(CN44,CN$5:CN$604,0)+COUNTIF(CN$5:CN44,CN44)-1) -> 
B45: 41 | C45: =IF('ENTRY-NILAI'!L54="A",'ENTRY-NILAI'!A54,"") ->  | D45: =IF('ENTRY-NILAI'!$L54="A",'ENTRY-NILAI'!AB54,"") ->  | E45: =IF('ENTRY-NILAI'!$L54="A",'ENTRY-NILAI'!AA54,"") ->  | L45: =IF(K45="","",RANK(K45,K$5:K$604,0)+COUNTIF(K$5:K45,K45)-1) ->  | P45: =IF('ENTRY-NILAI'!$L54="A",'ENTRY-NILAI'!$AL54,"") ->  | Q45: =IF('ENTRY-NILAI'!$L54="A",'ENTRY-NILAI'!$AK54,"") ->  | X45: =IF(W45="","",RANK(W45,W$5:W$604,0)+COUNTIF(W$5:W45,W45)-1) ->  | AB45: =IF('ENTRY-NILAI'!$L54="A",'ENTRY-NILAI'!$AT54,"") ->  | AC45: =IF('ENTRY-NILAI'!$L54="A",'ENTRY-NILAI'!$AS54,"") ->  | AJ45: =IF(AI45="","",RANK(AI45,AI$5:AI$604,0)+COUNTIF(AI$5:AI45,AI45)-1) ->  | AN45: =IF('ENTRY-NILAI'!$L54="A",'ENTRY-NILAI'!$BD54,"") ->  | AO45: =IF('ENTRY-NILAI'!$L54="A",'ENTRY-NILAI'!$BC54,"") ->  | AV45: =IF(AU45="","",RANK(AU45,AU$5:AU$604,0)+COUNTIF(AU$5:AU45,AU45)-1) ->  | AZ45: =IF('ENTRY-NILAI'!$L54="A",'ENTRY-NILAI'!$BN54,"") ->  | BA45: =IF('ENTRY-NILAI'!$L54="A",'ENTRY-NILAI'!$BM54,"") ->  | BH45: =IF(BG45="","",RANK(BG45,BG$5:BG$604,0)+COUNTIF(BG$5:BG45,BG45)-1) ->  | BL45: =IF('ENTRY-NILAI'!$L54="A",'ENTRY-NILAI'!$BX54,"") ->  | BM45: =IF('ENTRY-NILAI'!$L54="A",'ENTRY-NILAI'!$BW54,"") ->  | BT45: =IF(BS45="","",RANK(BS45,BS$5:BS$604,0)+COUNTIF(BS$5:BS45,BS45)-1) ->  | BY45: =IF('ENTRY-NILAI'!$L54="a",'ENTRY-NILAI'!FG54,"") ->  | BZ45: =IF('ENTRY-NILAI'!$L54="a",'ENTRY-NILAI'!AC54,"") ->  | CA45: =IF('ENTRY-NILAI'!$L54="a",'ENTRY-NILAI'!AM54,"") ->  | CB45: =IF('ENTRY-NILAI'!$L54="a",'ENTRY-NILAI'!AU54,"") ->  | CC45: =IF('ENTRY-NILAI'!$L54="a",'ENTRY-NILAI'!BE54,"") ->  | CD45: =IF('ENTRY-NILAI'!$L54="a",'ENTRY-NILAI'!BO54,"") ->  | CE45: =IF('ENTRY-NILAI'!$L54="a",'ENTRY-NILAI'!BY54,"") ->  | CF45: 41 | CG45: =IF('ENTRY-NILAI'!$L54="a",'ENTRY-NILAI'!AB54+'ENTRY-NILAI'!AL54+'ENTRY-NILAI'!AT54+'ENTRY-NILAI'!BD54+'ENTRY-NILAI'!BN54+'ENTRY-NILAI'!BX54,"") ->  | CO45: =IF(CN45="","",RANK(CN45,CN$5:CN$604,0)+COUNTIF(CN$5:CN45,CN45)-1) -> 
B46: 42 | C46: =IF('ENTRY-NILAI'!L55="A",'ENTRY-NILAI'!A55,"") ->  | D46: =IF('ENTRY-NILAI'!$L55="A",'ENTRY-NILAI'!AB55,"") ->  | E46: =IF('ENTRY-NILAI'!$L55="A",'ENTRY-NILAI'!AA55,"") ->  | L46: =IF(K46="","",RANK(K46,K$5:K$604,0)+COUNTIF(K$5:K46,K46)-1) ->  | P46: =IF('ENTRY-NILAI'!$L55="A",'ENTRY-NILAI'!$AL55,"") ->  | Q46: =IF('ENTRY-NILAI'!$L55="A",'ENTRY-NILAI'!$AK55,"") ->  | X46: =IF(W46="","",RANK(W46,W$5:W$604,0)+COUNTIF(W$5:W46,W46)-1) ->  | AB46: =IF('ENTRY-NILAI'!$L55="A",'ENTRY-NILAI'!$AT55,"") ->  | AC46: =IF('ENTRY-NILAI'!$L55="A",'ENTRY-NILAI'!$AS55,"") ->  | AJ46: =IF(AI46="","",RANK(AI46,AI$5:AI$604,0)+COUNTIF(AI$5:AI46,AI46)-1) ->  | AN46: =IF('ENTRY-NILAI'!$L55="A",'ENTRY-NILAI'!$BD55,"") ->  | AO46: =IF('ENTRY-NILAI'!$L55="A",'ENTRY-NILAI'!$BC55,"") ->  | AV46: =IF(AU46="","",RANK(AU46,AU$5:AU$604,0)+COUNTIF(AU$5:AU46,AU46)-1) ->  | AZ46: =IF('ENTRY-NILAI'!$L55="A",'ENTRY-NILAI'!$BN55,"") ->  | BA46: =IF('ENTRY-NILAI'!$L55="A",'ENTRY-NILAI'!$BM55,"") ->  | BH46: =IF(BG46="","",RANK(BG46,BG$5:BG$604,0)+COUNTIF(BG$5:BG46,BG46)-1) ->  | BL46: =IF('ENTRY-NILAI'!$L55="A",'ENTRY-NILAI'!$BX55,"") ->  | BM46: =IF('ENTRY-NILAI'!$L55="A",'ENTRY-NILAI'!$BW55,"") ->  | BT46: =IF(BS46="","",RANK(BS46,BS$5:BS$604,0)+COUNTIF(BS$5:BS46,BS46)-1) ->  | BY46: =IF('ENTRY-NILAI'!$L55="a",'ENTRY-NILAI'!FG55,"") ->  | BZ46: =IF('ENTRY-NILAI'!$L55="a",'ENTRY-NILAI'!AC55,"") ->  | CA46: =IF('ENTRY-NILAI'!$L55="a",'ENTRY-NILAI'!AM55,"") ->  | CB46: =IF('ENTRY-NILAI'!$L55="a",'ENTRY-NILAI'!AU55,"") ->  | CC46: =IF('ENTRY-NILAI'!$L55="a",'ENTRY-NILAI'!BE55,"") ->  | CD46: =IF('ENTRY-NILAI'!$L55="a",'ENTRY-NILAI'!BO55,"") ->  | CE46: =IF('ENTRY-NILAI'!$L55="a",'ENTRY-NILAI'!BY55,"") ->  | CF46: 42 | CG46: =IF('ENTRY-NILAI'!$L55="a",'ENTRY-NILAI'!AB55+'ENTRY-NILAI'!AL55+'ENTRY-NILAI'!AT55+'ENTRY-NILAI'!BD55+'ENTRY-NILAI'!BN55+'ENTRY-NILAI'!BX55,"") ->  | CO46: =IF(CN46="","",RANK(CN46,CN$5:CN$604,0)+COUNTIF(CN$5:CN46,CN46)-1) -> 
B47: 43 | C47: =IF('ENTRY-NILAI'!L56="A",'ENTRY-NILAI'!A56,"") ->  | D47: =IF('ENTRY-NILAI'!$L56="A",'ENTRY-NILAI'!AB56,"") ->  | E47: =IF('ENTRY-NILAI'!$L56="A",'ENTRY-NILAI'!AA56,"") ->  | L47: =IF(K47="","",RANK(K47,K$5:K$604,0)+COUNTIF(K$5:K47,K47)-1) ->  | P47: =IF('ENTRY-NILAI'!$L56="A",'ENTRY-NILAI'!$AL56,"") ->  | Q47: =IF('ENTRY-NILAI'!$L56="A",'ENTRY-NILAI'!$AK56,"") ->  | X47: =IF(W47="","",RANK(W47,W$5:W$604,0)+COUNTIF(W$5:W47,W47)-1) ->  | AB47: =IF('ENTRY-NILAI'!$L56="A",'ENTRY-NILAI'!$AT56,"") ->  | AC47: =IF('ENTRY-NILAI'!$L56="A",'ENTRY-NILAI'!$AS56,"") ->  | AJ47: =IF(AI47="","",RANK(AI47,AI$5:AI$604,0)+COUNTIF(AI$5:AI47,AI47)-1) ->  | AN47: =IF('ENTRY-NILAI'!$L56="A",'ENTRY-NILAI'!$BD56,"") ->  | AO47: =IF('ENTRY-NILAI'!$L56="A",'ENTRY-NILAI'!$BC56,"") ->  | AV47: =IF(AU47="","",RANK(AU47,AU$5:AU$604,0)+COUNTIF(AU$5:AU47,AU47)-1) ->  | AZ47: =IF('ENTRY-NILAI'!$L56="A",'ENTRY-NILAI'!$BN56,"") ->  | BA47: =IF('ENTRY-NILAI'!$L56="A",'ENTRY-NILAI'!$BM56,"") ->  | BH47: =IF(BG47="","",RANK(BG47,BG$5:BG$604,0)+COUNTIF(BG$5:BG47,BG47)-1) ->  | BL47: =IF('ENTRY-NILAI'!$L56="A",'ENTRY-NILAI'!$BX56,"") ->  | BM47: =IF('ENTRY-NILAI'!$L56="A",'ENTRY-NILAI'!$BW56,"") ->  | BT47: =IF(BS47="","",RANK(BS47,BS$5:BS$604,0)+COUNTIF(BS$5:BS47,BS47)-1) ->  | BY47: =IF('ENTRY-NILAI'!$L56="a",'ENTRY-NILAI'!FG56,"") ->  | BZ47: =IF('ENTRY-NILAI'!$L56="a",'ENTRY-NILAI'!AC56,"") ->  | CA47: =IF('ENTRY-NILAI'!$L56="a",'ENTRY-NILAI'!AM56,"") ->  | CB47: =IF('ENTRY-NILAI'!$L56="a",'ENTRY-NILAI'!AU56,"") ->  | CC47: =IF('ENTRY-NILAI'!$L56="a",'ENTRY-NILAI'!BE56,"") ->  | CD47: =IF('ENTRY-NILAI'!$L56="a",'ENTRY-NILAI'!BO56,"") ->  | CE47: =IF('ENTRY-NILAI'!$L56="a",'ENTRY-NILAI'!BY56,"") ->  | CF47: 43 | CG47: =IF('ENTRY-NILAI'!$L56="a",'ENTRY-NILAI'!AB56+'ENTRY-NILAI'!AL56+'ENTRY-NILAI'!AT56+'ENTRY-NILAI'!BD56+'ENTRY-NILAI'!BN56+'ENTRY-NILAI'!BX56,"") ->  | CO47: =IF(CN47="","",RANK(CN47,CN$5:CN$604,0)+COUNTIF(CN$5:CN47,CN47)-1) -> 
B48: 44 | C48: =IF('ENTRY-NILAI'!L57="A",'ENTRY-NILAI'!A57,"") ->  | D48: =IF('ENTRY-NILAI'!$L57="A",'ENTRY-NILAI'!AB57,"") ->  | E48: =IF('ENTRY-NILAI'!$L57="A",'ENTRY-NILAI'!AA57,"") ->  | L48: =IF(K48="","",RANK(K48,K$5:K$604,0)+COUNTIF(K$5:K48,K48)-1) ->  | P48: =IF('ENTRY-NILAI'!$L57="A",'ENTRY-NILAI'!$AL57,"") ->  | Q48: =IF('ENTRY-NILAI'!$L57="A",'ENTRY-NILAI'!$AK57,"") ->  | X48: =IF(W48="","",RANK(W48,W$5:W$604,0)+COUNTIF(W$5:W48,W48)-1) ->  | AB48: =IF('ENTRY-NILAI'!$L57="A",'ENTRY-NILAI'!$AT57,"") ->  | AC48: =IF('ENTRY-NILAI'!$L57="A",'ENTRY-NILAI'!$AS57,"") ->  | AJ48: =IF(AI48="","",RANK(AI48,AI$5:AI$604,0)+COUNTIF(AI$5:AI48,AI48)-1) ->  | AN48: =IF('ENTRY-NILAI'!$L57="A",'ENTRY-NILAI'!$BD57,"") ->  | AO48: =IF('ENTRY-NILAI'!$L57="A",'ENTRY-NILAI'!$BC57,"") ->  | AV48: =IF(AU48="","",RANK(AU48,AU$5:AU$604,0)+COUNTIF(AU$5:AU48,AU48)-1) ->  | AZ48: =IF('ENTRY-NILAI'!$L57="A",'ENTRY-NILAI'!$BN57,"") ->  | BA48: =IF('ENTRY-NILAI'!$L57="A",'ENTRY-NILAI'!$BM57,"") ->  | BH48: =IF(BG48="","",RANK(BG48,BG$5:BG$604,0)+COUNTIF(BG$5:BG48,BG48)-1) ->  | BL48: =IF('ENTRY-NILAI'!$L57="A",'ENTRY-NILAI'!$BX57,"") ->  | BM48: =IF('ENTRY-NILAI'!$L57="A",'ENTRY-NILAI'!$BW57,"") ->  | BT48: =IF(BS48="","",RANK(BS48,BS$5:BS$604,0)+COUNTIF(BS$5:BS48,BS48)-1) ->  | BY48: =IF('ENTRY-NILAI'!$L57="a",'ENTRY-NILAI'!FG57,"") ->  | BZ48: =IF('ENTRY-NILAI'!$L57="a",'ENTRY-NILAI'!AC57,"") ->  | CA48: =IF('ENTRY-NILAI'!$L57="a",'ENTRY-NILAI'!AM57,"") ->  | CB48: =IF('ENTRY-NILAI'!$L57="a",'ENTRY-NILAI'!AU57,"") ->  | CC48: =IF('ENTRY-NILAI'!$L57="a",'ENTRY-NILAI'!BE57,"") ->  | CD48: =IF('ENTRY-NILAI'!$L57="a",'ENTRY-NILAI'!BO57,"") ->  | CE48: =IF('ENTRY-NILAI'!$L57="a",'ENTRY-NILAI'!BY57,"") ->  | CF48: 44 | CG48: =IF('ENTRY-NILAI'!$L57="a",'ENTRY-NILAI'!AB57+'ENTRY-NILAI'!AL57+'ENTRY-NILAI'!AT57+'ENTRY-NILAI'!BD57+'ENTRY-NILAI'!BN57+'ENTRY-NILAI'!BX57,"") ->  | CO48: =IF(CN48="","",RANK(CN48,CN$5:CN$604,0)+COUNTIF(CN$5:CN48,CN48)-1) -> 
B49: 45 | C49: =IF('ENTRY-NILAI'!L58="A",'ENTRY-NILAI'!A58,"") ->  | D49: =IF('ENTRY-NILAI'!$L58="A",'ENTRY-NILAI'!AB58,"") ->  | E49: =IF('ENTRY-NILAI'!$L58="A",'ENTRY-NILAI'!AA58,"") ->  | L49: =IF(K49="","",RANK(K49,K$5:K$604,0)+COUNTIF(K$5:K49,K49)-1) ->  | P49: =IF('ENTRY-NILAI'!$L58="A",'ENTRY-NILAI'!$AL58,"") ->  | Q49: =IF('ENTRY-NILAI'!$L58="A",'ENTRY-NILAI'!$AK58,"") ->  | X49: =IF(W49="","",RANK(W49,W$5:W$604,0)+COUNTIF(W$5:W49,W49)-1) ->  | AB49: =IF('ENTRY-NILAI'!$L58="A",'ENTRY-NILAI'!$AT58,"") ->  | AC49: =IF('ENTRY-NILAI'!$L58="A",'ENTRY-NILAI'!$AS58,"") ->  | AJ49: =IF(AI49="","",RANK(AI49,AI$5:AI$604,0)+COUNTIF(AI$5:AI49,AI49)-1) ->  | AN49: =IF('ENTRY-NILAI'!$L58="A",'ENTRY-NILAI'!$BD58,"") ->  | AO49: =IF('ENTRY-NILAI'!$L58="A",'ENTRY-NILAI'!$BC58,"") ->  | AV49: =IF(AU49="","",RANK(AU49,AU$5:AU$604,0)+COUNTIF(AU$5:AU49,AU49)-1) ->  | AZ49: =IF('ENTRY-NILAI'!$L58="A",'ENTRY-NILAI'!$BN58,"") ->  | BA49: =IF('ENTRY-NILAI'!$L58="A",'ENTRY-NILAI'!$BM58,"") ->  | BH49: =IF(BG49="","",RANK(BG49,BG$5:BG$604,0)+COUNTIF(BG$5:BG49,BG49)-1) ->  | BL49: =IF('ENTRY-NILAI'!$L58="A",'ENTRY-NILAI'!$BX58,"") ->  | BM49: =IF('ENTRY-NILAI'!$L58="A",'ENTRY-NILAI'!$BW58,"") ->  | BT49: =IF(BS49="","",RANK(BS49,BS$5:BS$604,0)+COUNTIF(BS$5:BS49,BS49)-1) ->  | BY49: =IF('ENTRY-NILAI'!$L58="a",'ENTRY-NILAI'!FG58,"") ->  | BZ49: =IF('ENTRY-NILAI'!$L58="a",'ENTRY-NILAI'!AC58,"") ->  | CA49: =IF('ENTRY-NILAI'!$L58="a",'ENTRY-NILAI'!AM58,"") ->  | CB49: =IF('ENTRY-NILAI'!$L58="a",'ENTRY-NILAI'!AU58,"") ->  | CC49: =IF('ENTRY-NILAI'!$L58="a",'ENTRY-NILAI'!BE58,"") ->  | CD49: =IF('ENTRY-NILAI'!$L58="a",'ENTRY-NILAI'!BO58,"") ->  | CE49: =IF('ENTRY-NILAI'!$L58="a",'ENTRY-NILAI'!BY58,"") ->  | CF49: 45 | CG49: =IF('ENTRY-NILAI'!$L58="a",'ENTRY-NILAI'!AB58+'ENTRY-NILAI'!AL58+'ENTRY-NILAI'!AT58+'ENTRY-NILAI'!BD58+'ENTRY-NILAI'!BN58+'ENTRY-NILAI'!BX58,"") ->  | CO49: =IF(CN49="","",RANK(CN49,CN$5:CN$604,0)+COUNTIF(CN$5:CN49,CN49)-1) -> 
B50: 46 | C50: =IF('ENTRY-NILAI'!L59="A",'ENTRY-NILAI'!A59,"") ->  | D50: =IF('ENTRY-NILAI'!$L59="A",'ENTRY-NILAI'!AB59,"") ->  | E50: =IF('ENTRY-NILAI'!$L59="A",'ENTRY-NILAI'!AA59,"") ->  | L50: =IF(K50="","",RANK(K50,K$5:K$604,0)+COUNTIF(K$5:K50,K50)-1) ->  | P50: =IF('ENTRY-NILAI'!$L59="A",'ENTRY-NILAI'!$AL59,"") ->  | Q50: =IF('ENTRY-NILAI'!$L59="A",'ENTRY-NILAI'!$AK59,"") ->  | X50: =IF(W50="","",RANK(W50,W$5:W$604,0)+COUNTIF(W$5:W50,W50)-1) ->  | AB50: =IF('ENTRY-NILAI'!$L59="A",'ENTRY-NILAI'!$AT59,"") ->  | AC50: =IF('ENTRY-NILAI'!$L59="A",'ENTRY-NILAI'!$AS59,"") ->  | AJ50: =IF(AI50="","",RANK(AI50,AI$5:AI$604,0)+COUNTIF(AI$5:AI50,AI50)-1) ->  | AN50: =IF('ENTRY-NILAI'!$L59="A",'ENTRY-NILAI'!$BD59,"") ->  | AO50: =IF('ENTRY-NILAI'!$L59="A",'ENTRY-NILAI'!$BC59,"") ->  | AV50: =IF(AU50="","",RANK(AU50,AU$5:AU$604,0)+COUNTIF(AU$5:AU50,AU50)-1) ->  | AZ50: =IF('ENTRY-NILAI'!$L59="A",'ENTRY-NILAI'!$BN59,"") ->  | BA50: =IF('ENTRY-NILAI'!$L59="A",'ENTRY-NILAI'!$BM59,"") ->  | BH50: =IF(BG50="","",RANK(BG50,BG$5:BG$604,0)+COUNTIF(BG$5:BG50,BG50)-1) ->  | BL50: =IF('ENTRY-NILAI'!$L59="A",'ENTRY-NILAI'!$BX59,"") ->  | BM50: =IF('ENTRY-NILAI'!$L59="A",'ENTRY-NILAI'!$BW59,"") ->  | BT50: =IF(BS50="","",RANK(BS50,BS$5:BS$604,0)+COUNTIF(BS$5:BS50,BS50)-1) ->  | BY50: =IF('ENTRY-NILAI'!$L59="a",'ENTRY-NILAI'!FG59,"") ->  | BZ50: =IF('ENTRY-NILAI'!$L59="a",'ENTRY-NILAI'!AC59,"") ->  | CA50: =IF('ENTRY-NILAI'!$L59="a",'ENTRY-NILAI'!AM59,"") ->  | CB50: =IF('ENTRY-NILAI'!$L59="a",'ENTRY-NILAI'!AU59,"") ->  | CC50: =IF('ENTRY-NILAI'!$L59="a",'ENTRY-NILAI'!BE59,"") ->  | CD50: =IF('ENTRY-NILAI'!$L59="a",'ENTRY-NILAI'!BO59,"") ->  | CE50: =IF('ENTRY-NILAI'!$L59="a",'ENTRY-NILAI'!BY59,"") ->  | CF50: 46 | CG50: =IF('ENTRY-NILAI'!$L59="a",'ENTRY-NILAI'!AB59+'ENTRY-NILAI'!AL59+'ENTRY-NILAI'!AT59+'ENTRY-NILAI'!BD59+'ENTRY-NILAI'!BN59+'ENTRY-NILAI'!BX59,"") ->  | CO50: =IF(CN50="","",RANK(CN50,CN$5:CN$604,0)+COUNTIF(CN$5:CN50,CN50)-1) -> 
B51: 47 | C51: =IF('ENTRY-NILAI'!L60="A",'ENTRY-NILAI'!A60,"") ->  | D51: =IF('ENTRY-NILAI'!$L60="A",'ENTRY-NILAI'!AB60,"") ->  | E51: =IF('ENTRY-NILAI'!$L60="A",'ENTRY-NILAI'!AA60,"") ->  | L51: =IF(K51="","",RANK(K51,K$5:K$604,0)+COUNTIF(K$5:K51,K51)-1) ->  | P51: =IF('ENTRY-NILAI'!$L60="A",'ENTRY-NILAI'!$AL60,"") ->  | Q51: =IF('ENTRY-NILAI'!$L60="A",'ENTRY-NILAI'!$AK60,"") ->  | X51: =IF(W51="","",RANK(W51,W$5:W$604,0)+COUNTIF(W$5:W51,W51)-1) ->  | AB51: =IF('ENTRY-NILAI'!$L60="A",'ENTRY-NILAI'!$AT60,"") ->  | AC51: =IF('ENTRY-NILAI'!$L60="A",'ENTRY-NILAI'!$AS60,"") ->  | AJ51: =IF(AI51="","",RANK(AI51,AI$5:AI$604,0)+COUNTIF(AI$5:AI51,AI51)-1) ->  | AN51: =IF('ENTRY-NILAI'!$L60="A",'ENTRY-NILAI'!$BD60,"") ->  | AO51: =IF('ENTRY-NILAI'!$L60="A",'ENTRY-NILAI'!$BC60,"") ->  | AV51: =IF(AU51="","",RANK(AU51,AU$5:AU$604,0)+COUNTIF(AU$5:AU51,AU51)-1) ->  | AZ51: =IF('ENTRY-NILAI'!$L60="A",'ENTRY-NILAI'!$BN60,"") ->  | BA51: =IF('ENTRY-NILAI'!$L60="A",'ENTRY-NILAI'!$BM60,"") ->  | BH51: =IF(BG51="","",RANK(BG51,BG$5:BG$604,0)+COUNTIF(BG$5:BG51,BG51)-1) ->  | BL51: =IF('ENTRY-NILAI'!$L60="A",'ENTRY-NILAI'!$BX60,"") ->  | BM51: =IF('ENTRY-NILAI'!$L60="A",'ENTRY-NILAI'!$BW60,"") ->  | BT51: =IF(BS51="","",RANK(BS51,BS$5:BS$604,0)+COUNTIF(BS$5:BS51,BS51)-1) ->  | BY51: =IF('ENTRY-NILAI'!$L60="a",'ENTRY-NILAI'!FG60,"") ->  | BZ51: =IF('ENTRY-NILAI'!$L60="a",'ENTRY-NILAI'!AC60,"") ->  | CA51: =IF('ENTRY-NILAI'!$L60="a",'ENTRY-NILAI'!AM60,"") ->  | CB51: =IF('ENTRY-NILAI'!$L60="a",'ENTRY-NILAI'!AU60,"") ->  | CC51: =IF('ENTRY-NILAI'!$L60="a",'ENTRY-NILAI'!BE60,"") ->  | CD51: =IF('ENTRY-NILAI'!$L60="a",'ENTRY-NILAI'!BO60,"") ->  | CE51: =IF('ENTRY-NILAI'!$L60="a",'ENTRY-NILAI'!BY60,"") ->  | CF51: 47 | CG51: =IF('ENTRY-NILAI'!$L60="a",'ENTRY-NILAI'!AB60+'ENTRY-NILAI'!AL60+'ENTRY-NILAI'!AT60+'ENTRY-NILAI'!BD60+'ENTRY-NILAI'!BN60+'ENTRY-NILAI'!BX60,"") ->  | CO51: =IF(CN51="","",RANK(CN51,CN$5:CN$604,0)+COUNTIF(CN$5:CN51,CN51)-1) -> 
B52: 48 | C52: =IF('ENTRY-NILAI'!L61="A",'ENTRY-NILAI'!A61,"") ->  | D52: =IF('ENTRY-NILAI'!$L61="A",'ENTRY-NILAI'!AB61,"") ->  | E52: =IF('ENTRY-NILAI'!$L61="A",'ENTRY-NILAI'!AA61,"") ->  | L52: =IF(K52="","",RANK(K52,K$5:K$604,0)+COUNTIF(K$5:K52,K52)-1) ->  | P52: =IF('ENTRY-NILAI'!$L61="A",'ENTRY-NILAI'!$AL61,"") ->  | Q52: =IF('ENTRY-NILAI'!$L61="A",'ENTRY-NILAI'!$AK61,"") ->  | X52: =IF(W52="","",RANK(W52,W$5:W$604,0)+COUNTIF(W$5:W52,W52)-1) ->  | AB52: =IF('ENTRY-NILAI'!$L61="A",'ENTRY-NILAI'!$AT61,"") ->  | AC52: =IF('ENTRY-NILAI'!$L61="A",'ENTRY-NILAI'!$AS61,"") ->  | AJ52: =IF(AI52="","",RANK(AI52,AI$5:AI$604,0)+COUNTIF(AI$5:AI52,AI52)-1) ->  | AN52: =IF('ENTRY-NILAI'!$L61="A",'ENTRY-NILAI'!$BD61,"") ->  | AO52: =IF('ENTRY-NILAI'!$L61="A",'ENTRY-NILAI'!$BC61,"") ->  | AV52: =IF(AU52="","",RANK(AU52,AU$5:AU$604,0)+COUNTIF(AU$5:AU52,AU52)-1) ->  | AZ52: =IF('ENTRY-NILAI'!$L61="A",'ENTRY-NILAI'!$BN61,"") ->  | BA52: =IF('ENTRY-NILAI'!$L61="A",'ENTRY-NILAI'!$BM61,"") ->  | BH52: =IF(BG52="","",RANK(BG52,BG$5:BG$604,0)+COUNTIF(BG$5:BG52,BG52)-1) ->  | BL52: =IF('ENTRY-NILAI'!$L61="A",'ENTRY-NILAI'!$BX61,"") ->  | BM52: =IF('ENTRY-NILAI'!$L61="A",'ENTRY-NILAI'!$BW61,"") ->  | BT52: =IF(BS52="","",RANK(BS52,BS$5:BS$604,0)+COUNTIF(BS$5:BS52,BS52)-1) ->  | BY52: =IF('ENTRY-NILAI'!$L61="a",'ENTRY-NILAI'!FG61,"") ->  | BZ52: =IF('ENTRY-NILAI'!$L61="a",'ENTRY-NILAI'!AC61,"") ->  | CA52: =IF('ENTRY-NILAI'!$L61="a",'ENTRY-NILAI'!AM61,"") ->  | CB52: =IF('ENTRY-NILAI'!$L61="a",'ENTRY-NILAI'!AU61,"") ->  | CC52: =IF('ENTRY-NILAI'!$L61="a",'ENTRY-NILAI'!BE61,"") ->  | CD52: =IF('ENTRY-NILAI'!$L61="a",'ENTRY-NILAI'!BO61,"") ->  | CE52: =IF('ENTRY-NILAI'!$L61="a",'ENTRY-NILAI'!BY61,"") ->  | CF52: 48 | CG52: =IF('ENTRY-NILAI'!$L61="a",'ENTRY-NILAI'!AB61+'ENTRY-NILAI'!AL61+'ENTRY-NILAI'!AT61+'ENTRY-NILAI'!BD61+'ENTRY-NILAI'!BN61+'ENTRY-NILAI'!BX61,"") ->  | CO52: =IF(CN52="","",RANK(CN52,CN$5:CN$604,0)+COUNTIF(CN$5:CN52,CN52)-1) -> 
B53: 49 | C53: =IF('ENTRY-NILAI'!L62="A",'ENTRY-NILAI'!A62,"") ->  | D53: =IF('ENTRY-NILAI'!$L62="A",'ENTRY-NILAI'!AB62,"") ->  | E53: =IF('ENTRY-NILAI'!$L62="A",'ENTRY-NILAI'!AA62,"") ->  | L53: =IF(K53="","",RANK(K53,K$5:K$604,0)+COUNTIF(K$5:K53,K53)-1) ->  | P53: =IF('ENTRY-NILAI'!$L62="A",'ENTRY-NILAI'!$AL62,"") ->  | Q53: =IF('ENTRY-NILAI'!$L62="A",'ENTRY-NILAI'!$AK62,"") ->  | X53: =IF(W53="","",RANK(W53,W$5:W$604,0)+COUNTIF(W$5:W53,W53)-1) ->  | AB53: =IF('ENTRY-NILAI'!$L62="A",'ENTRY-NILAI'!$AT62,"") ->  | AC53: =IF('ENTRY-NILAI'!$L62="A",'ENTRY-NILAI'!$AS62,"") ->  | AJ53: =IF(AI53="","",RANK(AI53,AI$5:AI$604,0)+COUNTIF(AI$5:AI53,AI53)-1) ->  | AN53: =IF('ENTRY-NILAI'!$L62="A",'ENTRY-NILAI'!$BD62,"") ->  | AO53: =IF('ENTRY-NILAI'!$L62="A",'ENTRY-NILAI'!$BC62,"") ->  | AV53: =IF(AU53="","",RANK(AU53,AU$5:AU$604,0)+COUNTIF(AU$5:AU53,AU53)-1) ->  | AZ53: =IF('ENTRY-NILAI'!$L62="A",'ENTRY-NILAI'!$BN62,"") ->  | BA53: =IF('ENTRY-NILAI'!$L62="A",'ENTRY-NILAI'!$BM62,"") ->  | BH53: =IF(BG53="","",RANK(BG53,BG$5:BG$604,0)+COUNTIF(BG$5:BG53,BG53)-1) ->  | BL53: =IF('ENTRY-NILAI'!$L62="A",'ENTRY-NILAI'!$BX62,"") ->  | BM53: =IF('ENTRY-NILAI'!$L62="A",'ENTRY-NILAI'!$BW62,"") ->  | BT53: =IF(BS53="","",RANK(BS53,BS$5:BS$604,0)+COUNTIF(BS$5:BS53,BS53)-1) ->  | BY53: =IF('ENTRY-NILAI'!$L62="a",'ENTRY-NILAI'!FG62,"") ->  | BZ53: =IF('ENTRY-NILAI'!$L62="a",'ENTRY-NILAI'!AC62,"") ->  | CA53: =IF('ENTRY-NILAI'!$L62="a",'ENTRY-NILAI'!AM62,"") ->  | CB53: =IF('ENTRY-NILAI'!$L62="a",'ENTRY-NILAI'!AU62,"") ->  | CC53: =IF('ENTRY-NILAI'!$L62="a",'ENTRY-NILAI'!BE62,"") ->  | CD53: =IF('ENTRY-NILAI'!$L62="a",'ENTRY-NILAI'!BO62,"") ->  | CE53: =IF('ENTRY-NILAI'!$L62="a",'ENTRY-NILAI'!BY62,"") ->  | CF53: 49 | CG53: =IF('ENTRY-NILAI'!$L62="a",'ENTRY-NILAI'!AB62+'ENTRY-NILAI'!AL62+'ENTRY-NILAI'!AT62+'ENTRY-NILAI'!BD62+'ENTRY-NILAI'!BN62+'ENTRY-NILAI'!BX62,"") ->  | CO53: =IF(CN53="","",RANK(CN53,CN$5:CN$604,0)+COUNTIF(CN$5:CN53,CN53)-1) -> 
B54: 50 | C54: =IF('ENTRY-NILAI'!L63="A",'ENTRY-NILAI'!A63,"") ->  | D54: =IF('ENTRY-NILAI'!$L63="A",'ENTRY-NILAI'!AB63,"") ->  | E54: =IF('ENTRY-NILAI'!$L63="A",'ENTRY-NILAI'!AA63,"") ->  | L54: =IF(K54="","",RANK(K54,K$5:K$604,0)+COUNTIF(K$5:K54,K54)-1) ->  | P54: =IF('ENTRY-NILAI'!$L63="A",'ENTRY-NILAI'!$AL63,"") ->  | Q54: =IF('ENTRY-NILAI'!$L63="A",'ENTRY-NILAI'!$AK63,"") ->  | X54: =IF(W54="","",RANK(W54,W$5:W$604,0)+COUNTIF(W$5:W54,W54)-1) ->  | AB54: =IF('ENTRY-NILAI'!$L63="A",'ENTRY-NILAI'!$AT63,"") ->  | AC54: =IF('ENTRY-NILAI'!$L63="A",'ENTRY-NILAI'!$AS63,"") ->  | AJ54: =IF(AI54="","",RANK(AI54,AI$5:AI$604,0)+COUNTIF(AI$5:AI54,AI54)-1) ->  | AN54: =IF('ENTRY-NILAI'!$L63="A",'ENTRY-NILAI'!$BD63,"") ->  | AO54: =IF('ENTRY-NILAI'!$L63="A",'ENTRY-NILAI'!$BC63,"") ->  | AV54: =IF(AU54="","",RANK(AU54,AU$5:AU$604,0)+COUNTIF(AU$5:AU54,AU54)-1) ->  | AZ54: =IF('ENTRY-NILAI'!$L63="A",'ENTRY-NILAI'!$BN63,"") ->  | BA54: =IF('ENTRY-NILAI'!$L63="A",'ENTRY-NILAI'!$BM63,"") ->  | BH54: =IF(BG54="","",RANK(BG54,BG$5:BG$604,0)+COUNTIF(BG$5:BG54,BG54)-1) ->  | BL54: =IF('ENTRY-NILAI'!$L63="A",'ENTRY-NILAI'!$BX63,"") ->  | BM54: =IF('ENTRY-NILAI'!$L63="A",'ENTRY-NILAI'!$BW63,"") ->  | BT54: =IF(BS54="","",RANK(BS54,BS$5:BS$604,0)+COUNTIF(BS$5:BS54,BS54)-1) ->  | BY54: =IF('ENTRY-NILAI'!$L63="a",'ENTRY-NILAI'!FG63,"") ->  | BZ54: =IF('ENTRY-NILAI'!$L63="a",'ENTRY-NILAI'!AC63,"") ->  | CA54: =IF('ENTRY-NILAI'!$L63="a",'ENTRY-NILAI'!AM63,"") ->  | CB54: =IF('ENTRY-NILAI'!$L63="a",'ENTRY-NILAI'!AU63,"") ->  | CC54: =IF('ENTRY-NILAI'!$L63="a",'ENTRY-NILAI'!BE63,"") ->  | CD54: =IF('ENTRY-NILAI'!$L63="a",'ENTRY-NILAI'!BO63,"") ->  | CE54: =IF('ENTRY-NILAI'!$L63="a",'ENTRY-NILAI'!BY63,"") ->  | CF54: 50 | CG54: =IF('ENTRY-NILAI'!$L63="a",'ENTRY-NILAI'!AB63+'ENTRY-NILAI'!AL63+'ENTRY-NILAI'!AT63+'ENTRY-NILAI'!BD63+'ENTRY-NILAI'!BN63+'ENTRY-NILAI'!BX63,"") ->  | CO54: =IF(CN54="","",RANK(CN54,CN$5:CN$604,0)+COUNTIF(CN$5:CN54,CN54)-1) -> 
B55: 51 | C55: =IF('ENTRY-NILAI'!L64="A",'ENTRY-NILAI'!A64,"") ->  | D55: =IF('ENTRY-NILAI'!$L64="A",'ENTRY-NILAI'!AB64,"") ->  | E55: =IF('ENTRY-NILAI'!$L64="A",'ENTRY-NILAI'!AA64,"") ->  | L55: =IF(K55="","",RANK(K55,K$5:K$604,0)+COUNTIF(K$5:K55,K55)-1) ->  | P55: =IF('ENTRY-NILAI'!$L64="A",'ENTRY-NILAI'!$AL64,"") ->  | Q55: =IF('ENTRY-NILAI'!$L64="A",'ENTRY-NILAI'!$AK64,"") ->  | X55: =IF(W55="","",RANK(W55,W$5:W$604,0)+COUNTIF(W$5:W55,W55)-1) ->  | AB55: =IF('ENTRY-NILAI'!$L64="A",'ENTRY-NILAI'!$AT64,"") ->  | AC55: =IF('ENTRY-NILAI'!$L64="A",'ENTRY-NILAI'!$AS64,"") ->  | AJ55: =IF(AI55="","",RANK(AI55,AI$5:AI$604,0)+COUNTIF(AI$5:AI55,AI55)-1) ->  | AN55: =IF('ENTRY-NILAI'!$L64="A",'ENTRY-NILAI'!$BD64,"") ->  | AO55: =IF('ENTRY-NILAI'!$L64="A",'ENTRY-NILAI'!$BC64,"") ->  | AV55: =IF(AU55="","",RANK(AU55,AU$5:AU$604,0)+COUNTIF(AU$5:AU55,AU55)-1) ->  | AZ55: =IF('ENTRY-NILAI'!$L64="A",'ENTRY-NILAI'!$BN64,"") ->  | BA55: =IF('ENTRY-NILAI'!$L64="A",'ENTRY-NILAI'!$BM64,"") ->  | BH55: =IF(BG55="","",RANK(BG55,BG$5:BG$604,0)+COUNTIF(BG$5:BG55,BG55)-1) ->  | BL55: =IF('ENTRY-NILAI'!$L64="A",'ENTRY-NILAI'!$BX64,"") ->  | BM55: =IF('ENTRY-NILAI'!$L64="A",'ENTRY-NILAI'!$BW64,"") ->  | BT55: =IF(BS55="","",RANK(BS55,BS$5:BS$604,0)+COUNTIF(BS$5:BS55,BS55)-1) ->  | BY55: =IF('ENTRY-NILAI'!$L64="a",'ENTRY-NILAI'!FG64,"") ->  | BZ55: =IF('ENTRY-NILAI'!$L64="a",'ENTRY-NILAI'!AC64,"") ->  | CA55: =IF('ENTRY-NILAI'!$L64="a",'ENTRY-NILAI'!AM64,"") ->  | CB55: =IF('ENTRY-NILAI'!$L64="a",'ENTRY-NILAI'!AU64,"") ->  | CC55: =IF('ENTRY-NILAI'!$L64="a",'ENTRY-NILAI'!BE64,"") ->  | CD55: =IF('ENTRY-NILAI'!$L64="a",'ENTRY-NILAI'!BO64,"") ->  | CE55: =IF('ENTRY-NILAI'!$L64="a",'ENTRY-NILAI'!BY64,"") ->  | CF55: 51 | CG55: =IF('ENTRY-NILAI'!$L64="a",'ENTRY-NILAI'!AB64+'ENTRY-NILAI'!AL64+'ENTRY-NILAI'!AT64+'ENTRY-NILAI'!BD64+'ENTRY-NILAI'!BN64+'ENTRY-NILAI'!BX64,"") ->  | CO55: =IF(CN55="","",RANK(CN55,CN$5:CN$604,0)+COUNTIF(CN$5:CN55,CN55)-1) -> 
B56: 52 | C56: =IF('ENTRY-NILAI'!L65="A",'ENTRY-NILAI'!A65,"") ->  | D56: =IF('ENTRY-NILAI'!$L65="A",'ENTRY-NILAI'!AB65,"") ->  | E56: =IF('ENTRY-NILAI'!$L65="A",'ENTRY-NILAI'!AA65,"") ->  | L56: =IF(K56="","",RANK(K56,K$5:K$604,0)+COUNTIF(K$5:K56,K56)-1) ->  | P56: =IF('ENTRY-NILAI'!$L65="A",'ENTRY-NILAI'!$AL65,"") ->  | Q56: =IF('ENTRY-NILAI'!$L65="A",'ENTRY-NILAI'!$AK65,"") ->  | X56: =IF(W56="","",RANK(W56,W$5:W$604,0)+COUNTIF(W$5:W56,W56)-1) ->  | AB56: =IF('ENTRY-NILAI'!$L65="A",'ENTRY-NILAI'!$AT65,"") ->  | AC56: =IF('ENTRY-NILAI'!$L65="A",'ENTRY-NILAI'!$AS65,"") ->  | AJ56: =IF(AI56="","",RANK(AI56,AI$5:AI$604,0)+COUNTIF(AI$5:AI56,AI56)-1) ->  | AN56: =IF('ENTRY-NILAI'!$L65="A",'ENTRY-NILAI'!$BD65,"") ->  | AO56: =IF('ENTRY-NILAI'!$L65="A",'ENTRY-NILAI'!$BC65,"") ->  | AV56: =IF(AU56="","",RANK(AU56,AU$5:AU$604,0)+COUNTIF(AU$5:AU56,AU56)-1) ->  | AZ56: =IF('ENTRY-NILAI'!$L65="A",'ENTRY-NILAI'!$BN65,"") ->  | BA56: =IF('ENTRY-NILAI'!$L65="A",'ENTRY-NILAI'!$BM65,"") ->  | BH56: =IF(BG56="","",RANK(BG56,BG$5:BG$604,0)+COUNTIF(BG$5:BG56,BG56)-1) ->  | BL56: =IF('ENTRY-NILAI'!$L65="A",'ENTRY-NILAI'!$BX65,"") ->  | BM56: =IF('ENTRY-NILAI'!$L65="A",'ENTRY-NILAI'!$BW65,"") ->  | BT56: =IF(BS56="","",RANK(BS56,BS$5:BS$604,0)+COUNTIF(BS$5:BS56,BS56)-1) ->  | BY56: =IF('ENTRY-NILAI'!$L65="a",'ENTRY-NILAI'!FG65,"") ->  | BZ56: =IF('ENTRY-NILAI'!$L65="a",'ENTRY-NILAI'!AC65,"") ->  | CA56: =IF('ENTRY-NILAI'!$L65="a",'ENTRY-NILAI'!AM65,"") ->  | CB56: =IF('ENTRY-NILAI'!$L65="a",'ENTRY-NILAI'!AU65,"") ->  | CC56: =IF('ENTRY-NILAI'!$L65="a",'ENTRY-NILAI'!BE65,"") ->  | CD56: =IF('ENTRY-NILAI'!$L65="a",'ENTRY-NILAI'!BO65,"") ->  | CE56: =IF('ENTRY-NILAI'!$L65="a",'ENTRY-NILAI'!BY65,"") ->  | CF56: 52 | CG56: =IF('ENTRY-NILAI'!$L65="a",'ENTRY-NILAI'!AB65+'ENTRY-NILAI'!AL65+'ENTRY-NILAI'!AT65+'ENTRY-NILAI'!BD65+'ENTRY-NILAI'!BN65+'ENTRY-NILAI'!BX65,"") ->  | CO56: =IF(CN56="","",RANK(CN56,CN$5:CN$604,0)+COUNTIF(CN$5:CN56,CN56)-1) -> 
B57: 53 | C57: =IF('ENTRY-NILAI'!L66="A",'ENTRY-NILAI'!A66,"") ->  | D57: =IF('ENTRY-NILAI'!$L66="A",'ENTRY-NILAI'!AB66,"") ->  | E57: =IF('ENTRY-NILAI'!$L66="A",'ENTRY-NILAI'!AA66,"") ->  | L57: =IF(K57="","",RANK(K57,K$5:K$604,0)+COUNTIF(K$5:K57,K57)-1) ->  | P57: =IF('ENTRY-NILAI'!$L66="A",'ENTRY-NILAI'!$AL66,"") ->  | Q57: =IF('ENTRY-NILAI'!$L66="A",'ENTRY-NILAI'!$AK66,"") ->  | X57: =IF(W57="","",RANK(W57,W$5:W$604,0)+COUNTIF(W$5:W57,W57)-1) ->  | AB57: =IF('ENTRY-NILAI'!$L66="A",'ENTRY-NILAI'!$AT66,"") ->  | AC57: =IF('ENTRY-NILAI'!$L66="A",'ENTRY-NILAI'!$AS66,"") ->  | AJ57: =IF(AI57="","",RANK(AI57,AI$5:AI$604,0)+COUNTIF(AI$5:AI57,AI57)-1) ->  | AN57: =IF('ENTRY-NILAI'!$L66="A",'ENTRY-NILAI'!$BD66,"") ->  | AO57: =IF('ENTRY-NILAI'!$L66="A",'ENTRY-NILAI'!$BC66,"") ->  | AV57: =IF(AU57="","",RANK(AU57,AU$5:AU$604,0)+COUNTIF(AU$5:AU57,AU57)-1) ->  | AZ57: =IF('ENTRY-NILAI'!$L66="A",'ENTRY-NILAI'!$BN66,"") ->  | BA57: =IF('ENTRY-NILAI'!$L66="A",'ENTRY-NILAI'!$BM66,"") ->  | BH57: =IF(BG57="","",RANK(BG57,BG$5:BG$604,0)+COUNTIF(BG$5:BG57,BG57)-1) ->  | BL57: =IF('ENTRY-NILAI'!$L66="A",'ENTRY-NILAI'!$BX66,"") ->  | BM57: =IF('ENTRY-NILAI'!$L66="A",'ENTRY-NILAI'!$BW66,"") ->  | BT57: =IF(BS57="","",RANK(BS57,BS$5:BS$604,0)+COUNTIF(BS$5:BS57,BS57)-1) ->  | BY57: =IF('ENTRY-NILAI'!$L66="a",'ENTRY-NILAI'!FG66,"") ->  | BZ57: =IF('ENTRY-NILAI'!$L66="a",'ENTRY-NILAI'!AC66,"") ->  | CA57: =IF('ENTRY-NILAI'!$L66="a",'ENTRY-NILAI'!AM66,"") ->  | CB57: =IF('ENTRY-NILAI'!$L66="a",'ENTRY-NILAI'!AU66,"") ->  | CC57: =IF('ENTRY-NILAI'!$L66="a",'ENTRY-NILAI'!BE66,"") ->  | CD57: =IF('ENTRY-NILAI'!$L66="a",'ENTRY-NILAI'!BO66,"") ->  | CE57: =IF('ENTRY-NILAI'!$L66="a",'ENTRY-NILAI'!BY66,"") ->  | CF57: 53 | CG57: =IF('ENTRY-NILAI'!$L66="a",'ENTRY-NILAI'!AB66+'ENTRY-NILAI'!AL66+'ENTRY-NILAI'!AT66+'ENTRY-NILAI'!BD66+'ENTRY-NILAI'!BN66+'ENTRY-NILAI'!BX66,"") ->  | CO57: =IF(CN57="","",RANK(CN57,CN$5:CN$604,0)+COUNTIF(CN$5:CN57,CN57)-1) -> 
B58: 54 | C58: =IF('ENTRY-NILAI'!L67="A",'ENTRY-NILAI'!A67,"") ->  | D58: =IF('ENTRY-NILAI'!$L67="A",'ENTRY-NILAI'!AB67,"") ->  | E58: =IF('ENTRY-NILAI'!$L67="A",'ENTRY-NILAI'!AA67,"") ->  | L58: =IF(K58="","",RANK(K58,K$5:K$604,0)+COUNTIF(K$5:K58,K58)-1) ->  | P58: =IF('ENTRY-NILAI'!$L67="A",'ENTRY-NILAI'!$AL67,"") ->  | Q58: =IF('ENTRY-NILAI'!$L67="A",'ENTRY-NILAI'!$AK67,"") ->  | X58: =IF(W58="","",RANK(W58,W$5:W$604,0)+COUNTIF(W$5:W58,W58)-1) ->  | AB58: =IF('ENTRY-NILAI'!$L67="A",'ENTRY-NILAI'!$AT67,"") ->  | AC58: =IF('ENTRY-NILAI'!$L67="A",'ENTRY-NILAI'!$AS67,"") ->  | AJ58: =IF(AI58="","",RANK(AI58,AI$5:AI$604,0)+COUNTIF(AI$5:AI58,AI58)-1) ->  | AN58: =IF('ENTRY-NILAI'!$L67="A",'ENTRY-NILAI'!$BD67,"") ->  | AO58: =IF('ENTRY-NILAI'!$L67="A",'ENTRY-NILAI'!$BC67,"") ->  | AV58: =IF(AU58="","",RANK(AU58,AU$5:AU$604,0)+COUNTIF(AU$5:AU58,AU58)-1) ->  | AZ58: =IF('ENTRY-NILAI'!$L67="A",'ENTRY-NILAI'!$BN67,"") ->  | BA58: =IF('ENTRY-NILAI'!$L67="A",'ENTRY-NILAI'!$BM67,"") ->  | BH58: =IF(BG58="","",RANK(BG58,BG$5:BG$604,0)+COUNTIF(BG$5:BG58,BG58)-1) ->  | BL58: =IF('ENTRY-NILAI'!$L67="A",'ENTRY-NILAI'!$BX67,"") ->  | BM58: =IF('ENTRY-NILAI'!$L67="A",'ENTRY-NILAI'!$BW67,"") ->  | BT58: =IF(BS58="","",RANK(BS58,BS$5:BS$604,0)+COUNTIF(BS$5:BS58,BS58)-1) ->  | BY58: =IF('ENTRY-NILAI'!$L67="a",'ENTRY-NILAI'!FG67,"") ->  | BZ58: =IF('ENTRY-NILAI'!$L67="a",'ENTRY-NILAI'!AC67,"") ->  | CA58: =IF('ENTRY-NILAI'!$L67="a",'ENTRY-NILAI'!AM67,"") ->  | CB58: =IF('ENTRY-NILAI'!$L67="a",'ENTRY-NILAI'!AU67,"") ->  | CC58: =IF('ENTRY-NILAI'!$L67="a",'ENTRY-NILAI'!BE67,"") ->  | CD58: =IF('ENTRY-NILAI'!$L67="a",'ENTRY-NILAI'!BO67,"") ->  | CE58: =IF('ENTRY-NILAI'!$L67="a",'ENTRY-NILAI'!BY67,"") ->  | CF58: 54 | CG58: =IF('ENTRY-NILAI'!$L67="a",'ENTRY-NILAI'!AB67+'ENTRY-NILAI'!AL67+'ENTRY-NILAI'!AT67+'ENTRY-NILAI'!BD67+'ENTRY-NILAI'!BN67+'ENTRY-NILAI'!BX67,"") ->  | CO58: =IF(CN58="","",RANK(CN58,CN$5:CN$604,0)+COUNTIF(CN$5:CN58,CN58)-1) -> 
B59: 55 | C59: =IF('ENTRY-NILAI'!L68="A",'ENTRY-NILAI'!A68,"") ->  | D59: =IF('ENTRY-NILAI'!$L68="A",'ENTRY-NILAI'!AB68,"") ->  | E59: =IF('ENTRY-NILAI'!$L68="A",'ENTRY-NILAI'!AA68,"") ->  | L59: =IF(K59="","",RANK(K59,K$5:K$604,0)+COUNTIF(K$5:K59,K59)-1) ->  | P59: =IF('ENTRY-NILAI'!$L68="A",'ENTRY-NILAI'!$AL68,"") ->  | Q59: =IF('ENTRY-NILAI'!$L68="A",'ENTRY-NILAI'!$AK68,"") ->  | X59: =IF(W59="","",RANK(W59,W$5:W$604,0)+COUNTIF(W$5:W59,W59)-1) ->  | AB59: =IF('ENTRY-NILAI'!$L68="A",'ENTRY-NILAI'!$AT68,"") ->  | AC59: =IF('ENTRY-NILAI'!$L68="A",'ENTRY-NILAI'!$AS68,"") ->  | AJ59: =IF(AI59="","",RANK(AI59,AI$5:AI$604,0)+COUNTIF(AI$5:AI59,AI59)-1) ->  | AN59: =IF('ENTRY-NILAI'!$L68="A",'ENTRY-NILAI'!$BD68,"") ->  | AO59: =IF('ENTRY-NILAI'!$L68="A",'ENTRY-NILAI'!$BC68,"") ->  | AV59: =IF(AU59="","",RANK(AU59,AU$5:AU$604,0)+COUNTIF(AU$5:AU59,AU59)-1) ->  | AZ59: =IF('ENTRY-NILAI'!$L68="A",'ENTRY-NILAI'!$BN68,"") ->  | BA59: =IF('ENTRY-NILAI'!$L68="A",'ENTRY-NILAI'!$BM68,"") ->  | BH59: =IF(BG59="","",RANK(BG59,BG$5:BG$604,0)+COUNTIF(BG$5:BG59,BG59)-1) ->  | BL59: =IF('ENTRY-NILAI'!$L68="A",'ENTRY-NILAI'!$BX68,"") ->  | BM59: =IF('ENTRY-NILAI'!$L68="A",'ENTRY-NILAI'!$BW68,"") ->  | BT59: =IF(BS59="","",RANK(BS59,BS$5:BS$604,0)+COUNTIF(BS$5:BS59,BS59)-1) ->  | BY59: =IF('ENTRY-NILAI'!$L68="a",'ENTRY-NILAI'!FG68,"") ->  | BZ59: =IF('ENTRY-NILAI'!$L68="a",'ENTRY-NILAI'!AC68,"") ->  | CA59: =IF('ENTRY-NILAI'!$L68="a",'ENTRY-NILAI'!AM68,"") ->  | CB59: =IF('ENTRY-NILAI'!$L68="a",'ENTRY-NILAI'!AU68,"") ->  | CC59: =IF('ENTRY-NILAI'!$L68="a",'ENTRY-NILAI'!BE68,"") ->  | CD59: =IF('ENTRY-NILAI'!$L68="a",'ENTRY-NILAI'!BO68,"") ->  | CE59: =IF('ENTRY-NILAI'!$L68="a",'ENTRY-NILAI'!BY68,"") ->  | CF59: 55 | CG59: =IF('ENTRY-NILAI'!$L68="a",'ENTRY-NILAI'!AB68+'ENTRY-NILAI'!AL68+'ENTRY-NILAI'!AT68+'ENTRY-NILAI'!BD68+'ENTRY-NILAI'!BN68+'ENTRY-NILAI'!BX68,"") ->  | CO59: =IF(CN59="","",RANK(CN59,CN$5:CN$604,0)+COUNTIF(CN$5:CN59,CN59)-1) -> 
B60: 56 | C60: =IF('ENTRY-NILAI'!L69="A",'ENTRY-NILAI'!A69,"") ->  | D60: =IF('ENTRY-NILAI'!$L69="A",'ENTRY-NILAI'!AB69,"") ->  | E60: =IF('ENTRY-NILAI'!$L69="A",'ENTRY-NILAI'!AA69,"") ->  | L60: =IF(K60="","",RANK(K60,K$5:K$604,0)+COUNTIF(K$5:K60,K60)-1) ->  | P60: =IF('ENTRY-NILAI'!$L69="A",'ENTRY-NILAI'!$AL69,"") ->  | Q60: =IF('ENTRY-NILAI'!$L69="A",'ENTRY-NILAI'!$AK69,"") ->  | X60: =IF(W60="","",RANK(W60,W$5:W$604,0)+COUNTIF(W$5:W60,W60)-1) ->  | AB60: =IF('ENTRY-NILAI'!$L69="A",'ENTRY-NILAI'!$AT69,"") ->  | AC60: =IF('ENTRY-NILAI'!$L69="A",'ENTRY-NILAI'!$AS69,"") ->  | AJ60: =IF(AI60="","",RANK(AI60,AI$5:AI$604,0)+COUNTIF(AI$5:AI60,AI60)-1) ->  | AN60: =IF('ENTRY-NILAI'!$L69="A",'ENTRY-NILAI'!$BD69,"") ->  | AO60: =IF('ENTRY-NILAI'!$L69="A",'ENTRY-NILAI'!$BC69,"") ->  | AV60: =IF(AU60="","",RANK(AU60,AU$5:AU$604,0)+COUNTIF(AU$5:AU60,AU60)-1) ->  | AZ60: =IF('ENTRY-NILAI'!$L69="A",'ENTRY-NILAI'!$BN69,"") ->  | BA60: =IF('ENTRY-NILAI'!$L69="A",'ENTRY-NILAI'!$BM69,"") ->  | BH60: =IF(BG60="","",RANK(BG60,BG$5:BG$604,0)+COUNTIF(BG$5:BG60,BG60)-1) ->  | BL60: =IF('ENTRY-NILAI'!$L69="A",'ENTRY-NILAI'!$BX69,"") ->  | BM60: =IF('ENTRY-NILAI'!$L69="A",'ENTRY-NILAI'!$BW69,"") ->  | BT60: =IF(BS60="","",RANK(BS60,BS$5:BS$604,0)+COUNTIF(BS$5:BS60,BS60)-1) ->  | BY60: =IF('ENTRY-NILAI'!$L69="a",'ENTRY-NILAI'!FG69,"") ->  | BZ60: =IF('ENTRY-NILAI'!$L69="a",'ENTRY-NILAI'!AC69,"") ->  | CA60: =IF('ENTRY-NILAI'!$L69="a",'ENTRY-NILAI'!AM69,"") ->  | CB60: =IF('ENTRY-NILAI'!$L69="a",'ENTRY-NILAI'!AU69,"") ->  | CC60: =IF('ENTRY-NILAI'!$L69="a",'ENTRY-NILAI'!BE69,"") ->  | CD60: =IF('ENTRY-NILAI'!$L69="a",'ENTRY-NILAI'!BO69,"") ->  | CE60: =IF('ENTRY-NILAI'!$L69="a",'ENTRY-NILAI'!BY69,"") ->  | CF60: 56 | CG60: =IF('ENTRY-NILAI'!$L69="a",'ENTRY-NILAI'!AB69+'ENTRY-NILAI'!AL69+'ENTRY-NILAI'!AT69+'ENTRY-NILAI'!BD69+'ENTRY-NILAI'!BN69+'ENTRY-NILAI'!BX69,"") ->  | CO60: =IF(CN60="","",RANK(CN60,CN$5:CN$604,0)+COUNTIF(CN$5:CN60,CN60)-1) -> 
B61: 57 | C61: =IF('ENTRY-NILAI'!L70="A",'ENTRY-NILAI'!A70,"") ->  | D61: =IF('ENTRY-NILAI'!$L70="A",'ENTRY-NILAI'!AB70,"") ->  | E61: =IF('ENTRY-NILAI'!$L70="A",'ENTRY-NILAI'!AA70,"") ->  | L61: =IF(K61="","",RANK(K61,K$5:K$604,0)+COUNTIF(K$5:K61,K61)-1) ->  | P61: =IF('ENTRY-NILAI'!$L70="A",'ENTRY-NILAI'!$AL70,"") ->  | Q61: =IF('ENTRY-NILAI'!$L70="A",'ENTRY-NILAI'!$AK70,"") ->  | X61: =IF(W61="","",RANK(W61,W$5:W$604,0)+COUNTIF(W$5:W61,W61)-1) ->  | AB61: =IF('ENTRY-NILAI'!$L70="A",'ENTRY-NILAI'!$AT70,"") ->  | AC61: =IF('ENTRY-NILAI'!$L70="A",'ENTRY-NILAI'!$AS70,"") ->  | AJ61: =IF(AI61="","",RANK(AI61,AI$5:AI$604,0)+COUNTIF(AI$5:AI61,AI61)-1) ->  | AN61: =IF('ENTRY-NILAI'!$L70="A",'ENTRY-NILAI'!$BD70,"") ->  | AO61: =IF('ENTRY-NILAI'!$L70="A",'ENTRY-NILAI'!$BC70,"") ->  | AV61: =IF(AU61="","",RANK(AU61,AU$5:AU$604,0)+COUNTIF(AU$5:AU61,AU61)-1) ->  | AZ61: =IF('ENTRY-NILAI'!$L70="A",'ENTRY-NILAI'!$BN70,"") ->  | BA61: =IF('ENTRY-NILAI'!$L70="A",'ENTRY-NILAI'!$BM70,"") ->  | BH61: =IF(BG61="","",RANK(BG61,BG$5:BG$604,0)+COUNTIF(BG$5:BG61,BG61)-1) ->  | BL61: =IF('ENTRY-NILAI'!$L70="A",'ENTRY-NILAI'!$BX70,"") ->  | BM61: =IF('ENTRY-NILAI'!$L70="A",'ENTRY-NILAI'!$BW70,"") ->  | BT61: =IF(BS61="","",RANK(BS61,BS$5:BS$604,0)+COUNTIF(BS$5:BS61,BS61)-1) ->  | BY61: =IF('ENTRY-NILAI'!$L70="a",'ENTRY-NILAI'!FG70,"") ->  | BZ61: =IF('ENTRY-NILAI'!$L70="a",'ENTRY-NILAI'!AC70,"") ->  | CA61: =IF('ENTRY-NILAI'!$L70="a",'ENTRY-NILAI'!AM70,"") ->  | CB61: =IF('ENTRY-NILAI'!$L70="a",'ENTRY-NILAI'!AU70,"") ->  | CC61: =IF('ENTRY-NILAI'!$L70="a",'ENTRY-NILAI'!BE70,"") ->  | CD61: =IF('ENTRY-NILAI'!$L70="a",'ENTRY-NILAI'!BO70,"") ->  | CE61: =IF('ENTRY-NILAI'!$L70="a",'ENTRY-NILAI'!BY70,"") ->  | CF61: 57 | CG61: =IF('ENTRY-NILAI'!$L70="a",'ENTRY-NILAI'!AB70+'ENTRY-NILAI'!AL70+'ENTRY-NILAI'!AT70+'ENTRY-NILAI'!BD70+'ENTRY-NILAI'!BN70+'ENTRY-NILAI'!BX70,"") ->  | CO61: =IF(CN61="","",RANK(CN61,CN$5:CN$604,0)+COUNTIF(CN$5:CN61,CN61)-1) -> 
B62: 58 | C62: =IF('ENTRY-NILAI'!L71="A",'ENTRY-NILAI'!A71,"") ->  | D62: =IF('ENTRY-NILAI'!$L71="A",'ENTRY-NILAI'!AB71,"") ->  | E62: =IF('ENTRY-NILAI'!$L71="A",'ENTRY-NILAI'!AA71,"") ->  | L62: =IF(K62="","",RANK(K62,K$5:K$604,0)+COUNTIF(K$5:K62,K62)-1) ->  | P62: =IF('ENTRY-NILAI'!$L71="A",'ENTRY-NILAI'!$AL71,"") ->  | Q62: =IF('ENTRY-NILAI'!$L71="A",'ENTRY-NILAI'!$AK71,"") ->  | X62: =IF(W62="","",RANK(W62,W$5:W$604,0)+COUNTIF(W$5:W62,W62)-1) ->  | AB62: =IF('ENTRY-NILAI'!$L71="A",'ENTRY-NILAI'!$AT71,"") ->  | AC62: =IF('ENTRY-NILAI'!$L71="A",'ENTRY-NILAI'!$AS71,"") ->  | AJ62: =IF(AI62="","",RANK(AI62,AI$5:AI$604,0)+COUNTIF(AI$5:AI62,AI62)-1) ->  | AN62: =IF('ENTRY-NILAI'!$L71="A",'ENTRY-NILAI'!$BD71,"") ->  | AO62: =IF('ENTRY-NILAI'!$L71="A",'ENTRY-NILAI'!$BC71,"") ->  | AV62: =IF(AU62="","",RANK(AU62,AU$5:AU$604,0)+COUNTIF(AU$5:AU62,AU62)-1) ->  | AZ62: =IF('ENTRY-NILAI'!$L71="A",'ENTRY-NILAI'!$BN71,"") ->  | BA62: =IF('ENTRY-NILAI'!$L71="A",'ENTRY-NILAI'!$BM71,"") ->  | BH62: =IF(BG62="","",RANK(BG62,BG$5:BG$604,0)+COUNTIF(BG$5:BG62,BG62)-1) ->  | BL62: =IF('ENTRY-NILAI'!$L71="A",'ENTRY-NILAI'!$BX71,"") ->  | BM62: =IF('ENTRY-NILAI'!$L71="A",'ENTRY-NILAI'!$BW71,"") ->  | BT62: =IF(BS62="","",RANK(BS62,BS$5:BS$604,0)+COUNTIF(BS$5:BS62,BS62)-1) ->  | BY62: =IF('ENTRY-NILAI'!$L71="a",'ENTRY-NILAI'!FG71,"") ->  | BZ62: =IF('ENTRY-NILAI'!$L71="a",'ENTRY-NILAI'!AC71,"") ->  | CA62: =IF('ENTRY-NILAI'!$L71="a",'ENTRY-NILAI'!AM71,"") ->  | CB62: =IF('ENTRY-NILAI'!$L71="a",'ENTRY-NILAI'!AU71,"") ->  | CC62: =IF('ENTRY-NILAI'!$L71="a",'ENTRY-NILAI'!BE71,"") ->  | CD62: =IF('ENTRY-NILAI'!$L71="a",'ENTRY-NILAI'!BO71,"") ->  | CE62: =IF('ENTRY-NILAI'!$L71="a",'ENTRY-NILAI'!BY71,"") ->  | CF62: 58 | CG62: =IF('ENTRY-NILAI'!$L71="a",'ENTRY-NILAI'!AB71+'ENTRY-NILAI'!AL71+'ENTRY-NILAI'!AT71+'ENTRY-NILAI'!BD71+'ENTRY-NILAI'!BN71+'ENTRY-NILAI'!BX71,"") ->  | CO62: =IF(CN62="","",RANK(CN62,CN$5:CN$604,0)+COUNTIF(CN$5:CN62,CN62)-1) -> 
B63: 59 | C63: =IF('ENTRY-NILAI'!L72="A",'ENTRY-NILAI'!A72,"") ->  | D63: =IF('ENTRY-NILAI'!$L72="A",'ENTRY-NILAI'!AB72,"") ->  | E63: =IF('ENTRY-NILAI'!$L72="A",'ENTRY-NILAI'!AA72,"") ->  | L63: =IF(K63="","",RANK(K63,K$5:K$604,0)+COUNTIF(K$5:K63,K63)-1) ->  | P63: =IF('ENTRY-NILAI'!$L72="A",'ENTRY-NILAI'!$AL72,"") ->  | Q63: =IF('ENTRY-NILAI'!$L72="A",'ENTRY-NILAI'!$AK72,"") ->  | X63: =IF(W63="","",RANK(W63,W$5:W$604,0)+COUNTIF(W$5:W63,W63)-1) ->  | AB63: =IF('ENTRY-NILAI'!$L72="A",'ENTRY-NILAI'!$AT72,"") ->  | AC63: =IF('ENTRY-NILAI'!$L72="A",'ENTRY-NILAI'!$AS72,"") ->  | AJ63: =IF(AI63="","",RANK(AI63,AI$5:AI$604,0)+COUNTIF(AI$5:AI63,AI63)-1) ->  | AN63: =IF('ENTRY-NILAI'!$L72="A",'ENTRY-NILAI'!$BD72,"") ->  | AO63: =IF('ENTRY-NILAI'!$L72="A",'ENTRY-NILAI'!$BC72,"") ->  | AV63: =IF(AU63="","",RANK(AU63,AU$5:AU$604,0)+COUNTIF(AU$5:AU63,AU63)-1) ->  | AZ63: =IF('ENTRY-NILAI'!$L72="A",'ENTRY-NILAI'!$BN72,"") ->  | BA63: =IF('ENTRY-NILAI'!$L72="A",'ENTRY-NILAI'!$BM72,"") ->  | BH63: =IF(BG63="","",RANK(BG63,BG$5:BG$604,0)+COUNTIF(BG$5:BG63,BG63)-1) ->  | BL63: =IF('ENTRY-NILAI'!$L72="A",'ENTRY-NILAI'!$BX72,"") ->  | BM63: =IF('ENTRY-NILAI'!$L72="A",'ENTRY-NILAI'!$BW72,"") ->  | BT63: =IF(BS63="","",RANK(BS63,BS$5:BS$604,0)+COUNTIF(BS$5:BS63,BS63)-1) ->  | BY63: =IF('ENTRY-NILAI'!$L72="a",'ENTRY-NILAI'!FG72,"") ->  | BZ63: =IF('ENTRY-NILAI'!$L72="a",'ENTRY-NILAI'!AC72,"") ->  | CA63: =IF('ENTRY-NILAI'!$L72="a",'ENTRY-NILAI'!AM72,"") ->  | CB63: =IF('ENTRY-NILAI'!$L72="a",'ENTRY-NILAI'!AU72,"") ->  | CC63: =IF('ENTRY-NILAI'!$L72="a",'ENTRY-NILAI'!BE72,"") ->  | CD63: =IF('ENTRY-NILAI'!$L72="a",'ENTRY-NILAI'!BO72,"") ->  | CE63: =IF('ENTRY-NILAI'!$L72="a",'ENTRY-NILAI'!BY72,"") ->  | CF63: 59 | CG63: =IF('ENTRY-NILAI'!$L72="a",'ENTRY-NILAI'!AB72+'ENTRY-NILAI'!AL72+'ENTRY-NILAI'!AT72+'ENTRY-NILAI'!BD72+'ENTRY-NILAI'!BN72+'ENTRY-NILAI'!BX72,"") ->  | CO63: =IF(CN63="","",RANK(CN63,CN$5:CN$604,0)+COUNTIF(CN$5:CN63,CN63)-1) -> 
B64: 60 | C64: =IF('ENTRY-NILAI'!L73="A",'ENTRY-NILAI'!A73,"") ->  | D64: =IF('ENTRY-NILAI'!$L73="A",'ENTRY-NILAI'!AB73,"") ->  | E64: =IF('ENTRY-NILAI'!$L73="A",'ENTRY-NILAI'!AA73,"") ->  | L64: =IF(K64="","",RANK(K64,K$5:K$604,0)+COUNTIF(K$5:K64,K64)-1) ->  | P64: =IF('ENTRY-NILAI'!$L73="A",'ENTRY-NILAI'!$AL73,"") ->  | Q64: =IF('ENTRY-NILAI'!$L73="A",'ENTRY-NILAI'!$AK73,"") ->  | X64: =IF(W64="","",RANK(W64,W$5:W$604,0)+COUNTIF(W$5:W64,W64)-1) ->  | AB64: =IF('ENTRY-NILAI'!$L73="A",'ENTRY-NILAI'!$AT73,"") ->  | AC64: =IF('ENTRY-NILAI'!$L73="A",'ENTRY-NILAI'!$AS73,"") ->  | AJ64: =IF(AI64="","",RANK(AI64,AI$5:AI$604,0)+COUNTIF(AI$5:AI64,AI64)-1) ->  | AN64: =IF('ENTRY-NILAI'!$L73="A",'ENTRY-NILAI'!$BD73,"") ->  | AO64: =IF('ENTRY-NILAI'!$L73="A",'ENTRY-NILAI'!$BC73,"") ->  | AV64: =IF(AU64="","",RANK(AU64,AU$5:AU$604,0)+COUNTIF(AU$5:AU64,AU64)-1) ->  | AZ64: =IF('ENTRY-NILAI'!$L73="A",'ENTRY-NILAI'!$BN73,"") ->  | BA64: =IF('ENTRY-NILAI'!$L73="A",'ENTRY-NILAI'!$BM73,"") ->  | BH64: =IF(BG64="","",RANK(BG64,BG$5:BG$604,0)+COUNTIF(BG$5:BG64,BG64)-1) ->  | BL64: =IF('ENTRY-NILAI'!$L73="A",'ENTRY-NILAI'!$BX73,"") ->  | BM64: =IF('ENTRY-NILAI'!$L73="A",'ENTRY-NILAI'!$BW73,"") ->  | BT64: =IF(BS64="","",RANK(BS64,BS$5:BS$604,0)+COUNTIF(BS$5:BS64,BS64)-1) ->  | BY64: =IF('ENTRY-NILAI'!$L73="a",'ENTRY-NILAI'!FG73,"") ->  | BZ64: =IF('ENTRY-NILAI'!$L73="a",'ENTRY-NILAI'!AC73,"") ->  | CA64: =IF('ENTRY-NILAI'!$L73="a",'ENTRY-NILAI'!AM73,"") ->  | CB64: =IF('ENTRY-NILAI'!$L73="a",'ENTRY-NILAI'!AU73,"") ->  | CC64: =IF('ENTRY-NILAI'!$L73="a",'ENTRY-NILAI'!BE73,"") ->  | CD64: =IF('ENTRY-NILAI'!$L73="a",'ENTRY-NILAI'!BO73,"") ->  | CE64: =IF('ENTRY-NILAI'!$L73="a",'ENTRY-NILAI'!BY73,"") ->  | CF64: 60 | CG64: =IF('ENTRY-NILAI'!$L73="a",'ENTRY-NILAI'!AB73+'ENTRY-NILAI'!AL73+'ENTRY-NILAI'!AT73+'ENTRY-NILAI'!BD73+'ENTRY-NILAI'!BN73+'ENTRY-NILAI'!BX73,"") ->  | CO64: =IF(CN64="","",RANK(CN64,CN$5:CN$604,0)+COUNTIF(CN$5:CN64,CN64)-1) -> 
B65: 61 | C65: =IF('ENTRY-NILAI'!L74="A",'ENTRY-NILAI'!A74,"") ->  | D65: =IF('ENTRY-NILAI'!$L74="A",'ENTRY-NILAI'!AB74,"") ->  | E65: =IF('ENTRY-NILAI'!$L74="A",'ENTRY-NILAI'!AA74,"") ->  | L65: =IF(K65="","",RANK(K65,K$5:K$604,0)+COUNTIF(K$5:K65,K65)-1) ->  | P65: =IF('ENTRY-NILAI'!$L74="A",'ENTRY-NILAI'!$AL74,"") ->  | Q65: =IF('ENTRY-NILAI'!$L74="A",'ENTRY-NILAI'!$AK74,"") ->  | X65: =IF(W65="","",RANK(W65,W$5:W$604,0)+COUNTIF(W$5:W65,W65)-1) ->  | AB65: =IF('ENTRY-NILAI'!$L74="A",'ENTRY-NILAI'!$AT74,"") ->  | AC65: =IF('ENTRY-NILAI'!$L74="A",'ENTRY-NILAI'!$AS74,"") ->  | AJ65: =IF(AI65="","",RANK(AI65,AI$5:AI$604,0)+COUNTIF(AI$5:AI65,AI65)-1) ->  | AN65: =IF('ENTRY-NILAI'!$L74="A",'ENTRY-NILAI'!$BD74,"") ->  | AO65: =IF('ENTRY-NILAI'!$L74="A",'ENTRY-NILAI'!$BC74,"") ->  | AV65: =IF(AU65="","",RANK(AU65,AU$5:AU$604,0)+COUNTIF(AU$5:AU65,AU65)-1) ->  | AZ65: =IF('ENTRY-NILAI'!$L74="A",'ENTRY-NILAI'!$BN74,"") ->  | BA65: =IF('ENTRY-NILAI'!$L74="A",'ENTRY-NILAI'!$BM74,"") ->  | BH65: =IF(BG65="","",RANK(BG65,BG$5:BG$604,0)+COUNTIF(BG$5:BG65,BG65)-1) ->  | BL65: =IF('ENTRY-NILAI'!$L74="A",'ENTRY-NILAI'!$BX74,"") ->  | BM65: =IF('ENTRY-NILAI'!$L74="A",'ENTRY-NILAI'!$BW74,"") ->  | BT65: =IF(BS65="","",RANK(BS65,BS$5:BS$604,0)+COUNTIF(BS$5:BS65,BS65)-1) ->  | BY65: =IF('ENTRY-NILAI'!$L74="a",'ENTRY-NILAI'!FG74,"") ->  | BZ65: =IF('ENTRY-NILAI'!$L74="a",'ENTRY-NILAI'!AC74,"") ->  | CA65: =IF('ENTRY-NILAI'!$L74="a",'ENTRY-NILAI'!AM74,"") ->  | CB65: =IF('ENTRY-NILAI'!$L74="a",'ENTRY-NILAI'!AU74,"") ->  | CC65: =IF('ENTRY-NILAI'!$L74="a",'ENTRY-NILAI'!BE74,"") ->  | CD65: =IF('ENTRY-NILAI'!$L74="a",'ENTRY-NILAI'!BO74,"") ->  | CE65: =IF('ENTRY-NILAI'!$L74="a",'ENTRY-NILAI'!BY74,"") ->  | CF65: 61 | CG65: =IF('ENTRY-NILAI'!$L74="a",'ENTRY-NILAI'!AB74+'ENTRY-NILAI'!AL74+'ENTRY-NILAI'!AT74+'ENTRY-NILAI'!BD74+'ENTRY-NILAI'!BN74+'ENTRY-NILAI'!BX74,"") ->  | CO65: =IF(CN65="","",RANK(CN65,CN$5:CN$604,0)+COUNTIF(CN$5:CN65,CN65)-1) -> 
B66: 62 | C66: =IF('ENTRY-NILAI'!L75="A",'ENTRY-NILAI'!A75,"") ->  | D66: =IF('ENTRY-NILAI'!$L75="A",'ENTRY-NILAI'!AB75,"") ->  | E66: =IF('ENTRY-NILAI'!$L75="A",'ENTRY-NILAI'!AA75,"") ->  | L66: =IF(K66="","",RANK(K66,K$5:K$604,0)+COUNTIF(K$5:K66,K66)-1) ->  | P66: =IF('ENTRY-NILAI'!$L75="A",'ENTRY-NILAI'!$AL75,"") ->  | Q66: =IF('ENTRY-NILAI'!$L75="A",'ENTRY-NILAI'!$AK75,"") ->  | X66: =IF(W66="","",RANK(W66,W$5:W$604,0)+COUNTIF(W$5:W66,W66)-1) ->  | AB66: =IF('ENTRY-NILAI'!$L75="A",'ENTRY-NILAI'!$AT75,"") ->  | AC66: =IF('ENTRY-NILAI'!$L75="A",'ENTRY-NILAI'!$AS75,"") ->  | AJ66: =IF(AI66="","",RANK(AI66,AI$5:AI$604,0)+COUNTIF(AI$5:AI66,AI66)-1) ->  | AN66: =IF('ENTRY-NILAI'!$L75="A",'ENTRY-NILAI'!$BD75,"") ->  | AO66: =IF('ENTRY-NILAI'!$L75="A",'ENTRY-NILAI'!$BC75,"") ->  | AV66: =IF(AU66="","",RANK(AU66,AU$5:AU$604,0)+COUNTIF(AU$5:AU66,AU66)-1) ->  | AZ66: =IF('ENTRY-NILAI'!$L75="A",'ENTRY-NILAI'!$BN75,"") ->  | BA66: =IF('ENTRY-NILAI'!$L75="A",'ENTRY-NILAI'!$BM75,"") ->  | BH66: =IF(BG66="","",RANK(BG66,BG$5:BG$604,0)+COUNTIF(BG$5:BG66,BG66)-1) ->  | BL66: =IF('ENTRY-NILAI'!$L75="A",'ENTRY-NILAI'!$BX75,"") ->  | BM66: =IF('ENTRY-NILAI'!$L75="A",'ENTRY-NILAI'!$BW75,"") ->  | BT66: =IF(BS66="","",RANK(BS66,BS$5:BS$604,0)+COUNTIF(BS$5:BS66,BS66)-1) ->  | BY66: =IF('ENTRY-NILAI'!$L75="a",'ENTRY-NILAI'!FG75,"") ->  | BZ66: =IF('ENTRY-NILAI'!$L75="a",'ENTRY-NILAI'!AC75,"") ->  | CA66: =IF('ENTRY-NILAI'!$L75="a",'ENTRY-NILAI'!AM75,"") ->  | CB66: =IF('ENTRY-NILAI'!$L75="a",'ENTRY-NILAI'!AU75,"") ->  | CC66: =IF('ENTRY-NILAI'!$L75="a",'ENTRY-NILAI'!BE75,"") ->  | CD66: =IF('ENTRY-NILAI'!$L75="a",'ENTRY-NILAI'!BO75,"") ->  | CE66: =IF('ENTRY-NILAI'!$L75="a",'ENTRY-NILAI'!BY75,"") ->  | CF66: 62 | CG66: =IF('ENTRY-NILAI'!$L75="a",'ENTRY-NILAI'!AB75+'ENTRY-NILAI'!AL75+'ENTRY-NILAI'!AT75+'ENTRY-NILAI'!BD75+'ENTRY-NILAI'!BN75+'ENTRY-NILAI'!BX75,"") ->  | CO66: =IF(CN66="","",RANK(CN66,CN$5:CN$604,0)+COUNTIF(CN$5:CN66,CN66)-1) -> 
B67: 63 | C67: =IF('ENTRY-NILAI'!L76="A",'ENTRY-NILAI'!A76,"") ->  | D67: =IF('ENTRY-NILAI'!$L76="A",'ENTRY-NILAI'!AB76,"") ->  | E67: =IF('ENTRY-NILAI'!$L76="A",'ENTRY-NILAI'!AA76,"") ->  | L67: =IF(K67="","",RANK(K67,K$5:K$604,0)+COUNTIF(K$5:K67,K67)-1) ->  | P67: =IF('ENTRY-NILAI'!$L76="A",'ENTRY-NILAI'!$AL76,"") ->  | Q67: =IF('ENTRY-NILAI'!$L76="A",'ENTRY-NILAI'!$AK76,"") ->  | X67: =IF(W67="","",RANK(W67,W$5:W$604,0)+COUNTIF(W$5:W67,W67)-1) ->  | AB67: =IF('ENTRY-NILAI'!$L76="A",'ENTRY-NILAI'!$AT76,"") ->  | AC67: =IF('ENTRY-NILAI'!$L76="A",'ENTRY-NILAI'!$AS76,"") ->  | AJ67: =IF(AI67="","",RANK(AI67,AI$5:AI$604,0)+COUNTIF(AI$5:AI67,AI67)-1) ->  | AN67: =IF('ENTRY-NILAI'!$L76="A",'ENTRY-NILAI'!$BD76,"") ->  | AO67: =IF('ENTRY-NILAI'!$L76="A",'ENTRY-NILAI'!$BC76,"") ->  | AV67: =IF(AU67="","",RANK(AU67,AU$5:AU$604,0)+COUNTIF(AU$5:AU67,AU67)-1) ->  | AZ67: =IF('ENTRY-NILAI'!$L76="A",'ENTRY-NILAI'!$BN76,"") ->  | BA67: =IF('ENTRY-NILAI'!$L76="A",'ENTRY-NILAI'!$BM76,"") ->  | BH67: =IF(BG67="","",RANK(BG67,BG$5:BG$604,0)+COUNTIF(BG$5:BG67,BG67)-1) ->  | BL67: =IF('ENTRY-NILAI'!$L76="A",'ENTRY-NILAI'!$BX76,"") ->  | BM67: =IF('ENTRY-NILAI'!$L76="A",'ENTRY-NILAI'!$BW76,"") ->  | BT67: =IF(BS67="","",RANK(BS67,BS$5:BS$604,0)+COUNTIF(BS$5:BS67,BS67)-1) ->  | BY67: =IF('ENTRY-NILAI'!$L76="a",'ENTRY-NILAI'!FG76,"") ->  | BZ67: =IF('ENTRY-NILAI'!$L76="a",'ENTRY-NILAI'!AC76,"") ->  | CA67: =IF('ENTRY-NILAI'!$L76="a",'ENTRY-NILAI'!AM76,"") ->  | CB67: =IF('ENTRY-NILAI'!$L76="a",'ENTRY-NILAI'!AU76,"") ->  | CC67: =IF('ENTRY-NILAI'!$L76="a",'ENTRY-NILAI'!BE76,"") ->  | CD67: =IF('ENTRY-NILAI'!$L76="a",'ENTRY-NILAI'!BO76,"") ->  | CE67: =IF('ENTRY-NILAI'!$L76="a",'ENTRY-NILAI'!BY76,"") ->  | CF67: 63 | CG67: =IF('ENTRY-NILAI'!$L76="a",'ENTRY-NILAI'!AB76+'ENTRY-NILAI'!AL76+'ENTRY-NILAI'!AT76+'ENTRY-NILAI'!BD76+'ENTRY-NILAI'!BN76+'ENTRY-NILAI'!BX76,"") ->  | CO67: =IF(CN67="","",RANK(CN67,CN$5:CN$604,0)+COUNTIF(CN$5:CN67,CN67)-1) -> 
B68: 64 | C68: =IF('ENTRY-NILAI'!L77="A",'ENTRY-NILAI'!A77,"") ->  | D68: =IF('ENTRY-NILAI'!$L77="A",'ENTRY-NILAI'!AB77,"") ->  | E68: =IF('ENTRY-NILAI'!$L77="A",'ENTRY-NILAI'!AA77,"") ->  | L68: =IF(K68="","",RANK(K68,K$5:K$604,0)+COUNTIF(K$5:K68,K68)-1) ->  | P68: =IF('ENTRY-NILAI'!$L77="A",'ENTRY-NILAI'!$AL77,"") ->  | Q68: =IF('ENTRY-NILAI'!$L77="A",'ENTRY-NILAI'!$AK77,"") ->  | X68: =IF(W68="","",RANK(W68,W$5:W$604,0)+COUNTIF(W$5:W68,W68)-1) ->  | AB68: =IF('ENTRY-NILAI'!$L77="A",'ENTRY-NILAI'!$AT77,"") ->  | AC68: =IF('ENTRY-NILAI'!$L77="A",'ENTRY-NILAI'!$AS77,"") ->  | AJ68: =IF(AI68="","",RANK(AI68,AI$5:AI$604,0)+COUNTIF(AI$5:AI68,AI68)-1) ->  | AN68: =IF('ENTRY-NILAI'!$L77="A",'ENTRY-NILAI'!$BD77,"") ->  | AO68: =IF('ENTRY-NILAI'!$L77="A",'ENTRY-NILAI'!$BC77,"") ->  | AV68: =IF(AU68="","",RANK(AU68,AU$5:AU$604,0)+COUNTIF(AU$5:AU68,AU68)-1) ->  | AZ68: =IF('ENTRY-NILAI'!$L77="A",'ENTRY-NILAI'!$BN77,"") ->  | BA68: =IF('ENTRY-NILAI'!$L77="A",'ENTRY-NILAI'!$BM77,"") ->  | BH68: =IF(BG68="","",RANK(BG68,BG$5:BG$604,0)+COUNTIF(BG$5:BG68,BG68)-1) ->  | BL68: =IF('ENTRY-NILAI'!$L77="A",'ENTRY-NILAI'!$BX77,"") ->  | BM68: =IF('ENTRY-NILAI'!$L77="A",'ENTRY-NILAI'!$BW77,"") ->  | BT68: =IF(BS68="","",RANK(BS68,BS$5:BS$604,0)+COUNTIF(BS$5:BS68,BS68)-1) ->  | BY68: =IF('ENTRY-NILAI'!$L77="a",'ENTRY-NILAI'!FG77,"") ->  | BZ68: =IF('ENTRY-NILAI'!$L77="a",'ENTRY-NILAI'!AC77,"") ->  | CA68: =IF('ENTRY-NILAI'!$L77="a",'ENTRY-NILAI'!AM77,"") ->  | CB68: =IF('ENTRY-NILAI'!$L77="a",'ENTRY-NILAI'!AU77,"") ->  | CC68: =IF('ENTRY-NILAI'!$L77="a",'ENTRY-NILAI'!BE77,"") ->  | CD68: =IF('ENTRY-NILAI'!$L77="a",'ENTRY-NILAI'!BO77,"") ->  | CE68: =IF('ENTRY-NILAI'!$L77="a",'ENTRY-NILAI'!BY77,"") ->  | CF68: 64 | CG68: =IF('ENTRY-NILAI'!$L77="a",'ENTRY-NILAI'!AB77+'ENTRY-NILAI'!AL77+'ENTRY-NILAI'!AT77+'ENTRY-NILAI'!BD77+'ENTRY-NILAI'!BN77+'ENTRY-NILAI'!BX77,"") ->  | CO68: =IF(CN68="","",RANK(CN68,CN$5:CN$604,0)+COUNTIF(CN$5:CN68,CN68)-1) -> 
B69: 65 | C69: =IF('ENTRY-NILAI'!L78="A",'ENTRY-NILAI'!A78,"") ->  | D69: =IF('ENTRY-NILAI'!$L78="A",'ENTRY-NILAI'!AB78,"") ->  | E69: =IF('ENTRY-NILAI'!$L78="A",'ENTRY-NILAI'!AA78,"") ->  | L69: =IF(K69="","",RANK(K69,K$5:K$604,0)+COUNTIF(K$5:K69,K69)-1) ->  | P69: =IF('ENTRY-NILAI'!$L78="A",'ENTRY-NILAI'!$AL78,"") ->  | Q69: =IF('ENTRY-NILAI'!$L78="A",'ENTRY-NILAI'!$AK78,"") ->  | X69: =IF(W69="","",RANK(W69,W$5:W$604,0)+COUNTIF(W$5:W69,W69)-1) ->  | AB69: =IF('ENTRY-NILAI'!$L78="A",'ENTRY-NILAI'!$AT78,"") ->  | AC69: =IF('ENTRY-NILAI'!$L78="A",'ENTRY-NILAI'!$AS78,"") ->  | AJ69: =IF(AI69="","",RANK(AI69,AI$5:AI$604,0)+COUNTIF(AI$5:AI69,AI69)-1) ->  | AN69: =IF('ENTRY-NILAI'!$L78="A",'ENTRY-NILAI'!$BD78,"") ->  | AO69: =IF('ENTRY-NILAI'!$L78="A",'ENTRY-NILAI'!$BC78,"") ->  | AV69: =IF(AU69="","",RANK(AU69,AU$5:AU$604,0)+COUNTIF(AU$5:AU69,AU69)-1) ->  | AZ69: =IF('ENTRY-NILAI'!$L78="A",'ENTRY-NILAI'!$BN78,"") ->  | BA69: =IF('ENTRY-NILAI'!$L78="A",'ENTRY-NILAI'!$BM78,"") ->  | BH69: =IF(BG69="","",RANK(BG69,BG$5:BG$604,0)+COUNTIF(BG$5:BG69,BG69)-1) ->  | BL69: =IF('ENTRY-NILAI'!$L78="A",'ENTRY-NILAI'!$BX78,"") ->  | BM69: =IF('ENTRY-NILAI'!$L78="A",'ENTRY-NILAI'!$BW78,"") ->  | BT69: =IF(BS69="","",RANK(BS69,BS$5:BS$604,0)+COUNTIF(BS$5:BS69,BS69)-1) ->  | BY69: =IF('ENTRY-NILAI'!$L78="a",'ENTRY-NILAI'!FG78,"") ->  | BZ69: =IF('ENTRY-NILAI'!$L78="a",'ENTRY-NILAI'!AC78,"") ->  | CA69: =IF('ENTRY-NILAI'!$L78="a",'ENTRY-NILAI'!AM78,"") ->  | CB69: =IF('ENTRY-NILAI'!$L78="a",'ENTRY-NILAI'!AU78,"") ->  | CC69: =IF('ENTRY-NILAI'!$L78="a",'ENTRY-NILAI'!BE78,"") ->  | CD69: =IF('ENTRY-NILAI'!$L78="a",'ENTRY-NILAI'!BO78,"") ->  | CE69: =IF('ENTRY-NILAI'!$L78="a",'ENTRY-NILAI'!BY78,"") ->  | CF69: 65 | CG69: =IF('ENTRY-NILAI'!$L78="a",'ENTRY-NILAI'!AB78+'ENTRY-NILAI'!AL78+'ENTRY-NILAI'!AT78+'ENTRY-NILAI'!BD78+'ENTRY-NILAI'!BN78+'ENTRY-NILAI'!BX78,"") ->  | CO69: =IF(CN69="","",RANK(CN69,CN$5:CN$604,0)+COUNTIF(CN$5:CN69,CN69)-1) -> 
B70: 66 | C70: =IF('ENTRY-NILAI'!L79="A",'ENTRY-NILAI'!A79,"") ->  | D70: =IF('ENTRY-NILAI'!$L79="A",'ENTRY-NILAI'!AB79,"") ->  | E70: =IF('ENTRY-NILAI'!$L79="A",'ENTRY-NILAI'!AA79,"") ->  | L70: =IF(K70="","",RANK(K70,K$5:K$604,0)+COUNTIF(K$5:K70,K70)-1) ->  | O70: =IFERROR(VLOOKUP(N70,$L$5:$M$604,2,FALSE),"") ->  | P70: =IF('ENTRY-NILAI'!$L79="A",'ENTRY-NILAI'!$AL79,"") ->  | Q70: =IF('ENTRY-NILAI'!$L79="A",'ENTRY-NILAI'!$AK79,"") ->  | X70: =IF(W70="","",RANK(W70,W$5:W$604,0)+COUNTIF(W$5:W70,W70)-1) ->  | Z70: =SMALL($X$5:$X$604,$A70) ->  | AA70: =IFERROR(VLOOKUP(Z70,$X$5:$Y$604,2,FALSE),"") ->  | AB70: =IF('ENTRY-NILAI'!$L79="A",'ENTRY-NILAI'!$AT79,"") ->  | AC70: =IF('ENTRY-NILAI'!$L79="A",'ENTRY-NILAI'!$AS79,"") ->  | AJ70: =IF(AI70="","",RANK(AI70,AI$5:AI$604,0)+COUNTIF(AI$5:AI70,AI70)-1) ->  | AK70: =IF($C70="","",IF(AJ70<11,$B70,"")) ->  | AM70: =IFERROR(VLOOKUP(AL70,AJ$5:AK$604,2,FALSE),"") ->  | AN70: =IF('ENTRY-NILAI'!$L79="A",'ENTRY-NILAI'!$BD79,"") ->  | AO70: =IF('ENTRY-NILAI'!$L79="A",'ENTRY-NILAI'!$BC79,"") ->  | AV70: =IF(AU70="","",RANK(AU70,AU$5:AU$604,0)+COUNTIF(AU$5:AU70,AU70)-1) ->  | AW70: =IF($C70="","",IF(AV70<11,$B70,"")) ->  | AY70: =IFERROR(VLOOKUP(AX70,AV$5:AW$604,2,FALSE),"") ->  | AZ70: =IF('ENTRY-NILAI'!$L79="A",'ENTRY-NILAI'!$BN79,"") ->  | BA70: =IF('ENTRY-NILAI'!$L79="A",'ENTRY-NILAI'!$BM79,"") ->  | BH70: =IF(BG70="","",RANK(BG70,BG$5:BG$604,0)+COUNTIF(BG$5:BG70,BG70)-1) ->  | BI70: =IF($C70="","",IF(BH70<11,$B70,"")) ->  | BK70: =IFERROR(VLOOKUP(BJ70,BH$5:BI$604,2,FALSE),"") ->  | BL70: =IF('ENTRY-NILAI'!$L79="A",'ENTRY-NILAI'!$BX79,"") ->  | BM70: =IF('ENTRY-NILAI'!$L79="A",'ENTRY-NILAI'!$BW79,"") ->  | BT70: =IF(BS70="","",RANK(BS70,BS$5:BS$604,0)+COUNTIF(BS$5:BS70,BS70)-1) ->  | BU70: =IF($C70="","",IF(BT70<11,$B70,"")) ->  | BW70: =IFERROR(VLOOKUP(BV70,BT$5:BU$604,2,FALSE),"") ->  | BY70: =IF('ENTRY-NILAI'!$L79="a",'ENTRY-NILAI'!FG79,"") ->  | BZ70: =IF('ENTRY-NILAI'!$L79="a",'ENTRY-NILAI'!AC79,"") ->  | CA70: =IF('ENTRY-NILAI'!$L79="a",'ENTRY-NILAI'!AM79,"") ->  | CB70: =IF('ENTRY-NILAI'!$L79="a",'ENTRY-NILAI'!AU79,"") ->  | CC70: =IF('ENTRY-NILAI'!$L79="a",'ENTRY-NILAI'!BE79,"") ->  | CD70: =IF('ENTRY-NILAI'!$L79="a",'ENTRY-NILAI'!BO79,"") ->  | CE70: =IF('ENTRY-NILAI'!$L79="a",'ENTRY-NILAI'!BY79,"") ->  | CF70: 66 | CG70: =IF('ENTRY-NILAI'!$L79="a",'ENTRY-NILAI'!AB79+'ENTRY-NILAI'!AL79+'ENTRY-NILAI'!AT79+'ENTRY-NILAI'!BD79+'ENTRY-NILAI'!BN79+'ENTRY-NILAI'!BX79,"") ->  | CO70: =IF(CN70="","",RANK(CN70,CN$5:CN$604,0)+COUNTIF(CN$5:CN70,CN70)-1) ->  | CP70: =IF($C70="","",IF(CO70<11,$B70,"")) ->  | CR70: =IFERROR(VLOOKUP(CQ70,CO$5:CP$604,2,FALSE),"") -> 
B71: 67 | C71: =IF('ENTRY-NILAI'!L80="A",'ENTRY-NILAI'!A80,"") ->  | D71: =IF('ENTRY-NILAI'!$L80="A",'ENTRY-NILAI'!AB80,"") ->  | E71: =IF('ENTRY-NILAI'!$L80="A",'ENTRY-NILAI'!AA80,"") ->  | L71: =IF(K71="","",RANK(K71,K$5:K$604,0)+COUNTIF(K$5:K71,K71)-1) ->  | P71: =IF('ENTRY-NILAI'!$L80="A",'ENTRY-NILAI'!$AL80,"") ->  | Q71: =IF('ENTRY-NILAI'!$L80="A",'ENTRY-NILAI'!$AK80,"") ->  | X71: =IF(W71="","",RANK(W71,W$5:W$604,0)+COUNTIF(W$5:W71,W71)-1) ->  | AB71: =IF('ENTRY-NILAI'!$L80="A",'ENTRY-NILAI'!$AT80,"") ->  | AC71: =IF('ENTRY-NILAI'!$L80="A",'ENTRY-NILAI'!$AS80,"") ->  | AJ71: =IF(AI71="","",RANK(AI71,AI$5:AI$604,0)+COUNTIF(AI$5:AI71,AI71)-1) ->  | AN71: =IF('ENTRY-NILAI'!$L80="A",'ENTRY-NILAI'!$BD80,"") ->  | AO71: =IF('ENTRY-NILAI'!$L80="A",'ENTRY-NILAI'!$BC80,"") ->  | AV71: =IF(AU71="","",RANK(AU71,AU$5:AU$604,0)+COUNTIF(AU$5:AU71,AU71)-1) ->  | AZ71: =IF('ENTRY-NILAI'!$L80="A",'ENTRY-NILAI'!$BN80,"") ->  | BA71: =IF('ENTRY-NILAI'!$L80="A",'ENTRY-NILAI'!$BM80,"") ->  | BH71: =IF(BG71="","",RANK(BG71,BG$5:BG$604,0)+COUNTIF(BG$5:BG71,BG71)-1) ->  | BL71: =IF('ENTRY-NILAI'!$L80="A",'ENTRY-NILAI'!$BX80,"") ->  | BM71: =IF('ENTRY-NILAI'!$L80="A",'ENTRY-NILAI'!$BW80,"") ->  | BT71: =IF(BS71="","",RANK(BS71,BS$5:BS$604,0)+COUNTIF(BS$5:BS71,BS71)-1) ->  | BY71: =IF('ENTRY-NILAI'!$L80="a",'ENTRY-NILAI'!FG80,"") ->  | BZ71: =IF('ENTRY-NILAI'!$L80="a",'ENTRY-NILAI'!AC80,"") ->  | CA71: =IF('ENTRY-NILAI'!$L80="a",'ENTRY-NILAI'!AM80,"") ->  | CB71: =IF('ENTRY-NILAI'!$L80="a",'ENTRY-NILAI'!AU80,"") ->  | CC71: =IF('ENTRY-NILAI'!$L80="a",'ENTRY-NILAI'!BE80,"") ->  | CD71: =IF('ENTRY-NILAI'!$L80="a",'ENTRY-NILAI'!BO80,"") ->  | CE71: =IF('ENTRY-NILAI'!$L80="a",'ENTRY-NILAI'!BY80,"") ->  | CF71: 67 | CG71: =IF('ENTRY-NILAI'!$L80="a",'ENTRY-NILAI'!AB80+'ENTRY-NILAI'!AL80+'ENTRY-NILAI'!AT80+'ENTRY-NILAI'!BD80+'ENTRY-NILAI'!BN80+'ENTRY-NILAI'!BX80,"") ->  | CO71: =IF(CN71="","",RANK(CN71,CN$5:CN$604,0)+COUNTIF(CN$5:CN71,CN71)-1) -> 
B72: 68 | C72: =IF('ENTRY-NILAI'!L81="A",'ENTRY-NILAI'!A81,"") ->  | D72: =IF('ENTRY-NILAI'!$L81="A",'ENTRY-NILAI'!AB81,"") ->  | E72: =IF('ENTRY-NILAI'!$L81="A",'ENTRY-NILAI'!AA81,"") ->  | L72: =IF(K72="","",RANK(K72,K$5:K$604,0)+COUNTIF(K$5:K72,K72)-1) ->  | P72: =IF('ENTRY-NILAI'!$L81="A",'ENTRY-NILAI'!$AL81,"") ->  | Q72: =IF('ENTRY-NILAI'!$L81="A",'ENTRY-NILAI'!$AK81,"") ->  | X72: =IF(W72="","",RANK(W72,W$5:W$604,0)+COUNTIF(W$5:W72,W72)-1) ->  | AB72: =IF('ENTRY-NILAI'!$L81="A",'ENTRY-NILAI'!$AT81,"") ->  | AC72: =IF('ENTRY-NILAI'!$L81="A",'ENTRY-NILAI'!$AS81,"") ->  | AJ72: =IF(AI72="","",RANK(AI72,AI$5:AI$604,0)+COUNTIF(AI$5:AI72,AI72)-1) ->  | AN72: =IF('ENTRY-NILAI'!$L81="A",'ENTRY-NILAI'!$BD81,"") ->  | AO72: =IF('ENTRY-NILAI'!$L81="A",'ENTRY-NILAI'!$BC81,"") ->  | AV72: =IF(AU72="","",RANK(AU72,AU$5:AU$604,0)+COUNTIF(AU$5:AU72,AU72)-1) ->  | AZ72: =IF('ENTRY-NILAI'!$L81="A",'ENTRY-NILAI'!$BN81,"") ->  | BA72: =IF('ENTRY-NILAI'!$L81="A",'ENTRY-NILAI'!$BM81,"") ->  | BH72: =IF(BG72="","",RANK(BG72,BG$5:BG$604,0)+COUNTIF(BG$5:BG72,BG72)-1) ->  | BL72: =IF('ENTRY-NILAI'!$L81="A",'ENTRY-NILAI'!$BX81,"") ->  | BM72: =IF('ENTRY-NILAI'!$L81="A",'ENTRY-NILAI'!$BW81,"") ->  | BT72: =IF(BS72="","",RANK(BS72,BS$5:BS$604,0)+COUNTIF(BS$5:BS72,BS72)-1) ->  | BY72: =IF('ENTRY-NILAI'!$L81="a",'ENTRY-NILAI'!FG81,"") ->  | BZ72: =IF('ENTRY-NILAI'!$L81="a",'ENTRY-NILAI'!AC81,"") ->  | CA72: =IF('ENTRY-NILAI'!$L81="a",'ENTRY-NILAI'!AM81,"") ->  | CB72: =IF('ENTRY-NILAI'!$L81="a",'ENTRY-NILAI'!AU81,"") ->  | CC72: =IF('ENTRY-NILAI'!$L81="a",'ENTRY-NILAI'!BE81,"") ->  | CD72: =IF('ENTRY-NILAI'!$L81="a",'ENTRY-NILAI'!BO81,"") ->  | CE72: =IF('ENTRY-NILAI'!$L81="a",'ENTRY-NILAI'!BY81,"") ->  | CF72: 68 | CG72: =IF('ENTRY-NILAI'!$L81="a",'ENTRY-NILAI'!AB81+'ENTRY-NILAI'!AL81+'ENTRY-NILAI'!AT81+'ENTRY-NILAI'!BD81+'ENTRY-NILAI'!BN81+'ENTRY-NILAI'!BX81,"") ->  | CO72: =IF(CN72="","",RANK(CN72,CN$5:CN$604,0)+COUNTIF(CN$5:CN72,CN72)-1) -> 
B73: 69 | C73: =IF('ENTRY-NILAI'!L82="A",'ENTRY-NILAI'!A82,"") ->  | D73: =IF('ENTRY-NILAI'!$L82="A",'ENTRY-NILAI'!AB82,"") ->  | E73: =IF('ENTRY-NILAI'!$L82="A",'ENTRY-NILAI'!AA82,"") ->  | L73: =IF(K73="","",RANK(K73,K$5:K$604,0)+COUNTIF(K$5:K73,K73)-1) ->  | P73: =IF('ENTRY-NILAI'!$L82="A",'ENTRY-NILAI'!$AL82,"") ->  | Q73: =IF('ENTRY-NILAI'!$L82="A",'ENTRY-NILAI'!$AK82,"") ->  | X73: =IF(W73="","",RANK(W73,W$5:W$604,0)+COUNTIF(W$5:W73,W73)-1) ->  | AB73: =IF('ENTRY-NILAI'!$L82="A",'ENTRY-NILAI'!$AT82,"") ->  | AC73: =IF('ENTRY-NILAI'!$L82="A",'ENTRY-NILAI'!$AS82,"") ->  | AJ73: =IF(AI73="","",RANK(AI73,AI$5:AI$604,0)+COUNTIF(AI$5:AI73,AI73)-1) ->  | AN73: =IF('ENTRY-NILAI'!$L82="A",'ENTRY-NILAI'!$BD82,"") ->  | AO73: =IF('ENTRY-NILAI'!$L82="A",'ENTRY-NILAI'!$BC82,"") ->  | AV73: =IF(AU73="","",RANK(AU73,AU$5:AU$604,0)+COUNTIF(AU$5:AU73,AU73)-1) ->  | AZ73: =IF('ENTRY-NILAI'!$L82="A",'ENTRY-NILAI'!$BN82,"") ->  | BA73: =IF('ENTRY-NILAI'!$L82="A",'ENTRY-NILAI'!$BM82,"") ->  | BH73: =IF(BG73="","",RANK(BG73,BG$5:BG$604,0)+COUNTIF(BG$5:BG73,BG73)-1) ->  | BL73: =IF('ENTRY-NILAI'!$L82="A",'ENTRY-NILAI'!$BX82,"") ->  | BM73: =IF('ENTRY-NILAI'!$L82="A",'ENTRY-NILAI'!$BW82,"") ->  | BT73: =IF(BS73="","",RANK(BS73,BS$5:BS$604,0)+COUNTIF(BS$5:BS73,BS73)-1) ->  | BY73: =IF('ENTRY-NILAI'!$L82="a",'ENTRY-NILAI'!FG82,"") ->  | BZ73: =IF('ENTRY-NILAI'!$L82="a",'ENTRY-NILAI'!AC82,"") ->  | CA73: =IF('ENTRY-NILAI'!$L82="a",'ENTRY-NILAI'!AM82,"") ->  | CB73: =IF('ENTRY-NILAI'!$L82="a",'ENTRY-NILAI'!AU82,"") ->  | CC73: =IF('ENTRY-NILAI'!$L82="a",'ENTRY-NILAI'!BE82,"") ->  | CD73: =IF('ENTRY-NILAI'!$L82="a",'ENTRY-NILAI'!BO82,"") ->  | CE73: =IF('ENTRY-NILAI'!$L82="a",'ENTRY-NILAI'!BY82,"") ->  | CF73: 69 | CG73: =IF('ENTRY-NILAI'!$L82="a",'ENTRY-NILAI'!AB82+'ENTRY-NILAI'!AL82+'ENTRY-NILAI'!AT82+'ENTRY-NILAI'!BD82+'ENTRY-NILAI'!BN82+'ENTRY-NILAI'!BX82,"") ->  | CO73: =IF(CN73="","",RANK(CN73,CN$5:CN$604,0)+COUNTIF(CN$5:CN73,CN73)-1) -> 
B74: 70 | C74: =IF('ENTRY-NILAI'!L83="A",'ENTRY-NILAI'!A83,"") ->  | D74: =IF('ENTRY-NILAI'!$L83="A",'ENTRY-NILAI'!AB83,"") ->  | E74: =IF('ENTRY-NILAI'!$L83="A",'ENTRY-NILAI'!AA83,"") ->  | L74: =IF(K74="","",RANK(K74,K$5:K$604,0)+COUNTIF(K$5:K74,K74)-1) ->  | P74: =IF('ENTRY-NILAI'!$L83="A",'ENTRY-NILAI'!$AL83,"") ->  | Q74: =IF('ENTRY-NILAI'!$L83="A",'ENTRY-NILAI'!$AK83,"") ->  | X74: =IF(W74="","",RANK(W74,W$5:W$604,0)+COUNTIF(W$5:W74,W74)-1) ->  | AB74: =IF('ENTRY-NILAI'!$L83="A",'ENTRY-NILAI'!$AT83,"") ->  | AC74: =IF('ENTRY-NILAI'!$L83="A",'ENTRY-NILAI'!$AS83,"") ->  | AJ74: =IF(AI74="","",RANK(AI74,AI$5:AI$604,0)+COUNTIF(AI$5:AI74,AI74)-1) ->  | AN74: =IF('ENTRY-NILAI'!$L83="A",'ENTRY-NILAI'!$BD83,"") ->  | AO74: =IF('ENTRY-NILAI'!$L83="A",'ENTRY-NILAI'!$BC83,"") ->  | AV74: =IF(AU74="","",RANK(AU74,AU$5:AU$604,0)+COUNTIF(AU$5:AU74,AU74)-1) ->  | AZ74: =IF('ENTRY-NILAI'!$L83="A",'ENTRY-NILAI'!$BN83,"") ->  | BA74: =IF('ENTRY-NILAI'!$L83="A",'ENTRY-NILAI'!$BM83,"") ->  | BH74: =IF(BG74="","",RANK(BG74,BG$5:BG$604,0)+COUNTIF(BG$5:BG74,BG74)-1) ->  | BL74: =IF('ENTRY-NILAI'!$L83="A",'ENTRY-NILAI'!$BX83,"") ->  | BM74: =IF('ENTRY-NILAI'!$L83="A",'ENTRY-NILAI'!$BW83,"") ->  | BT74: =IF(BS74="","",RANK(BS74,BS$5:BS$604,0)+COUNTIF(BS$5:BS74,BS74)-1) ->  | BY74: =IF('ENTRY-NILAI'!$L83="a",'ENTRY-NILAI'!FG83,"") ->  | BZ74: =IF('ENTRY-NILAI'!$L83="a",'ENTRY-NILAI'!AC83,"") ->  | CA74: =IF('ENTRY-NILAI'!$L83="a",'ENTRY-NILAI'!AM83,"") ->  | CB74: =IF('ENTRY-NILAI'!$L83="a",'ENTRY-NILAI'!AU83,"") ->  | CC74: =IF('ENTRY-NILAI'!$L83="a",'ENTRY-NILAI'!BE83,"") ->  | CD74: =IF('ENTRY-NILAI'!$L83="a",'ENTRY-NILAI'!BO83,"") ->  | CE74: =IF('ENTRY-NILAI'!$L83="a",'ENTRY-NILAI'!BY83,"") ->  | CF74: 70 | CG74: =IF('ENTRY-NILAI'!$L83="a",'ENTRY-NILAI'!AB83+'ENTRY-NILAI'!AL83+'ENTRY-NILAI'!AT83+'ENTRY-NILAI'!BD83+'ENTRY-NILAI'!BN83+'ENTRY-NILAI'!BX83,"") ->  | CO74: =IF(CN74="","",RANK(CN74,CN$5:CN$604,0)+COUNTIF(CN$5:CN74,CN74)-1) -> 
B75: 71 | C75: =IF('ENTRY-NILAI'!L84="A",'ENTRY-NILAI'!A84,"") ->  | D75: =IF('ENTRY-NILAI'!$L84="A",'ENTRY-NILAI'!AB84,"") ->  | E75: =IF('ENTRY-NILAI'!$L84="A",'ENTRY-NILAI'!AA84,"") ->  | L75: =IF(K75="","",RANK(K75,K$5:K$604,0)+COUNTIF(K$5:K75,K75)-1) ->  | P75: =IF('ENTRY-NILAI'!$L84="A",'ENTRY-NILAI'!$AL84,"") ->  | Q75: =IF('ENTRY-NILAI'!$L84="A",'ENTRY-NILAI'!$AK84,"") ->  | X75: =IF(W75="","",RANK(W75,W$5:W$604,0)+COUNTIF(W$5:W75,W75)-1) ->  | AB75: =IF('ENTRY-NILAI'!$L84="A",'ENTRY-NILAI'!$AT84,"") ->  | AC75: =IF('ENTRY-NILAI'!$L84="A",'ENTRY-NILAI'!$AS84,"") ->  | AJ75: =IF(AI75="","",RANK(AI75,AI$5:AI$604,0)+COUNTIF(AI$5:AI75,AI75)-1) ->  | AN75: =IF('ENTRY-NILAI'!$L84="A",'ENTRY-NILAI'!$BD84,"") ->  | AO75: =IF('ENTRY-NILAI'!$L84="A",'ENTRY-NILAI'!$BC84,"") ->  | AV75: =IF(AU75="","",RANK(AU75,AU$5:AU$604,0)+COUNTIF(AU$5:AU75,AU75)-1) ->  | AZ75: =IF('ENTRY-NILAI'!$L84="A",'ENTRY-NILAI'!$BN84,"") ->  | BA75: =IF('ENTRY-NILAI'!$L84="A",'ENTRY-NILAI'!$BM84,"") ->  | BH75: =IF(BG75="","",RANK(BG75,BG$5:BG$604,0)+COUNTIF(BG$5:BG75,BG75)-1) ->  | BL75: =IF('ENTRY-NILAI'!$L84="A",'ENTRY-NILAI'!$BX84,"") ->  | BM75: =IF('ENTRY-NILAI'!$L84="A",'ENTRY-NILAI'!$BW84,"") ->  | BT75: =IF(BS75="","",RANK(BS75,BS$5:BS$604,0)+COUNTIF(BS$5:BS75,BS75)-1) ->  | BY75: =IF('ENTRY-NILAI'!$L84="a",'ENTRY-NILAI'!FG84,"") ->  | BZ75: =IF('ENTRY-NILAI'!$L84="a",'ENTRY-NILAI'!AC84,"") ->  | CA75: =IF('ENTRY-NILAI'!$L84="a",'ENTRY-NILAI'!AM84,"") ->  | CB75: =IF('ENTRY-NILAI'!$L84="a",'ENTRY-NILAI'!AU84,"") ->  | CC75: =IF('ENTRY-NILAI'!$L84="a",'ENTRY-NILAI'!BE84,"") ->  | CD75: =IF('ENTRY-NILAI'!$L84="a",'ENTRY-NILAI'!BO84,"") ->  | CE75: =IF('ENTRY-NILAI'!$L84="a",'ENTRY-NILAI'!BY84,"") ->  | CF75: 71 | CG75: =IF('ENTRY-NILAI'!$L84="a",'ENTRY-NILAI'!AB84+'ENTRY-NILAI'!AL84+'ENTRY-NILAI'!AT84+'ENTRY-NILAI'!BD84+'ENTRY-NILAI'!BN84+'ENTRY-NILAI'!BX84,"") ->  | CO75: =IF(CN75="","",RANK(CN75,CN$5:CN$604,0)+COUNTIF(CN$5:CN75,CN75)-1) -> 
B76: 72 | C76: =IF('ENTRY-NILAI'!L85="A",'ENTRY-NILAI'!A85,"") ->  | D76: =IF('ENTRY-NILAI'!$L85="A",'ENTRY-NILAI'!AB85,"") ->  | E76: =IF('ENTRY-NILAI'!$L85="A",'ENTRY-NILAI'!AA85,"") ->  | L76: =IF(K76="","",RANK(K76,K$5:K$604,0)+COUNTIF(K$5:K76,K76)-1) ->  | P76: =IF('ENTRY-NILAI'!$L85="A",'ENTRY-NILAI'!$AL85,"") ->  | Q76: =IF('ENTRY-NILAI'!$L85="A",'ENTRY-NILAI'!$AK85,"") ->  | X76: =IF(W76="","",RANK(W76,W$5:W$604,0)+COUNTIF(W$5:W76,W76)-1) ->  | AB76: =IF('ENTRY-NILAI'!$L85="A",'ENTRY-NILAI'!$AT85,"") ->  | AC76: =IF('ENTRY-NILAI'!$L85="A",'ENTRY-NILAI'!$AS85,"") ->  | AJ76: =IF(AI76="","",RANK(AI76,AI$5:AI$604,0)+COUNTIF(AI$5:AI76,AI76)-1) ->  | AN76: =IF('ENTRY-NILAI'!$L85="A",'ENTRY-NILAI'!$BD85,"") ->  | AO76: =IF('ENTRY-NILAI'!$L85="A",'ENTRY-NILAI'!$BC85,"") ->  | AV76: =IF(AU76="","",RANK(AU76,AU$5:AU$604,0)+COUNTIF(AU$5:AU76,AU76)-1) ->  | AZ76: =IF('ENTRY-NILAI'!$L85="A",'ENTRY-NILAI'!$BN85,"") ->  | BA76: =IF('ENTRY-NILAI'!$L85="A",'ENTRY-NILAI'!$BM85,"") ->  | BH76: =IF(BG76="","",RANK(BG76,BG$5:BG$604,0)+COUNTIF(BG$5:BG76,BG76)-1) ->  | BL76: =IF('ENTRY-NILAI'!$L85="A",'ENTRY-NILAI'!$BX85,"") ->  | BM76: =IF('ENTRY-NILAI'!$L85="A",'ENTRY-NILAI'!$BW85,"") ->  | BT76: =IF(BS76="","",RANK(BS76,BS$5:BS$604,0)+COUNTIF(BS$5:BS76,BS76)-1) ->  | BY76: =IF('ENTRY-NILAI'!$L85="a",'ENTRY-NILAI'!FG85,"") ->  | BZ76: =IF('ENTRY-NILAI'!$L85="a",'ENTRY-NILAI'!AC85,"") ->  | CA76: =IF('ENTRY-NILAI'!$L85="a",'ENTRY-NILAI'!AM85,"") ->  | CB76: =IF('ENTRY-NILAI'!$L85="a",'ENTRY-NILAI'!AU85,"") ->  | CC76: =IF('ENTRY-NILAI'!$L85="a",'ENTRY-NILAI'!BE85,"") ->  | CD76: =IF('ENTRY-NILAI'!$L85="a",'ENTRY-NILAI'!BO85,"") ->  | CE76: =IF('ENTRY-NILAI'!$L85="a",'ENTRY-NILAI'!BY85,"") ->  | CF76: 72 | CG76: =IF('ENTRY-NILAI'!$L85="a",'ENTRY-NILAI'!AB85+'ENTRY-NILAI'!AL85+'ENTRY-NILAI'!AT85+'ENTRY-NILAI'!BD85+'ENTRY-NILAI'!BN85+'ENTRY-NILAI'!BX85,"") ->  | CO76: =IF(CN76="","",RANK(CN76,CN$5:CN$604,0)+COUNTIF(CN$5:CN76,CN76)-1) -> 
B77: 73 | C77: =IF('ENTRY-NILAI'!L86="A",'ENTRY-NILAI'!A86,"") ->  | D77: =IF('ENTRY-NILAI'!$L86="A",'ENTRY-NILAI'!AB86,"") ->  | E77: =IF('ENTRY-NILAI'!$L86="A",'ENTRY-NILAI'!AA86,"") ->  | L77: =IF(K77="","",RANK(K77,K$5:K$604,0)+COUNTIF(K$5:K77,K77)-1) ->  | P77: =IF('ENTRY-NILAI'!$L86="A",'ENTRY-NILAI'!$AL86,"") ->  | Q77: =IF('ENTRY-NILAI'!$L86="A",'ENTRY-NILAI'!$AK86,"") ->  | X77: =IF(W77="","",RANK(W77,W$5:W$604,0)+COUNTIF(W$5:W77,W77)-1) ->  | AB77: =IF('ENTRY-NILAI'!$L86="A",'ENTRY-NILAI'!$AT86,"") ->  | AC77: =IF('ENTRY-NILAI'!$L86="A",'ENTRY-NILAI'!$AS86,"") ->  | AJ77: =IF(AI77="","",RANK(AI77,AI$5:AI$604,0)+COUNTIF(AI$5:AI77,AI77)-1) ->  | AN77: =IF('ENTRY-NILAI'!$L86="A",'ENTRY-NILAI'!$BD86,"") ->  | AO77: =IF('ENTRY-NILAI'!$L86="A",'ENTRY-NILAI'!$BC86,"") ->  | AV77: =IF(AU77="","",RANK(AU77,AU$5:AU$604,0)+COUNTIF(AU$5:AU77,AU77)-1) ->  | AZ77: =IF('ENTRY-NILAI'!$L86="A",'ENTRY-NILAI'!$BN86,"") ->  | BA77: =IF('ENTRY-NILAI'!$L86="A",'ENTRY-NILAI'!$BM86,"") ->  | BH77: =IF(BG77="","",RANK(BG77,BG$5:BG$604,0)+COUNTIF(BG$5:BG77,BG77)-1) ->  | BL77: =IF('ENTRY-NILAI'!$L86="A",'ENTRY-NILAI'!$BX86,"") ->  | BM77: =IF('ENTRY-NILAI'!$L86="A",'ENTRY-NILAI'!$BW86,"") ->  | BT77: =IF(BS77="","",RANK(BS77,BS$5:BS$604,0)+COUNTIF(BS$5:BS77,BS77)-1) ->  | BY77: =IF('ENTRY-NILAI'!$L86="a",'ENTRY-NILAI'!FG86,"") ->  | BZ77: =IF('ENTRY-NILAI'!$L86="a",'ENTRY-NILAI'!AC86,"") ->  | CA77: =IF('ENTRY-NILAI'!$L86="a",'ENTRY-NILAI'!AM86,"") ->  | CB77: =IF('ENTRY-NILAI'!$L86="a",'ENTRY-NILAI'!AU86,"") ->  | CC77: =IF('ENTRY-NILAI'!$L86="a",'ENTRY-NILAI'!BE86,"") ->  | CD77: =IF('ENTRY-NILAI'!$L86="a",'ENTRY-NILAI'!BO86,"") ->  | CE77: =IF('ENTRY-NILAI'!$L86="a",'ENTRY-NILAI'!BY86,"") ->  | CF77: 73 | CG77: =IF('ENTRY-NILAI'!$L86="a",'ENTRY-NILAI'!AB86+'ENTRY-NILAI'!AL86+'ENTRY-NILAI'!AT86+'ENTRY-NILAI'!BD86+'ENTRY-NILAI'!BN86+'ENTRY-NILAI'!BX86,"") ->  | CO77: =IF(CN77="","",RANK(CN77,CN$5:CN$604,0)+COUNTIF(CN$5:CN77,CN77)-1) -> 
B78: 74 | C78: =IF('ENTRY-NILAI'!L87="A",'ENTRY-NILAI'!A87,"") ->  | D78: =IF('ENTRY-NILAI'!$L87="A",'ENTRY-NILAI'!AB87,"") ->  | E78: =IF('ENTRY-NILAI'!$L87="A",'ENTRY-NILAI'!AA87,"") ->  | L78: =IF(K78="","",RANK(K78,K$5:K$604,0)+COUNTIF(K$5:K78,K78)-1) ->  | P78: =IF('ENTRY-NILAI'!$L87="A",'ENTRY-NILAI'!$AL87,"") ->  | Q78: =IF('ENTRY-NILAI'!$L87="A",'ENTRY-NILAI'!$AK87,"") ->  | X78: =IF(W78="","",RANK(W78,W$5:W$604,0)+COUNTIF(W$5:W78,W78)-1) ->  | AB78: =IF('ENTRY-NILAI'!$L87="A",'ENTRY-NILAI'!$AT87,"") ->  | AC78: =IF('ENTRY-NILAI'!$L87="A",'ENTRY-NILAI'!$AS87,"") ->  | AJ78: =IF(AI78="","",RANK(AI78,AI$5:AI$604,0)+COUNTIF(AI$5:AI78,AI78)-1) ->  | AN78: =IF('ENTRY-NILAI'!$L87="A",'ENTRY-NILAI'!$BD87,"") ->  | AO78: =IF('ENTRY-NILAI'!$L87="A",'ENTRY-NILAI'!$BC87,"") ->  | AV78: =IF(AU78="","",RANK(AU78,AU$5:AU$604,0)+COUNTIF(AU$5:AU78,AU78)-1) ->  | AZ78: =IF('ENTRY-NILAI'!$L87="A",'ENTRY-NILAI'!$BN87,"") ->  | BA78: =IF('ENTRY-NILAI'!$L87="A",'ENTRY-NILAI'!$BM87,"") ->  | BH78: =IF(BG78="","",RANK(BG78,BG$5:BG$604,0)+COUNTIF(BG$5:BG78,BG78)-1) ->  | BL78: =IF('ENTRY-NILAI'!$L87="A",'ENTRY-NILAI'!$BX87,"") ->  | BM78: =IF('ENTRY-NILAI'!$L87="A",'ENTRY-NILAI'!$BW87,"") ->  | BT78: =IF(BS78="","",RANK(BS78,BS$5:BS$604,0)+COUNTIF(BS$5:BS78,BS78)-1) ->  | BY78: =IF('ENTRY-NILAI'!$L87="a",'ENTRY-NILAI'!FG87,"") ->  | BZ78: =IF('ENTRY-NILAI'!$L87="a",'ENTRY-NILAI'!AC87,"") ->  | CA78: =IF('ENTRY-NILAI'!$L87="a",'ENTRY-NILAI'!AM87,"") ->  | CB78: =IF('ENTRY-NILAI'!$L87="a",'ENTRY-NILAI'!AU87,"") ->  | CC78: =IF('ENTRY-NILAI'!$L87="a",'ENTRY-NILAI'!BE87,"") ->  | CD78: =IF('ENTRY-NILAI'!$L87="a",'ENTRY-NILAI'!BO87,"") ->  | CE78: =IF('ENTRY-NILAI'!$L87="a",'ENTRY-NILAI'!BY87,"") ->  | CF78: 74 | CG78: =IF('ENTRY-NILAI'!$L87="a",'ENTRY-NILAI'!AB87+'ENTRY-NILAI'!AL87+'ENTRY-NILAI'!AT87+'ENTRY-NILAI'!BD87+'ENTRY-NILAI'!BN87+'ENTRY-NILAI'!BX87,"") ->  | CO78: =IF(CN78="","",RANK(CN78,CN$5:CN$604,0)+COUNTIF(CN$5:CN78,CN78)-1) -> 
B79: 75 | C79: =IF('ENTRY-NILAI'!L88="A",'ENTRY-NILAI'!A88,"") ->  | D79: =IF('ENTRY-NILAI'!$L88="A",'ENTRY-NILAI'!AB88,"") ->  | E79: =IF('ENTRY-NILAI'!$L88="A",'ENTRY-NILAI'!AA88,"") ->  | L79: =IF(K79="","",RANK(K79,K$5:K$604,0)+COUNTIF(K$5:K79,K79)-1) ->  | P79: =IF('ENTRY-NILAI'!$L88="A",'ENTRY-NILAI'!$AL88,"") ->  | Q79: =IF('ENTRY-NILAI'!$L88="A",'ENTRY-NILAI'!$AK88,"") ->  | X79: =IF(W79="","",RANK(W79,W$5:W$604,0)+COUNTIF(W$5:W79,W79)-1) ->  | AB79: =IF('ENTRY-NILAI'!$L88="A",'ENTRY-NILAI'!$AT88,"") ->  | AC79: =IF('ENTRY-NILAI'!$L88="A",'ENTRY-NILAI'!$AS88,"") ->  | AJ79: =IF(AI79="","",RANK(AI79,AI$5:AI$604,0)+COUNTIF(AI$5:AI79,AI79)-1) ->  | AN79: =IF('ENTRY-NILAI'!$L88="A",'ENTRY-NILAI'!$BD88,"") ->  | AO79: =IF('ENTRY-NILAI'!$L88="A",'ENTRY-NILAI'!$BC88,"") ->  | AV79: =IF(AU79="","",RANK(AU79,AU$5:AU$604,0)+COUNTIF(AU$5:AU79,AU79)-1) ->  | AZ79: =IF('ENTRY-NILAI'!$L88="A",'ENTRY-NILAI'!$BN88,"") ->  | BA79: =IF('ENTRY-NILAI'!$L88="A",'ENTRY-NILAI'!$BM88,"") ->  | BH79: =IF(BG79="","",RANK(BG79,BG$5:BG$604,0)+COUNTIF(BG$5:BG79,BG79)-1) ->  | BL79: =IF('ENTRY-NILAI'!$L88="A",'ENTRY-NILAI'!$BX88,"") ->  | BM79: =IF('ENTRY-NILAI'!$L88="A",'ENTRY-NILAI'!$BW88,"") ->  | BT79: =IF(BS79="","",RANK(BS79,BS$5:BS$604,0)+COUNTIF(BS$5:BS79,BS79)-1) ->  | BY79: =IF('ENTRY-NILAI'!$L88="a",'ENTRY-NILAI'!FG88,"") ->  | BZ79: =IF('ENTRY-NILAI'!$L88="a",'ENTRY-NILAI'!AC88,"") ->  | CA79: =IF('ENTRY-NILAI'!$L88="a",'ENTRY-NILAI'!AM88,"") ->  | CB79: =IF('ENTRY-NILAI'!$L88="a",'ENTRY-NILAI'!AU88,"") ->  | CC79: =IF('ENTRY-NILAI'!$L88="a",'ENTRY-NILAI'!BE88,"") ->  | CD79: =IF('ENTRY-NILAI'!$L88="a",'ENTRY-NILAI'!BO88,"") ->  | CE79: =IF('ENTRY-NILAI'!$L88="a",'ENTRY-NILAI'!BY88,"") ->  | CF79: 75 | CG79: =IF('ENTRY-NILAI'!$L88="a",'ENTRY-NILAI'!AB88+'ENTRY-NILAI'!AL88+'ENTRY-NILAI'!AT88+'ENTRY-NILAI'!BD88+'ENTRY-NILAI'!BN88+'ENTRY-NILAI'!BX88,"") ->  | CH79: =IF(C79="","",E79+Q79+AC79+AO79+BA79+BM79) ->  | CI79: =IF(CG79="","",RANK(CG79,$CG$5:$CG$604,0)) ->  | CJ79: =IF(CG79="","",RANK(CG79,$CG$5:$CG$604,1)) ->  | CK79: =IF(CH79="","",RANK(CH79,$CH$5:$CH$604,1)) ->  | CL79: =IF(CJ79="","",RIGHT("0"&CJ79,2)) ->  | CM79: =IF(CK79="","",RIGHT("0"&CK79,2)) ->  | CN79: =IF(CJ79="","",VALUE(CJ79&CL79&CM79)) ->  | CO79: =IF(CN79="","",RANK(CN79,CN$5:CN$604,0)+COUNTIF(CN$5:CN79,CN79)-1) ->  | CQ79: =SMALL(CO$5:CO$604,$A79) -> 
B80: 76 | C80: =IF('ENTRY-NILAI'!L89="A",'ENTRY-NILAI'!A89,"") ->  | D80: =IF('ENTRY-NILAI'!$L89="A",'ENTRY-NILAI'!AB89,"") ->  | E80: =IF('ENTRY-NILAI'!$L89="A",'ENTRY-NILAI'!AA89,"") ->  | L80: =IF(K80="","",RANK(K80,K$5:K$604,0)+COUNTIF(K$5:K80,K80)-1) ->  | P80: =IF('ENTRY-NILAI'!$L89="A",'ENTRY-NILAI'!$AL89,"") ->  | Q80: =IF('ENTRY-NILAI'!$L89="A",'ENTRY-NILAI'!$AK89,"") ->  | X80: =IF(W80="","",RANK(W80,W$5:W$604,0)+COUNTIF(W$5:W80,W80)-1) ->  | AB80: =IF('ENTRY-NILAI'!$L89="A",'ENTRY-NILAI'!$AT89,"") ->  | AC80: =IF('ENTRY-NILAI'!$L89="A",'ENTRY-NILAI'!$AS89,"") ->  | AJ80: =IF(AI80="","",RANK(AI80,AI$5:AI$604,0)+COUNTIF(AI$5:AI80,AI80)-1) ->  | AN80: =IF('ENTRY-NILAI'!$L89="A",'ENTRY-NILAI'!$BD89,"") ->  | AO80: =IF('ENTRY-NILAI'!$L89="A",'ENTRY-NILAI'!$BC89,"") ->  | AV80: =IF(AU80="","",RANK(AU80,AU$5:AU$604,0)+COUNTIF(AU$5:AU80,AU80)-1) ->  | AZ80: =IF('ENTRY-NILAI'!$L89="A",'ENTRY-NILAI'!$BN89,"") ->  | BA80: =IF('ENTRY-NILAI'!$L89="A",'ENTRY-NILAI'!$BM89,"") ->  | BH80: =IF(BG80="","",RANK(BG80,BG$5:BG$604,0)+COUNTIF(BG$5:BG80,BG80)-1) ->  | BL80: =IF('ENTRY-NILAI'!$L89="A",'ENTRY-NILAI'!$BX89,"") ->  | BM80: =IF('ENTRY-NILAI'!$L89="A",'ENTRY-NILAI'!$BW89,"") ->  | BT80: =IF(BS80="","",RANK(BS80,BS$5:BS$604,0)+COUNTIF(BS$5:BS80,BS80)-1) ->  | BY80: =IF('ENTRY-NILAI'!$L89="a",'ENTRY-NILAI'!FG89,"") ->  | BZ80: =IF('ENTRY-NILAI'!$L89="a",'ENTRY-NILAI'!AC89,"") ->  | CA80: =IF('ENTRY-NILAI'!$L89="a",'ENTRY-NILAI'!AM89,"") ->  | CB80: =IF('ENTRY-NILAI'!$L89="a",'ENTRY-NILAI'!AU89,"") ->  | CC80: =IF('ENTRY-NILAI'!$L89="a",'ENTRY-NILAI'!BE89,"") ->  | CD80: =IF('ENTRY-NILAI'!$L89="a",'ENTRY-NILAI'!BO89,"") ->  | CE80: =IF('ENTRY-NILAI'!$L89="a",'ENTRY-NILAI'!BY89,"") ->  | CF80: 76 | CG80: =IF('ENTRY-NILAI'!$L89="a",'ENTRY-NILAI'!AB89+'ENTRY-NILAI'!AL89+'ENTRY-NILAI'!AT89+'ENTRY-NILAI'!BD89+'ENTRY-NILAI'!BN89+'ENTRY-NILAI'!BX89,"") ->  | CO80: =IF(CN80="","",RANK(CN80,CN$5:CN$604,0)+COUNTIF(CN$5:CN80,CN80)-1) -> 
B81: 77 | C81: =IF('ENTRY-NILAI'!L90="A",'ENTRY-NILAI'!A90,"") ->  | D81: =IF('ENTRY-NILAI'!$L90="A",'ENTRY-NILAI'!AB90,"") ->  | E81: =IF('ENTRY-NILAI'!$L90="A",'ENTRY-NILAI'!AA90,"") ->  | L81: =IF(K81="","",RANK(K81,K$5:K$604,0)+COUNTIF(K$5:K81,K81)-1) ->  | P81: =IF('ENTRY-NILAI'!$L90="A",'ENTRY-NILAI'!$AL90,"") ->  | Q81: =IF('ENTRY-NILAI'!$L90="A",'ENTRY-NILAI'!$AK90,"") ->  | X81: =IF(W81="","",RANK(W81,W$5:W$604,0)+COUNTIF(W$5:W81,W81)-1) ->  | AB81: =IF('ENTRY-NILAI'!$L90="A",'ENTRY-NILAI'!$AT90,"") ->  | AC81: =IF('ENTRY-NILAI'!$L90="A",'ENTRY-NILAI'!$AS90,"") ->  | AJ81: =IF(AI81="","",RANK(AI81,AI$5:AI$604,0)+COUNTIF(AI$5:AI81,AI81)-1) ->  | AN81: =IF('ENTRY-NILAI'!$L90="A",'ENTRY-NILAI'!$BD90,"") ->  | AO81: =IF('ENTRY-NILAI'!$L90="A",'ENTRY-NILAI'!$BC90,"") ->  | AV81: =IF(AU81="","",RANK(AU81,AU$5:AU$604,0)+COUNTIF(AU$5:AU81,AU81)-1) ->  | AZ81: =IF('ENTRY-NILAI'!$L90="A",'ENTRY-NILAI'!$BN90,"") ->  | BA81: =IF('ENTRY-NILAI'!$L90="A",'ENTRY-NILAI'!$BM90,"") ->  | BH81: =IF(BG81="","",RANK(BG81,BG$5:BG$604,0)+COUNTIF(BG$5:BG81,BG81)-1) ->  | BL81: =IF('ENTRY-NILAI'!$L90="A",'ENTRY-NILAI'!$BX90,"") ->  | BM81: =IF('ENTRY-NILAI'!$L90="A",'ENTRY-NILAI'!$BW90,"") ->  | BT81: =IF(BS81="","",RANK(BS81,BS$5:BS$604,0)+COUNTIF(BS$5:BS81,BS81)-1) ->  | BY81: =IF('ENTRY-NILAI'!$L90="a",'ENTRY-NILAI'!FG90,"") ->  | BZ81: =IF('ENTRY-NILAI'!$L90="a",'ENTRY-NILAI'!AC90,"") ->  | CA81: =IF('ENTRY-NILAI'!$L90="a",'ENTRY-NILAI'!AM90,"") ->  | CB81: =IF('ENTRY-NILAI'!$L90="a",'ENTRY-NILAI'!AU90,"") ->  | CC81: =IF('ENTRY-NILAI'!$L90="a",'ENTRY-NILAI'!BE90,"") ->  | CD81: =IF('ENTRY-NILAI'!$L90="a",'ENTRY-NILAI'!BO90,"") ->  | CE81: =IF('ENTRY-NILAI'!$L90="a",'ENTRY-NILAI'!BY90,"") ->  | CF81: 77 | CG81: =IF('ENTRY-NILAI'!$L90="a",'ENTRY-NILAI'!AB90+'ENTRY-NILAI'!AL90+'ENTRY-NILAI'!AT90+'ENTRY-NILAI'!BD90+'ENTRY-NILAI'!BN90+'ENTRY-NILAI'!BX90,"") ->  | CO81: =IF(CN81="","",RANK(CN81,CN$5:CN$604,0)+COUNTIF(CN$5:CN81,CN81)-1) -> 
B82: 78 | C82: =IF('ENTRY-NILAI'!L91="A",'ENTRY-NILAI'!A91,"") ->  | D82: =IF('ENTRY-NILAI'!$L91="A",'ENTRY-NILAI'!AB91,"") ->  | E82: =IF('ENTRY-NILAI'!$L91="A",'ENTRY-NILAI'!AA91,"") ->  | L82: =IF(K82="","",RANK(K82,K$5:K$604,0)+COUNTIF(K$5:K82,K82)-1) ->  | P82: =IF('ENTRY-NILAI'!$L91="A",'ENTRY-NILAI'!$AL91,"") ->  | Q82: =IF('ENTRY-NILAI'!$L91="A",'ENTRY-NILAI'!$AK91,"") ->  | X82: =IF(W82="","",RANK(W82,W$5:W$604,0)+COUNTIF(W$5:W82,W82)-1) ->  | AB82: =IF('ENTRY-NILAI'!$L91="A",'ENTRY-NILAI'!$AT91,"") ->  | AC82: =IF('ENTRY-NILAI'!$L91="A",'ENTRY-NILAI'!$AS91,"") ->  | AJ82: =IF(AI82="","",RANK(AI82,AI$5:AI$604,0)+COUNTIF(AI$5:AI82,AI82)-1) ->  | AN82: =IF('ENTRY-NILAI'!$L91="A",'ENTRY-NILAI'!$BD91,"") ->  | AO82: =IF('ENTRY-NILAI'!$L91="A",'ENTRY-NILAI'!$BC91,"") ->  | AV82: =IF(AU82="","",RANK(AU82,AU$5:AU$604,0)+COUNTIF(AU$5:AU82,AU82)-1) ->  | AZ82: =IF('ENTRY-NILAI'!$L91="A",'ENTRY-NILAI'!$BN91,"") ->  | BA82: =IF('ENTRY-NILAI'!$L91="A",'ENTRY-NILAI'!$BM91,"") ->  | BH82: =IF(BG82="","",RANK(BG82,BG$5:BG$604,0)+COUNTIF(BG$5:BG82,BG82)-1) ->  | BL82: =IF('ENTRY-NILAI'!$L91="A",'ENTRY-NILAI'!$BX91,"") ->  | BM82: =IF('ENTRY-NILAI'!$L91="A",'ENTRY-NILAI'!$BW91,"") ->  | BT82: =IF(BS82="","",RANK(BS82,BS$5:BS$604,0)+COUNTIF(BS$5:BS82,BS82)-1) ->  | BY82: =IF('ENTRY-NILAI'!$L91="a",'ENTRY-NILAI'!FG91,"") ->  | BZ82: =IF('ENTRY-NILAI'!$L91="a",'ENTRY-NILAI'!AC91,"") ->  | CA82: =IF('ENTRY-NILAI'!$L91="a",'ENTRY-NILAI'!AM91,"") ->  | CB82: =IF('ENTRY-NILAI'!$L91="a",'ENTRY-NILAI'!AU91,"") ->  | CC82: =IF('ENTRY-NILAI'!$L91="a",'ENTRY-NILAI'!BE91,"") ->  | CD82: =IF('ENTRY-NILAI'!$L91="a",'ENTRY-NILAI'!BO91,"") ->  | CE82: =IF('ENTRY-NILAI'!$L91="a",'ENTRY-NILAI'!BY91,"") ->  | CF82: 78 | CG82: =IF('ENTRY-NILAI'!$L91="a",'ENTRY-NILAI'!AB91+'ENTRY-NILAI'!AL91+'ENTRY-NILAI'!AT91+'ENTRY-NILAI'!BD91+'ENTRY-NILAI'!BN91+'ENTRY-NILAI'!BX91,"") ->  | CO82: =IF(CN82="","",RANK(CN82,CN$5:CN$604,0)+COUNTIF(CN$5:CN82,CN82)-1) -> 
B83: 79 | C83: =IF('ENTRY-NILAI'!L92="A",'ENTRY-NILAI'!A92,"") ->  | D83: =IF('ENTRY-NILAI'!$L92="A",'ENTRY-NILAI'!AB92,"") ->  | E83: =IF('ENTRY-NILAI'!$L92="A",'ENTRY-NILAI'!AA92,"") ->  | L83: =IF(K83="","",RANK(K83,K$5:K$604,0)+COUNTIF(K$5:K83,K83)-1) ->  | P83: =IF('ENTRY-NILAI'!$L92="A",'ENTRY-NILAI'!$AL92,"") ->  | Q83: =IF('ENTRY-NILAI'!$L92="A",'ENTRY-NILAI'!$AK92,"") ->  | X83: =IF(W83="","",RANK(W83,W$5:W$604,0)+COUNTIF(W$5:W83,W83)-1) ->  | AB83: =IF('ENTRY-NILAI'!$L92="A",'ENTRY-NILAI'!$AT92,"") ->  | AC83: =IF('ENTRY-NILAI'!$L92="A",'ENTRY-NILAI'!$AS92,"") ->  | AJ83: =IF(AI83="","",RANK(AI83,AI$5:AI$604,0)+COUNTIF(AI$5:AI83,AI83)-1) ->  | AN83: =IF('ENTRY-NILAI'!$L92="A",'ENTRY-NILAI'!$BD92,"") ->  | AO83: =IF('ENTRY-NILAI'!$L92="A",'ENTRY-NILAI'!$BC92,"") ->  | AV83: =IF(AU83="","",RANK(AU83,AU$5:AU$604,0)+COUNTIF(AU$5:AU83,AU83)-1) ->  | AZ83: =IF('ENTRY-NILAI'!$L92="A",'ENTRY-NILAI'!$BN92,"") ->  | BA83: =IF('ENTRY-NILAI'!$L92="A",'ENTRY-NILAI'!$BM92,"") ->  | BH83: =IF(BG83="","",RANK(BG83,BG$5:BG$604,0)+COUNTIF(BG$5:BG83,BG83)-1) ->  | BL83: =IF('ENTRY-NILAI'!$L92="A",'ENTRY-NILAI'!$BX92,"") ->  | BM83: =IF('ENTRY-NILAI'!$L92="A",'ENTRY-NILAI'!$BW92,"") ->  | BT83: =IF(BS83="","",RANK(BS83,BS$5:BS$604,0)+COUNTIF(BS$5:BS83,BS83)-1) ->  | BY83: =IF('ENTRY-NILAI'!$L92="a",'ENTRY-NILAI'!FG92,"") ->  | BZ83: =IF('ENTRY-NILAI'!$L92="a",'ENTRY-NILAI'!AC92,"") ->  | CA83: =IF('ENTRY-NILAI'!$L92="a",'ENTRY-NILAI'!AM92,"") ->  | CB83: =IF('ENTRY-NILAI'!$L92="a",'ENTRY-NILAI'!AU92,"") ->  | CC83: =IF('ENTRY-NILAI'!$L92="a",'ENTRY-NILAI'!BE92,"") ->  | CD83: =IF('ENTRY-NILAI'!$L92="a",'ENTRY-NILAI'!BO92,"") ->  | CE83: =IF('ENTRY-NILAI'!$L92="a",'ENTRY-NILAI'!BY92,"") ->  | CF83: 79 | CG83: =IF('ENTRY-NILAI'!$L92="a",'ENTRY-NILAI'!AB92+'ENTRY-NILAI'!AL92+'ENTRY-NILAI'!AT92+'ENTRY-NILAI'!BD92+'ENTRY-NILAI'!BN92+'ENTRY-NILAI'!BX92,"") ->  | CO83: =IF(CN83="","",RANK(CN83,CN$5:CN$604,0)+COUNTIF(CN$5:CN83,CN83)-1) -> 
B84: 80 | C84: =IF('ENTRY-NILAI'!L93="A",'ENTRY-NILAI'!A93,"") ->  | D84: =IF('ENTRY-NILAI'!$L93="A",'ENTRY-NILAI'!AB93,"") ->  | E84: =IF('ENTRY-NILAI'!$L93="A",'ENTRY-NILAI'!AA93,"") ->  | L84: =IF(K84="","",RANK(K84,K$5:K$604,0)+COUNTIF(K$5:K84,K84)-1) ->  | P84: =IF('ENTRY-NILAI'!$L93="A",'ENTRY-NILAI'!$AL93,"") ->  | Q84: =IF('ENTRY-NILAI'!$L93="A",'ENTRY-NILAI'!$AK93,"") ->  | X84: =IF(W84="","",RANK(W84,W$5:W$604,0)+COUNTIF(W$5:W84,W84)-1) ->  | AB84: =IF('ENTRY-NILAI'!$L93="A",'ENTRY-NILAI'!$AT93,"") ->  | AC84: =IF('ENTRY-NILAI'!$L93="A",'ENTRY-NILAI'!$AS93,"") ->  | AJ84: =IF(AI84="","",RANK(AI84,AI$5:AI$604,0)+COUNTIF(AI$5:AI84,AI84)-1) ->  | AN84: =IF('ENTRY-NILAI'!$L93="A",'ENTRY-NILAI'!$BD93,"") ->  | AO84: =IF('ENTRY-NILAI'!$L93="A",'ENTRY-NILAI'!$BC93,"") ->  | AV84: =IF(AU84="","",RANK(AU84,AU$5:AU$604,0)+COUNTIF(AU$5:AU84,AU84)-1) ->  | AZ84: =IF('ENTRY-NILAI'!$L93="A",'ENTRY-NILAI'!$BN93,"") ->  | BA84: =IF('ENTRY-NILAI'!$L93="A",'ENTRY-NILAI'!$BM93,"") ->  | BH84: =IF(BG84="","",RANK(BG84,BG$5:BG$604,0)+COUNTIF(BG$5:BG84,BG84)-1) ->  | BL84: =IF('ENTRY-NILAI'!$L93="A",'ENTRY-NILAI'!$BX93,"") ->  | BM84: =IF('ENTRY-NILAI'!$L93="A",'ENTRY-NILAI'!$BW93,"") ->  | BT84: =IF(BS84="","",RANK(BS84,BS$5:BS$604,0)+COUNTIF(BS$5:BS84,BS84)-1) ->  | BY84: =IF('ENTRY-NILAI'!$L93="a",'ENTRY-NILAI'!FG93,"") ->  | BZ84: =IF('ENTRY-NILAI'!$L93="a",'ENTRY-NILAI'!AC93,"") ->  | CA84: =IF('ENTRY-NILAI'!$L93="a",'ENTRY-NILAI'!AM93,"") ->  | CB84: =IF('ENTRY-NILAI'!$L93="a",'ENTRY-NILAI'!AU93,"") ->  | CC84: =IF('ENTRY-NILAI'!$L93="a",'ENTRY-NILAI'!BE93,"") ->  | CD84: =IF('ENTRY-NILAI'!$L93="a",'ENTRY-NILAI'!BO93,"") ->  | CE84: =IF('ENTRY-NILAI'!$L93="a",'ENTRY-NILAI'!BY93,"") ->  | CF84: 80 | CG84: =IF('ENTRY-NILAI'!$L93="a",'ENTRY-NILAI'!AB93+'ENTRY-NILAI'!AL93+'ENTRY-NILAI'!AT93+'ENTRY-NILAI'!BD93+'ENTRY-NILAI'!BN93+'ENTRY-NILAI'!BX93,"") ->  | CO84: =IF(CN84="","",RANK(CN84,CN$5:CN$604,0)+COUNTIF(CN$5:CN84,CN84)-1) -> 
B85: 81 | C85: =IF('ENTRY-NILAI'!L94="A",'ENTRY-NILAI'!A94,"") ->  | D85: =IF('ENTRY-NILAI'!$L94="A",'ENTRY-NILAI'!AB94,"") ->  | E85: =IF('ENTRY-NILAI'!$L94="A",'ENTRY-NILAI'!AA94,"") ->  | L85: =IF(K85="","",RANK(K85,K$5:K$604,0)+COUNTIF(K$5:K85,K85)-1) ->  | P85: =IF('ENTRY-NILAI'!$L94="A",'ENTRY-NILAI'!$AL94,"") ->  | Q85: =IF('ENTRY-NILAI'!$L94="A",'ENTRY-NILAI'!$AK94,"") ->  | X85: =IF(W85="","",RANK(W85,W$5:W$604,0)+COUNTIF(W$5:W85,W85)-1) ->  | AB85: =IF('ENTRY-NILAI'!$L94="A",'ENTRY-NILAI'!$AT94,"") ->  | AC85: =IF('ENTRY-NILAI'!$L94="A",'ENTRY-NILAI'!$AS94,"") ->  | AJ85: =IF(AI85="","",RANK(AI85,AI$5:AI$604,0)+COUNTIF(AI$5:AI85,AI85)-1) ->  | AN85: =IF('ENTRY-NILAI'!$L94="A",'ENTRY-NILAI'!$BD94,"") ->  | AO85: =IF('ENTRY-NILAI'!$L94="A",'ENTRY-NILAI'!$BC94,"") ->  | AV85: =IF(AU85="","",RANK(AU85,AU$5:AU$604,0)+COUNTIF(AU$5:AU85,AU85)-1) ->  | AZ85: =IF('ENTRY-NILAI'!$L94="A",'ENTRY-NILAI'!$BN94,"") ->  | BA85: =IF('ENTRY-NILAI'!$L94="A",'ENTRY-NILAI'!$BM94,"") ->  | BH85: =IF(BG85="","",RANK(BG85,BG$5:BG$604,0)+COUNTIF(BG$5:BG85,BG85)-1) ->  | BL85: =IF('ENTRY-NILAI'!$L94="A",'ENTRY-NILAI'!$BX94,"") ->  | BM85: =IF('ENTRY-NILAI'!$L94="A",'ENTRY-NILAI'!$BW94,"") ->  | BT85: =IF(BS85="","",RANK(BS85,BS$5:BS$604,0)+COUNTIF(BS$5:BS85,BS85)-1) ->  | BY85: =IF('ENTRY-NILAI'!$L94="a",'ENTRY-NILAI'!FG94,"") ->  | BZ85: =IF('ENTRY-NILAI'!$L94="a",'ENTRY-NILAI'!AC94,"") ->  | CA85: =IF('ENTRY-NILAI'!$L94="a",'ENTRY-NILAI'!AM94,"") ->  | CB85: =IF('ENTRY-NILAI'!$L94="a",'ENTRY-NILAI'!AU94,"") ->  | CC85: =IF('ENTRY-NILAI'!$L94="a",'ENTRY-NILAI'!BE94,"") ->  | CD85: =IF('ENTRY-NILAI'!$L94="a",'ENTRY-NILAI'!BO94,"") ->  | CE85: =IF('ENTRY-NILAI'!$L94="a",'ENTRY-NILAI'!BY94,"") ->  | CF85: 81 | CG85: =IF('ENTRY-NILAI'!$L94="a",'ENTRY-NILAI'!AB94+'ENTRY-NILAI'!AL94+'ENTRY-NILAI'!AT94+'ENTRY-NILAI'!BD94+'ENTRY-NILAI'!BN94+'ENTRY-NILAI'!BX94,"") ->  | CO85: =IF(CN85="","",RANK(CN85,CN$5:CN$604,0)+COUNTIF(CN$5:CN85,CN85)-1) -> 
B86: 82 | C86: =IF('ENTRY-NILAI'!L95="A",'ENTRY-NILAI'!A95,"") ->  | D86: =IF('ENTRY-NILAI'!$L95="A",'ENTRY-NILAI'!AB95,"") ->  | E86: =IF('ENTRY-NILAI'!$L95="A",'ENTRY-NILAI'!AA95,"") ->  | L86: =IF(K86="","",RANK(K86,K$5:K$604,0)+COUNTIF(K$5:K86,K86)-1) ->  | P86: =IF('ENTRY-NILAI'!$L95="A",'ENTRY-NILAI'!$AL95,"") ->  | Q86: =IF('ENTRY-NILAI'!$L95="A",'ENTRY-NILAI'!$AK95,"") ->  | X86: =IF(W86="","",RANK(W86,W$5:W$604,0)+COUNTIF(W$5:W86,W86)-1) ->  | AB86: =IF('ENTRY-NILAI'!$L95="A",'ENTRY-NILAI'!$AT95,"") ->  | AC86: =IF('ENTRY-NILAI'!$L95="A",'ENTRY-NILAI'!$AS95,"") ->  | AJ86: =IF(AI86="","",RANK(AI86,AI$5:AI$604,0)+COUNTIF(AI$5:AI86,AI86)-1) ->  | AN86: =IF('ENTRY-NILAI'!$L95="A",'ENTRY-NILAI'!$BD95,"") ->  | AO86: =IF('ENTRY-NILAI'!$L95="A",'ENTRY-NILAI'!$BC95,"") ->  | AV86: =IF(AU86="","",RANK(AU86,AU$5:AU$604,0)+COUNTIF(AU$5:AU86,AU86)-1) ->  | AZ86: =IF('ENTRY-NILAI'!$L95="A",'ENTRY-NILAI'!$BN95,"") ->  | BA86: =IF('ENTRY-NILAI'!$L95="A",'ENTRY-NILAI'!$BM95,"") ->  | BH86: =IF(BG86="","",RANK(BG86,BG$5:BG$604,0)+COUNTIF(BG$5:BG86,BG86)-1) ->  | BL86: =IF('ENTRY-NILAI'!$L95="A",'ENTRY-NILAI'!$BX95,"") ->  | BM86: =IF('ENTRY-NILAI'!$L95="A",'ENTRY-NILAI'!$BW95,"") ->  | BT86: =IF(BS86="","",RANK(BS86,BS$5:BS$604,0)+COUNTIF(BS$5:BS86,BS86)-1) ->  | BY86: =IF('ENTRY-NILAI'!$L95="a",'ENTRY-NILAI'!FG95,"") ->  | BZ86: =IF('ENTRY-NILAI'!$L95="a",'ENTRY-NILAI'!AC95,"") ->  | CA86: =IF('ENTRY-NILAI'!$L95="a",'ENTRY-NILAI'!AM95,"") ->  | CB86: =IF('ENTRY-NILAI'!$L95="a",'ENTRY-NILAI'!AU95,"") ->  | CC86: =IF('ENTRY-NILAI'!$L95="a",'ENTRY-NILAI'!BE95,"") ->  | CD86: =IF('ENTRY-NILAI'!$L95="a",'ENTRY-NILAI'!BO95,"") ->  | CE86: =IF('ENTRY-NILAI'!$L95="a",'ENTRY-NILAI'!BY95,"") ->  | CF86: 82 | CG86: =IF('ENTRY-NILAI'!$L95="a",'ENTRY-NILAI'!AB95+'ENTRY-NILAI'!AL95+'ENTRY-NILAI'!AT95+'ENTRY-NILAI'!BD95+'ENTRY-NILAI'!BN95+'ENTRY-NILAI'!BX95,"") ->  | CO86: =IF(CN86="","",RANK(CN86,CN$5:CN$604,0)+COUNTIF(CN$5:CN86,CN86)-1) -> 
B87: 83 | C87: =IF('ENTRY-NILAI'!L96="A",'ENTRY-NILAI'!A96,"") ->  | D87: =IF('ENTRY-NILAI'!$L96="A",'ENTRY-NILAI'!AB96,"") ->  | E87: =IF('ENTRY-NILAI'!$L96="A",'ENTRY-NILAI'!AA96,"") ->  | L87: =IF(K87="","",RANK(K87,K$5:K$604,0)+COUNTIF(K$5:K87,K87)-1) ->  | P87: =IF('ENTRY-NILAI'!$L96="A",'ENTRY-NILAI'!$AL96,"") ->  | Q87: =IF('ENTRY-NILAI'!$L96="A",'ENTRY-NILAI'!$AK96,"") ->  | X87: =IF(W87="","",RANK(W87,W$5:W$604,0)+COUNTIF(W$5:W87,W87)-1) ->  | AB87: =IF('ENTRY-NILAI'!$L96="A",'ENTRY-NILAI'!$AT96,"") ->  | AC87: =IF('ENTRY-NILAI'!$L96="A",'ENTRY-NILAI'!$AS96,"") ->  | AJ87: =IF(AI87="","",RANK(AI87,AI$5:AI$604,0)+COUNTIF(AI$5:AI87,AI87)-1) ->  | AN87: =IF('ENTRY-NILAI'!$L96="A",'ENTRY-NILAI'!$BD96,"") ->  | AO87: =IF('ENTRY-NILAI'!$L96="A",'ENTRY-NILAI'!$BC96,"") ->  | AV87: =IF(AU87="","",RANK(AU87,AU$5:AU$604,0)+COUNTIF(AU$5:AU87,AU87)-1) ->  | AZ87: =IF('ENTRY-NILAI'!$L96="A",'ENTRY-NILAI'!$BN96,"") ->  | BA87: =IF('ENTRY-NILAI'!$L96="A",'ENTRY-NILAI'!$BM96,"") ->  | BH87: =IF(BG87="","",RANK(BG87,BG$5:BG$604,0)+COUNTIF(BG$5:BG87,BG87)-1) ->  | BL87: =IF('ENTRY-NILAI'!$L96="A",'ENTRY-NILAI'!$BX96,"") ->  | BM87: =IF('ENTRY-NILAI'!$L96="A",'ENTRY-NILAI'!$BW96,"") ->  | BT87: =IF(BS87="","",RANK(BS87,BS$5:BS$604,0)+COUNTIF(BS$5:BS87,BS87)-1) ->  | BY87: =IF('ENTRY-NILAI'!$L96="a",'ENTRY-NILAI'!FG96,"") ->  | BZ87: =IF('ENTRY-NILAI'!$L96="a",'ENTRY-NILAI'!AC96,"") ->  | CA87: =IF('ENTRY-NILAI'!$L96="a",'ENTRY-NILAI'!AM96,"") ->  | CB87: =IF('ENTRY-NILAI'!$L96="a",'ENTRY-NILAI'!AU96,"") ->  | CC87: =IF('ENTRY-NILAI'!$L96="a",'ENTRY-NILAI'!BE96,"") ->  | CD87: =IF('ENTRY-NILAI'!$L96="a",'ENTRY-NILAI'!BO96,"") ->  | CE87: =IF('ENTRY-NILAI'!$L96="a",'ENTRY-NILAI'!BY96,"") ->  | CF87: 83 | CG87: =IF('ENTRY-NILAI'!$L96="a",'ENTRY-NILAI'!AB96+'ENTRY-NILAI'!AL96+'ENTRY-NILAI'!AT96+'ENTRY-NILAI'!BD96+'ENTRY-NILAI'!BN96+'ENTRY-NILAI'!BX96,"") ->  | CO87: =IF(CN87="","",RANK(CN87,CN$5:CN$604,0)+COUNTIF(CN$5:CN87,CN87)-1) -> 
B88: 84 | C88: =IF('ENTRY-NILAI'!L97="A",'ENTRY-NILAI'!A97,"") ->  | D88: =IF('ENTRY-NILAI'!$L97="A",'ENTRY-NILAI'!AB97,"") ->  | E88: =IF('ENTRY-NILAI'!$L97="A",'ENTRY-NILAI'!AA97,"") ->  | L88: =IF(K88="","",RANK(K88,K$5:K$604,0)+COUNTIF(K$5:K88,K88)-1) ->  | P88: =IF('ENTRY-NILAI'!$L97="A",'ENTRY-NILAI'!$AL97,"") ->  | Q88: =IF('ENTRY-NILAI'!$L97="A",'ENTRY-NILAI'!$AK97,"") ->  | X88: =IF(W88="","",RANK(W88,W$5:W$604,0)+COUNTIF(W$5:W88,W88)-1) ->  | AB88: =IF('ENTRY-NILAI'!$L97="A",'ENTRY-NILAI'!$AT97,"") ->  | AC88: =IF('ENTRY-NILAI'!$L97="A",'ENTRY-NILAI'!$AS97,"") ->  | AJ88: =IF(AI88="","",RANK(AI88,AI$5:AI$604,0)+COUNTIF(AI$5:AI88,AI88)-1) ->  | AN88: =IF('ENTRY-NILAI'!$L97="A",'ENTRY-NILAI'!$BD97,"") ->  | AO88: =IF('ENTRY-NILAI'!$L97="A",'ENTRY-NILAI'!$BC97,"") ->  | AV88: =IF(AU88="","",RANK(AU88,AU$5:AU$604,0)+COUNTIF(AU$5:AU88,AU88)-1) ->  | AZ88: =IF('ENTRY-NILAI'!$L97="A",'ENTRY-NILAI'!$BN97,"") ->  | BA88: =IF('ENTRY-NILAI'!$L97="A",'ENTRY-NILAI'!$BM97,"") ->  | BH88: =IF(BG88="","",RANK(BG88,BG$5:BG$604,0)+COUNTIF(BG$5:BG88,BG88)-1) ->  | BL88: =IF('ENTRY-NILAI'!$L97="A",'ENTRY-NILAI'!$BX97,"") ->  | BM88: =IF('ENTRY-NILAI'!$L97="A",'ENTRY-NILAI'!$BW97,"") ->  | BT88: =IF(BS88="","",RANK(BS88,BS$5:BS$604,0)+COUNTIF(BS$5:BS88,BS88)-1) ->  | BY88: =IF('ENTRY-NILAI'!$L97="a",'ENTRY-NILAI'!FG97,"") ->  | BZ88: =IF('ENTRY-NILAI'!$L97="a",'ENTRY-NILAI'!AC97,"") ->  | CA88: =IF('ENTRY-NILAI'!$L97="a",'ENTRY-NILAI'!AM97,"") ->  | CB88: =IF('ENTRY-NILAI'!$L97="a",'ENTRY-NILAI'!AU97,"") ->  | CC88: =IF('ENTRY-NILAI'!$L97="a",'ENTRY-NILAI'!BE97,"") ->  | CD88: =IF('ENTRY-NILAI'!$L97="a",'ENTRY-NILAI'!BO97,"") ->  | CE88: =IF('ENTRY-NILAI'!$L97="a",'ENTRY-NILAI'!BY97,"") ->  | CF88: 84 | CG88: =IF('ENTRY-NILAI'!$L97="a",'ENTRY-NILAI'!AB97+'ENTRY-NILAI'!AL97+'ENTRY-NILAI'!AT97+'ENTRY-NILAI'!BD97+'ENTRY-NILAI'!BN97+'ENTRY-NILAI'!BX97,"") ->  | CO88: =IF(CN88="","",RANK(CN88,CN$5:CN$604,0)+COUNTIF(CN$5:CN88,CN88)-1) -> 
B89: 85 | C89: =IF('ENTRY-NILAI'!L98="A",'ENTRY-NILAI'!A98,"") ->  | D89: =IF('ENTRY-NILAI'!$L98="A",'ENTRY-NILAI'!AB98,"") ->  | E89: =IF('ENTRY-NILAI'!$L98="A",'ENTRY-NILAI'!AA98,"") ->  | F89: =IF(D89="","",RANK(D89,$D$5:$D$604,0)) ->  | G89: =IF(D89="","",RANK(D89,$D$5:$D$604,1)) ->  | H89: =IF(E89="","",RANK(E89,$E$5:$E$604,1)) ->  | I89: =IF(G89="","",RIGHT("0"&G89,2)) ->  | J89: =IF(H89="","",RIGHT("0"&H89,2)) ->  | K89: =IF(G89="","",VALUE(G89&I89&J89)) ->  | L89: =IF(K89="","",RANK(K89,K$5:K$604,0)+COUNTIF(K$5:K89,K89)-1) ->  | M89: =IF($C89="","",IF(L89<11,B89,"")) ->  | N89: =SMALL($L$5:$L$604,A89) ->  | P89: =IF('ENTRY-NILAI'!$L98="A",'ENTRY-NILAI'!$AL98,"") ->  | Q89: =IF('ENTRY-NILAI'!$L98="A",'ENTRY-NILAI'!$AK98,"") ->  | R89: =IF(P89="","",RANK(P89,$P$5:$P$604,0)) ->  | S89: =IF(P89="","",RANK(P89,$P$5:$P$604,1)) ->  | T89: =IF(Q89="","",RANK(Q89,$Q$5:$Q$604,1)) ->  | U89: =IF(S89="","",RIGHT("0"&S89,2)) ->  | V89: =IF(T89="","",RIGHT("0"&T89,2)) ->  | W89: =IF(S89="","",VALUE(S89&U89&V89)) ->  | X89: =IF(W89="","",RANK(W89,W$5:W$604,0)+COUNTIF(W$5:W89,W89)-1) ->  | Y89: =IF($C89="","",IF(X89<11,B89,"")) ->  | AB89: =IF('ENTRY-NILAI'!$L98="A",'ENTRY-NILAI'!$AT98,"") ->  | AC89: =IF('ENTRY-NILAI'!$L98="A",'ENTRY-NILAI'!$AS98,"") ->  | AD89: =IF(AB89="","",RANK(AB89,$AB$5:$AB$604,0)) ->  | AE89: =IF(AB89="","",RANK(AB89,AB$5:AB$604,1)) ->  | AF89: =IF(AC89="","",RANK(AC89,AC$5:AC$604,1)) ->  | AG89: =IF(AE89="","",RIGHT("0"&AE89,2)) ->  | AH89: =IF(AF89="","",RIGHT("0"&AF89,2)) ->  | AI89: =IF(AE89="","",VALUE(AE89&AG89&AH89)) ->  | AJ89: =IF(AI89="","",RANK(AI89,AI$5:AI$604,0)+COUNTIF(AI$5:AI89,AI89)-1) ->  | AL89: =SMALL(AJ$5:AJ$604,$A89) ->  | AN89: =IF('ENTRY-NILAI'!$L98="A",'ENTRY-NILAI'!$BD98,"") ->  | AO89: =IF('ENTRY-NILAI'!$L98="A",'ENTRY-NILAI'!$BC98,"") ->  | AP89: =IF(AN89="","",RANK(AN89,AN$5:AN$604,0)) ->  | AQ89: =IF(AN89="","",RANK(AN89,AN$5:AN$604,1)) ->  | AR89: =IF(AO89="","",RANK(AO89,AO$5:AO$604,1)) ->  | AS89: =IF(AQ89="","",RIGHT("0"&AQ89,2)) ->  | AT89: =IF(AR89="","",RIGHT("0"&AR89,2)) ->  | AU89: =IF(AQ89="","",VALUE(AQ89&AS89&AT89)) ->  | AV89: =IF(AU89="","",RANK(AU89,AU$5:AU$604,0)+COUNTIF(AU$5:AU89,AU89)-1) ->  | AX89: =SMALL(AV$5:AV$604,$A89) ->  | AZ89: =IF('ENTRY-NILAI'!$L98="A",'ENTRY-NILAI'!$BN98,"") ->  | BA89: =IF('ENTRY-NILAI'!$L98="A",'ENTRY-NILAI'!$BM98,"") ->  | BB89: =IF(AZ89="","",RANK(AZ89,AZ$5:AZ$604,0)) ->  | BC89: =IF(AZ89="","",RANK(AZ89,AZ$5:AZ$604,1)) ->  | BD89: =IF(BA89="","",RANK(BA89,BA$5:BA$604,1)) ->  | BE89: =IF(BC89="","",RIGHT("0"&BC89,2)) ->  | BF89: =IF(BD89="","",RIGHT("0"&BD89,2)) ->  | BG89: =IF(BC89="","",VALUE(BC89&BE89&BF89)) ->  | BH89: =IF(BG89="","",RANK(BG89,BG$5:BG$604,0)+COUNTIF(BG$5:BG89,BG89)-1) ->  | BJ89: =SMALL(BH$5:BH$604,$A89) ->  | BL89: =IF('ENTRY-NILAI'!$L98="A",'ENTRY-NILAI'!$BX98,"") ->  | BM89: =IF('ENTRY-NILAI'!$L98="A",'ENTRY-NILAI'!$BW98,"") ->  | BN89: =IF(BL89="","",RANK(BL89,BL$5:BL$604,0)) ->  | BO89: =IF(BL89="","",RANK(BL89,BL$5:BL$604,1)) ->  | BP89: =IF(BM89="","",RANK(BM89,BM$5:BM$604,1)) ->  | BQ89: =IF(BO89="","",RIGHT("0"&BO89,2)) ->  | BR89: =IF(BP89="","",RIGHT("0"&BP89,2)) ->  | BS89: =IF(BO89="","",VALUE(BO89&BQ89&BR89)) ->  | BT89: =IF(BS89="","",RANK(BS89,BS$5:BS$604,0)+COUNTIF(BS$5:BS89,BS89)-1) ->  | BV89: =SMALL(BT$5:BT$604,$A89) ->  | BY89: =IF('ENTRY-NILAI'!$L98="a",'ENTRY-NILAI'!FG98,"") ->  | BZ89: =IF('ENTRY-NILAI'!$L98="a",'ENTRY-NILAI'!AC98,"") ->  | CA89: =IF('ENTRY-NILAI'!$L98="a",'ENTRY-NILAI'!AM98,"") ->  | CB89: =IF('ENTRY-NILAI'!$L98="a",'ENTRY-NILAI'!AU98,"") ->  | CC89: =IF('ENTRY-NILAI'!$L98="a",'ENTRY-NILAI'!BE98,"") ->  | CD89: =IF('ENTRY-NILAI'!$L98="a",'ENTRY-NILAI'!BO98,"") ->  | CE89: =IF('ENTRY-NILAI'!$L98="a",'ENTRY-NILAI'!BY98,"") ->  | CF89: 85 | CG89: =IF('ENTRY-NILAI'!$L98="a",'ENTRY-NILAI'!AB98+'ENTRY-NILAI'!AL98+'ENTRY-NILAI'!AT98+'ENTRY-NILAI'!BD98+'ENTRY-NILAI'!BN98+'ENTRY-NILAI'!BX98,"") ->  | CO89: =IF(CN89="","",RANK(CN89,CN$5:CN$604,0)+COUNTIF(CN$5:CN89,CN89)-1) -> 
B90: 86 | C90: =IF('ENTRY-NILAI'!L99="A",'ENTRY-NILAI'!A99,"") ->  | D90: =IF('ENTRY-NILAI'!$L99="A",'ENTRY-NILAI'!AB99,"") ->  | E90: =IF('ENTRY-NILAI'!$L99="A",'ENTRY-NILAI'!AA99,"") ->  | L90: =IF(K90="","",RANK(K90,K$5:K$604,0)+COUNTIF(K$5:K90,K90)-1) ->  | P90: =IF('ENTRY-NILAI'!$L99="A",'ENTRY-NILAI'!$AL99,"") ->  | Q90: =IF('ENTRY-NILAI'!$L99="A",'ENTRY-NILAI'!$AK99,"") ->  | X90: =IF(W90="","",RANK(W90,W$5:W$604,0)+COUNTIF(W$5:W90,W90)-1) ->  | AB90: =IF('ENTRY-NILAI'!$L99="A",'ENTRY-NILAI'!$AT99,"") ->  | AC90: =IF('ENTRY-NILAI'!$L99="A",'ENTRY-NILAI'!$AS99,"") ->  | AJ90: =IF(AI90="","",RANK(AI90,AI$5:AI$604,0)+COUNTIF(AI$5:AI90,AI90)-1) ->  | AN90: =IF('ENTRY-NILAI'!$L99="A",'ENTRY-NILAI'!$BD99,"") ->  | AO90: =IF('ENTRY-NILAI'!$L99="A",'ENTRY-NILAI'!$BC99,"") ->  | AV90: =IF(AU90="","",RANK(AU90,AU$5:AU$604,0)+COUNTIF(AU$5:AU90,AU90)-1) ->  | AZ90: =IF('ENTRY-NILAI'!$L99="A",'ENTRY-NILAI'!$BN99,"") ->  | BA90: =IF('ENTRY-NILAI'!$L99="A",'ENTRY-NILAI'!$BM99,"") ->  | BH90: =IF(BG90="","",RANK(BG90,BG$5:BG$604,0)+COUNTIF(BG$5:BG90,BG90)-1) ->  | BL90: =IF('ENTRY-NILAI'!$L99="A",'ENTRY-NILAI'!$BX99,"") ->  | BM90: =IF('ENTRY-NILAI'!$L99="A",'ENTRY-NILAI'!$BW99,"") ->  | BT90: =IF(BS90="","",RANK(BS90,BS$5:BS$604,0)+COUNTIF(BS$5:BS90,BS90)-1) ->  | BY90: =IF('ENTRY-NILAI'!$L99="a",'ENTRY-NILAI'!FG99,"") ->  | BZ90: =IF('ENTRY-NILAI'!$L99="a",'ENTRY-NILAI'!AC99,"") ->  | CA90: =IF('ENTRY-NILAI'!$L99="a",'ENTRY-NILAI'!AM99,"") ->  | CB90: =IF('ENTRY-NILAI'!$L99="a",'ENTRY-NILAI'!AU99,"") ->  | CC90: =IF('ENTRY-NILAI'!$L99="a",'ENTRY-NILAI'!BE99,"") ->  | CD90: =IF('ENTRY-NILAI'!$L99="a",'ENTRY-NILAI'!BO99,"") ->  | CE90: =IF('ENTRY-NILAI'!$L99="a",'ENTRY-NILAI'!BY99,"") ->  | CF90: 86 | CG90: =IF('ENTRY-NILAI'!$L99="a",'ENTRY-NILAI'!AB99+'ENTRY-NILAI'!AL99+'ENTRY-NILAI'!AT99+'ENTRY-NILAI'!BD99+'ENTRY-NILAI'!BN99+'ENTRY-NILAI'!BX99,"") ->  | CO90: =IF(CN90="","",RANK(CN90,CN$5:CN$604,0)+COUNTIF(CN$5:CN90,CN90)-1) -> 
B91: 87 | C91: =IF('ENTRY-NILAI'!L100="A",'ENTRY-NILAI'!A100,"") ->  | D91: =IF('ENTRY-NILAI'!$L100="A",'ENTRY-NILAI'!AB100,"") ->  | E91: =IF('ENTRY-NILAI'!$L100="A",'ENTRY-NILAI'!AA100,"") ->  | L91: =IF(K91="","",RANK(K91,K$5:K$604,0)+COUNTIF(K$5:K91,K91)-1) ->  | P91: =IF('ENTRY-NILAI'!$L100="A",'ENTRY-NILAI'!$AL100,"") ->  | Q91: =IF('ENTRY-NILAI'!$L100="A",'ENTRY-NILAI'!$AK100,"") ->  | X91: =IF(W91="","",RANK(W91,W$5:W$604,0)+COUNTIF(W$5:W91,W91)-1) ->  | AB91: =IF('ENTRY-NILAI'!$L100="A",'ENTRY-NILAI'!$AT100,"") ->  | AC91: =IF('ENTRY-NILAI'!$L100="A",'ENTRY-NILAI'!$AS100,"") ->  | AJ91: =IF(AI91="","",RANK(AI91,AI$5:AI$604,0)+COUNTIF(AI$5:AI91,AI91)-1) ->  | AN91: =IF('ENTRY-NILAI'!$L100="A",'ENTRY-NILAI'!$BD100,"") ->  | AO91: =IF('ENTRY-NILAI'!$L100="A",'ENTRY-NILAI'!$BC100,"") ->  | AV91: =IF(AU91="","",RANK(AU91,AU$5:AU$604,0)+COUNTIF(AU$5:AU91,AU91)-1) ->  | AZ91: =IF('ENTRY-NILAI'!$L100="A",'ENTRY-NILAI'!$BN100,"") ->  | BA91: =IF('ENTRY-NILAI'!$L100="A",'ENTRY-NILAI'!$BM100,"") ->  | BH91: =IF(BG91="","",RANK(BG91,BG$5:BG$604,0)+COUNTIF(BG$5:BG91,BG91)-1) ->  | BL91: =IF('ENTRY-NILAI'!$L100="A",'ENTRY-NILAI'!$BX100,"") ->  | BM91: =IF('ENTRY-NILAI'!$L100="A",'ENTRY-NILAI'!$BW100,"") ->  | BT91: =IF(BS91="","",RANK(BS91,BS$5:BS$604,0)+COUNTIF(BS$5:BS91,BS91)-1) ->  | BY91: =IF('ENTRY-NILAI'!$L100="a",'ENTRY-NILAI'!FG100,"") ->  | BZ91: =IF('ENTRY-NILAI'!$L100="a",'ENTRY-NILAI'!AC100,"") ->  | CA91: =IF('ENTRY-NILAI'!$L100="a",'ENTRY-NILAI'!AM100,"") ->  | CB91: =IF('ENTRY-NILAI'!$L100="a",'ENTRY-NILAI'!AU100,"") ->  | CC91: =IF('ENTRY-NILAI'!$L100="a",'ENTRY-NILAI'!BE100,"") ->  | CD91: =IF('ENTRY-NILAI'!$L100="a",'ENTRY-NILAI'!BO100,"") ->  | CE91: =IF('ENTRY-NILAI'!$L100="a",'ENTRY-NILAI'!BY100,"") ->  | CF91: 87 | CG91: =IF('ENTRY-NILAI'!$L100="a",'ENTRY-NILAI'!AB100+'ENTRY-NILAI'!AL100+'ENTRY-NILAI'!AT100+'ENTRY-NILAI'!BD100+'ENTRY-NILAI'!BN100+'ENTRY-NILAI'!BX100,"") ->  | CO91: =IF(CN91="","",RANK(CN91,CN$5:CN$604,0)+COUNTIF(CN$5:CN91,CN91)-1) -> 
B92: 88 | C92: =IF('ENTRY-NILAI'!L101="A",'ENTRY-NILAI'!A101,"") ->  | D92: =IF('ENTRY-NILAI'!$L101="A",'ENTRY-NILAI'!AB101,"") ->  | E92: =IF('ENTRY-NILAI'!$L101="A",'ENTRY-NILAI'!AA101,"") ->  | L92: =IF(K92="","",RANK(K92,K$5:K$604,0)+COUNTIF(K$5:K92,K92)-1) ->  | P92: =IF('ENTRY-NILAI'!$L101="A",'ENTRY-NILAI'!$AL101,"") ->  | Q92: =IF('ENTRY-NILAI'!$L101="A",'ENTRY-NILAI'!$AK101,"") ->  | X92: =IF(W92="","",RANK(W92,W$5:W$604,0)+COUNTIF(W$5:W92,W92)-1) ->  | AB92: =IF('ENTRY-NILAI'!$L101="A",'ENTRY-NILAI'!$AT101,"") ->  | AC92: =IF('ENTRY-NILAI'!$L101="A",'ENTRY-NILAI'!$AS101,"") ->  | AJ92: =IF(AI92="","",RANK(AI92,AI$5:AI$604,0)+COUNTIF(AI$5:AI92,AI92)-1) ->  | AN92: =IF('ENTRY-NILAI'!$L101="A",'ENTRY-NILAI'!$BD101,"") ->  | AO92: =IF('ENTRY-NILAI'!$L101="A",'ENTRY-NILAI'!$BC101,"") ->  | AV92: =IF(AU92="","",RANK(AU92,AU$5:AU$604,0)+COUNTIF(AU$5:AU92,AU92)-1) ->  | AZ92: =IF('ENTRY-NILAI'!$L101="A",'ENTRY-NILAI'!$BN101,"") ->  | BA92: =IF('ENTRY-NILAI'!$L101="A",'ENTRY-NILAI'!$BM101,"") ->  | BH92: =IF(BG92="","",RANK(BG92,BG$5:BG$604,0)+COUNTIF(BG$5:BG92,BG92)-1) ->  | BL92: =IF('ENTRY-NILAI'!$L101="A",'ENTRY-NILAI'!$BX101,"") ->  | BM92: =IF('ENTRY-NILAI'!$L101="A",'ENTRY-NILAI'!$BW101,"") ->  | BT92: =IF(BS92="","",RANK(BS92,BS$5:BS$604,0)+COUNTIF(BS$5:BS92,BS92)-1) ->  | BY92: =IF('ENTRY-NILAI'!$L101="a",'ENTRY-NILAI'!FG101,"") ->  | BZ92: =IF('ENTRY-NILAI'!$L101="a",'ENTRY-NILAI'!AC101,"") ->  | CA92: =IF('ENTRY-NILAI'!$L101="a",'ENTRY-NILAI'!AM101,"") ->  | CB92: =IF('ENTRY-NILAI'!$L101="a",'ENTRY-NILAI'!AU101,"") ->  | CC92: =IF('ENTRY-NILAI'!$L101="a",'ENTRY-NILAI'!BE101,"") ->  | CD92: =IF('ENTRY-NILAI'!$L101="a",'ENTRY-NILAI'!BO101,"") ->  | CE92: =IF('ENTRY-NILAI'!$L101="a",'ENTRY-NILAI'!BY101,"") ->  | CF92: 88 | CG92: =IF('ENTRY-NILAI'!$L101="a",'ENTRY-NILAI'!AB101+'ENTRY-NILAI'!AL101+'ENTRY-NILAI'!AT101+'ENTRY-NILAI'!BD101+'ENTRY-NILAI'!BN101+'ENTRY-NILAI'!BX101,"") ->  | CO92: =IF(CN92="","",RANK(CN92,CN$5:CN$604,0)+COUNTIF(CN$5:CN92,CN92)-1) -> 
B93: 89 | C93: =IF('ENTRY-NILAI'!L102="A",'ENTRY-NILAI'!A102,"") ->  | D93: =IF('ENTRY-NILAI'!$L102="A",'ENTRY-NILAI'!AB102,"") ->  | E93: =IF('ENTRY-NILAI'!$L102="A",'ENTRY-NILAI'!AA102,"") ->  | L93: =IF(K93="","",RANK(K93,K$5:K$604,0)+COUNTIF(K$5:K93,K93)-1) ->  | P93: =IF('ENTRY-NILAI'!$L102="A",'ENTRY-NILAI'!$AL102,"") ->  | Q93: =IF('ENTRY-NILAI'!$L102="A",'ENTRY-NILAI'!$AK102,"") ->  | X93: =IF(W93="","",RANK(W93,W$5:W$604,0)+COUNTIF(W$5:W93,W93)-1) ->  | AB93: =IF('ENTRY-NILAI'!$L102="A",'ENTRY-NILAI'!$AT102,"") ->  | AC93: =IF('ENTRY-NILAI'!$L102="A",'ENTRY-NILAI'!$AS102,"") ->  | AJ93: =IF(AI93="","",RANK(AI93,AI$5:AI$604,0)+COUNTIF(AI$5:AI93,AI93)-1) ->  | AN93: =IF('ENTRY-NILAI'!$L102="A",'ENTRY-NILAI'!$BD102,"") ->  | AO93: =IF('ENTRY-NILAI'!$L102="A",'ENTRY-NILAI'!$BC102,"") ->  | AV93: =IF(AU93="","",RANK(AU93,AU$5:AU$604,0)+COUNTIF(AU$5:AU93,AU93)-1) ->  | AZ93: =IF('ENTRY-NILAI'!$L102="A",'ENTRY-NILAI'!$BN102,"") ->  | BA93: =IF('ENTRY-NILAI'!$L102="A",'ENTRY-NILAI'!$BM102,"") ->  | BH93: =IF(BG93="","",RANK(BG93,BG$5:BG$604,0)+COUNTIF(BG$5:BG93,BG93)-1) ->  | BL93: =IF('ENTRY-NILAI'!$L102="A",'ENTRY-NILAI'!$BX102,"") ->  | BM93: =IF('ENTRY-NILAI'!$L102="A",'ENTRY-NILAI'!$BW102,"") ->  | BT93: =IF(BS93="","",RANK(BS93,BS$5:BS$604,0)+COUNTIF(BS$5:BS93,BS93)-1) ->  | BY93: =IF('ENTRY-NILAI'!$L102="a",'ENTRY-NILAI'!FG102,"") ->  | BZ93: =IF('ENTRY-NILAI'!$L102="a",'ENTRY-NILAI'!AC102,"") ->  | CA93: =IF('ENTRY-NILAI'!$L102="a",'ENTRY-NILAI'!AM102,"") ->  | CB93: =IF('ENTRY-NILAI'!$L102="a",'ENTRY-NILAI'!AU102,"") ->  | CC93: =IF('ENTRY-NILAI'!$L102="a",'ENTRY-NILAI'!BE102,"") ->  | CD93: =IF('ENTRY-NILAI'!$L102="a",'ENTRY-NILAI'!BO102,"") ->  | CE93: =IF('ENTRY-NILAI'!$L102="a",'ENTRY-NILAI'!BY102,"") ->  | CF93: 89 | CG93: =IF('ENTRY-NILAI'!$L102="a",'ENTRY-NILAI'!AB102+'ENTRY-NILAI'!AL102+'ENTRY-NILAI'!AT102+'ENTRY-NILAI'!BD102+'ENTRY-NILAI'!BN102+'ENTRY-NILAI'!BX102,"") ->  | CO93: =IF(CN93="","",RANK(CN93,CN$5:CN$604,0)+COUNTIF(CN$5:CN93,CN93)-1) -> 
B94: 90 | C94: =IF('ENTRY-NILAI'!L103="A",'ENTRY-NILAI'!A103,"") ->  | D94: =IF('ENTRY-NILAI'!$L103="A",'ENTRY-NILAI'!AB103,"") ->  | E94: =IF('ENTRY-NILAI'!$L103="A",'ENTRY-NILAI'!AA103,"") ->  | L94: =IF(K94="","",RANK(K94,K$5:K$604,0)+COUNTIF(K$5:K94,K94)-1) ->  | P94: =IF('ENTRY-NILAI'!$L103="A",'ENTRY-NILAI'!$AL103,"") ->  | Q94: =IF('ENTRY-NILAI'!$L103="A",'ENTRY-NILAI'!$AK103,"") ->  | X94: =IF(W94="","",RANK(W94,W$5:W$604,0)+COUNTIF(W$5:W94,W94)-1) ->  | AB94: =IF('ENTRY-NILAI'!$L103="A",'ENTRY-NILAI'!$AT103,"") ->  | AC94: =IF('ENTRY-NILAI'!$L103="A",'ENTRY-NILAI'!$AS103,"") ->  | AJ94: =IF(AI94="","",RANK(AI94,AI$5:AI$604,0)+COUNTIF(AI$5:AI94,AI94)-1) ->  | AN94: =IF('ENTRY-NILAI'!$L103="A",'ENTRY-NILAI'!$BD103,"") ->  | AO94: =IF('ENTRY-NILAI'!$L103="A",'ENTRY-NILAI'!$BC103,"") ->  | AV94: =IF(AU94="","",RANK(AU94,AU$5:AU$604,0)+COUNTIF(AU$5:AU94,AU94)-1) ->  | AZ94: =IF('ENTRY-NILAI'!$L103="A",'ENTRY-NILAI'!$BN103,"") ->  | BA94: =IF('ENTRY-NILAI'!$L103="A",'ENTRY-NILAI'!$BM103,"") ->  | BH94: =IF(BG94="","",RANK(BG94,BG$5:BG$604,0)+COUNTIF(BG$5:BG94,BG94)-1) ->  | BL94: =IF('ENTRY-NILAI'!$L103="A",'ENTRY-NILAI'!$BX103,"") ->  | BM94: =IF('ENTRY-NILAI'!$L103="A",'ENTRY-NILAI'!$BW103,"") ->  | BT94: =IF(BS94="","",RANK(BS94,BS$5:BS$604,0)+COUNTIF(BS$5:BS94,BS94)-1) ->  | BY94: =IF('ENTRY-NILAI'!$L103="a",'ENTRY-NILAI'!FG103,"") ->  | BZ94: =IF('ENTRY-NILAI'!$L103="a",'ENTRY-NILAI'!AC103,"") ->  | CA94: =IF('ENTRY-NILAI'!$L103="a",'ENTRY-NILAI'!AM103,"") ->  | CB94: =IF('ENTRY-NILAI'!$L103="a",'ENTRY-NILAI'!AU103,"") ->  | CC94: =IF('ENTRY-NILAI'!$L103="a",'ENTRY-NILAI'!BE103,"") ->  | CD94: =IF('ENTRY-NILAI'!$L103="a",'ENTRY-NILAI'!BO103,"") ->  | CE94: =IF('ENTRY-NILAI'!$L103="a",'ENTRY-NILAI'!BY103,"") ->  | CF94: 90 | CG94: =IF('ENTRY-NILAI'!$L103="a",'ENTRY-NILAI'!AB103+'ENTRY-NILAI'!AL103+'ENTRY-NILAI'!AT103+'ENTRY-NILAI'!BD103+'ENTRY-NILAI'!BN103+'ENTRY-NILAI'!BX103,"") ->  | CO94: =IF(CN94="","",RANK(CN94,CN$5:CN$604,0)+COUNTIF(CN$5:CN94,CN94)-1) -> 
B95: 91 | C95: =IF('ENTRY-NILAI'!L104="A",'ENTRY-NILAI'!A104,"") ->  | D95: =IF('ENTRY-NILAI'!$L104="A",'ENTRY-NILAI'!AB104,"") ->  | E95: =IF('ENTRY-NILAI'!$L104="A",'ENTRY-NILAI'!AA104,"") ->  | L95: =IF(K95="","",RANK(K95,K$5:K$604,0)+COUNTIF(K$5:K95,K95)-1) ->  | P95: =IF('ENTRY-NILAI'!$L104="A",'ENTRY-NILAI'!$AL104,"") ->  | Q95: =IF('ENTRY-NILAI'!$L104="A",'ENTRY-NILAI'!$AK104,"") ->  | X95: =IF(W95="","",RANK(W95,W$5:W$604,0)+COUNTIF(W$5:W95,W95)-1) ->  | AB95: =IF('ENTRY-NILAI'!$L104="A",'ENTRY-NILAI'!$AT104,"") ->  | AC95: =IF('ENTRY-NILAI'!$L104="A",'ENTRY-NILAI'!$AS104,"") ->  | AJ95: =IF(AI95="","",RANK(AI95,AI$5:AI$604,0)+COUNTIF(AI$5:AI95,AI95)-1) ->  | AN95: =IF('ENTRY-NILAI'!$L104="A",'ENTRY-NILAI'!$BD104,"") ->  | AO95: =IF('ENTRY-NILAI'!$L104="A",'ENTRY-NILAI'!$BC104,"") ->  | AV95: =IF(AU95="","",RANK(AU95,AU$5:AU$604,0)+COUNTIF(AU$5:AU95,AU95)-1) ->  | AZ95: =IF('ENTRY-NILAI'!$L104="A",'ENTRY-NILAI'!$BN104,"") ->  | BA95: =IF('ENTRY-NILAI'!$L104="A",'ENTRY-NILAI'!$BM104,"") ->  | BH95: =IF(BG95="","",RANK(BG95,BG$5:BG$604,0)+COUNTIF(BG$5:BG95,BG95)-1) ->  | BL95: =IF('ENTRY-NILAI'!$L104="A",'ENTRY-NILAI'!$BX104,"") ->  | BM95: =IF('ENTRY-NILAI'!$L104="A",'ENTRY-NILAI'!$BW104,"") ->  | BT95: =IF(BS95="","",RANK(BS95,BS$5:BS$604,0)+COUNTIF(BS$5:BS95,BS95)-1) ->  | BY95: =IF('ENTRY-NILAI'!$L104="a",'ENTRY-NILAI'!FG104,"") ->  | BZ95: =IF('ENTRY-NILAI'!$L104="a",'ENTRY-NILAI'!AC104,"") ->  | CA95: =IF('ENTRY-NILAI'!$L104="a",'ENTRY-NILAI'!AM104,"") ->  | CB95: =IF('ENTRY-NILAI'!$L104="a",'ENTRY-NILAI'!AU104,"") ->  | CC95: =IF('ENTRY-NILAI'!$L104="a",'ENTRY-NILAI'!BE104,"") ->  | CD95: =IF('ENTRY-NILAI'!$L104="a",'ENTRY-NILAI'!BO104,"") ->  | CE95: =IF('ENTRY-NILAI'!$L104="a",'ENTRY-NILAI'!BY104,"") ->  | CF95: 91 | CG95: =IF('ENTRY-NILAI'!$L104="a",'ENTRY-NILAI'!AB104+'ENTRY-NILAI'!AL104+'ENTRY-NILAI'!AT104+'ENTRY-NILAI'!BD104+'ENTRY-NILAI'!BN104+'ENTRY-NILAI'!BX104,"") ->  | CO95: =IF(CN95="","",RANK(CN95,CN$5:CN$604,0)+COUNTIF(CN$5:CN95,CN95)-1) -> 
B96: 92 | C96: =IF('ENTRY-NILAI'!L105="A",'ENTRY-NILAI'!A105,"") ->  | D96: =IF('ENTRY-NILAI'!$L105="A",'ENTRY-NILAI'!AB105,"") ->  | E96: =IF('ENTRY-NILAI'!$L105="A",'ENTRY-NILAI'!AA105,"") ->  | L96: =IF(K96="","",RANK(K96,K$5:K$604,0)+COUNTIF(K$5:K96,K96)-1) ->  | P96: =IF('ENTRY-NILAI'!$L105="A",'ENTRY-NILAI'!$AL105,"") ->  | Q96: =IF('ENTRY-NILAI'!$L105="A",'ENTRY-NILAI'!$AK105,"") ->  | X96: =IF(W96="","",RANK(W96,W$5:W$604,0)+COUNTIF(W$5:W96,W96)-1) ->  | AB96: =IF('ENTRY-NILAI'!$L105="A",'ENTRY-NILAI'!$AT105,"") ->  | AC96: =IF('ENTRY-NILAI'!$L105="A",'ENTRY-NILAI'!$AS105,"") ->  | AJ96: =IF(AI96="","",RANK(AI96,AI$5:AI$604,0)+COUNTIF(AI$5:AI96,AI96)-1) ->  | AN96: =IF('ENTRY-NILAI'!$L105="A",'ENTRY-NILAI'!$BD105,"") ->  | AO96: =IF('ENTRY-NILAI'!$L105="A",'ENTRY-NILAI'!$BC105,"") ->  | AV96: =IF(AU96="","",RANK(AU96,AU$5:AU$604,0)+COUNTIF(AU$5:AU96,AU96)-1) ->  | AZ96: =IF('ENTRY-NILAI'!$L105="A",'ENTRY-NILAI'!$BN105,"") ->  | BA96: =IF('ENTRY-NILAI'!$L105="A",'ENTRY-NILAI'!$BM105,"") ->  | BH96: =IF(BG96="","",RANK(BG96,BG$5:BG$604,0)+COUNTIF(BG$5:BG96,BG96)-1) ->  | BL96: =IF('ENTRY-NILAI'!$L105="A",'ENTRY-NILAI'!$BX105,"") ->  | BM96: =IF('ENTRY-NILAI'!$L105="A",'ENTRY-NILAI'!$BW105,"") ->  | BT96: =IF(BS96="","",RANK(BS96,BS$5:BS$604,0)+COUNTIF(BS$5:BS96,BS96)-1) ->  | BY96: =IF('ENTRY-NILAI'!$L105="a",'ENTRY-NILAI'!FG105,"") ->  | BZ96: =IF('ENTRY-NILAI'!$L105="a",'ENTRY-NILAI'!AC105,"") ->  | CA96: =IF('ENTRY-NILAI'!$L105="a",'ENTRY-NILAI'!AM105,"") ->  | CB96: =IF('ENTRY-NILAI'!$L105="a",'ENTRY-NILAI'!AU105,"") ->  | CC96: =IF('ENTRY-NILAI'!$L105="a",'ENTRY-NILAI'!BE105,"") ->  | CD96: =IF('ENTRY-NILAI'!$L105="a",'ENTRY-NILAI'!BO105,"") ->  | CE96: =IF('ENTRY-NILAI'!$L105="a",'ENTRY-NILAI'!BY105,"") ->  | CF96: 92 | CG96: =IF('ENTRY-NILAI'!$L105="a",'ENTRY-NILAI'!AB105+'ENTRY-NILAI'!AL105+'ENTRY-NILAI'!AT105+'ENTRY-NILAI'!BD105+'ENTRY-NILAI'!BN105+'ENTRY-NILAI'!BX105,"") ->  | CO96: =IF(CN96="","",RANK(CN96,CN$5:CN$604,0)+COUNTIF(CN$5:CN96,CN96)-1) -> 
B97: 93 | C97: =IF('ENTRY-NILAI'!L106="A",'ENTRY-NILAI'!A106,"") ->  | D97: =IF('ENTRY-NILAI'!$L106="A",'ENTRY-NILAI'!AB106,"") ->  | E97: =IF('ENTRY-NILAI'!$L106="A",'ENTRY-NILAI'!AA106,"") ->  | L97: =IF(K97="","",RANK(K97,K$5:K$604,0)+COUNTIF(K$5:K97,K97)-1) ->  | P97: =IF('ENTRY-NILAI'!$L106="A",'ENTRY-NILAI'!$AL106,"") ->  | Q97: =IF('ENTRY-NILAI'!$L106="A",'ENTRY-NILAI'!$AK106,"") ->  | X97: =IF(W97="","",RANK(W97,W$5:W$604,0)+COUNTIF(W$5:W97,W97)-1) ->  | AB97: =IF('ENTRY-NILAI'!$L106="A",'ENTRY-NILAI'!$AT106,"") ->  | AC97: =IF('ENTRY-NILAI'!$L106="A",'ENTRY-NILAI'!$AS106,"") ->  | AJ97: =IF(AI97="","",RANK(AI97,AI$5:AI$604,0)+COUNTIF(AI$5:AI97,AI97)-1) ->  | AN97: =IF('ENTRY-NILAI'!$L106="A",'ENTRY-NILAI'!$BD106,"") ->  | AO97: =IF('ENTRY-NILAI'!$L106="A",'ENTRY-NILAI'!$BC106,"") ->  | AV97: =IF(AU97="","",RANK(AU97,AU$5:AU$604,0)+COUNTIF(AU$5:AU97,AU97)-1) ->  | AZ97: =IF('ENTRY-NILAI'!$L106="A",'ENTRY-NILAI'!$BN106,"") ->  | BA97: =IF('ENTRY-NILAI'!$L106="A",'ENTRY-NILAI'!$BM106,"") ->  | BH97: =IF(BG97="","",RANK(BG97,BG$5:BG$604,0)+COUNTIF(BG$5:BG97,BG97)-1) ->  | BL97: =IF('ENTRY-NILAI'!$L106="A",'ENTRY-NILAI'!$BX106,"") ->  | BM97: =IF('ENTRY-NILAI'!$L106="A",'ENTRY-NILAI'!$BW106,"") ->  | BT97: =IF(BS97="","",RANK(BS97,BS$5:BS$604,0)+COUNTIF(BS$5:BS97,BS97)-1) ->  | BY97: =IF('ENTRY-NILAI'!$L106="a",'ENTRY-NILAI'!FG106,"") ->  | BZ97: =IF('ENTRY-NILAI'!$L106="a",'ENTRY-NILAI'!AC106,"") ->  | CA97: =IF('ENTRY-NILAI'!$L106="a",'ENTRY-NILAI'!AM106,"") ->  | CB97: =IF('ENTRY-NILAI'!$L106="a",'ENTRY-NILAI'!AU106,"") ->  | CC97: =IF('ENTRY-NILAI'!$L106="a",'ENTRY-NILAI'!BE106,"") ->  | CD97: =IF('ENTRY-NILAI'!$L106="a",'ENTRY-NILAI'!BO106,"") ->  | CE97: =IF('ENTRY-NILAI'!$L106="a",'ENTRY-NILAI'!BY106,"") ->  | CF97: 93 | CG97: =IF('ENTRY-NILAI'!$L106="a",'ENTRY-NILAI'!AB106+'ENTRY-NILAI'!AL106+'ENTRY-NILAI'!AT106+'ENTRY-NILAI'!BD106+'ENTRY-NILAI'!BN106+'ENTRY-NILAI'!BX106,"") ->  | CO97: =IF(CN97="","",RANK(CN97,CN$5:CN$604,0)+COUNTIF(CN$5:CN97,CN97)-1) -> 
B98: 94 | C98: =IF('ENTRY-NILAI'!L107="A",'ENTRY-NILAI'!A107,"") ->  | D98: =IF('ENTRY-NILAI'!$L107="A",'ENTRY-NILAI'!AB107,"") ->  | E98: =IF('ENTRY-NILAI'!$L107="A",'ENTRY-NILAI'!AA107,"") ->  | L98: =IF(K98="","",RANK(K98,K$5:K$604,0)+COUNTIF(K$5:K98,K98)-1) ->  | P98: =IF('ENTRY-NILAI'!$L107="A",'ENTRY-NILAI'!$AL107,"") ->  | Q98: =IF('ENTRY-NILAI'!$L107="A",'ENTRY-NILAI'!$AK107,"") ->  | X98: =IF(W98="","",RANK(W98,W$5:W$604,0)+COUNTIF(W$5:W98,W98)-1) ->  | AB98: =IF('ENTRY-NILAI'!$L107="A",'ENTRY-NILAI'!$AT107,"") ->  | AC98: =IF('ENTRY-NILAI'!$L107="A",'ENTRY-NILAI'!$AS107,"") ->  | AJ98: =IF(AI98="","",RANK(AI98,AI$5:AI$604,0)+COUNTIF(AI$5:AI98,AI98)-1) ->  | AN98: =IF('ENTRY-NILAI'!$L107="A",'ENTRY-NILAI'!$BD107,"") ->  | AO98: =IF('ENTRY-NILAI'!$L107="A",'ENTRY-NILAI'!$BC107,"") ->  | AV98: =IF(AU98="","",RANK(AU98,AU$5:AU$604,0)+COUNTIF(AU$5:AU98,AU98)-1) ->  | AZ98: =IF('ENTRY-NILAI'!$L107="A",'ENTRY-NILAI'!$BN107,"") ->  | BA98: =IF('ENTRY-NILAI'!$L107="A",'ENTRY-NILAI'!$BM107,"") ->  | BH98: =IF(BG98="","",RANK(BG98,BG$5:BG$604,0)+COUNTIF(BG$5:BG98,BG98)-1) ->  | BL98: =IF('ENTRY-NILAI'!$L107="A",'ENTRY-NILAI'!$BX107,"") ->  | BM98: =IF('ENTRY-NILAI'!$L107="A",'ENTRY-NILAI'!$BW107,"") ->  | BT98: =IF(BS98="","",RANK(BS98,BS$5:BS$604,0)+COUNTIF(BS$5:BS98,BS98)-1) ->  | BY98: =IF('ENTRY-NILAI'!$L107="a",'ENTRY-NILAI'!FG107,"") ->  | BZ98: =IF('ENTRY-NILAI'!$L107="a",'ENTRY-NILAI'!AC107,"") ->  | CA98: =IF('ENTRY-NILAI'!$L107="a",'ENTRY-NILAI'!AM107,"") ->  | CB98: =IF('ENTRY-NILAI'!$L107="a",'ENTRY-NILAI'!AU107,"") ->  | CC98: =IF('ENTRY-NILAI'!$L107="a",'ENTRY-NILAI'!BE107,"") ->  | CD98: =IF('ENTRY-NILAI'!$L107="a",'ENTRY-NILAI'!BO107,"") ->  | CE98: =IF('ENTRY-NILAI'!$L107="a",'ENTRY-NILAI'!BY107,"") ->  | CF98: 94 | CG98: =IF('ENTRY-NILAI'!$L107="a",'ENTRY-NILAI'!AB107+'ENTRY-NILAI'!AL107+'ENTRY-NILAI'!AT107+'ENTRY-NILAI'!BD107+'ENTRY-NILAI'!BN107+'ENTRY-NILAI'!BX107,"") ->  | CO98: =IF(CN98="","",RANK(CN98,CN$5:CN$604,0)+COUNTIF(CN$5:CN98,CN98)-1) -> 
B99: 95 | C99: =IF('ENTRY-NILAI'!L108="A",'ENTRY-NILAI'!A108,"") ->  | D99: =IF('ENTRY-NILAI'!$L108="A",'ENTRY-NILAI'!AB108,"") ->  | E99: =IF('ENTRY-NILAI'!$L108="A",'ENTRY-NILAI'!AA108,"") ->  | L99: =IF(K99="","",RANK(K99,K$5:K$604,0)+COUNTIF(K$5:K99,K99)-1) ->  | P99: =IF('ENTRY-NILAI'!$L108="A",'ENTRY-NILAI'!$AL108,"") ->  | Q99: =IF('ENTRY-NILAI'!$L108="A",'ENTRY-NILAI'!$AK108,"") ->  | X99: =IF(W99="","",RANK(W99,W$5:W$604,0)+COUNTIF(W$5:W99,W99)-1) ->  | AB99: =IF('ENTRY-NILAI'!$L108="A",'ENTRY-NILAI'!$AT108,"") ->  | AC99: =IF('ENTRY-NILAI'!$L108="A",'ENTRY-NILAI'!$AS108,"") ->  | AJ99: =IF(AI99="","",RANK(AI99,AI$5:AI$604,0)+COUNTIF(AI$5:AI99,AI99)-1) ->  | AN99: =IF('ENTRY-NILAI'!$L108="A",'ENTRY-NILAI'!$BD108,"") ->  | AO99: =IF('ENTRY-NILAI'!$L108="A",'ENTRY-NILAI'!$BC108,"") ->  | AV99: =IF(AU99="","",RANK(AU99,AU$5:AU$604,0)+COUNTIF(AU$5:AU99,AU99)-1) ->  | AZ99: =IF('ENTRY-NILAI'!$L108="A",'ENTRY-NILAI'!$BN108,"") ->  | BA99: =IF('ENTRY-NILAI'!$L108="A",'ENTRY-NILAI'!$BM108,"") ->  | BH99: =IF(BG99="","",RANK(BG99,BG$5:BG$604,0)+COUNTIF(BG$5:BG99,BG99)-1) ->  | BL99: =IF('ENTRY-NILAI'!$L108="A",'ENTRY-NILAI'!$BX108,"") ->  | BM99: =IF('ENTRY-NILAI'!$L108="A",'ENTRY-NILAI'!$BW108,"") ->  | BT99: =IF(BS99="","",RANK(BS99,BS$5:BS$604,0)+COUNTIF(BS$5:BS99,BS99)-1) ->  | BY99: =IF('ENTRY-NILAI'!$L108="a",'ENTRY-NILAI'!FG108,"") ->  | BZ99: =IF('ENTRY-NILAI'!$L108="a",'ENTRY-NILAI'!AC108,"") ->  | CA99: =IF('ENTRY-NILAI'!$L108="a",'ENTRY-NILAI'!AM108,"") ->  | CB99: =IF('ENTRY-NILAI'!$L108="a",'ENTRY-NILAI'!AU108,"") ->  | CC99: =IF('ENTRY-NILAI'!$L108="a",'ENTRY-NILAI'!BE108,"") ->  | CD99: =IF('ENTRY-NILAI'!$L108="a",'ENTRY-NILAI'!BO108,"") ->  | CE99: =IF('ENTRY-NILAI'!$L108="a",'ENTRY-NILAI'!BY108,"") ->  | CF99: 95 | CG99: =IF('ENTRY-NILAI'!$L108="a",'ENTRY-NILAI'!AB108+'ENTRY-NILAI'!AL108+'ENTRY-NILAI'!AT108+'ENTRY-NILAI'!BD108+'ENTRY-NILAI'!BN108+'ENTRY-NILAI'!BX108,"") ->  | CO99: =IF(CN99="","",RANK(CN99,CN$5:CN$604,0)+COUNTIF(CN$5:CN99,CN99)-1) -> 
B100: 96 | C100: =IF('ENTRY-NILAI'!L109="A",'ENTRY-NILAI'!A109,"") ->  | D100: =IF('ENTRY-NILAI'!$L109="A",'ENTRY-NILAI'!AB109,"") ->  | E100: =IF('ENTRY-NILAI'!$L109="A",'ENTRY-NILAI'!AA109,"") ->  | L100: =IF(K100="","",RANK(K100,K$5:K$604,0)+COUNTIF(K$5:K100,K100)-1) ->  | P100: =IF('ENTRY-NILAI'!$L109="A",'ENTRY-NILAI'!$AL109,"") ->  | Q100: =IF('ENTRY-NILAI'!$L109="A",'ENTRY-NILAI'!$AK109,"") ->  | X100: =IF(W100="","",RANK(W100,W$5:W$604,0)+COUNTIF(W$5:W100,W100)-1) ->  | AB100: =IF('ENTRY-NILAI'!$L109="A",'ENTRY-NILAI'!$AT109,"") ->  | AC100: =IF('ENTRY-NILAI'!$L109="A",'ENTRY-NILAI'!$AS109,"") ->  | AJ100: =IF(AI100="","",RANK(AI100,AI$5:AI$604,0)+COUNTIF(AI$5:AI100,AI100)-1) ->  | AN100: =IF('ENTRY-NILAI'!$L109="A",'ENTRY-NILAI'!$BD109,"") ->  | AO100: =IF('ENTRY-NILAI'!$L109="A",'ENTRY-NILAI'!$BC109,"") ->  | AV100: =IF(AU100="","",RANK(AU100,AU$5:AU$604,0)+COUNTIF(AU$5:AU100,AU100)-1) ->  | AZ100: =IF('ENTRY-NILAI'!$L109="A",'ENTRY-NILAI'!$BN109,"") ->  | BA100: =IF('ENTRY-NILAI'!$L109="A",'ENTRY-NILAI'!$BM109,"") ->  | BH100: =IF(BG100="","",RANK(BG100,BG$5:BG$604,0)+COUNTIF(BG$5:BG100,BG100)-1) ->  | BL100: =IF('ENTRY-NILAI'!$L109="A",'ENTRY-NILAI'!$BX109,"") ->  | BM100: =IF('ENTRY-NILAI'!$L109="A",'ENTRY-NILAI'!$BW109,"") ->  | BT100: =IF(BS100="","",RANK(BS100,BS$5:BS$604,0)+COUNTIF(BS$5:BS100,BS100)-1) ->  | BY100: =IF('ENTRY-NILAI'!$L109="a",'ENTRY-NILAI'!FG109,"") ->  | BZ100: =IF('ENTRY-NILAI'!$L109="a",'ENTRY-NILAI'!AC109,"") ->  | CA100: =IF('ENTRY-NILAI'!$L109="a",'ENTRY-NILAI'!AM109,"") ->  | CB100: =IF('ENTRY-NILAI'!$L109="a",'ENTRY-NILAI'!AU109,"") ->  | CC100: =IF('ENTRY-NILAI'!$L109="a",'ENTRY-NILAI'!BE109,"") ->  | CD100: =IF('ENTRY-NILAI'!$L109="a",'ENTRY-NILAI'!BO109,"") ->  | CE100: =IF('ENTRY-NILAI'!$L109="a",'ENTRY-NILAI'!BY109,"") ->  | CF100: 96 | CG100: =IF('ENTRY-NILAI'!$L109="a",'ENTRY-NILAI'!AB109+'ENTRY-NILAI'!AL109+'ENTRY-NILAI'!AT109+'ENTRY-NILAI'!BD109+'ENTRY-NILAI'!BN109+'ENTRY-NILAI'!BX109,"") ->  | CO100: =IF(CN100="","",RANK(CN100,CN$5:CN$604,0)+COUNTIF(CN$5:CN100,CN100)-1) -> 
B101: 97 | C101: =IF('ENTRY-NILAI'!L110="A",'ENTRY-NILAI'!A110,"") ->  | D101: =IF('ENTRY-NILAI'!$L110="A",'ENTRY-NILAI'!AB110,"") ->  | E101: =IF('ENTRY-NILAI'!$L110="A",'ENTRY-NILAI'!AA110,"") ->  | L101: =IF(K101="","",RANK(K101,K$5:K$604,0)+COUNTIF(K$5:K101,K101)-1) ->  | P101: =IF('ENTRY-NILAI'!$L110="A",'ENTRY-NILAI'!$AL110,"") ->  | Q101: =IF('ENTRY-NILAI'!$L110="A",'ENTRY-NILAI'!$AK110,"") ->  | X101: =IF(W101="","",RANK(W101,W$5:W$604,0)+COUNTIF(W$5:W101,W101)-1) ->  | AB101: =IF('ENTRY-NILAI'!$L110="A",'ENTRY-NILAI'!$AT110,"") ->  | AC101: =IF('ENTRY-NILAI'!$L110="A",'ENTRY-NILAI'!$AS110,"") ->  | AJ101: =IF(AI101="","",RANK(AI101,AI$5:AI$604,0)+COUNTIF(AI$5:AI101,AI101)-1) ->  | AN101: =IF('ENTRY-NILAI'!$L110="A",'ENTRY-NILAI'!$BD110,"") ->  | AO101: =IF('ENTRY-NILAI'!$L110="A",'ENTRY-NILAI'!$BC110,"") ->  | AV101: =IF(AU101="","",RANK(AU101,AU$5:AU$604,0)+COUNTIF(AU$5:AU101,AU101)-1) ->  | AZ101: =IF('ENTRY-NILAI'!$L110="A",'ENTRY-NILAI'!$BN110,"") ->  | BA101: =IF('ENTRY-NILAI'!$L110="A",'ENTRY-NILAI'!$BM110,"") ->  | BH101: =IF(BG101="","",RANK(BG101,BG$5:BG$604,0)+COUNTIF(BG$5:BG101,BG101)-1) ->  | BL101: =IF('ENTRY-NILAI'!$L110="A",'ENTRY-NILAI'!$BX110,"") ->  | BM101: =IF('ENTRY-NILAI'!$L110="A",'ENTRY-NILAI'!$BW110,"") ->  | BT101: =IF(BS101="","",RANK(BS101,BS$5:BS$604,0)+COUNTIF(BS$5:BS101,BS101)-1) ->  | BY101: =IF('ENTRY-NILAI'!$L110="a",'ENTRY-NILAI'!FG110,"") ->  | BZ101: =IF('ENTRY-NILAI'!$L110="a",'ENTRY-NILAI'!AC110,"") ->  | CA101: =IF('ENTRY-NILAI'!$L110="a",'ENTRY-NILAI'!AM110,"") ->  | CB101: =IF('ENTRY-NILAI'!$L110="a",'ENTRY-NILAI'!AU110,"") ->  | CC101: =IF('ENTRY-NILAI'!$L110="a",'ENTRY-NILAI'!BE110,"") ->  | CD101: =IF('ENTRY-NILAI'!$L110="a",'ENTRY-NILAI'!BO110,"") ->  | CE101: =IF('ENTRY-NILAI'!$L110="a",'ENTRY-NILAI'!BY110,"") ->  | CF101: 97 | CG101: =IF('ENTRY-NILAI'!$L110="a",'ENTRY-NILAI'!AB110+'ENTRY-NILAI'!AL110+'ENTRY-NILAI'!AT110+'ENTRY-NILAI'!BD110+'ENTRY-NILAI'!BN110+'ENTRY-NILAI'!BX110,"") ->  | CO101: =IF(CN101="","",RANK(CN101,CN$5:CN$604,0)+COUNTIF(CN$5:CN101,CN101)-1) -> 
B102: 98 | C102: =IF('ENTRY-NILAI'!L111="A",'ENTRY-NILAI'!A111,"") ->  | D102: =IF('ENTRY-NILAI'!$L111="A",'ENTRY-NILAI'!AB111,"") ->  | E102: =IF('ENTRY-NILAI'!$L111="A",'ENTRY-NILAI'!AA111,"") ->  | L102: =IF(K102="","",RANK(K102,K$5:K$604,0)+COUNTIF(K$5:K102,K102)-1) ->  | P102: =IF('ENTRY-NILAI'!$L111="A",'ENTRY-NILAI'!$AL111,"") ->  | Q102: =IF('ENTRY-NILAI'!$L111="A",'ENTRY-NILAI'!$AK111,"") ->  | X102: =IF(W102="","",RANK(W102,W$5:W$604,0)+COUNTIF(W$5:W102,W102)-1) ->  | AB102: =IF('ENTRY-NILAI'!$L111="A",'ENTRY-NILAI'!$AT111,"") ->  | AC102: =IF('ENTRY-NILAI'!$L111="A",'ENTRY-NILAI'!$AS111,"") ->  | AJ102: =IF(AI102="","",RANK(AI102,AI$5:AI$604,0)+COUNTIF(AI$5:AI102,AI102)-1) ->  | AN102: =IF('ENTRY-NILAI'!$L111="A",'ENTRY-NILAI'!$BD111,"") ->  | AO102: =IF('ENTRY-NILAI'!$L111="A",'ENTRY-NILAI'!$BC111,"") ->  | AV102: =IF(AU102="","",RANK(AU102,AU$5:AU$604,0)+COUNTIF(AU$5:AU102,AU102)-1) ->  | AZ102: =IF('ENTRY-NILAI'!$L111="A",'ENTRY-NILAI'!$BN111,"") ->  | BA102: =IF('ENTRY-NILAI'!$L111="A",'ENTRY-NILAI'!$BM111,"") ->  | BH102: =IF(BG102="","",RANK(BG102,BG$5:BG$604,0)+COUNTIF(BG$5:BG102,BG102)-1) ->  | BL102: =IF('ENTRY-NILAI'!$L111="A",'ENTRY-NILAI'!$BX111,"") ->  | BM102: =IF('ENTRY-NILAI'!$L111="A",'ENTRY-NILAI'!$BW111,"") ->  | BT102: =IF(BS102="","",RANK(BS102,BS$5:BS$604,0)+COUNTIF(BS$5:BS102,BS102)-1) ->  | BY102: =IF('ENTRY-NILAI'!$L111="a",'ENTRY-NILAI'!FG111,"") ->  | BZ102: =IF('ENTRY-NILAI'!$L111="a",'ENTRY-NILAI'!AC111,"") ->  | CA102: =IF('ENTRY-NILAI'!$L111="a",'ENTRY-NILAI'!AM111,"") ->  | CB102: =IF('ENTRY-NILAI'!$L111="a",'ENTRY-NILAI'!AU111,"") ->  | CC102: =IF('ENTRY-NILAI'!$L111="a",'ENTRY-NILAI'!BE111,"") ->  | CD102: =IF('ENTRY-NILAI'!$L111="a",'ENTRY-NILAI'!BO111,"") ->  | CE102: =IF('ENTRY-NILAI'!$L111="a",'ENTRY-NILAI'!BY111,"") ->  | CF102: 98 | CG102: =IF('ENTRY-NILAI'!$L111="a",'ENTRY-NILAI'!AB111+'ENTRY-NILAI'!AL111+'ENTRY-NILAI'!AT111+'ENTRY-NILAI'!BD111+'ENTRY-NILAI'!BN111+'ENTRY-NILAI'!BX111,"") ->  | CO102: =IF(CN102="","",RANK(CN102,CN$5:CN$604,0)+COUNTIF(CN$5:CN102,CN102)-1) -> 
B103: 99 | C103: =IF('ENTRY-NILAI'!L112="A",'ENTRY-NILAI'!A112,"") ->  | D103: =IF('ENTRY-NILAI'!$L112="A",'ENTRY-NILAI'!AB112,"") ->  | E103: =IF('ENTRY-NILAI'!$L112="A",'ENTRY-NILAI'!AA112,"") ->  | L103: =IF(K103="","",RANK(K103,K$5:K$604,0)+COUNTIF(K$5:K103,K103)-1) ->  | P103: =IF('ENTRY-NILAI'!$L112="A",'ENTRY-NILAI'!$AL112,"") ->  | Q103: =IF('ENTRY-NILAI'!$L112="A",'ENTRY-NILAI'!$AK112,"") ->  | X103: =IF(W103="","",RANK(W103,W$5:W$604,0)+COUNTIF(W$5:W103,W103)-1) ->  | AB103: =IF('ENTRY-NILAI'!$L112="A",'ENTRY-NILAI'!$AT112,"") ->  | AC103: =IF('ENTRY-NILAI'!$L112="A",'ENTRY-NILAI'!$AS112,"") ->  | AJ103: =IF(AI103="","",RANK(AI103,AI$5:AI$604,0)+COUNTIF(AI$5:AI103,AI103)-1) ->  | AN103: =IF('ENTRY-NILAI'!$L112="A",'ENTRY-NILAI'!$BD112,"") ->  | AO103: =IF('ENTRY-NILAI'!$L112="A",'ENTRY-NILAI'!$BC112,"") ->  | AV103: =IF(AU103="","",RANK(AU103,AU$5:AU$604,0)+COUNTIF(AU$5:AU103,AU103)-1) ->  | AZ103: =IF('ENTRY-NILAI'!$L112="A",'ENTRY-NILAI'!$BN112,"") ->  | BA103: =IF('ENTRY-NILAI'!$L112="A",'ENTRY-NILAI'!$BM112,"") ->  | BH103: =IF(BG103="","",RANK(BG103,BG$5:BG$604,0)+COUNTIF(BG$5:BG103,BG103)-1) ->  | BL103: =IF('ENTRY-NILAI'!$L112="A",'ENTRY-NILAI'!$BX112,"") ->  | BM103: =IF('ENTRY-NILAI'!$L112="A",'ENTRY-NILAI'!$BW112,"") ->  | BT103: =IF(BS103="","",RANK(BS103,BS$5:BS$604,0)+COUNTIF(BS$5:BS103,BS103)-1) ->  | BY103: =IF('ENTRY-NILAI'!$L112="a",'ENTRY-NILAI'!FG112,"") ->  | BZ103: =IF('ENTRY-NILAI'!$L112="a",'ENTRY-NILAI'!AC112,"") ->  | CA103: =IF('ENTRY-NILAI'!$L112="a",'ENTRY-NILAI'!AM112,"") ->  | CB103: =IF('ENTRY-NILAI'!$L112="a",'ENTRY-NILAI'!AU112,"") ->  | CC103: =IF('ENTRY-NILAI'!$L112="a",'ENTRY-NILAI'!BE112,"") ->  | CD103: =IF('ENTRY-NILAI'!$L112="a",'ENTRY-NILAI'!BO112,"") ->  | CE103: =IF('ENTRY-NILAI'!$L112="a",'ENTRY-NILAI'!BY112,"") ->  | CF103: 99 | CG103: =IF('ENTRY-NILAI'!$L112="a",'ENTRY-NILAI'!AB112+'ENTRY-NILAI'!AL112+'ENTRY-NILAI'!AT112+'ENTRY-NILAI'!BD112+'ENTRY-NILAI'!BN112+'ENTRY-NILAI'!BX112,"") ->  | CO103: =IF(CN103="","",RANK(CN103,CN$5:CN$604,0)+COUNTIF(CN$5:CN103,CN103)-1) -> 
B104: 100 | C104: =IF('ENTRY-NILAI'!L113="A",'ENTRY-NILAI'!A113,"") ->  | D104: =IF('ENTRY-NILAI'!$L113="A",'ENTRY-NILAI'!AB113,"") ->  | E104: =IF('ENTRY-NILAI'!$L113="A",'ENTRY-NILAI'!AA113,"") ->  | L104: =IF(K104="","",RANK(K104,K$5:K$604,0)+COUNTIF(K$5:K104,K104)-1) ->  | P104: =IF('ENTRY-NILAI'!$L113="A",'ENTRY-NILAI'!$AL113,"") ->  | Q104: =IF('ENTRY-NILAI'!$L113="A",'ENTRY-NILAI'!$AK113,"") ->  | X104: =IF(W104="","",RANK(W104,W$5:W$604,0)+COUNTIF(W$5:W104,W104)-1) ->  | AB104: =IF('ENTRY-NILAI'!$L113="A",'ENTRY-NILAI'!$AT113,"") ->  | AC104: =IF('ENTRY-NILAI'!$L113="A",'ENTRY-NILAI'!$AS113,"") ->  | AJ104: =IF(AI104="","",RANK(AI104,AI$5:AI$604,0)+COUNTIF(AI$5:AI104,AI104)-1) ->  | AN104: =IF('ENTRY-NILAI'!$L113="A",'ENTRY-NILAI'!$BD113,"") ->  | AO104: =IF('ENTRY-NILAI'!$L113="A",'ENTRY-NILAI'!$BC113,"") ->  | AV104: =IF(AU104="","",RANK(AU104,AU$5:AU$604,0)+COUNTIF(AU$5:AU104,AU104)-1) ->  | AZ104: =IF('ENTRY-NILAI'!$L113="A",'ENTRY-NILAI'!$BN113,"") ->  | BA104: =IF('ENTRY-NILAI'!$L113="A",'ENTRY-NILAI'!$BM113,"") ->  | BH104: =IF(BG104="","",RANK(BG104,BG$5:BG$604,0)+COUNTIF(BG$5:BG104,BG104)-1) ->  | BL104: =IF('ENTRY-NILAI'!$L113="A",'ENTRY-NILAI'!$BX113,"") ->  | BM104: =IF('ENTRY-NILAI'!$L113="A",'ENTRY-NILAI'!$BW113,"") ->  | BT104: =IF(BS104="","",RANK(BS104,BS$5:BS$604,0)+COUNTIF(BS$5:BS104,BS104)-1) ->  | BY104: =IF('ENTRY-NILAI'!$L113="a",'ENTRY-NILAI'!FG113,"") ->  | BZ104: =IF('ENTRY-NILAI'!$L113="a",'ENTRY-NILAI'!AC113,"") ->  | CA104: =IF('ENTRY-NILAI'!$L113="a",'ENTRY-NILAI'!AM113,"") ->  | CB104: =IF('ENTRY-NILAI'!$L113="a",'ENTRY-NILAI'!AU113,"") ->  | CC104: =IF('ENTRY-NILAI'!$L113="a",'ENTRY-NILAI'!BE113,"") ->  | CD104: =IF('ENTRY-NILAI'!$L113="a",'ENTRY-NILAI'!BO113,"") ->  | CE104: =IF('ENTRY-NILAI'!$L113="a",'ENTRY-NILAI'!BY113,"") ->  | CF104: 100 | CG104: =IF('ENTRY-NILAI'!$L113="a",'ENTRY-NILAI'!AB113+'ENTRY-NILAI'!AL113+'ENTRY-NILAI'!AT113+'ENTRY-NILAI'!BD113+'ENTRY-NILAI'!BN113+'ENTRY-NILAI'!BX113,"") ->  | CO104: =IF(CN104="","",RANK(CN104,CN$5:CN$604,0)+COUNTIF(CN$5:CN104,CN104)-1) -> 
B105: 101 | C105: =IF('ENTRY-NILAI'!L114="A",'ENTRY-NILAI'!A114,"") ->  | D105: =IF('ENTRY-NILAI'!$L114="A",'ENTRY-NILAI'!AB114,"") ->  | E105: =IF('ENTRY-NILAI'!$L114="A",'ENTRY-NILAI'!AA114,"") ->  | L105: =IF(K105="","",RANK(K105,K$5:K$604,0)+COUNTIF(K$5:K105,K105)-1) ->  | P105: =IF('ENTRY-NILAI'!$L114="A",'ENTRY-NILAI'!$AL114,"") ->  | Q105: =IF('ENTRY-NILAI'!$L114="A",'ENTRY-NILAI'!$AK114,"") ->  | X105: =IF(W105="","",RANK(W105,W$5:W$604,0)+COUNTIF(W$5:W105,W105)-1) ->  | AB105: =IF('ENTRY-NILAI'!$L114="A",'ENTRY-NILAI'!$AT114,"") ->  | AC105: =IF('ENTRY-NILAI'!$L114="A",'ENTRY-NILAI'!$AS114,"") ->  | AJ105: =IF(AI105="","",RANK(AI105,AI$5:AI$604,0)+COUNTIF(AI$5:AI105,AI105)-1) ->  | AN105: =IF('ENTRY-NILAI'!$L114="A",'ENTRY-NILAI'!$BD114,"") ->  | AO105: =IF('ENTRY-NILAI'!$L114="A",'ENTRY-NILAI'!$BC114,"") ->  | AV105: =IF(AU105="","",RANK(AU105,AU$5:AU$604,0)+COUNTIF(AU$5:AU105,AU105)-1) ->  | AZ105: =IF('ENTRY-NILAI'!$L114="A",'ENTRY-NILAI'!$BN114,"") ->  | BA105: =IF('ENTRY-NILAI'!$L114="A",'ENTRY-NILAI'!$BM114,"") ->  | BH105: =IF(BG105="","",RANK(BG105,BG$5:BG$604,0)+COUNTIF(BG$5:BG105,BG105)-1) ->  | BL105: =IF('ENTRY-NILAI'!$L114="A",'ENTRY-NILAI'!$BX114,"") ->  | BM105: =IF('ENTRY-NILAI'!$L114="A",'ENTRY-NILAI'!$BW114,"") ->  | BT105: =IF(BS105="","",RANK(BS105,BS$5:BS$604,0)+COUNTIF(BS$5:BS105,BS105)-1) ->  | BY105: =IF('ENTRY-NILAI'!$L114="a",'ENTRY-NILAI'!FG114,"") ->  | BZ105: =IF('ENTRY-NILAI'!$L114="a",'ENTRY-NILAI'!AC114,"") ->  | CA105: =IF('ENTRY-NILAI'!$L114="a",'ENTRY-NILAI'!AM114,"") ->  | CB105: =IF('ENTRY-NILAI'!$L114="a",'ENTRY-NILAI'!AU114,"") ->  | CC105: =IF('ENTRY-NILAI'!$L114="a",'ENTRY-NILAI'!BE114,"") ->  | CD105: =IF('ENTRY-NILAI'!$L114="a",'ENTRY-NILAI'!BO114,"") ->  | CE105: =IF('ENTRY-NILAI'!$L114="a",'ENTRY-NILAI'!BY114,"") ->  | CF105: 101 | CG105: =IF('ENTRY-NILAI'!$L114="a",'ENTRY-NILAI'!AB114+'ENTRY-NILAI'!AL114+'ENTRY-NILAI'!AT114+'ENTRY-NILAI'!BD114+'ENTRY-NILAI'!BN114+'ENTRY-NILAI'!BX114,"") ->  | CO105: =IF(CN105="","",RANK(CN105,CN$5:CN$604,0)+COUNTIF(CN$5:CN105,CN105)-1) -> 
B106: 102 | C106: =IF('ENTRY-NILAI'!L115="A",'ENTRY-NILAI'!A115,"") ->  | D106: =IF('ENTRY-NILAI'!$L115="A",'ENTRY-NILAI'!AB115,"") ->  | E106: =IF('ENTRY-NILAI'!$L115="A",'ENTRY-NILAI'!AA115,"") ->  | L106: =IF(K106="","",RANK(K106,K$5:K$604,0)+COUNTIF(K$5:K106,K106)-1) ->  | P106: =IF('ENTRY-NILAI'!$L115="A",'ENTRY-NILAI'!$AL115,"") ->  | Q106: =IF('ENTRY-NILAI'!$L115="A",'ENTRY-NILAI'!$AK115,"") ->  | X106: =IF(W106="","",RANK(W106,W$5:W$604,0)+COUNTIF(W$5:W106,W106)-1) ->  | AB106: =IF('ENTRY-NILAI'!$L115="A",'ENTRY-NILAI'!$AT115,"") ->  | AC106: =IF('ENTRY-NILAI'!$L115="A",'ENTRY-NILAI'!$AS115,"") ->  | AJ106: =IF(AI106="","",RANK(AI106,AI$5:AI$604,0)+COUNTIF(AI$5:AI106,AI106)-1) ->  | AN106: =IF('ENTRY-NILAI'!$L115="A",'ENTRY-NILAI'!$BD115,"") ->  | AO106: =IF('ENTRY-NILAI'!$L115="A",'ENTRY-NILAI'!$BC115,"") ->  | AV106: =IF(AU106="","",RANK(AU106,AU$5:AU$604,0)+COUNTIF(AU$5:AU106,AU106)-1) ->  | AZ106: =IF('ENTRY-NILAI'!$L115="A",'ENTRY-NILAI'!$BN115,"") ->  | BA106: =IF('ENTRY-NILAI'!$L115="A",'ENTRY-NILAI'!$BM115,"") ->  | BH106: =IF(BG106="","",RANK(BG106,BG$5:BG$604,0)+COUNTIF(BG$5:BG106,BG106)-1) ->  | BL106: =IF('ENTRY-NILAI'!$L115="A",'ENTRY-NILAI'!$BX115,"") ->  | BM106: =IF('ENTRY-NILAI'!$L115="A",'ENTRY-NILAI'!$BW115,"") ->  | BT106: =IF(BS106="","",RANK(BS106,BS$5:BS$604,0)+COUNTIF(BS$5:BS106,BS106)-1) ->  | BY106: =IF('ENTRY-NILAI'!$L115="a",'ENTRY-NILAI'!FG115,"") ->  | BZ106: =IF('ENTRY-NILAI'!$L115="a",'ENTRY-NILAI'!AC115,"") ->  | CA106: =IF('ENTRY-NILAI'!$L115="a",'ENTRY-NILAI'!AM115,"") ->  | CB106: =IF('ENTRY-NILAI'!$L115="a",'ENTRY-NILAI'!AU115,"") ->  | CC106: =IF('ENTRY-NILAI'!$L115="a",'ENTRY-NILAI'!BE115,"") ->  | CD106: =IF('ENTRY-NILAI'!$L115="a",'ENTRY-NILAI'!BO115,"") ->  | CE106: =IF('ENTRY-NILAI'!$L115="a",'ENTRY-NILAI'!BY115,"") ->  | CF106: 102 | CG106: =IF('ENTRY-NILAI'!$L115="a",'ENTRY-NILAI'!AB115+'ENTRY-NILAI'!AL115+'ENTRY-NILAI'!AT115+'ENTRY-NILAI'!BD115+'ENTRY-NILAI'!BN115+'ENTRY-NILAI'!BX115,"") ->  | CO106: =IF(CN106="","",RANK(CN106,CN$5:CN$604,0)+COUNTIF(CN$5:CN106,CN106)-1) -> 
B107: 103 | C107: =IF('ENTRY-NILAI'!L116="A",'ENTRY-NILAI'!A116,"") ->  | D107: =IF('ENTRY-NILAI'!$L116="A",'ENTRY-NILAI'!AB116,"") ->  | E107: =IF('ENTRY-NILAI'!$L116="A",'ENTRY-NILAI'!AA116,"") ->  | L107: =IF(K107="","",RANK(K107,K$5:K$604,0)+COUNTIF(K$5:K107,K107)-1) ->  | P107: =IF('ENTRY-NILAI'!$L116="A",'ENTRY-NILAI'!$AL116,"") ->  | Q107: =IF('ENTRY-NILAI'!$L116="A",'ENTRY-NILAI'!$AK116,"") ->  | X107: =IF(W107="","",RANK(W107,W$5:W$604,0)+COUNTIF(W$5:W107,W107)-1) ->  | AB107: =IF('ENTRY-NILAI'!$L116="A",'ENTRY-NILAI'!$AT116,"") ->  | AC107: =IF('ENTRY-NILAI'!$L116="A",'ENTRY-NILAI'!$AS116,"") ->  | AJ107: =IF(AI107="","",RANK(AI107,AI$5:AI$604,0)+COUNTIF(AI$5:AI107,AI107)-1) ->  | AN107: =IF('ENTRY-NILAI'!$L116="A",'ENTRY-NILAI'!$BD116,"") ->  | AO107: =IF('ENTRY-NILAI'!$L116="A",'ENTRY-NILAI'!$BC116,"") ->  | AV107: =IF(AU107="","",RANK(AU107,AU$5:AU$604,0)+COUNTIF(AU$5:AU107,AU107)-1) ->  | AZ107: =IF('ENTRY-NILAI'!$L116="A",'ENTRY-NILAI'!$BN116,"") ->  | BA107: =IF('ENTRY-NILAI'!$L116="A",'ENTRY-NILAI'!$BM116,"") ->  | BH107: =IF(BG107="","",RANK(BG107,BG$5:BG$604,0)+COUNTIF(BG$5:BG107,BG107)-1) ->  | BL107: =IF('ENTRY-NILAI'!$L116="A",'ENTRY-NILAI'!$BX116,"") ->  | BM107: =IF('ENTRY-NILAI'!$L116="A",'ENTRY-NILAI'!$BW116,"") ->  | BT107: =IF(BS107="","",RANK(BS107,BS$5:BS$604,0)+COUNTIF(BS$5:BS107,BS107)-1) ->  | BY107: =IF('ENTRY-NILAI'!$L116="a",'ENTRY-NILAI'!FG116,"") ->  | BZ107: =IF('ENTRY-NILAI'!$L116="a",'ENTRY-NILAI'!AC116,"") ->  | CA107: =IF('ENTRY-NILAI'!$L116="a",'ENTRY-NILAI'!AM116,"") ->  | CB107: =IF('ENTRY-NILAI'!$L116="a",'ENTRY-NILAI'!AU116,"") ->  | CC107: =IF('ENTRY-NILAI'!$L116="a",'ENTRY-NILAI'!BE116,"") ->  | CD107: =IF('ENTRY-NILAI'!$L116="a",'ENTRY-NILAI'!BO116,"") ->  | CE107: =IF('ENTRY-NILAI'!$L116="a",'ENTRY-NILAI'!BY116,"") ->  | CF107: 103 | CG107: =IF('ENTRY-NILAI'!$L116="a",'ENTRY-NILAI'!AB116+'ENTRY-NILAI'!AL116+'ENTRY-NILAI'!AT116+'ENTRY-NILAI'!BD116+'ENTRY-NILAI'!BN116+'ENTRY-NILAI'!BX116,"") ->  | CO107: =IF(CN107="","",RANK(CN107,CN$5:CN$604,0)+COUNTIF(CN$5:CN107,CN107)-1) -> 
B108: 104 | C108: =IF('ENTRY-NILAI'!L117="A",'ENTRY-NILAI'!A117,"") ->  | D108: =IF('ENTRY-NILAI'!$L117="A",'ENTRY-NILAI'!AB117,"") ->  | E108: =IF('ENTRY-NILAI'!$L117="A",'ENTRY-NILAI'!AA117,"") ->  | L108: =IF(K108="","",RANK(K108,K$5:K$604,0)+COUNTIF(K$5:K108,K108)-1) ->  | P108: =IF('ENTRY-NILAI'!$L117="A",'ENTRY-NILAI'!$AL117,"") ->  | Q108: =IF('ENTRY-NILAI'!$L117="A",'ENTRY-NILAI'!$AK117,"") ->  | X108: =IF(W108="","",RANK(W108,W$5:W$604,0)+COUNTIF(W$5:W108,W108)-1) ->  | AB108: =IF('ENTRY-NILAI'!$L117="A",'ENTRY-NILAI'!$AT117,"") ->  | AC108: =IF('ENTRY-NILAI'!$L117="A",'ENTRY-NILAI'!$AS117,"") ->  | AJ108: =IF(AI108="","",RANK(AI108,AI$5:AI$604,0)+COUNTIF(AI$5:AI108,AI108)-1) ->  | AN108: =IF('ENTRY-NILAI'!$L117="A",'ENTRY-NILAI'!$BD117,"") ->  | AO108: =IF('ENTRY-NILAI'!$L117="A",'ENTRY-NILAI'!$BC117,"") ->  | AV108: =IF(AU108="","",RANK(AU108,AU$5:AU$604,0)+COUNTIF(AU$5:AU108,AU108)-1) ->  | AZ108: =IF('ENTRY-NILAI'!$L117="A",'ENTRY-NILAI'!$BN117,"") ->  | BA108: =IF('ENTRY-NILAI'!$L117="A",'ENTRY-NILAI'!$BM117,"") ->  | BH108: =IF(BG108="","",RANK(BG108,BG$5:BG$604,0)+COUNTIF(BG$5:BG108,BG108)-1) ->  | BL108: =IF('ENTRY-NILAI'!$L117="A",'ENTRY-NILAI'!$BX117,"") ->  | BM108: =IF('ENTRY-NILAI'!$L117="A",'ENTRY-NILAI'!$BW117,"") ->  | BT108: =IF(BS108="","",RANK(BS108,BS$5:BS$604,0)+COUNTIF(BS$5:BS108,BS108)-1) ->  | BY108: =IF('ENTRY-NILAI'!$L117="a",'ENTRY-NILAI'!FG117,"") ->  | BZ108: =IF('ENTRY-NILAI'!$L117="a",'ENTRY-NILAI'!AC117,"") ->  | CA108: =IF('ENTRY-NILAI'!$L117="a",'ENTRY-NILAI'!AM117,"") ->  | CB108: =IF('ENTRY-NILAI'!$L117="a",'ENTRY-NILAI'!AU117,"") ->  | CC108: =IF('ENTRY-NILAI'!$L117="a",'ENTRY-NILAI'!BE117,"") ->  | CD108: =IF('ENTRY-NILAI'!$L117="a",'ENTRY-NILAI'!BO117,"") ->  | CE108: =IF('ENTRY-NILAI'!$L117="a",'ENTRY-NILAI'!BY117,"") ->  | CF108: 104 | CG108: =IF('ENTRY-NILAI'!$L117="a",'ENTRY-NILAI'!AB117+'ENTRY-NILAI'!AL117+'ENTRY-NILAI'!AT117+'ENTRY-NILAI'!BD117+'ENTRY-NILAI'!BN117+'ENTRY-NILAI'!BX117,"") ->  | CO108: =IF(CN108="","",RANK(CN108,CN$5:CN$604,0)+COUNTIF(CN$5:CN108,CN108)-1) -> 
B109: 105 | C109: =IF('ENTRY-NILAI'!L118="A",'ENTRY-NILAI'!A118,"") ->  | D109: =IF('ENTRY-NILAI'!$L118="A",'ENTRY-NILAI'!AB118,"") ->  | E109: =IF('ENTRY-NILAI'!$L118="A",'ENTRY-NILAI'!AA118,"") ->  | L109: =IF(K109="","",RANK(K109,K$5:K$604,0)+COUNTIF(K$5:K109,K109)-1) ->  | P109: =IF('ENTRY-NILAI'!$L118="A",'ENTRY-NILAI'!$AL118,"") ->  | Q109: =IF('ENTRY-NILAI'!$L118="A",'ENTRY-NILAI'!$AK118,"") ->  | X109: =IF(W109="","",RANK(W109,W$5:W$604,0)+COUNTIF(W$5:W109,W109)-1) ->  | AB109: =IF('ENTRY-NILAI'!$L118="A",'ENTRY-NILAI'!$AT118,"") ->  | AC109: =IF('ENTRY-NILAI'!$L118="A",'ENTRY-NILAI'!$AS118,"") ->  | AJ109: =IF(AI109="","",RANK(AI109,AI$5:AI$604,0)+COUNTIF(AI$5:AI109,AI109)-1) ->  | AN109: =IF('ENTRY-NILAI'!$L118="A",'ENTRY-NILAI'!$BD118,"") ->  | AO109: =IF('ENTRY-NILAI'!$L118="A",'ENTRY-NILAI'!$BC118,"") ->  | AV109: =IF(AU109="","",RANK(AU109,AU$5:AU$604,0)+COUNTIF(AU$5:AU109,AU109)-1) ->  | AZ109: =IF('ENTRY-NILAI'!$L118="A",'ENTRY-NILAI'!$BN118,"") ->  | BA109: =IF('ENTRY-NILAI'!$L118="A",'ENTRY-NILAI'!$BM118,"") ->  | BH109: =IF(BG109="","",RANK(BG109,BG$5:BG$604,0)+COUNTIF(BG$5:BG109,BG109)-1) ->  | BL109: =IF('ENTRY-NILAI'!$L118="A",'ENTRY-NILAI'!$BX118,"") ->  | BM109: =IF('ENTRY-NILAI'!$L118="A",'ENTRY-NILAI'!$BW118,"") ->  | BT109: =IF(BS109="","",RANK(BS109,BS$5:BS$604,0)+COUNTIF(BS$5:BS109,BS109)-1) ->  | BY109: =IF('ENTRY-NILAI'!$L118="a",'ENTRY-NILAI'!FG118,"") ->  | BZ109: =IF('ENTRY-NILAI'!$L118="a",'ENTRY-NILAI'!AC118,"") ->  | CA109: =IF('ENTRY-NILAI'!$L118="a",'ENTRY-NILAI'!AM118,"") ->  | CB109: =IF('ENTRY-NILAI'!$L118="a",'ENTRY-NILAI'!AU118,"") ->  | CC109: =IF('ENTRY-NILAI'!$L118="a",'ENTRY-NILAI'!BE118,"") ->  | CD109: =IF('ENTRY-NILAI'!$L118="a",'ENTRY-NILAI'!BO118,"") ->  | CE109: =IF('ENTRY-NILAI'!$L118="a",'ENTRY-NILAI'!BY118,"") ->  | CF109: 105 | CG109: =IF('ENTRY-NILAI'!$L118="a",'ENTRY-NILAI'!AB118+'ENTRY-NILAI'!AL118+'ENTRY-NILAI'!AT118+'ENTRY-NILAI'!BD118+'ENTRY-NILAI'!BN118+'ENTRY-NILAI'!BX118,"") ->  | CO109: =IF(CN109="","",RANK(CN109,CN$5:CN$604,0)+COUNTIF(CN$5:CN109,CN109)-1) -> 
B110: 106 | C110: =IF('ENTRY-NILAI'!L119="A",'ENTRY-NILAI'!A119,"") ->  | D110: =IF('ENTRY-NILAI'!$L119="A",'ENTRY-NILAI'!AB119,"") ->  | E110: =IF('ENTRY-NILAI'!$L119="A",'ENTRY-NILAI'!AA119,"") ->  | L110: =IF(K110="","",RANK(K110,K$5:K$604,0)+COUNTIF(K$5:K110,K110)-1) ->  | P110: =IF('ENTRY-NILAI'!$L119="A",'ENTRY-NILAI'!$AL119,"") ->  | Q110: =IF('ENTRY-NILAI'!$L119="A",'ENTRY-NILAI'!$AK119,"") ->  | X110: =IF(W110="","",RANK(W110,W$5:W$604,0)+COUNTIF(W$5:W110,W110)-1) ->  | AB110: =IF('ENTRY-NILAI'!$L119="A",'ENTRY-NILAI'!$AT119,"") ->  | AC110: =IF('ENTRY-NILAI'!$L119="A",'ENTRY-NILAI'!$AS119,"") ->  | AJ110: =IF(AI110="","",RANK(AI110,AI$5:AI$604,0)+COUNTIF(AI$5:AI110,AI110)-1) ->  | AN110: =IF('ENTRY-NILAI'!$L119="A",'ENTRY-NILAI'!$BD119,"") ->  | AO110: =IF('ENTRY-NILAI'!$L119="A",'ENTRY-NILAI'!$BC119,"") ->  | AV110: =IF(AU110="","",RANK(AU110,AU$5:AU$604,0)+COUNTIF(AU$5:AU110,AU110)-1) ->  | AZ110: =IF('ENTRY-NILAI'!$L119="A",'ENTRY-NILAI'!$BN119,"") ->  | BA110: =IF('ENTRY-NILAI'!$L119="A",'ENTRY-NILAI'!$BM119,"") ->  | BH110: =IF(BG110="","",RANK(BG110,BG$5:BG$604,0)+COUNTIF(BG$5:BG110,BG110)-1) ->  | BL110: =IF('ENTRY-NILAI'!$L119="A",'ENTRY-NILAI'!$BX119,"") ->  | BM110: =IF('ENTRY-NILAI'!$L119="A",'ENTRY-NILAI'!$BW119,"") ->  | BT110: =IF(BS110="","",RANK(BS110,BS$5:BS$604,0)+COUNTIF(BS$5:BS110,BS110)-1) ->  | BY110: =IF('ENTRY-NILAI'!$L119="a",'ENTRY-NILAI'!FG119,"") ->  | BZ110: =IF('ENTRY-NILAI'!$L119="a",'ENTRY-NILAI'!AC119,"") ->  | CA110: =IF('ENTRY-NILAI'!$L119="a",'ENTRY-NILAI'!AM119,"") ->  | CB110: =IF('ENTRY-NILAI'!$L119="a",'ENTRY-NILAI'!AU119,"") ->  | CC110: =IF('ENTRY-NILAI'!$L119="a",'ENTRY-NILAI'!BE119,"") ->  | CD110: =IF('ENTRY-NILAI'!$L119="a",'ENTRY-NILAI'!BO119,"") ->  | CE110: =IF('ENTRY-NILAI'!$L119="a",'ENTRY-NILAI'!BY119,"") ->  | CF110: 106 | CG110: =IF('ENTRY-NILAI'!$L119="a",'ENTRY-NILAI'!AB119+'ENTRY-NILAI'!AL119+'ENTRY-NILAI'!AT119+'ENTRY-NILAI'!BD119+'ENTRY-NILAI'!BN119+'ENTRY-NILAI'!BX119,"") ->  | CO110: =IF(CN110="","",RANK(CN110,CN$5:CN$604,0)+COUNTIF(CN$5:CN110,CN110)-1) -> 
B111: 107 | C111: =IF('ENTRY-NILAI'!L120="A",'ENTRY-NILAI'!A120,"") ->  | D111: =IF('ENTRY-NILAI'!$L120="A",'ENTRY-NILAI'!AB120,"") ->  | E111: =IF('ENTRY-NILAI'!$L120="A",'ENTRY-NILAI'!AA120,"") ->  | L111: =IF(K111="","",RANK(K111,K$5:K$604,0)+COUNTIF(K$5:K111,K111)-1) ->  | P111: =IF('ENTRY-NILAI'!$L120="A",'ENTRY-NILAI'!$AL120,"") ->  | Q111: =IF('ENTRY-NILAI'!$L120="A",'ENTRY-NILAI'!$AK120,"") ->  | X111: =IF(W111="","",RANK(W111,W$5:W$604,0)+COUNTIF(W$5:W111,W111)-1) ->  | AB111: =IF('ENTRY-NILAI'!$L120="A",'ENTRY-NILAI'!$AT120,"") ->  | AC111: =IF('ENTRY-NILAI'!$L120="A",'ENTRY-NILAI'!$AS120,"") ->  | AJ111: =IF(AI111="","",RANK(AI111,AI$5:AI$604,0)+COUNTIF(AI$5:AI111,AI111)-1) ->  | AN111: =IF('ENTRY-NILAI'!$L120="A",'ENTRY-NILAI'!$BD120,"") ->  | AO111: =IF('ENTRY-NILAI'!$L120="A",'ENTRY-NILAI'!$BC120,"") ->  | AV111: =IF(AU111="","",RANK(AU111,AU$5:AU$604,0)+COUNTIF(AU$5:AU111,AU111)-1) ->  | AZ111: =IF('ENTRY-NILAI'!$L120="A",'ENTRY-NILAI'!$BN120,"") ->  | BA111: =IF('ENTRY-NILAI'!$L120="A",'ENTRY-NILAI'!$BM120,"") ->  | BH111: =IF(BG111="","",RANK(BG111,BG$5:BG$604,0)+COUNTIF(BG$5:BG111,BG111)-1) ->  | BL111: =IF('ENTRY-NILAI'!$L120="A",'ENTRY-NILAI'!$BX120,"") ->  | BM111: =IF('ENTRY-NILAI'!$L120="A",'ENTRY-NILAI'!$BW120,"") ->  | BT111: =IF(BS111="","",RANK(BS111,BS$5:BS$604,0)+COUNTIF(BS$5:BS111,BS111)-1) ->  | BY111: =IF('ENTRY-NILAI'!$L120="a",'ENTRY-NILAI'!FG120,"") ->  | BZ111: =IF('ENTRY-NILAI'!$L120="a",'ENTRY-NILAI'!AC120,"") ->  | CA111: =IF('ENTRY-NILAI'!$L120="a",'ENTRY-NILAI'!AM120,"") ->  | CB111: =IF('ENTRY-NILAI'!$L120="a",'ENTRY-NILAI'!AU120,"") ->  | CC111: =IF('ENTRY-NILAI'!$L120="a",'ENTRY-NILAI'!BE120,"") ->  | CD111: =IF('ENTRY-NILAI'!$L120="a",'ENTRY-NILAI'!BO120,"") ->  | CE111: =IF('ENTRY-NILAI'!$L120="a",'ENTRY-NILAI'!BY120,"") ->  | CF111: 107 | CG111: =IF('ENTRY-NILAI'!$L120="a",'ENTRY-NILAI'!AB120+'ENTRY-NILAI'!AL120+'ENTRY-NILAI'!AT120+'ENTRY-NILAI'!BD120+'ENTRY-NILAI'!BN120+'ENTRY-NILAI'!BX120,"") ->  | CO111: =IF(CN111="","",RANK(CN111,CN$5:CN$604,0)+COUNTIF(CN$5:CN111,CN111)-1) -> 
B112: 108 | C112: =IF('ENTRY-NILAI'!L121="A",'ENTRY-NILAI'!A121,"") ->  | D112: =IF('ENTRY-NILAI'!$L121="A",'ENTRY-NILAI'!AB121,"") ->  | E112: =IF('ENTRY-NILAI'!$L121="A",'ENTRY-NILAI'!AA121,"") ->  | L112: =IF(K112="","",RANK(K112,K$5:K$604,0)+COUNTIF(K$5:K112,K112)-1) ->  | P112: =IF('ENTRY-NILAI'!$L121="A",'ENTRY-NILAI'!$AL121,"") ->  | Q112: =IF('ENTRY-NILAI'!$L121="A",'ENTRY-NILAI'!$AK121,"") ->  | X112: =IF(W112="","",RANK(W112,W$5:W$604,0)+COUNTIF(W$5:W112,W112)-1) ->  | AB112: =IF('ENTRY-NILAI'!$L121="A",'ENTRY-NILAI'!$AT121,"") ->  | AC112: =IF('ENTRY-NILAI'!$L121="A",'ENTRY-NILAI'!$AS121,"") ->  | AJ112: =IF(AI112="","",RANK(AI112,AI$5:AI$604,0)+COUNTIF(AI$5:AI112,AI112)-1) ->  | AN112: =IF('ENTRY-NILAI'!$L121="A",'ENTRY-NILAI'!$BD121,"") ->  | AO112: =IF('ENTRY-NILAI'!$L121="A",'ENTRY-NILAI'!$BC121,"") ->  | AV112: =IF(AU112="","",RANK(AU112,AU$5:AU$604,0)+COUNTIF(AU$5:AU112,AU112)-1) ->  | AZ112: =IF('ENTRY-NILAI'!$L121="A",'ENTRY-NILAI'!$BN121,"") ->  | BA112: =IF('ENTRY-NILAI'!$L121="A",'ENTRY-NILAI'!$BM121,"") ->  | BH112: =IF(BG112="","",RANK(BG112,BG$5:BG$604,0)+COUNTIF(BG$5:BG112,BG112)-1) ->  | BL112: =IF('ENTRY-NILAI'!$L121="A",'ENTRY-NILAI'!$BX121,"") ->  | BM112: =IF('ENTRY-NILAI'!$L121="A",'ENTRY-NILAI'!$BW121,"") ->  | BT112: =IF(BS112="","",RANK(BS112,BS$5:BS$604,0)+COUNTIF(BS$5:BS112,BS112)-1) ->  | BY112: =IF('ENTRY-NILAI'!$L121="a",'ENTRY-NILAI'!FG121,"") ->  | BZ112: =IF('ENTRY-NILAI'!$L121="a",'ENTRY-NILAI'!AC121,"") ->  | CA112: =IF('ENTRY-NILAI'!$L121="a",'ENTRY-NILAI'!AM121,"") ->  | CB112: =IF('ENTRY-NILAI'!$L121="a",'ENTRY-NILAI'!AU121,"") ->  | CC112: =IF('ENTRY-NILAI'!$L121="a",'ENTRY-NILAI'!BE121,"") ->  | CD112: =IF('ENTRY-NILAI'!$L121="a",'ENTRY-NILAI'!BO121,"") ->  | CE112: =IF('ENTRY-NILAI'!$L121="a",'ENTRY-NILAI'!BY121,"") ->  | CF112: 108 | CG112: =IF('ENTRY-NILAI'!$L121="a",'ENTRY-NILAI'!AB121+'ENTRY-NILAI'!AL121+'ENTRY-NILAI'!AT121+'ENTRY-NILAI'!BD121+'ENTRY-NILAI'!BN121+'ENTRY-NILAI'!BX121,"") ->  | CO112: =IF(CN112="","",RANK(CN112,CN$5:CN$604,0)+COUNTIF(CN$5:CN112,CN112)-1) -> 
B113: 109 | C113: =IF('ENTRY-NILAI'!L122="A",'ENTRY-NILAI'!A122,"") ->  | D113: =IF('ENTRY-NILAI'!$L122="A",'ENTRY-NILAI'!AB122,"") ->  | E113: =IF('ENTRY-NILAI'!$L122="A",'ENTRY-NILAI'!AA122,"") ->  | L113: =IF(K113="","",RANK(K113,K$5:K$604,0)+COUNTIF(K$5:K113,K113)-1) ->  | P113: =IF('ENTRY-NILAI'!$L122="A",'ENTRY-NILAI'!$AL122,"") ->  | Q113: =IF('ENTRY-NILAI'!$L122="A",'ENTRY-NILAI'!$AK122,"") ->  | X113: =IF(W113="","",RANK(W113,W$5:W$604,0)+COUNTIF(W$5:W113,W113)-1) ->  | AB113: =IF('ENTRY-NILAI'!$L122="A",'ENTRY-NILAI'!$AT122,"") ->  | AC113: =IF('ENTRY-NILAI'!$L122="A",'ENTRY-NILAI'!$AS122,"") ->  | AJ113: =IF(AI113="","",RANK(AI113,AI$5:AI$604,0)+COUNTIF(AI$5:AI113,AI113)-1) ->  | AN113: =IF('ENTRY-NILAI'!$L122="A",'ENTRY-NILAI'!$BD122,"") ->  | AO113: =IF('ENTRY-NILAI'!$L122="A",'ENTRY-NILAI'!$BC122,"") ->  | AV113: =IF(AU113="","",RANK(AU113,AU$5:AU$604,0)+COUNTIF(AU$5:AU113,AU113)-1) ->  | AZ113: =IF('ENTRY-NILAI'!$L122="A",'ENTRY-NILAI'!$BN122,"") ->  | BA113: =IF('ENTRY-NILAI'!$L122="A",'ENTRY-NILAI'!$BM122,"") ->  | BH113: =IF(BG113="","",RANK(BG113,BG$5:BG$604,0)+COUNTIF(BG$5:BG113,BG113)-1) ->  | BL113: =IF('ENTRY-NILAI'!$L122="A",'ENTRY-NILAI'!$BX122,"") ->  | BM113: =IF('ENTRY-NILAI'!$L122="A",'ENTRY-NILAI'!$BW122,"") ->  | BT113: =IF(BS113="","",RANK(BS113,BS$5:BS$604,0)+COUNTIF(BS$5:BS113,BS113)-1) ->  | BY113: =IF('ENTRY-NILAI'!$L122="a",'ENTRY-NILAI'!FG122,"") ->  | BZ113: =IF('ENTRY-NILAI'!$L122="a",'ENTRY-NILAI'!AC122,"") ->  | CA113: =IF('ENTRY-NILAI'!$L122="a",'ENTRY-NILAI'!AM122,"") ->  | CB113: =IF('ENTRY-NILAI'!$L122="a",'ENTRY-NILAI'!AU122,"") ->  | CC113: =IF('ENTRY-NILAI'!$L122="a",'ENTRY-NILAI'!BE122,"") ->  | CD113: =IF('ENTRY-NILAI'!$L122="a",'ENTRY-NILAI'!BO122,"") ->  | CE113: =IF('ENTRY-NILAI'!$L122="a",'ENTRY-NILAI'!BY122,"") ->  | CF113: 109 | CG113: =IF('ENTRY-NILAI'!$L122="a",'ENTRY-NILAI'!AB122+'ENTRY-NILAI'!AL122+'ENTRY-NILAI'!AT122+'ENTRY-NILAI'!BD122+'ENTRY-NILAI'!BN122+'ENTRY-NILAI'!BX122,"") ->  | CO113: =IF(CN113="","",RANK(CN113,CN$5:CN$604,0)+COUNTIF(CN$5:CN113,CN113)-1) -> 
B114: 110 | C114: =IF('ENTRY-NILAI'!L123="A",'ENTRY-NILAI'!A123,"") ->  | D114: =IF('ENTRY-NILAI'!$L123="A",'ENTRY-NILAI'!AB123,"") ->  | E114: =IF('ENTRY-NILAI'!$L123="A",'ENTRY-NILAI'!AA123,"") ->  | L114: =IF(K114="","",RANK(K114,K$5:K$604,0)+COUNTIF(K$5:K114,K114)-1) ->  | P114: =IF('ENTRY-NILAI'!$L123="A",'ENTRY-NILAI'!$AL123,"") ->  | Q114: =IF('ENTRY-NILAI'!$L123="A",'ENTRY-NILAI'!$AK123,"") ->  | X114: =IF(W114="","",RANK(W114,W$5:W$604,0)+COUNTIF(W$5:W114,W114)-1) ->  | AB114: =IF('ENTRY-NILAI'!$L123="A",'ENTRY-NILAI'!$AT123,"") ->  | AC114: =IF('ENTRY-NILAI'!$L123="A",'ENTRY-NILAI'!$AS123,"") ->  | AJ114: =IF(AI114="","",RANK(AI114,AI$5:AI$604,0)+COUNTIF(AI$5:AI114,AI114)-1) ->  | AN114: =IF('ENTRY-NILAI'!$L123="A",'ENTRY-NILAI'!$BD123,"") ->  | AO114: =IF('ENTRY-NILAI'!$L123="A",'ENTRY-NILAI'!$BC123,"") ->  | AV114: =IF(AU114="","",RANK(AU114,AU$5:AU$604,0)+COUNTIF(AU$5:AU114,AU114)-1) ->  | AZ114: =IF('ENTRY-NILAI'!$L123="A",'ENTRY-NILAI'!$BN123,"") ->  | BA114: =IF('ENTRY-NILAI'!$L123="A",'ENTRY-NILAI'!$BM123,"") ->  | BH114: =IF(BG114="","",RANK(BG114,BG$5:BG$604,0)+COUNTIF(BG$5:BG114,BG114)-1) ->  | BL114: =IF('ENTRY-NILAI'!$L123="A",'ENTRY-NILAI'!$BX123,"") ->  | BM114: =IF('ENTRY-NILAI'!$L123="A",'ENTRY-NILAI'!$BW123,"") ->  | BT114: =IF(BS114="","",RANK(BS114,BS$5:BS$604,0)+COUNTIF(BS$5:BS114,BS114)-1) ->  | BY114: =IF('ENTRY-NILAI'!$L123="a",'ENTRY-NILAI'!FG123,"") ->  | BZ114: =IF('ENTRY-NILAI'!$L123="a",'ENTRY-NILAI'!AC123,"") ->  | CA114: =IF('ENTRY-NILAI'!$L123="a",'ENTRY-NILAI'!AM123,"") ->  | CB114: =IF('ENTRY-NILAI'!$L123="a",'ENTRY-NILAI'!AU123,"") ->  | CC114: =IF('ENTRY-NILAI'!$L123="a",'ENTRY-NILAI'!BE123,"") ->  | CD114: =IF('ENTRY-NILAI'!$L123="a",'ENTRY-NILAI'!BO123,"") ->  | CE114: =IF('ENTRY-NILAI'!$L123="a",'ENTRY-NILAI'!BY123,"") ->  | CF114: 110 | CG114: =IF('ENTRY-NILAI'!$L123="a",'ENTRY-NILAI'!AB123+'ENTRY-NILAI'!AL123+'ENTRY-NILAI'!AT123+'ENTRY-NILAI'!BD123+'ENTRY-NILAI'!BN123+'ENTRY-NILAI'!BX123,"") ->  | CO114: =IF(CN114="","",RANK(CN114,CN$5:CN$604,0)+COUNTIF(CN$5:CN114,CN114)-1) -> 
B115: 111 | C115: =IF('ENTRY-NILAI'!L124="A",'ENTRY-NILAI'!A124,"") ->  | D115: =IF('ENTRY-NILAI'!$L124="A",'ENTRY-NILAI'!AB124,"") ->  | E115: =IF('ENTRY-NILAI'!$L124="A",'ENTRY-NILAI'!AA124,"") ->  | L115: =IF(K115="","",RANK(K115,K$5:K$604,0)+COUNTIF(K$5:K115,K115)-1) ->  | P115: =IF('ENTRY-NILAI'!$L124="A",'ENTRY-NILAI'!$AL124,"") ->  | Q115: =IF('ENTRY-NILAI'!$L124="A",'ENTRY-NILAI'!$AK124,"") ->  | X115: =IF(W115="","",RANK(W115,W$5:W$604,0)+COUNTIF(W$5:W115,W115)-1) ->  | AB115: =IF('ENTRY-NILAI'!$L124="A",'ENTRY-NILAI'!$AT124,"") ->  | AC115: =IF('ENTRY-NILAI'!$L124="A",'ENTRY-NILAI'!$AS124,"") ->  | AJ115: =IF(AI115="","",RANK(AI115,AI$5:AI$604,0)+COUNTIF(AI$5:AI115,AI115)-1) ->  | AN115: =IF('ENTRY-NILAI'!$L124="A",'ENTRY-NILAI'!$BD124,"") ->  | AO115: =IF('ENTRY-NILAI'!$L124="A",'ENTRY-NILAI'!$BC124,"") ->  | AV115: =IF(AU115="","",RANK(AU115,AU$5:AU$604,0)+COUNTIF(AU$5:AU115,AU115)-1) ->  | AZ115: =IF('ENTRY-NILAI'!$L124="A",'ENTRY-NILAI'!$BN124,"") ->  | BA115: =IF('ENTRY-NILAI'!$L124="A",'ENTRY-NILAI'!$BM124,"") ->  | BH115: =IF(BG115="","",RANK(BG115,BG$5:BG$604,0)+COUNTIF(BG$5:BG115,BG115)-1) ->  | BL115: =IF('ENTRY-NILAI'!$L124="A",'ENTRY-NILAI'!$BX124,"") ->  | BM115: =IF('ENTRY-NILAI'!$L124="A",'ENTRY-NILAI'!$BW124,"") ->  | BT115: =IF(BS115="","",RANK(BS115,BS$5:BS$604,0)+COUNTIF(BS$5:BS115,BS115)-1) ->  | BY115: =IF('ENTRY-NILAI'!$L124="a",'ENTRY-NILAI'!FG124,"") ->  | BZ115: =IF('ENTRY-NILAI'!$L124="a",'ENTRY-NILAI'!AC124,"") ->  | CA115: =IF('ENTRY-NILAI'!$L124="a",'ENTRY-NILAI'!AM124,"") ->  | CB115: =IF('ENTRY-NILAI'!$L124="a",'ENTRY-NILAI'!AU124,"") ->  | CC115: =IF('ENTRY-NILAI'!$L124="a",'ENTRY-NILAI'!BE124,"") ->  | CD115: =IF('ENTRY-NILAI'!$L124="a",'ENTRY-NILAI'!BO124,"") ->  | CE115: =IF('ENTRY-NILAI'!$L124="a",'ENTRY-NILAI'!BY124,"") ->  | CF115: 111 | CG115: =IF('ENTRY-NILAI'!$L124="a",'ENTRY-NILAI'!AB124+'ENTRY-NILAI'!AL124+'ENTRY-NILAI'!AT124+'ENTRY-NILAI'!BD124+'ENTRY-NILAI'!BN124+'ENTRY-NILAI'!BX124,"") ->  | CO115: =IF(CN115="","",RANK(CN115,CN$5:CN$604,0)+COUNTIF(CN$5:CN115,CN115)-1) -> 
B116: 112 | C116: =IF('ENTRY-NILAI'!L125="A",'ENTRY-NILAI'!A125,"") ->  | D116: =IF('ENTRY-NILAI'!$L125="A",'ENTRY-NILAI'!AB125,"") ->  | E116: =IF('ENTRY-NILAI'!$L125="A",'ENTRY-NILAI'!AA125,"") ->  | L116: =IF(K116="","",RANK(K116,K$5:K$604,0)+COUNTIF(K$5:K116,K116)-1) ->  | P116: =IF('ENTRY-NILAI'!$L125="A",'ENTRY-NILAI'!$AL125,"") ->  | Q116: =IF('ENTRY-NILAI'!$L125="A",'ENTRY-NILAI'!$AK125,"") ->  | X116: =IF(W116="","",RANK(W116,W$5:W$604,0)+COUNTIF(W$5:W116,W116)-1) ->  | AB116: =IF('ENTRY-NILAI'!$L125="A",'ENTRY-NILAI'!$AT125,"") ->  | AC116: =IF('ENTRY-NILAI'!$L125="A",'ENTRY-NILAI'!$AS125,"") ->  | AJ116: =IF(AI116="","",RANK(AI116,AI$5:AI$604,0)+COUNTIF(AI$5:AI116,AI116)-1) ->  | AN116: =IF('ENTRY-NILAI'!$L125="A",'ENTRY-NILAI'!$BD125,"") ->  | AO116: =IF('ENTRY-NILAI'!$L125="A",'ENTRY-NILAI'!$BC125,"") ->  | AV116: =IF(AU116="","",RANK(AU116,AU$5:AU$604,0)+COUNTIF(AU$5:AU116,AU116)-1) ->  | AZ116: =IF('ENTRY-NILAI'!$L125="A",'ENTRY-NILAI'!$BN125,"") ->  | BA116: =IF('ENTRY-NILAI'!$L125="A",'ENTRY-NILAI'!$BM125,"") ->  | BH116: =IF(BG116="","",RANK(BG116,BG$5:BG$604,0)+COUNTIF(BG$5:BG116,BG116)-1) ->  | BL116: =IF('ENTRY-NILAI'!$L125="A",'ENTRY-NILAI'!$BX125,"") ->  | BM116: =IF('ENTRY-NILAI'!$L125="A",'ENTRY-NILAI'!$BW125,"") ->  | BT116: =IF(BS116="","",RANK(BS116,BS$5:BS$604,0)+COUNTIF(BS$5:BS116,BS116)-1) ->  | BY116: =IF('ENTRY-NILAI'!$L125="a",'ENTRY-NILAI'!FG125,"") ->  | BZ116: =IF('ENTRY-NILAI'!$L125="a",'ENTRY-NILAI'!AC125,"") ->  | CA116: =IF('ENTRY-NILAI'!$L125="a",'ENTRY-NILAI'!AM125,"") ->  | CB116: =IF('ENTRY-NILAI'!$L125="a",'ENTRY-NILAI'!AU125,"") ->  | CC116: =IF('ENTRY-NILAI'!$L125="a",'ENTRY-NILAI'!BE125,"") ->  | CD116: =IF('ENTRY-NILAI'!$L125="a",'ENTRY-NILAI'!BO125,"") ->  | CE116: =IF('ENTRY-NILAI'!$L125="a",'ENTRY-NILAI'!BY125,"") ->  | CF116: 112 | CG116: =IF('ENTRY-NILAI'!$L125="a",'ENTRY-NILAI'!AB125+'ENTRY-NILAI'!AL125+'ENTRY-NILAI'!AT125+'ENTRY-NILAI'!BD125+'ENTRY-NILAI'!BN125+'ENTRY-NILAI'!BX125,"") ->  | CO116: =IF(CN116="","",RANK(CN116,CN$5:CN$604,0)+COUNTIF(CN$5:CN116,CN116)-1) -> 
B117: 113 | C117: =IF('ENTRY-NILAI'!L126="A",'ENTRY-NILAI'!A126,"") ->  | D117: =IF('ENTRY-NILAI'!$L126="A",'ENTRY-NILAI'!AB126,"") ->  | E117: =IF('ENTRY-NILAI'!$L126="A",'ENTRY-NILAI'!AA126,"") ->  | L117: =IF(K117="","",RANK(K117,K$5:K$604,0)+COUNTIF(K$5:K117,K117)-1) ->  | P117: =IF('ENTRY-NILAI'!$L126="A",'ENTRY-NILAI'!$AL126,"") ->  | Q117: =IF('ENTRY-NILAI'!$L126="A",'ENTRY-NILAI'!$AK126,"") ->  | X117: =IF(W117="","",RANK(W117,W$5:W$604,0)+COUNTIF(W$5:W117,W117)-1) ->  | AB117: =IF('ENTRY-NILAI'!$L126="A",'ENTRY-NILAI'!$AT126,"") ->  | AC117: =IF('ENTRY-NILAI'!$L126="A",'ENTRY-NILAI'!$AS126,"") ->  | AJ117: =IF(AI117="","",RANK(AI117,AI$5:AI$604,0)+COUNTIF(AI$5:AI117,AI117)-1) ->  | AN117: =IF('ENTRY-NILAI'!$L126="A",'ENTRY-NILAI'!$BD126,"") ->  | AO117: =IF('ENTRY-NILAI'!$L126="A",'ENTRY-NILAI'!$BC126,"") ->  | AV117: =IF(AU117="","",RANK(AU117,AU$5:AU$604,0)+COUNTIF(AU$5:AU117,AU117)-1) ->  | AZ117: =IF('ENTRY-NILAI'!$L126="A",'ENTRY-NILAI'!$BN126,"") ->  | BA117: =IF('ENTRY-NILAI'!$L126="A",'ENTRY-NILAI'!$BM126,"") ->  | BH117: =IF(BG117="","",RANK(BG117,BG$5:BG$604,0)+COUNTIF(BG$5:BG117,BG117)-1) ->  | BL117: =IF('ENTRY-NILAI'!$L126="A",'ENTRY-NILAI'!$BX126,"") ->  | BM117: =IF('ENTRY-NILAI'!$L126="A",'ENTRY-NILAI'!$BW126,"") ->  | BT117: =IF(BS117="","",RANK(BS117,BS$5:BS$604,0)+COUNTIF(BS$5:BS117,BS117)-1) ->  | BY117: =IF('ENTRY-NILAI'!$L126="a",'ENTRY-NILAI'!FG126,"") ->  | BZ117: =IF('ENTRY-NILAI'!$L126="a",'ENTRY-NILAI'!AC126,"") ->  | CA117: =IF('ENTRY-NILAI'!$L126="a",'ENTRY-NILAI'!AM126,"") ->  | CB117: =IF('ENTRY-NILAI'!$L126="a",'ENTRY-NILAI'!AU126,"") ->  | CC117: =IF('ENTRY-NILAI'!$L126="a",'ENTRY-NILAI'!BE126,"") ->  | CD117: =IF('ENTRY-NILAI'!$L126="a",'ENTRY-NILAI'!BO126,"") ->  | CE117: =IF('ENTRY-NILAI'!$L126="a",'ENTRY-NILAI'!BY126,"") ->  | CF117: 113 | CG117: =IF('ENTRY-NILAI'!$L126="a",'ENTRY-NILAI'!AB126+'ENTRY-NILAI'!AL126+'ENTRY-NILAI'!AT126+'ENTRY-NILAI'!BD126+'ENTRY-NILAI'!BN126+'ENTRY-NILAI'!BX126,"") ->  | CO117: =IF(CN117="","",RANK(CN117,CN$5:CN$604,0)+COUNTIF(CN$5:CN117,CN117)-1) -> 
B118: 114 | C118: =IF('ENTRY-NILAI'!L127="A",'ENTRY-NILAI'!A127,"") ->  | D118: =IF('ENTRY-NILAI'!$L127="A",'ENTRY-NILAI'!AB127,"") ->  | E118: =IF('ENTRY-NILAI'!$L127="A",'ENTRY-NILAI'!AA127,"") ->  | L118: =IF(K118="","",RANK(K118,K$5:K$604,0)+COUNTIF(K$5:K118,K118)-1) ->  | P118: =IF('ENTRY-NILAI'!$L127="A",'ENTRY-NILAI'!$AL127,"") ->  | Q118: =IF('ENTRY-NILAI'!$L127="A",'ENTRY-NILAI'!$AK127,"") ->  | X118: =IF(W118="","",RANK(W118,W$5:W$604,0)+COUNTIF(W$5:W118,W118)-1) ->  | AB118: =IF('ENTRY-NILAI'!$L127="A",'ENTRY-NILAI'!$AT127,"") ->  | AC118: =IF('ENTRY-NILAI'!$L127="A",'ENTRY-NILAI'!$AS127,"") ->  | AJ118: =IF(AI118="","",RANK(AI118,AI$5:AI$604,0)+COUNTIF(AI$5:AI118,AI118)-1) ->  | AN118: =IF('ENTRY-NILAI'!$L127="A",'ENTRY-NILAI'!$BD127,"") ->  | AO118: =IF('ENTRY-NILAI'!$L127="A",'ENTRY-NILAI'!$BC127,"") ->  | AV118: =IF(AU118="","",RANK(AU118,AU$5:AU$604,0)+COUNTIF(AU$5:AU118,AU118)-1) ->  | AZ118: =IF('ENTRY-NILAI'!$L127="A",'ENTRY-NILAI'!$BN127,"") ->  | BA118: =IF('ENTRY-NILAI'!$L127="A",'ENTRY-NILAI'!$BM127,"") ->  | BH118: =IF(BG118="","",RANK(BG118,BG$5:BG$604,0)+COUNTIF(BG$5:BG118,BG118)-1) ->  | BL118: =IF('ENTRY-NILAI'!$L127="A",'ENTRY-NILAI'!$BX127,"") ->  | BM118: =IF('ENTRY-NILAI'!$L127="A",'ENTRY-NILAI'!$BW127,"") ->  | BT118: =IF(BS118="","",RANK(BS118,BS$5:BS$604,0)+COUNTIF(BS$5:BS118,BS118)-1) ->  | BY118: =IF('ENTRY-NILAI'!$L127="a",'ENTRY-NILAI'!FG127,"") ->  | BZ118: =IF('ENTRY-NILAI'!$L127="a",'ENTRY-NILAI'!AC127,"") ->  | CA118: =IF('ENTRY-NILAI'!$L127="a",'ENTRY-NILAI'!AM127,"") ->  | CB118: =IF('ENTRY-NILAI'!$L127="a",'ENTRY-NILAI'!AU127,"") ->  | CC118: =IF('ENTRY-NILAI'!$L127="a",'ENTRY-NILAI'!BE127,"") ->  | CD118: =IF('ENTRY-NILAI'!$L127="a",'ENTRY-NILAI'!BO127,"") ->  | CE118: =IF('ENTRY-NILAI'!$L127="a",'ENTRY-NILAI'!BY127,"") ->  | CF118: 114 | CG118: =IF('ENTRY-NILAI'!$L127="a",'ENTRY-NILAI'!AB127+'ENTRY-NILAI'!AL127+'ENTRY-NILAI'!AT127+'ENTRY-NILAI'!BD127+'ENTRY-NILAI'!BN127+'ENTRY-NILAI'!BX127,"") ->  | CO118: =IF(CN118="","",RANK(CN118,CN$5:CN$604,0)+COUNTIF(CN$5:CN118,CN118)-1) -> 
B119: 115 | C119: =IF('ENTRY-NILAI'!L128="A",'ENTRY-NILAI'!A128,"") ->  | D119: =IF('ENTRY-NILAI'!$L128="A",'ENTRY-NILAI'!AB128,"") ->  | E119: =IF('ENTRY-NILAI'!$L128="A",'ENTRY-NILAI'!AA128,"") ->  | L119: =IF(K119="","",RANK(K119,K$5:K$604,0)+COUNTIF(K$5:K119,K119)-1) ->  | P119: =IF('ENTRY-NILAI'!$L128="A",'ENTRY-NILAI'!$AL128,"") ->  | Q119: =IF('ENTRY-NILAI'!$L128="A",'ENTRY-NILAI'!$AK128,"") ->  | X119: =IF(W119="","",RANK(W119,W$5:W$604,0)+COUNTIF(W$5:W119,W119)-1) ->  | AB119: =IF('ENTRY-NILAI'!$L128="A",'ENTRY-NILAI'!$AT128,"") ->  | AC119: =IF('ENTRY-NILAI'!$L128="A",'ENTRY-NILAI'!$AS128,"") ->  | AJ119: =IF(AI119="","",RANK(AI119,AI$5:AI$604,0)+COUNTIF(AI$5:AI119,AI119)-1) ->  | AN119: =IF('ENTRY-NILAI'!$L128="A",'ENTRY-NILAI'!$BD128,"") ->  | AO119: =IF('ENTRY-NILAI'!$L128="A",'ENTRY-NILAI'!$BC128,"") ->  | AV119: =IF(AU119="","",RANK(AU119,AU$5:AU$604,0)+COUNTIF(AU$5:AU119,AU119)-1) ->  | AZ119: =IF('ENTRY-NILAI'!$L128="A",'ENTRY-NILAI'!$BN128,"") ->  | BA119: =IF('ENTRY-NILAI'!$L128="A",'ENTRY-NILAI'!$BM128,"") ->  | BH119: =IF(BG119="","",RANK(BG119,BG$5:BG$604,0)+COUNTIF(BG$5:BG119,BG119)-1) ->  | BL119: =IF('ENTRY-NILAI'!$L128="A",'ENTRY-NILAI'!$BX128,"") ->  | BM119: =IF('ENTRY-NILAI'!$L128="A",'ENTRY-NILAI'!$BW128,"") ->  | BT119: =IF(BS119="","",RANK(BS119,BS$5:BS$604,0)+COUNTIF(BS$5:BS119,BS119)-1) ->  | BY119: =IF('ENTRY-NILAI'!$L128="a",'ENTRY-NILAI'!FG128,"") ->  | BZ119: =IF('ENTRY-NILAI'!$L128="a",'ENTRY-NILAI'!AC128,"") ->  | CA119: =IF('ENTRY-NILAI'!$L128="a",'ENTRY-NILAI'!AM128,"") ->  | CB119: =IF('ENTRY-NILAI'!$L128="a",'ENTRY-NILAI'!AU128,"") ->  | CC119: =IF('ENTRY-NILAI'!$L128="a",'ENTRY-NILAI'!BE128,"") ->  | CD119: =IF('ENTRY-NILAI'!$L128="a",'ENTRY-NILAI'!BO128,"") ->  | CE119: =IF('ENTRY-NILAI'!$L128="a",'ENTRY-NILAI'!BY128,"") ->  | CF119: 115 | CG119: =IF('ENTRY-NILAI'!$L128="a",'ENTRY-NILAI'!AB128+'ENTRY-NILAI'!AL128+'ENTRY-NILAI'!AT128+'ENTRY-NILAI'!BD128+'ENTRY-NILAI'!BN128+'ENTRY-NILAI'!BX128,"") ->  | CO119: =IF(CN119="","",RANK(CN119,CN$5:CN$604,0)+COUNTIF(CN$5:CN119,CN119)-1) -> 
B120: 116 | C120: =IF('ENTRY-NILAI'!L129="A",'ENTRY-NILAI'!A129,"") ->  | D120: =IF('ENTRY-NILAI'!$L129="A",'ENTRY-NILAI'!AB129,"") ->  | E120: =IF('ENTRY-NILAI'!$L129="A",'ENTRY-NILAI'!AA129,"") ->  | L120: =IF(K120="","",RANK(K120,K$5:K$604,0)+COUNTIF(K$5:K120,K120)-1) ->  | P120: =IF('ENTRY-NILAI'!$L129="A",'ENTRY-NILAI'!$AL129,"") ->  | Q120: =IF('ENTRY-NILAI'!$L129="A",'ENTRY-NILAI'!$AK129,"") ->  | X120: =IF(W120="","",RANK(W120,W$5:W$604,0)+COUNTIF(W$5:W120,W120)-1) ->  | AB120: =IF('ENTRY-NILAI'!$L129="A",'ENTRY-NILAI'!$AT129,"") ->  | AC120: =IF('ENTRY-NILAI'!$L129="A",'ENTRY-NILAI'!$AS129,"") ->  | AJ120: =IF(AI120="","",RANK(AI120,AI$5:AI$604,0)+COUNTIF(AI$5:AI120,AI120)-1) ->  | AN120: =IF('ENTRY-NILAI'!$L129="A",'ENTRY-NILAI'!$BD129,"") ->  | AO120: =IF('ENTRY-NILAI'!$L129="A",'ENTRY-NILAI'!$BC129,"") ->  | AV120: =IF(AU120="","",RANK(AU120,AU$5:AU$604,0)+COUNTIF(AU$5:AU120,AU120)-1) ->  | AZ120: =IF('ENTRY-NILAI'!$L129="A",'ENTRY-NILAI'!$BN129,"") ->  | BA120: =IF('ENTRY-NILAI'!$L129="A",'ENTRY-NILAI'!$BM129,"") ->  | BH120: =IF(BG120="","",RANK(BG120,BG$5:BG$604,0)+COUNTIF(BG$5:BG120,BG120)-1) ->  | BL120: =IF('ENTRY-NILAI'!$L129="A",'ENTRY-NILAI'!$BX129,"") ->  | BM120: =IF('ENTRY-NILAI'!$L129="A",'ENTRY-NILAI'!$BW129,"") ->  | BT120: =IF(BS120="","",RANK(BS120,BS$5:BS$604,0)+COUNTIF(BS$5:BS120,BS120)-1) ->  | BY120: =IF('ENTRY-NILAI'!$L129="a",'ENTRY-NILAI'!FG129,"") ->  | BZ120: =IF('ENTRY-NILAI'!$L129="a",'ENTRY-NILAI'!AC129,"") ->  | CA120: =IF('ENTRY-NILAI'!$L129="a",'ENTRY-NILAI'!AM129,"") ->  | CB120: =IF('ENTRY-NILAI'!$L129="a",'ENTRY-NILAI'!AU129,"") ->  | CC120: =IF('ENTRY-NILAI'!$L129="a",'ENTRY-NILAI'!BE129,"") ->  | CD120: =IF('ENTRY-NILAI'!$L129="a",'ENTRY-NILAI'!BO129,"") ->  | CE120: =IF('ENTRY-NILAI'!$L129="a",'ENTRY-NILAI'!BY129,"") ->  | CF120: 116 | CG120: =IF('ENTRY-NILAI'!$L129="a",'ENTRY-NILAI'!AB129+'ENTRY-NILAI'!AL129+'ENTRY-NILAI'!AT129+'ENTRY-NILAI'!BD129+'ENTRY-NILAI'!BN129+'ENTRY-NILAI'!BX129,"") ->  | CO120: =IF(CN120="","",RANK(CN120,CN$5:CN$604,0)+COUNTIF(CN$5:CN120,CN120)-1) -> 
B121: 117 | C121: =IF('ENTRY-NILAI'!L130="A",'ENTRY-NILAI'!A130,"") ->  | D121: =IF('ENTRY-NILAI'!$L130="A",'ENTRY-NILAI'!AB130,"") ->  | E121: =IF('ENTRY-NILAI'!$L130="A",'ENTRY-NILAI'!AA130,"") ->  | L121: =IF(K121="","",RANK(K121,K$5:K$604,0)+COUNTIF(K$5:K121,K121)-1) ->  | P121: =IF('ENTRY-NILAI'!$L130="A",'ENTRY-NILAI'!$AL130,"") ->  | Q121: =IF('ENTRY-NILAI'!$L130="A",'ENTRY-NILAI'!$AK130,"") ->  | X121: =IF(W121="","",RANK(W121,W$5:W$604,0)+COUNTIF(W$5:W121,W121)-1) ->  | AB121: =IF('ENTRY-NILAI'!$L130="A",'ENTRY-NILAI'!$AT130,"") ->  | AC121: =IF('ENTRY-NILAI'!$L130="A",'ENTRY-NILAI'!$AS130,"") ->  | AJ121: =IF(AI121="","",RANK(AI121,AI$5:AI$604,0)+COUNTIF(AI$5:AI121,AI121)-1) ->  | AN121: =IF('ENTRY-NILAI'!$L130="A",'ENTRY-NILAI'!$BD130,"") ->  | AO121: =IF('ENTRY-NILAI'!$L130="A",'ENTRY-NILAI'!$BC130,"") ->  | AV121: =IF(AU121="","",RANK(AU121,AU$5:AU$604,0)+COUNTIF(AU$5:AU121,AU121)-1) ->  | AZ121: =IF('ENTRY-NILAI'!$L130="A",'ENTRY-NILAI'!$BN130,"") ->  | BA121: =IF('ENTRY-NILAI'!$L130="A",'ENTRY-NILAI'!$BM130,"") ->  | BH121: =IF(BG121="","",RANK(BG121,BG$5:BG$604,0)+COUNTIF(BG$5:BG121,BG121)-1) ->  | BL121: =IF('ENTRY-NILAI'!$L130="A",'ENTRY-NILAI'!$BX130,"") ->  | BM121: =IF('ENTRY-NILAI'!$L130="A",'ENTRY-NILAI'!$BW130,"") ->  | BT121: =IF(BS121="","",RANK(BS121,BS$5:BS$604,0)+COUNTIF(BS$5:BS121,BS121)-1) ->  | BY121: =IF('ENTRY-NILAI'!$L130="a",'ENTRY-NILAI'!FG130,"") ->  | BZ121: =IF('ENTRY-NILAI'!$L130="a",'ENTRY-NILAI'!AC130,"") ->  | CA121: =IF('ENTRY-NILAI'!$L130="a",'ENTRY-NILAI'!AM130,"") ->  | CB121: =IF('ENTRY-NILAI'!$L130="a",'ENTRY-NILAI'!AU130,"") ->  | CC121: =IF('ENTRY-NILAI'!$L130="a",'ENTRY-NILAI'!BE130,"") ->  | CD121: =IF('ENTRY-NILAI'!$L130="a",'ENTRY-NILAI'!BO130,"") ->  | CE121: =IF('ENTRY-NILAI'!$L130="a",'ENTRY-NILAI'!BY130,"") ->  | CF121: 117 | CG121: =IF('ENTRY-NILAI'!$L130="a",'ENTRY-NILAI'!AB130+'ENTRY-NILAI'!AL130+'ENTRY-NILAI'!AT130+'ENTRY-NILAI'!BD130+'ENTRY-NILAI'!BN130+'ENTRY-NILAI'!BX130,"") ->  | CO121: =IF(CN121="","",RANK(CN121,CN$5:CN$604,0)+COUNTIF(CN$5:CN121,CN121)-1) -> 
B122: 118 | C122: =IF('ENTRY-NILAI'!L131="A",'ENTRY-NILAI'!A131,"") ->  | D122: =IF('ENTRY-NILAI'!$L131="A",'ENTRY-NILAI'!AB131,"") ->  | E122: =IF('ENTRY-NILAI'!$L131="A",'ENTRY-NILAI'!AA131,"") ->  | L122: =IF(K122="","",RANK(K122,K$5:K$604,0)+COUNTIF(K$5:K122,K122)-1) ->  | P122: =IF('ENTRY-NILAI'!$L131="A",'ENTRY-NILAI'!$AL131,"") ->  | Q122: =IF('ENTRY-NILAI'!$L131="A",'ENTRY-NILAI'!$AK131,"") ->  | X122: =IF(W122="","",RANK(W122,W$5:W$604,0)+COUNTIF(W$5:W122,W122)-1) ->  | AB122: =IF('ENTRY-NILAI'!$L131="A",'ENTRY-NILAI'!$AT131,"") ->  | AC122: =IF('ENTRY-NILAI'!$L131="A",'ENTRY-NILAI'!$AS131,"") ->  | AJ122: =IF(AI122="","",RANK(AI122,AI$5:AI$604,0)+COUNTIF(AI$5:AI122,AI122)-1) ->  | AN122: =IF('ENTRY-NILAI'!$L131="A",'ENTRY-NILAI'!$BD131,"") ->  | AO122: =IF('ENTRY-NILAI'!$L131="A",'ENTRY-NILAI'!$BC131,"") ->  | AV122: =IF(AU122="","",RANK(AU122,AU$5:AU$604,0)+COUNTIF(AU$5:AU122,AU122)-1) ->  | AZ122: =IF('ENTRY-NILAI'!$L131="A",'ENTRY-NILAI'!$BN131,"") ->  | BA122: =IF('ENTRY-NILAI'!$L131="A",'ENTRY-NILAI'!$BM131,"") ->  | BH122: =IF(BG122="","",RANK(BG122,BG$5:BG$604,0)+COUNTIF(BG$5:BG122,BG122)-1) ->  | BL122: =IF('ENTRY-NILAI'!$L131="A",'ENTRY-NILAI'!$BX131,"") ->  | BM122: =IF('ENTRY-NILAI'!$L131="A",'ENTRY-NILAI'!$BW131,"") ->  | BT122: =IF(BS122="","",RANK(BS122,BS$5:BS$604,0)+COUNTIF(BS$5:BS122,BS122)-1) ->  | BY122: =IF('ENTRY-NILAI'!$L131="a",'ENTRY-NILAI'!FG131,"") ->  | BZ122: =IF('ENTRY-NILAI'!$L131="a",'ENTRY-NILAI'!AC131,"") ->  | CA122: =IF('ENTRY-NILAI'!$L131="a",'ENTRY-NILAI'!AM131,"") ->  | CB122: =IF('ENTRY-NILAI'!$L131="a",'ENTRY-NILAI'!AU131,"") ->  | CC122: =IF('ENTRY-NILAI'!$L131="a",'ENTRY-NILAI'!BE131,"") ->  | CD122: =IF('ENTRY-NILAI'!$L131="a",'ENTRY-NILAI'!BO131,"") ->  | CE122: =IF('ENTRY-NILAI'!$L131="a",'ENTRY-NILAI'!BY131,"") ->  | CF122: 118 | CG122: =IF('ENTRY-NILAI'!$L131="a",'ENTRY-NILAI'!AB131+'ENTRY-NILAI'!AL131+'ENTRY-NILAI'!AT131+'ENTRY-NILAI'!BD131+'ENTRY-NILAI'!BN131+'ENTRY-NILAI'!BX131,"") ->  | CO122: =IF(CN122="","",RANK(CN122,CN$5:CN$604,0)+COUNTIF(CN$5:CN122,CN122)-1) -> 
B123: 119 | C123: =IF('ENTRY-NILAI'!L132="A",'ENTRY-NILAI'!A132,"") ->  | D123: =IF('ENTRY-NILAI'!$L132="A",'ENTRY-NILAI'!AB132,"") ->  | E123: =IF('ENTRY-NILAI'!$L132="A",'ENTRY-NILAI'!AA132,"") ->  | L123: =IF(K123="","",RANK(K123,K$5:K$604,0)+COUNTIF(K$5:K123,K123)-1) ->  | P123: =IF('ENTRY-NILAI'!$L132="A",'ENTRY-NILAI'!$AL132,"") ->  | Q123: =IF('ENTRY-NILAI'!$L132="A",'ENTRY-NILAI'!$AK132,"") ->  | X123: =IF(W123="","",RANK(W123,W$5:W$604,0)+COUNTIF(W$5:W123,W123)-1) ->  | AB123: =IF('ENTRY-NILAI'!$L132="A",'ENTRY-NILAI'!$AT132,"") ->  | AC123: =IF('ENTRY-NILAI'!$L132="A",'ENTRY-NILAI'!$AS132,"") ->  | AJ123: =IF(AI123="","",RANK(AI123,AI$5:AI$604,0)+COUNTIF(AI$5:AI123,AI123)-1) ->  | AN123: =IF('ENTRY-NILAI'!$L132="A",'ENTRY-NILAI'!$BD132,"") ->  | AO123: =IF('ENTRY-NILAI'!$L132="A",'ENTRY-NILAI'!$BC132,"") ->  | AV123: =IF(AU123="","",RANK(AU123,AU$5:AU$604,0)+COUNTIF(AU$5:AU123,AU123)-1) ->  | AZ123: =IF('ENTRY-NILAI'!$L132="A",'ENTRY-NILAI'!$BN132,"") ->  | BA123: =IF('ENTRY-NILAI'!$L132="A",'ENTRY-NILAI'!$BM132,"") ->  | BH123: =IF(BG123="","",RANK(BG123,BG$5:BG$604,0)+COUNTIF(BG$5:BG123,BG123)-1) ->  | BL123: =IF('ENTRY-NILAI'!$L132="A",'ENTRY-NILAI'!$BX132,"") ->  | BM123: =IF('ENTRY-NILAI'!$L132="A",'ENTRY-NILAI'!$BW132,"") ->  | BT123: =IF(BS123="","",RANK(BS123,BS$5:BS$604,0)+COUNTIF(BS$5:BS123,BS123)-1) ->  | BY123: =IF('ENTRY-NILAI'!$L132="a",'ENTRY-NILAI'!FG132,"") ->  | BZ123: =IF('ENTRY-NILAI'!$L132="a",'ENTRY-NILAI'!AC132,"") ->  | CA123: =IF('ENTRY-NILAI'!$L132="a",'ENTRY-NILAI'!AM132,"") ->  | CB123: =IF('ENTRY-NILAI'!$L132="a",'ENTRY-NILAI'!AU132,"") ->  | CC123: =IF('ENTRY-NILAI'!$L132="a",'ENTRY-NILAI'!BE132,"") ->  | CD123: =IF('ENTRY-NILAI'!$L132="a",'ENTRY-NILAI'!BO132,"") ->  | CE123: =IF('ENTRY-NILAI'!$L132="a",'ENTRY-NILAI'!BY132,"") ->  | CF123: 119 | CG123: =IF('ENTRY-NILAI'!$L132="a",'ENTRY-NILAI'!AB132+'ENTRY-NILAI'!AL132+'ENTRY-NILAI'!AT132+'ENTRY-NILAI'!BD132+'ENTRY-NILAI'!BN132+'ENTRY-NILAI'!BX132,"") ->  | CO123: =IF(CN123="","",RANK(CN123,CN$5:CN$604,0)+COUNTIF(CN$5:CN123,CN123)-1) -> 
B124: 120 | C124: =IF('ENTRY-NILAI'!L133="A",'ENTRY-NILAI'!A133,"") ->  | D124: =IF('ENTRY-NILAI'!$L133="A",'ENTRY-NILAI'!AB133,"") ->  | E124: =IF('ENTRY-NILAI'!$L133="A",'ENTRY-NILAI'!AA133,"") ->  | L124: =IF(K124="","",RANK(K124,K$5:K$604,0)+COUNTIF(K$5:K124,K124)-1) ->  | P124: =IF('ENTRY-NILAI'!$L133="A",'ENTRY-NILAI'!$AL133,"") ->  | Q124: =IF('ENTRY-NILAI'!$L133="A",'ENTRY-NILAI'!$AK133,"") ->  | X124: =IF(W124="","",RANK(W124,W$5:W$604,0)+COUNTIF(W$5:W124,W124)-1) ->  | AB124: =IF('ENTRY-NILAI'!$L133="A",'ENTRY-NILAI'!$AT133,"") ->  | AC124: =IF('ENTRY-NILAI'!$L133="A",'ENTRY-NILAI'!$AS133,"") ->  | AJ124: =IF(AI124="","",RANK(AI124,AI$5:AI$604,0)+COUNTIF(AI$5:AI124,AI124)-1) ->  | AN124: =IF('ENTRY-NILAI'!$L133="A",'ENTRY-NILAI'!$BD133,"") ->  | AO124: =IF('ENTRY-NILAI'!$L133="A",'ENTRY-NILAI'!$BC133,"") ->  | AV124: =IF(AU124="","",RANK(AU124,AU$5:AU$604,0)+COUNTIF(AU$5:AU124,AU124)-1) ->  | AZ124: =IF('ENTRY-NILAI'!$L133="A",'ENTRY-NILAI'!$BN133,"") ->  | BA124: =IF('ENTRY-NILAI'!$L133="A",'ENTRY-NILAI'!$BM133,"") ->  | BH124: =IF(BG124="","",RANK(BG124,BG$5:BG$604,0)+COUNTIF(BG$5:BG124,BG124)-1) ->  | BL124: =IF('ENTRY-NILAI'!$L133="A",'ENTRY-NILAI'!$BX133,"") ->  | BM124: =IF('ENTRY-NILAI'!$L133="A",'ENTRY-NILAI'!$BW133,"") ->  | BT124: =IF(BS124="","",RANK(BS124,BS$5:BS$604,0)+COUNTIF(BS$5:BS124,BS124)-1) ->  | BY124: =IF('ENTRY-NILAI'!$L133="a",'ENTRY-NILAI'!FG133,"") ->  | BZ124: =IF('ENTRY-NILAI'!$L133="a",'ENTRY-NILAI'!AC133,"") ->  | CA124: =IF('ENTRY-NILAI'!$L133="a",'ENTRY-NILAI'!AM133,"") ->  | CB124: =IF('ENTRY-NILAI'!$L133="a",'ENTRY-NILAI'!AU133,"") ->  | CC124: =IF('ENTRY-NILAI'!$L133="a",'ENTRY-NILAI'!BE133,"") ->  | CD124: =IF('ENTRY-NILAI'!$L133="a",'ENTRY-NILAI'!BO133,"") ->  | CE124: =IF('ENTRY-NILAI'!$L133="a",'ENTRY-NILAI'!BY133,"") ->  | CF124: 120 | CG124: =IF('ENTRY-NILAI'!$L133="a",'ENTRY-NILAI'!AB133+'ENTRY-NILAI'!AL133+'ENTRY-NILAI'!AT133+'ENTRY-NILAI'!BD133+'ENTRY-NILAI'!BN133+'ENTRY-NILAI'!BX133,"") ->  | CO124: =IF(CN124="","",RANK(CN124,CN$5:CN$604,0)+COUNTIF(CN$5:CN124,CN124)-1) -> 
B125: 121 | C125: =IF('ENTRY-NILAI'!L134="A",'ENTRY-NILAI'!A134,"") ->  | D125: =IF('ENTRY-NILAI'!$L134="A",'ENTRY-NILAI'!AB134,"") ->  | E125: =IF('ENTRY-NILAI'!$L134="A",'ENTRY-NILAI'!AA134,"") ->  | L125: =IF(K125="","",RANK(K125,K$5:K$604,0)+COUNTIF(K$5:K125,K125)-1) ->  | P125: =IF('ENTRY-NILAI'!$L134="A",'ENTRY-NILAI'!$AL134,"") ->  | Q125: =IF('ENTRY-NILAI'!$L134="A",'ENTRY-NILAI'!$AK134,"") ->  | X125: =IF(W125="","",RANK(W125,W$5:W$604,0)+COUNTIF(W$5:W125,W125)-1) ->  | AB125: =IF('ENTRY-NILAI'!$L134="A",'ENTRY-NILAI'!$AT134,"") ->  | AC125: =IF('ENTRY-NILAI'!$L134="A",'ENTRY-NILAI'!$AS134,"") ->  | AJ125: =IF(AI125="","",RANK(AI125,AI$5:AI$604,0)+COUNTIF(AI$5:AI125,AI125)-1) ->  | AN125: =IF('ENTRY-NILAI'!$L134="A",'ENTRY-NILAI'!$BD134,"") ->  | AO125: =IF('ENTRY-NILAI'!$L134="A",'ENTRY-NILAI'!$BC134,"") ->  | AV125: =IF(AU125="","",RANK(AU125,AU$5:AU$604,0)+COUNTIF(AU$5:AU125,AU125)-1) ->  | AZ125: =IF('ENTRY-NILAI'!$L134="A",'ENTRY-NILAI'!$BN134,"") ->  | BA125: =IF('ENTRY-NILAI'!$L134="A",'ENTRY-NILAI'!$BM134,"") ->  | BH125: =IF(BG125="","",RANK(BG125,BG$5:BG$604,0)+COUNTIF(BG$5:BG125,BG125)-1) ->  | BL125: =IF('ENTRY-NILAI'!$L134="A",'ENTRY-NILAI'!$BX134,"") ->  | BM125: =IF('ENTRY-NILAI'!$L134="A",'ENTRY-NILAI'!$BW134,"") ->  | BT125: =IF(BS125="","",RANK(BS125,BS$5:BS$604,0)+COUNTIF(BS$5:BS125,BS125)-1) ->  | BY125: =IF('ENTRY-NILAI'!$L134="a",'ENTRY-NILAI'!FG134,"") ->  | BZ125: =IF('ENTRY-NILAI'!$L134="a",'ENTRY-NILAI'!AC134,"") ->  | CA125: =IF('ENTRY-NILAI'!$L134="a",'ENTRY-NILAI'!AM134,"") ->  | CB125: =IF('ENTRY-NILAI'!$L134="a",'ENTRY-NILAI'!AU134,"") ->  | CC125: =IF('ENTRY-NILAI'!$L134="a",'ENTRY-NILAI'!BE134,"") ->  | CD125: =IF('ENTRY-NILAI'!$L134="a",'ENTRY-NILAI'!BO134,"") ->  | CE125: =IF('ENTRY-NILAI'!$L134="a",'ENTRY-NILAI'!BY134,"") ->  | CF125: 121 | CG125: =IF('ENTRY-NILAI'!$L134="a",'ENTRY-NILAI'!AB134+'ENTRY-NILAI'!AL134+'ENTRY-NILAI'!AT134+'ENTRY-NILAI'!BD134+'ENTRY-NILAI'!BN134+'ENTRY-NILAI'!BX134,"") ->  | CO125: =IF(CN125="","",RANK(CN125,CN$5:CN$604,0)+COUNTIF(CN$5:CN125,CN125)-1) -> 
B126: 122 | C126: =IF('ENTRY-NILAI'!L135="A",'ENTRY-NILAI'!A135,"") ->  | D126: =IF('ENTRY-NILAI'!$L135="A",'ENTRY-NILAI'!AB135,"") ->  | E126: =IF('ENTRY-NILAI'!$L135="A",'ENTRY-NILAI'!AA135,"") ->  | L126: =IF(K126="","",RANK(K126,K$5:K$604,0)+COUNTIF(K$5:K126,K126)-1) ->  | P126: =IF('ENTRY-NILAI'!$L135="A",'ENTRY-NILAI'!$AL135,"") ->  | Q126: =IF('ENTRY-NILAI'!$L135="A",'ENTRY-NILAI'!$AK135,"") ->  | X126: =IF(W126="","",RANK(W126,W$5:W$604,0)+COUNTIF(W$5:W126,W126)-1) ->  | AB126: =IF('ENTRY-NILAI'!$L135="A",'ENTRY-NILAI'!$AT135,"") ->  | AC126: =IF('ENTRY-NILAI'!$L135="A",'ENTRY-NILAI'!$AS135,"") ->  | AJ126: =IF(AI126="","",RANK(AI126,AI$5:AI$604,0)+COUNTIF(AI$5:AI126,AI126)-1) ->  | AN126: =IF('ENTRY-NILAI'!$L135="A",'ENTRY-NILAI'!$BD135,"") ->  | AO126: =IF('ENTRY-NILAI'!$L135="A",'ENTRY-NILAI'!$BC135,"") ->  | AV126: =IF(AU126="","",RANK(AU126,AU$5:AU$604,0)+COUNTIF(AU$5:AU126,AU126)-1) ->  | AZ126: =IF('ENTRY-NILAI'!$L135="A",'ENTRY-NILAI'!$BN135,"") ->  | BA126: =IF('ENTRY-NILAI'!$L135="A",'ENTRY-NILAI'!$BM135,"") ->  | BH126: =IF(BG126="","",RANK(BG126,BG$5:BG$604,0)+COUNTIF(BG$5:BG126,BG126)-1) ->  | BL126: =IF('ENTRY-NILAI'!$L135="A",'ENTRY-NILAI'!$BX135,"") ->  | BM126: =IF('ENTRY-NILAI'!$L135="A",'ENTRY-NILAI'!$BW135,"") ->  | BT126: =IF(BS126="","",RANK(BS126,BS$5:BS$604,0)+COUNTIF(BS$5:BS126,BS126)-1) ->  | BY126: =IF('ENTRY-NILAI'!$L135="a",'ENTRY-NILAI'!FG135,"") ->  | BZ126: =IF('ENTRY-NILAI'!$L135="a",'ENTRY-NILAI'!AC135,"") ->  | CA126: =IF('ENTRY-NILAI'!$L135="a",'ENTRY-NILAI'!AM135,"") ->  | CB126: =IF('ENTRY-NILAI'!$L135="a",'ENTRY-NILAI'!AU135,"") ->  | CC126: =IF('ENTRY-NILAI'!$L135="a",'ENTRY-NILAI'!BE135,"") ->  | CD126: =IF('ENTRY-NILAI'!$L135="a",'ENTRY-NILAI'!BO135,"") ->  | CE126: =IF('ENTRY-NILAI'!$L135="a",'ENTRY-NILAI'!BY135,"") ->  | CF126: 122 | CG126: =IF('ENTRY-NILAI'!$L135="a",'ENTRY-NILAI'!AB135+'ENTRY-NILAI'!AL135+'ENTRY-NILAI'!AT135+'ENTRY-NILAI'!BD135+'ENTRY-NILAI'!BN135+'ENTRY-NILAI'!BX135,"") ->  | CO126: =IF(CN126="","",RANK(CN126,CN$5:CN$604,0)+COUNTIF(CN$5:CN126,CN126)-1) -> 
B127: 123 | C127: =IF('ENTRY-NILAI'!L136="A",'ENTRY-NILAI'!A136,"") ->  | D127: =IF('ENTRY-NILAI'!$L136="A",'ENTRY-NILAI'!AB136,"") ->  | E127: =IF('ENTRY-NILAI'!$L136="A",'ENTRY-NILAI'!AA136,"") ->  | L127: =IF(K127="","",RANK(K127,K$5:K$604,0)+COUNTIF(K$5:K127,K127)-1) ->  | P127: =IF('ENTRY-NILAI'!$L136="A",'ENTRY-NILAI'!$AL136,"") ->  | Q127: =IF('ENTRY-NILAI'!$L136="A",'ENTRY-NILAI'!$AK136,"") ->  | X127: =IF(W127="","",RANK(W127,W$5:W$604,0)+COUNTIF(W$5:W127,W127)-1) ->  | AB127: =IF('ENTRY-NILAI'!$L136="A",'ENTRY-NILAI'!$AT136,"") ->  | AC127: =IF('ENTRY-NILAI'!$L136="A",'ENTRY-NILAI'!$AS136,"") ->  | AJ127: =IF(AI127="","",RANK(AI127,AI$5:AI$604,0)+COUNTIF(AI$5:AI127,AI127)-1) ->  | AN127: =IF('ENTRY-NILAI'!$L136="A",'ENTRY-NILAI'!$BD136,"") ->  | AO127: =IF('ENTRY-NILAI'!$L136="A",'ENTRY-NILAI'!$BC136,"") ->  | AV127: =IF(AU127="","",RANK(AU127,AU$5:AU$604,0)+COUNTIF(AU$5:AU127,AU127)-1) ->  | AZ127: =IF('ENTRY-NILAI'!$L136="A",'ENTRY-NILAI'!$BN136,"") ->  | BA127: =IF('ENTRY-NILAI'!$L136="A",'ENTRY-NILAI'!$BM136,"") ->  | BH127: =IF(BG127="","",RANK(BG127,BG$5:BG$604,0)+COUNTIF(BG$5:BG127,BG127)-1) ->  | BL127: =IF('ENTRY-NILAI'!$L136="A",'ENTRY-NILAI'!$BX136,"") ->  | BM127: =IF('ENTRY-NILAI'!$L136="A",'ENTRY-NILAI'!$BW136,"") ->  | BT127: =IF(BS127="","",RANK(BS127,BS$5:BS$604,0)+COUNTIF(BS$5:BS127,BS127)-1) ->  | BY127: =IF('ENTRY-NILAI'!$L136="a",'ENTRY-NILAI'!FG136,"") ->  | BZ127: =IF('ENTRY-NILAI'!$L136="a",'ENTRY-NILAI'!AC136,"") ->  | CA127: =IF('ENTRY-NILAI'!$L136="a",'ENTRY-NILAI'!AM136,"") ->  | CB127: =IF('ENTRY-NILAI'!$L136="a",'ENTRY-NILAI'!AU136,"") ->  | CC127: =IF('ENTRY-NILAI'!$L136="a",'ENTRY-NILAI'!BE136,"") ->  | CD127: =IF('ENTRY-NILAI'!$L136="a",'ENTRY-NILAI'!BO136,"") ->  | CE127: =IF('ENTRY-NILAI'!$L136="a",'ENTRY-NILAI'!BY136,"") ->  | CF127: 123 | CG127: =IF('ENTRY-NILAI'!$L136="a",'ENTRY-NILAI'!AB136+'ENTRY-NILAI'!AL136+'ENTRY-NILAI'!AT136+'ENTRY-NILAI'!BD136+'ENTRY-NILAI'!BN136+'ENTRY-NILAI'!BX136,"") ->  | CO127: =IF(CN127="","",RANK(CN127,CN$5:CN$604,0)+COUNTIF(CN$5:CN127,CN127)-1) -> 
B128: 124 | C128: =IF('ENTRY-NILAI'!L137="A",'ENTRY-NILAI'!A137,"") ->  | D128: =IF('ENTRY-NILAI'!$L137="A",'ENTRY-NILAI'!AB137,"") ->  | E128: =IF('ENTRY-NILAI'!$L137="A",'ENTRY-NILAI'!AA137,"") ->  | L128: =IF(K128="","",RANK(K128,K$5:K$604,0)+COUNTIF(K$5:K128,K128)-1) ->  | P128: =IF('ENTRY-NILAI'!$L137="A",'ENTRY-NILAI'!$AL137,"") ->  | Q128: =IF('ENTRY-NILAI'!$L137="A",'ENTRY-NILAI'!$AK137,"") ->  | X128: =IF(W128="","",RANK(W128,W$5:W$604,0)+COUNTIF(W$5:W128,W128)-1) ->  | AB128: =IF('ENTRY-NILAI'!$L137="A",'ENTRY-NILAI'!$AT137,"") ->  | AC128: =IF('ENTRY-NILAI'!$L137="A",'ENTRY-NILAI'!$AS137,"") ->  | AJ128: =IF(AI128="","",RANK(AI128,AI$5:AI$604,0)+COUNTIF(AI$5:AI128,AI128)-1) ->  | AN128: =IF('ENTRY-NILAI'!$L137="A",'ENTRY-NILAI'!$BD137,"") ->  | AO128: =IF('ENTRY-NILAI'!$L137="A",'ENTRY-NILAI'!$BC137,"") ->  | AV128: =IF(AU128="","",RANK(AU128,AU$5:AU$604,0)+COUNTIF(AU$5:AU128,AU128)-1) ->  | AZ128: =IF('ENTRY-NILAI'!$L137="A",'ENTRY-NILAI'!$BN137,"") ->  | BA128: =IF('ENTRY-NILAI'!$L137="A",'ENTRY-NILAI'!$BM137,"") ->  | BH128: =IF(BG128="","",RANK(BG128,BG$5:BG$604,0)+COUNTIF(BG$5:BG128,BG128)-1) ->  | BL128: =IF('ENTRY-NILAI'!$L137="A",'ENTRY-NILAI'!$BX137,"") ->  | BM128: =IF('ENTRY-NILAI'!$L137="A",'ENTRY-NILAI'!$BW137,"") ->  | BT128: =IF(BS128="","",RANK(BS128,BS$5:BS$604,0)+COUNTIF(BS$5:BS128,BS128)-1) ->  | BY128: =IF('ENTRY-NILAI'!$L137="a",'ENTRY-NILAI'!FG137,"") ->  | BZ128: =IF('ENTRY-NILAI'!$L137="a",'ENTRY-NILAI'!AC137,"") ->  | CA128: =IF('ENTRY-NILAI'!$L137="a",'ENTRY-NILAI'!AM137,"") ->  | CB128: =IF('ENTRY-NILAI'!$L137="a",'ENTRY-NILAI'!AU137,"") ->  | CC128: =IF('ENTRY-NILAI'!$L137="a",'ENTRY-NILAI'!BE137,"") ->  | CD128: =IF('ENTRY-NILAI'!$L137="a",'ENTRY-NILAI'!BO137,"") ->  | CE128: =IF('ENTRY-NILAI'!$L137="a",'ENTRY-NILAI'!BY137,"") ->  | CF128: 124 | CG128: =IF('ENTRY-NILAI'!$L137="a",'ENTRY-NILAI'!AB137+'ENTRY-NILAI'!AL137+'ENTRY-NILAI'!AT137+'ENTRY-NILAI'!BD137+'ENTRY-NILAI'!BN137+'ENTRY-NILAI'!BX137,"") ->  | CO128: =IF(CN128="","",RANK(CN128,CN$5:CN$604,0)+COUNTIF(CN$5:CN128,CN128)-1) -> 
B129: 125 | C129: =IF('ENTRY-NILAI'!L138="A",'ENTRY-NILAI'!A138,"") ->  | D129: =IF('ENTRY-NILAI'!$L138="A",'ENTRY-NILAI'!AB138,"") ->  | E129: =IF('ENTRY-NILAI'!$L138="A",'ENTRY-NILAI'!AA138,"") ->  | L129: =IF(K129="","",RANK(K129,K$5:K$604,0)+COUNTIF(K$5:K129,K129)-1) ->  | P129: =IF('ENTRY-NILAI'!$L138="A",'ENTRY-NILAI'!$AL138,"") ->  | Q129: =IF('ENTRY-NILAI'!$L138="A",'ENTRY-NILAI'!$AK138,"") ->  | X129: =IF(W129="","",RANK(W129,W$5:W$604,0)+COUNTIF(W$5:W129,W129)-1) ->  | AB129: =IF('ENTRY-NILAI'!$L138="A",'ENTRY-NILAI'!$AT138,"") ->  | AC129: =IF('ENTRY-NILAI'!$L138="A",'ENTRY-NILAI'!$AS138,"") ->  | AJ129: =IF(AI129="","",RANK(AI129,AI$5:AI$604,0)+COUNTIF(AI$5:AI129,AI129)-1) ->  | AN129: =IF('ENTRY-NILAI'!$L138="A",'ENTRY-NILAI'!$BD138,"") ->  | AO129: =IF('ENTRY-NILAI'!$L138="A",'ENTRY-NILAI'!$BC138,"") ->  | AV129: =IF(AU129="","",RANK(AU129,AU$5:AU$604,0)+COUNTIF(AU$5:AU129,AU129)-1) ->  | AZ129: =IF('ENTRY-NILAI'!$L138="A",'ENTRY-NILAI'!$BN138,"") ->  | BA129: =IF('ENTRY-NILAI'!$L138="A",'ENTRY-NILAI'!$BM138,"") ->  | BH129: =IF(BG129="","",RANK(BG129,BG$5:BG$604,0)+COUNTIF(BG$5:BG129,BG129)-1) ->  | BL129: =IF('ENTRY-NILAI'!$L138="A",'ENTRY-NILAI'!$BX138,"") ->  | BM129: =IF('ENTRY-NILAI'!$L138="A",'ENTRY-NILAI'!$BW138,"") ->  | BT129: =IF(BS129="","",RANK(BS129,BS$5:BS$604,0)+COUNTIF(BS$5:BS129,BS129)-1) ->  | BY129: =IF('ENTRY-NILAI'!$L138="a",'ENTRY-NILAI'!FG138,"") ->  | BZ129: =IF('ENTRY-NILAI'!$L138="a",'ENTRY-NILAI'!AC138,"") ->  | CA129: =IF('ENTRY-NILAI'!$L138="a",'ENTRY-NILAI'!AM138,"") ->  | CB129: =IF('ENTRY-NILAI'!$L138="a",'ENTRY-NILAI'!AU138,"") ->  | CC129: =IF('ENTRY-NILAI'!$L138="a",'ENTRY-NILAI'!BE138,"") ->  | CD129: =IF('ENTRY-NILAI'!$L138="a",'ENTRY-NILAI'!BO138,"") ->  | CE129: =IF('ENTRY-NILAI'!$L138="a",'ENTRY-NILAI'!BY138,"") ->  | CF129: 125 | CG129: =IF('ENTRY-NILAI'!$L138="a",'ENTRY-NILAI'!AB138+'ENTRY-NILAI'!AL138+'ENTRY-NILAI'!AT138+'ENTRY-NILAI'!BD138+'ENTRY-NILAI'!BN138+'ENTRY-NILAI'!BX138,"") ->  | CO129: =IF(CN129="","",RANK(CN129,CN$5:CN$604,0)+COUNTIF(CN$5:CN129,CN129)-1) -> 
B130: 126 | C130: =IF('ENTRY-NILAI'!L139="A",'ENTRY-NILAI'!A139,"") ->  | D130: =IF('ENTRY-NILAI'!$L139="A",'ENTRY-NILAI'!AB139,"") ->  | E130: =IF('ENTRY-NILAI'!$L139="A",'ENTRY-NILAI'!AA139,"") ->  | L130: =IF(K130="","",RANK(K130,K$5:K$604,0)+COUNTIF(K$5:K130,K130)-1) ->  | P130: =IF('ENTRY-NILAI'!$L139="A",'ENTRY-NILAI'!$AL139,"") ->  | Q130: =IF('ENTRY-NILAI'!$L139="A",'ENTRY-NILAI'!$AK139,"") ->  | X130: =IF(W130="","",RANK(W130,W$5:W$604,0)+COUNTIF(W$5:W130,W130)-1) ->  | AB130: =IF('ENTRY-NILAI'!$L139="A",'ENTRY-NILAI'!$AT139,"") ->  | AC130: =IF('ENTRY-NILAI'!$L139="A",'ENTRY-NILAI'!$AS139,"") ->  | AJ130: =IF(AI130="","",RANK(AI130,AI$5:AI$604,0)+COUNTIF(AI$5:AI130,AI130)-1) ->  | AN130: =IF('ENTRY-NILAI'!$L139="A",'ENTRY-NILAI'!$BD139,"") ->  | AO130: =IF('ENTRY-NILAI'!$L139="A",'ENTRY-NILAI'!$BC139,"") ->  | AV130: =IF(AU130="","",RANK(AU130,AU$5:AU$604,0)+COUNTIF(AU$5:AU130,AU130)-1) ->  | AZ130: =IF('ENTRY-NILAI'!$L139="A",'ENTRY-NILAI'!$BN139,"") ->  | BA130: =IF('ENTRY-NILAI'!$L139="A",'ENTRY-NILAI'!$BM139,"") ->  | BH130: =IF(BG130="","",RANK(BG130,BG$5:BG$604,0)+COUNTIF(BG$5:BG130,BG130)-1) ->  | BL130: =IF('ENTRY-NILAI'!$L139="A",'ENTRY-NILAI'!$BX139,"") ->  | BM130: =IF('ENTRY-NILAI'!$L139="A",'ENTRY-NILAI'!$BW139,"") ->  | BT130: =IF(BS130="","",RANK(BS130,BS$5:BS$604,0)+COUNTIF(BS$5:BS130,BS130)-1) ->  | BY130: =IF('ENTRY-NILAI'!$L139="a",'ENTRY-NILAI'!FG139,"") ->  | BZ130: =IF('ENTRY-NILAI'!$L139="a",'ENTRY-NILAI'!AC139,"") ->  | CA130: =IF('ENTRY-NILAI'!$L139="a",'ENTRY-NILAI'!AM139,"") ->  | CB130: =IF('ENTRY-NILAI'!$L139="a",'ENTRY-NILAI'!AU139,"") ->  | CC130: =IF('ENTRY-NILAI'!$L139="a",'ENTRY-NILAI'!BE139,"") ->  | CD130: =IF('ENTRY-NILAI'!$L139="a",'ENTRY-NILAI'!BO139,"") ->  | CE130: =IF('ENTRY-NILAI'!$L139="a",'ENTRY-NILAI'!BY139,"") ->  | CF130: 126 | CG130: =IF('ENTRY-NILAI'!$L139="a",'ENTRY-NILAI'!AB139+'ENTRY-NILAI'!AL139+'ENTRY-NILAI'!AT139+'ENTRY-NILAI'!BD139+'ENTRY-NILAI'!BN139+'ENTRY-NILAI'!BX139,"") ->  | CO130: =IF(CN130="","",RANK(CN130,CN$5:CN$604,0)+COUNTIF(CN$5:CN130,CN130)-1) -> 
B131: 127 | C131: =IF('ENTRY-NILAI'!L140="A",'ENTRY-NILAI'!A140,"") ->  | D131: =IF('ENTRY-NILAI'!$L140="A",'ENTRY-NILAI'!AB140,"") ->  | E131: =IF('ENTRY-NILAI'!$L140="A",'ENTRY-NILAI'!AA140,"") ->  | L131: =IF(K131="","",RANK(K131,K$5:K$604,0)+COUNTIF(K$5:K131,K131)-1) ->  | P131: =IF('ENTRY-NILAI'!$L140="A",'ENTRY-NILAI'!$AL140,"") ->  | Q131: =IF('ENTRY-NILAI'!$L140="A",'ENTRY-NILAI'!$AK140,"") ->  | X131: =IF(W131="","",RANK(W131,W$5:W$604,0)+COUNTIF(W$5:W131,W131)-1) ->  | AB131: =IF('ENTRY-NILAI'!$L140="A",'ENTRY-NILAI'!$AT140,"") ->  | AC131: =IF('ENTRY-NILAI'!$L140="A",'ENTRY-NILAI'!$AS140,"") ->  | AJ131: =IF(AI131="","",RANK(AI131,AI$5:AI$604,0)+COUNTIF(AI$5:AI131,AI131)-1) ->  | AN131: =IF('ENTRY-NILAI'!$L140="A",'ENTRY-NILAI'!$BD140,"") ->  | AO131: =IF('ENTRY-NILAI'!$L140="A",'ENTRY-NILAI'!$BC140,"") ->  | AV131: =IF(AU131="","",RANK(AU131,AU$5:AU$604,0)+COUNTIF(AU$5:AU131,AU131)-1) ->  | AZ131: =IF('ENTRY-NILAI'!$L140="A",'ENTRY-NILAI'!$BN140,"") ->  | BA131: =IF('ENTRY-NILAI'!$L140="A",'ENTRY-NILAI'!$BM140,"") ->  | BH131: =IF(BG131="","",RANK(BG131,BG$5:BG$604,0)+COUNTIF(BG$5:BG131,BG131)-1) ->  | BL131: =IF('ENTRY-NILAI'!$L140="A",'ENTRY-NILAI'!$BX140,"") ->  | BM131: =IF('ENTRY-NILAI'!$L140="A",'ENTRY-NILAI'!$BW140,"") ->  | BT131: =IF(BS131="","",RANK(BS131,BS$5:BS$604,0)+COUNTIF(BS$5:BS131,BS131)-1) ->  | BY131: =IF('ENTRY-NILAI'!$L140="a",'ENTRY-NILAI'!FG140,"") ->  | BZ131: =IF('ENTRY-NILAI'!$L140="a",'ENTRY-NILAI'!AC140,"") ->  | CA131: =IF('ENTRY-NILAI'!$L140="a",'ENTRY-NILAI'!AM140,"") ->  | CB131: =IF('ENTRY-NILAI'!$L140="a",'ENTRY-NILAI'!AU140,"") ->  | CC131: =IF('ENTRY-NILAI'!$L140="a",'ENTRY-NILAI'!BE140,"") ->  | CD131: =IF('ENTRY-NILAI'!$L140="a",'ENTRY-NILAI'!BO140,"") ->  | CE131: =IF('ENTRY-NILAI'!$L140="a",'ENTRY-NILAI'!BY140,"") ->  | CF131: 127 | CG131: =IF('ENTRY-NILAI'!$L140="a",'ENTRY-NILAI'!AB140+'ENTRY-NILAI'!AL140+'ENTRY-NILAI'!AT140+'ENTRY-NILAI'!BD140+'ENTRY-NILAI'!BN140+'ENTRY-NILAI'!BX140,"") ->  | CO131: =IF(CN131="","",RANK(CN131,CN$5:CN$604,0)+COUNTIF(CN$5:CN131,CN131)-1) -> 
B132: 128 | C132: =IF('ENTRY-NILAI'!L141="A",'ENTRY-NILAI'!A141,"") ->  | D132: =IF('ENTRY-NILAI'!$L141="A",'ENTRY-NILAI'!AB141,"") ->  | E132: =IF('ENTRY-NILAI'!$L141="A",'ENTRY-NILAI'!AA141,"") ->  | L132: =IF(K132="","",RANK(K132,K$5:K$604,0)+COUNTIF(K$5:K132,K132)-1) ->  | P132: =IF('ENTRY-NILAI'!$L141="A",'ENTRY-NILAI'!$AL141,"") ->  | Q132: =IF('ENTRY-NILAI'!$L141="A",'ENTRY-NILAI'!$AK141,"") ->  | X132: =IF(W132="","",RANK(W132,W$5:W$604,0)+COUNTIF(W$5:W132,W132)-1) ->  | AB132: =IF('ENTRY-NILAI'!$L141="A",'ENTRY-NILAI'!$AT141,"") ->  | AC132: =IF('ENTRY-NILAI'!$L141="A",'ENTRY-NILAI'!$AS141,"") ->  | AJ132: =IF(AI132="","",RANK(AI132,AI$5:AI$604,0)+COUNTIF(AI$5:AI132,AI132)-1) ->  | AN132: =IF('ENTRY-NILAI'!$L141="A",'ENTRY-NILAI'!$BD141,"") ->  | AO132: =IF('ENTRY-NILAI'!$L141="A",'ENTRY-NILAI'!$BC141,"") ->  | AV132: =IF(AU132="","",RANK(AU132,AU$5:AU$604,0)+COUNTIF(AU$5:AU132,AU132)-1) ->  | AZ132: =IF('ENTRY-NILAI'!$L141="A",'ENTRY-NILAI'!$BN141,"") ->  | BA132: =IF('ENTRY-NILAI'!$L141="A",'ENTRY-NILAI'!$BM141,"") ->  | BH132: =IF(BG132="","",RANK(BG132,BG$5:BG$604,0)+COUNTIF(BG$5:BG132,BG132)-1) ->  | BL132: =IF('ENTRY-NILAI'!$L141="A",'ENTRY-NILAI'!$BX141,"") ->  | BM132: =IF('ENTRY-NILAI'!$L141="A",'ENTRY-NILAI'!$BW141,"") ->  | BT132: =IF(BS132="","",RANK(BS132,BS$5:BS$604,0)+COUNTIF(BS$5:BS132,BS132)-1) ->  | BY132: =IF('ENTRY-NILAI'!$L141="a",'ENTRY-NILAI'!FG141,"") ->  | BZ132: =IF('ENTRY-NILAI'!$L141="a",'ENTRY-NILAI'!AC141,"") ->  | CA132: =IF('ENTRY-NILAI'!$L141="a",'ENTRY-NILAI'!AM141,"") ->  | CB132: =IF('ENTRY-NILAI'!$L141="a",'ENTRY-NILAI'!AU141,"") ->  | CC132: =IF('ENTRY-NILAI'!$L141="a",'ENTRY-NILAI'!BE141,"") ->  | CD132: =IF('ENTRY-NILAI'!$L141="a",'ENTRY-NILAI'!BO141,"") ->  | CE132: =IF('ENTRY-NILAI'!$L141="a",'ENTRY-NILAI'!BY141,"") ->  | CF132: 128 | CG132: =IF('ENTRY-NILAI'!$L141="a",'ENTRY-NILAI'!AB141+'ENTRY-NILAI'!AL141+'ENTRY-NILAI'!AT141+'ENTRY-NILAI'!BD141+'ENTRY-NILAI'!BN141+'ENTRY-NILAI'!BX141,"") ->  | CO132: =IF(CN132="","",RANK(CN132,CN$5:CN$604,0)+COUNTIF(CN$5:CN132,CN132)-1) -> 
B133: 129 | C133: =IF('ENTRY-NILAI'!L142="A",'ENTRY-NILAI'!A142,"") ->  | D133: =IF('ENTRY-NILAI'!$L142="A",'ENTRY-NILAI'!AB142,"") ->  | E133: =IF('ENTRY-NILAI'!$L142="A",'ENTRY-NILAI'!AA142,"") ->  | L133: =IF(K133="","",RANK(K133,K$5:K$604,0)+COUNTIF(K$5:K133,K133)-1) ->  | P133: =IF('ENTRY-NILAI'!$L142="A",'ENTRY-NILAI'!$AL142,"") ->  | Q133: =IF('ENTRY-NILAI'!$L142="A",'ENTRY-NILAI'!$AK142,"") ->  | X133: =IF(W133="","",RANK(W133,W$5:W$604,0)+COUNTIF(W$5:W133,W133)-1) ->  | AB133: =IF('ENTRY-NILAI'!$L142="A",'ENTRY-NILAI'!$AT142,"") ->  | AC133: =IF('ENTRY-NILAI'!$L142="A",'ENTRY-NILAI'!$AS142,"") ->  | AJ133: =IF(AI133="","",RANK(AI133,AI$5:AI$604,0)+COUNTIF(AI$5:AI133,AI133)-1) ->  | AN133: =IF('ENTRY-NILAI'!$L142="A",'ENTRY-NILAI'!$BD142,"") ->  | AO133: =IF('ENTRY-NILAI'!$L142="A",'ENTRY-NILAI'!$BC142,"") ->  | AV133: =IF(AU133="","",RANK(AU133,AU$5:AU$604,0)+COUNTIF(AU$5:AU133,AU133)-1) ->  | AZ133: =IF('ENTRY-NILAI'!$L142="A",'ENTRY-NILAI'!$BN142,"") ->  | BA133: =IF('ENTRY-NILAI'!$L142="A",'ENTRY-NILAI'!$BM142,"") ->  | BH133: =IF(BG133="","",RANK(BG133,BG$5:BG$604,0)+COUNTIF(BG$5:BG133,BG133)-1) ->  | BL133: =IF('ENTRY-NILAI'!$L142="A",'ENTRY-NILAI'!$BX142,"") ->  | BM133: =IF('ENTRY-NILAI'!$L142="A",'ENTRY-NILAI'!$BW142,"") ->  | BT133: =IF(BS133="","",RANK(BS133,BS$5:BS$604,0)+COUNTIF(BS$5:BS133,BS133)-1) ->  | BY133: =IF('ENTRY-NILAI'!$L142="a",'ENTRY-NILAI'!FG142,"") ->  | BZ133: =IF('ENTRY-NILAI'!$L142="a",'ENTRY-NILAI'!AC142,"") ->  | CA133: =IF('ENTRY-NILAI'!$L142="a",'ENTRY-NILAI'!AM142,"") ->  | CB133: =IF('ENTRY-NILAI'!$L142="a",'ENTRY-NILAI'!AU142,"") ->  | CC133: =IF('ENTRY-NILAI'!$L142="a",'ENTRY-NILAI'!BE142,"") ->  | CD133: =IF('ENTRY-NILAI'!$L142="a",'ENTRY-NILAI'!BO142,"") ->  | CE133: =IF('ENTRY-NILAI'!$L142="a",'ENTRY-NILAI'!BY142,"") ->  | CF133: 129 | CG133: =IF('ENTRY-NILAI'!$L142="a",'ENTRY-NILAI'!AB142+'ENTRY-NILAI'!AL142+'ENTRY-NILAI'!AT142+'ENTRY-NILAI'!BD142+'ENTRY-NILAI'!BN142+'ENTRY-NILAI'!BX142,"") ->  | CO133: =IF(CN133="","",RANK(CN133,CN$5:CN$604,0)+COUNTIF(CN$5:CN133,CN133)-1) -> 
B134: 130 | C134: =IF('ENTRY-NILAI'!L143="A",'ENTRY-NILAI'!A143,"") ->  | D134: =IF('ENTRY-NILAI'!$L143="A",'ENTRY-NILAI'!AB143,"") ->  | E134: =IF('ENTRY-NILAI'!$L143="A",'ENTRY-NILAI'!AA143,"") ->  | L134: =IF(K134="","",RANK(K134,K$5:K$604,0)+COUNTIF(K$5:K134,K134)-1) ->  | O134: =IFERROR(VLOOKUP(N134,$L$5:$M$604,2,FALSE),"") ->  | P134: =IF('ENTRY-NILAI'!$L143="A",'ENTRY-NILAI'!$AL143,"") ->  | Q134: =IF('ENTRY-NILAI'!$L143="A",'ENTRY-NILAI'!$AK143,"") ->  | X134: =IF(W134="","",RANK(W134,W$5:W$604,0)+COUNTIF(W$5:W134,W134)-1) ->  | Z134: =SMALL($X$5:$X$604,$A134) ->  | AA134: =IFERROR(VLOOKUP(Z134,$X$5:$Y$604,2,FALSE),"") ->  | AB134: =IF('ENTRY-NILAI'!$L143="A",'ENTRY-NILAI'!$AT143,"") ->  | AC134: =IF('ENTRY-NILAI'!$L143="A",'ENTRY-NILAI'!$AS143,"") ->  | AJ134: =IF(AI134="","",RANK(AI134,AI$5:AI$604,0)+COUNTIF(AI$5:AI134,AI134)-1) ->  | AK134: =IF($C134="","",IF(AJ134<11,$B134,"")) ->  | AM134: =IFERROR(VLOOKUP(AL134,AJ$5:AK$604,2,FALSE),"") ->  | AN134: =IF('ENTRY-NILAI'!$L143="A",'ENTRY-NILAI'!$BD143,"") ->  | AO134: =IF('ENTRY-NILAI'!$L143="A",'ENTRY-NILAI'!$BC143,"") ->  | AV134: =IF(AU134="","",RANK(AU134,AU$5:AU$604,0)+COUNTIF(AU$5:AU134,AU134)-1) ->  | AW134: =IF($C134="","",IF(AV134<11,$B134,"")) ->  | AY134: =IFERROR(VLOOKUP(AX134,AV$5:AW$604,2,FALSE),"") ->  | AZ134: =IF('ENTRY-NILAI'!$L143="A",'ENTRY-NILAI'!$BN143,"") ->  | BA134: =IF('ENTRY-NILAI'!$L143="A",'ENTRY-NILAI'!$BM143,"") ->  | BH134: =IF(BG134="","",RANK(BG134,BG$5:BG$604,0)+COUNTIF(BG$5:BG134,BG134)-1) ->  | BI134: =IF($C134="","",IF(BH134<11,$B134,"")) ->  | BK134: =IFERROR(VLOOKUP(BJ134,BH$5:BI$604,2,FALSE),"") ->  | BL134: =IF('ENTRY-NILAI'!$L143="A",'ENTRY-NILAI'!$BX143,"") ->  | BM134: =IF('ENTRY-NILAI'!$L143="A",'ENTRY-NILAI'!$BW143,"") ->  | BT134: =IF(BS134="","",RANK(BS134,BS$5:BS$604,0)+COUNTIF(BS$5:BS134,BS134)-1) ->  | BU134: =IF($C134="","",IF(BT134<11,$B134,"")) ->  | BW134: =IFERROR(VLOOKUP(BV134,BT$5:BU$604,2,FALSE),"") ->  | BY134: =IF('ENTRY-NILAI'!$L143="a",'ENTRY-NILAI'!FG143,"") ->  | BZ134: =IF('ENTRY-NILAI'!$L143="a",'ENTRY-NILAI'!AC143,"") ->  | CA134: =IF('ENTRY-NILAI'!$L143="a",'ENTRY-NILAI'!AM143,"") ->  | CB134: =IF('ENTRY-NILAI'!$L143="a",'ENTRY-NILAI'!AU143,"") ->  | CC134: =IF('ENTRY-NILAI'!$L143="a",'ENTRY-NILAI'!BE143,"") ->  | CD134: =IF('ENTRY-NILAI'!$L143="a",'ENTRY-NILAI'!BO143,"") ->  | CE134: =IF('ENTRY-NILAI'!$L143="a",'ENTRY-NILAI'!BY143,"") ->  | CF134: 130 | CG134: =IF('ENTRY-NILAI'!$L143="a",'ENTRY-NILAI'!AB143+'ENTRY-NILAI'!AL143+'ENTRY-NILAI'!AT143+'ENTRY-NILAI'!BD143+'ENTRY-NILAI'!BN143+'ENTRY-NILAI'!BX143,"") ->  | CO134: =IF(CN134="","",RANK(CN134,CN$5:CN$604,0)+COUNTIF(CN$5:CN134,CN134)-1) ->  | CP134: =IF($C134="","",IF(CO134<11,$B134,"")) ->  | CR134: =IFERROR(VLOOKUP(CQ134,CO$5:CP$604,2,FALSE),"") -> 
B135: 131 | C135: =IF('ENTRY-NILAI'!L144="A",'ENTRY-NILAI'!A144,"") ->  | D135: =IF('ENTRY-NILAI'!$L144="A",'ENTRY-NILAI'!AB144,"") ->  | E135: =IF('ENTRY-NILAI'!$L144="A",'ENTRY-NILAI'!AA144,"") ->  | L135: =IF(K135="","",RANK(K135,K$5:K$604,0)+COUNTIF(K$5:K135,K135)-1) ->  | P135: =IF('ENTRY-NILAI'!$L144="A",'ENTRY-NILAI'!$AL144,"") ->  | Q135: =IF('ENTRY-NILAI'!$L144="A",'ENTRY-NILAI'!$AK144,"") ->  | X135: =IF(W135="","",RANK(W135,W$5:W$604,0)+COUNTIF(W$5:W135,W135)-1) ->  | AB135: =IF('ENTRY-NILAI'!$L144="A",'ENTRY-NILAI'!$AT144,"") ->  | AC135: =IF('ENTRY-NILAI'!$L144="A",'ENTRY-NILAI'!$AS144,"") ->  | AJ135: =IF(AI135="","",RANK(AI135,AI$5:AI$604,0)+COUNTIF(AI$5:AI135,AI135)-1) ->  | AN135: =IF('ENTRY-NILAI'!$L144="A",'ENTRY-NILAI'!$BD144,"") ->  | AO135: =IF('ENTRY-NILAI'!$L144="A",'ENTRY-NILAI'!$BC144,"") ->  | AV135: =IF(AU135="","",RANK(AU135,AU$5:AU$604,0)+COUNTIF(AU$5:AU135,AU135)-1) ->  | AZ135: =IF('ENTRY-NILAI'!$L144="A",'ENTRY-NILAI'!$BN144,"") ->  | BA135: =IF('ENTRY-NILAI'!$L144="A",'ENTRY-NILAI'!$BM144,"") ->  | BH135: =IF(BG135="","",RANK(BG135,BG$5:BG$604,0)+COUNTIF(BG$5:BG135,BG135)-1) ->  | BL135: =IF('ENTRY-NILAI'!$L144="A",'ENTRY-NILAI'!$BX144,"") ->  | BM135: =IF('ENTRY-NILAI'!$L144="A",'ENTRY-NILAI'!$BW144,"") ->  | BT135: =IF(BS135="","",RANK(BS135,BS$5:BS$604,0)+COUNTIF(BS$5:BS135,BS135)-1) ->  | BY135: =IF('ENTRY-NILAI'!$L144="a",'ENTRY-NILAI'!FG144,"") ->  | BZ135: =IF('ENTRY-NILAI'!$L144="a",'ENTRY-NILAI'!AC144,"") ->  | CA135: =IF('ENTRY-NILAI'!$L144="a",'ENTRY-NILAI'!AM144,"") ->  | CB135: =IF('ENTRY-NILAI'!$L144="a",'ENTRY-NILAI'!AU144,"") ->  | CC135: =IF('ENTRY-NILAI'!$L144="a",'ENTRY-NILAI'!BE144,"") ->  | CD135: =IF('ENTRY-NILAI'!$L144="a",'ENTRY-NILAI'!BO144,"") ->  | CE135: =IF('ENTRY-NILAI'!$L144="a",'ENTRY-NILAI'!BY144,"") ->  | CF135: 131 | CG135: =IF('ENTRY-NILAI'!$L144="a",'ENTRY-NILAI'!AB144+'ENTRY-NILAI'!AL144+'ENTRY-NILAI'!AT144+'ENTRY-NILAI'!BD144+'ENTRY-NILAI'!BN144+'ENTRY-NILAI'!BX144,"") ->  | CO135: =IF(CN135="","",RANK(CN135,CN$5:CN$604,0)+COUNTIF(CN$5:CN135,CN135)-1) -> 
B136: 132 | C136: =IF('ENTRY-NILAI'!L145="A",'ENTRY-NILAI'!A145,"") ->  | D136: =IF('ENTRY-NILAI'!$L145="A",'ENTRY-NILAI'!AB145,"") ->  | E136: =IF('ENTRY-NILAI'!$L145="A",'ENTRY-NILAI'!AA145,"") ->  | L136: =IF(K136="","",RANK(K136,K$5:K$604,0)+COUNTIF(K$5:K136,K136)-1) ->  | P136: =IF('ENTRY-NILAI'!$L145="A",'ENTRY-NILAI'!$AL145,"") ->  | Q136: =IF('ENTRY-NILAI'!$L145="A",'ENTRY-NILAI'!$AK145,"") ->  | X136: =IF(W136="","",RANK(W136,W$5:W$604,0)+COUNTIF(W$5:W136,W136)-1) ->  | AB136: =IF('ENTRY-NILAI'!$L145="A",'ENTRY-NILAI'!$AT145,"") ->  | AC136: =IF('ENTRY-NILAI'!$L145="A",'ENTRY-NILAI'!$AS145,"") ->  | AJ136: =IF(AI136="","",RANK(AI136,AI$5:AI$604,0)+COUNTIF(AI$5:AI136,AI136)-1) ->  | AN136: =IF('ENTRY-NILAI'!$L145="A",'ENTRY-NILAI'!$BD145,"") ->  | AO136: =IF('ENTRY-NILAI'!$L145="A",'ENTRY-NILAI'!$BC145,"") ->  | AV136: =IF(AU136="","",RANK(AU136,AU$5:AU$604,0)+COUNTIF(AU$5:AU136,AU136)-1) ->  | AZ136: =IF('ENTRY-NILAI'!$L145="A",'ENTRY-NILAI'!$BN145,"") ->  | BA136: =IF('ENTRY-NILAI'!$L145="A",'ENTRY-NILAI'!$BM145,"") ->  | BH136: =IF(BG136="","",RANK(BG136,BG$5:BG$604,0)+COUNTIF(BG$5:BG136,BG136)-1) ->  | BL136: =IF('ENTRY-NILAI'!$L145="A",'ENTRY-NILAI'!$BX145,"") ->  | BM136: =IF('ENTRY-NILAI'!$L145="A",'ENTRY-NILAI'!$BW145,"") ->  | BT136: =IF(BS136="","",RANK(BS136,BS$5:BS$604,0)+COUNTIF(BS$5:BS136,BS136)-1) ->  | BY136: =IF('ENTRY-NILAI'!$L145="a",'ENTRY-NILAI'!FG145,"") ->  | BZ136: =IF('ENTRY-NILAI'!$L145="a",'ENTRY-NILAI'!AC145,"") ->  | CA136: =IF('ENTRY-NILAI'!$L145="a",'ENTRY-NILAI'!AM145,"") ->  | CB136: =IF('ENTRY-NILAI'!$L145="a",'ENTRY-NILAI'!AU145,"") ->  | CC136: =IF('ENTRY-NILAI'!$L145="a",'ENTRY-NILAI'!BE145,"") ->  | CD136: =IF('ENTRY-NILAI'!$L145="a",'ENTRY-NILAI'!BO145,"") ->  | CE136: =IF('ENTRY-NILAI'!$L145="a",'ENTRY-NILAI'!BY145,"") ->  | CF136: 132 | CG136: =IF('ENTRY-NILAI'!$L145="a",'ENTRY-NILAI'!AB145+'ENTRY-NILAI'!AL145+'ENTRY-NILAI'!AT145+'ENTRY-NILAI'!BD145+'ENTRY-NILAI'!BN145+'ENTRY-NILAI'!BX145,"") ->  | CO136: =IF(CN136="","",RANK(CN136,CN$5:CN$604,0)+COUNTIF(CN$5:CN136,CN136)-1) -> 
B137: 133 | C137: =IF('ENTRY-NILAI'!L146="A",'ENTRY-NILAI'!A146,"") ->  | D137: =IF('ENTRY-NILAI'!$L146="A",'ENTRY-NILAI'!AB146,"") ->  | E137: =IF('ENTRY-NILAI'!$L146="A",'ENTRY-NILAI'!AA146,"") ->  | L137: =IF(K137="","",RANK(K137,K$5:K$604,0)+COUNTIF(K$5:K137,K137)-1) ->  | P137: =IF('ENTRY-NILAI'!$L146="A",'ENTRY-NILAI'!$AL146,"") ->  | Q137: =IF('ENTRY-NILAI'!$L146="A",'ENTRY-NILAI'!$AK146,"") ->  | X137: =IF(W137="","",RANK(W137,W$5:W$604,0)+COUNTIF(W$5:W137,W137)-1) ->  | AB137: =IF('ENTRY-NILAI'!$L146="A",'ENTRY-NILAI'!$AT146,"") ->  | AC137: =IF('ENTRY-NILAI'!$L146="A",'ENTRY-NILAI'!$AS146,"") ->  | AJ137: =IF(AI137="","",RANK(AI137,AI$5:AI$604,0)+COUNTIF(AI$5:AI137,AI137)-1) ->  | AN137: =IF('ENTRY-NILAI'!$L146="A",'ENTRY-NILAI'!$BD146,"") ->  | AO137: =IF('ENTRY-NILAI'!$L146="A",'ENTRY-NILAI'!$BC146,"") ->  | AV137: =IF(AU137="","",RANK(AU137,AU$5:AU$604,0)+COUNTIF(AU$5:AU137,AU137)-1) ->  | AZ137: =IF('ENTRY-NILAI'!$L146="A",'ENTRY-NILAI'!$BN146,"") ->  | BA137: =IF('ENTRY-NILAI'!$L146="A",'ENTRY-NILAI'!$BM146,"") ->  | BH137: =IF(BG137="","",RANK(BG137,BG$5:BG$604,0)+COUNTIF(BG$5:BG137,BG137)-1) ->  | BL137: =IF('ENTRY-NILAI'!$L146="A",'ENTRY-NILAI'!$BX146,"") ->  | BM137: =IF('ENTRY-NILAI'!$L146="A",'ENTRY-NILAI'!$BW146,"") ->  | BT137: =IF(BS137="","",RANK(BS137,BS$5:BS$604,0)+COUNTIF(BS$5:BS137,BS137)-1) ->  | BY137: =IF('ENTRY-NILAI'!$L146="a",'ENTRY-NILAI'!FG146,"") ->  | BZ137: =IF('ENTRY-NILAI'!$L146="a",'ENTRY-NILAI'!AC146,"") ->  | CA137: =IF('ENTRY-NILAI'!$L146="a",'ENTRY-NILAI'!AM146,"") ->  | CB137: =IF('ENTRY-NILAI'!$L146="a",'ENTRY-NILAI'!AU146,"") ->  | CC137: =IF('ENTRY-NILAI'!$L146="a",'ENTRY-NILAI'!BE146,"") ->  | CD137: =IF('ENTRY-NILAI'!$L146="a",'ENTRY-NILAI'!BO146,"") ->  | CE137: =IF('ENTRY-NILAI'!$L146="a",'ENTRY-NILAI'!BY146,"") ->  | CF137: 133 | CG137: =IF('ENTRY-NILAI'!$L146="a",'ENTRY-NILAI'!AB146+'ENTRY-NILAI'!AL146+'ENTRY-NILAI'!AT146+'ENTRY-NILAI'!BD146+'ENTRY-NILAI'!BN146+'ENTRY-NILAI'!BX146,"") ->  | CO137: =IF(CN137="","",RANK(CN137,CN$5:CN$604,0)+COUNTIF(CN$5:CN137,CN137)-1) -> 
B138: 134 | C138: =IF('ENTRY-NILAI'!L147="A",'ENTRY-NILAI'!A147,"") ->  | D138: =IF('ENTRY-NILAI'!$L147="A",'ENTRY-NILAI'!AB147,"") ->  | E138: =IF('ENTRY-NILAI'!$L147="A",'ENTRY-NILAI'!AA147,"") ->  | L138: =IF(K138="","",RANK(K138,K$5:K$604,0)+COUNTIF(K$5:K138,K138)-1) ->  | P138: =IF('ENTRY-NILAI'!$L147="A",'ENTRY-NILAI'!$AL147,"") ->  | Q138: =IF('ENTRY-NILAI'!$L147="A",'ENTRY-NILAI'!$AK147,"") ->  | X138: =IF(W138="","",RANK(W138,W$5:W$604,0)+COUNTIF(W$5:W138,W138)-1) ->  | AB138: =IF('ENTRY-NILAI'!$L147="A",'ENTRY-NILAI'!$AT147,"") ->  | AC138: =IF('ENTRY-NILAI'!$L147="A",'ENTRY-NILAI'!$AS147,"") ->  | AJ138: =IF(AI138="","",RANK(AI138,AI$5:AI$604,0)+COUNTIF(AI$5:AI138,AI138)-1) ->  | AN138: =IF('ENTRY-NILAI'!$L147="A",'ENTRY-NILAI'!$BD147,"") ->  | AO138: =IF('ENTRY-NILAI'!$L147="A",'ENTRY-NILAI'!$BC147,"") ->  | AV138: =IF(AU138="","",RANK(AU138,AU$5:AU$604,0)+COUNTIF(AU$5:AU138,AU138)-1) ->  | AZ138: =IF('ENTRY-NILAI'!$L147="A",'ENTRY-NILAI'!$BN147,"") ->  | BA138: =IF('ENTRY-NILAI'!$L147="A",'ENTRY-NILAI'!$BM147,"") ->  | BH138: =IF(BG138="","",RANK(BG138,BG$5:BG$604,0)+COUNTIF(BG$5:BG138,BG138)-1) ->  | BL138: =IF('ENTRY-NILAI'!$L147="A",'ENTRY-NILAI'!$BX147,"") ->  | BM138: =IF('ENTRY-NILAI'!$L147="A",'ENTRY-NILAI'!$BW147,"") ->  | BT138: =IF(BS138="","",RANK(BS138,BS$5:BS$604,0)+COUNTIF(BS$5:BS138,BS138)-1) ->  | BY138: =IF('ENTRY-NILAI'!$L147="a",'ENTRY-NILAI'!FG147,"") ->  | BZ138: =IF('ENTRY-NILAI'!$L147="a",'ENTRY-NILAI'!AC147,"") ->  | CA138: =IF('ENTRY-NILAI'!$L147="a",'ENTRY-NILAI'!AM147,"") ->  | CB138: =IF('ENTRY-NILAI'!$L147="a",'ENTRY-NILAI'!AU147,"") ->  | CC138: =IF('ENTRY-NILAI'!$L147="a",'ENTRY-NILAI'!BE147,"") ->  | CD138: =IF('ENTRY-NILAI'!$L147="a",'ENTRY-NILAI'!BO147,"") ->  | CE138: =IF('ENTRY-NILAI'!$L147="a",'ENTRY-NILAI'!BY147,"") ->  | CF138: 134 | CG138: =IF('ENTRY-NILAI'!$L147="a",'ENTRY-NILAI'!AB147+'ENTRY-NILAI'!AL147+'ENTRY-NILAI'!AT147+'ENTRY-NILAI'!BD147+'ENTRY-NILAI'!BN147+'ENTRY-NILAI'!BX147,"") ->  | CO138: =IF(CN138="","",RANK(CN138,CN$5:CN$604,0)+COUNTIF(CN$5:CN138,CN138)-1) -> 
